Workbook

Sheet Volume estimates (for MC input)
A1: Summary of volume estimates for well-exposed volcanic deposits in northern Harrat Rahat
A3: Lava flows and pyroclastic deposits
A4: Unit | B4: Composition | C4: Area (m2) | D4: Vent thickness (m) | E4: Deposit thickness (m) | F4: Volume (km3) | G4: Source
A5: bdu | B5: basalt | C5: 131209.2892 | D5: - | E5: - | F5: 0.000418 | G5: Murcia et al. (2015)
A6: hm3 | B6: hawaiite | C6: 516346.5419 | D6: 70 | E6: 10 | F6: 0.01593211453 | G6: Based on three cross sections across the length of the flow
A7: bcef | B7: basalt | C7: 18156702.06 | D7: - | E7: 3.8 | F7: 0.07 | G7: Dietterich et al. (2018)
A8: bsof | B8: basalt | C8: 39556330.01 | D8: - | E8: =AVERAGE(3.43,2) -> 2.715 | F8: 0.13 | G8: Dietterich et al. (2018)
A9: bun | B9: basalt | C9: 19695128.68 | D9: 66 | E9: 7 | F9: 0.1461696291 | G9: Urban area so flow thickness can't be measured, but height of cones was measured and updated
A10: bnof | B10: basalt | C10: 34525912.83 | D10: - | E10: =AVERAGE(6.3,3.6) -> 4.95 | F10: 0.17 | G10: Dietterich et al. (2018)
A11: bjr | B11: basalt | C11: 18437553.71 | D11: 30 | E11: 10 | F11: 0.1854972149 | G11: Based on three cross sections across the length of the flow
A12: buak | B12: basalt | C12: 18580290.16 | D12: 30 | E12: 11 | F12: 0.2064456951 | G12: Based on three cross sections across the length of the flow
A13: bml | B13: basalt | C13: 22782280.51 | D13: 50 | E13: 11 | F13: 0.2546529033 | G13: Based on three cross sections across the length of the flow
A14: bhag | B14: basalt | C14: 37069743.97 | D14: 50 | E14: 8 | F14: 0.3029014198 | G14: Based on three cross sections across the length of the flow
A15: bmuf | B15: basalt | C15: 59202249.26 | D15: 25 | E15: 7 | F15: 0.4175537327 | G15: Based on three cross sections across the length of the flow
A16: bla | B16: basalt | C16: 60679843.15 | D16: - | E16: 7.7 | F16: 0.42 | G16: Dietterich et al. (2018)
A17: han3 | B17: hawaiite | C17: 68669074.71 | D17: 70 | E17: 9 | F17: 0.6332703052 | G17: Average of 4 cross sections on the different lobes of the flow (as well as the proximal region)
A18: bns | B18: basalt | C18: 63522035.51 | D18: 30 | E18: 10 | F18: 0.6462935521 | G18: Average of cross sections from the western (~15 m thick) and eastern (~6 m thick) lobes
A19: hkh | B19: hawaiite | C19: 25304074.68 | D19: 117 | E19: 30 | F19: 0.8068301895 | G19: Based on three cross sections across the length of the flow
A20: bsas | B20: basalt | C20: 55642505.23 | D20: missing | E20: 15 | F20: 0.8346375785 | G20: Average of cross sections on both lobes of the flow
A21: hd2 | B21: hawaiite | C21: 17432745.68 | D21: 100 | E21: 40 | F21: 0.7326427443 | G21: Based on three cross sections across the length of the flow
A22: hlh | B22: hawaiite | C22: 69021830.82 | D22: 140 | E22: 15 | F22: 1.086967402 | G22: Average of near vent and lobe specific cross sections
A23: mmk | B23: mugearite | C23: 59406701.14 | D23: 120 | E23: 20 | F23: 1.26042714 | G23: Based on three cross sections across the length of the flow
A24: mmu | B24: mugearite | C24: 15867620.95 | D24: 100 | E24: 10 to 15 | F24: 0.2651719455 | G24: Based on three cross sections across the length of the flow plus an estimate of the missing volume
A25: mzy | B25: mugearite | C25: 13319243.1 | D25: 80 | E25: 20 | F25: 0.2806707387 | G25: Based on three cross sections across the length of the flow
A26: msr | B26: mugearite | C26: 1221175.407 | D26: 80 | E26: 9 | F26: 0.02571419135 | G26: Based on three cross sections across the length of the flow
A27: mha | B27: mugearite | C27: 363741.7478 | D27: 60 | E27: 6 | F27: 0.006733444101 | G27: Based on a cross section of the vent, and field observations of the flow thickness
A28: oqa | B28: benmoreite | C28: 149759.4188 | D28: 30 | E28: 30 | F28: 0.004492782565 | G28: Based on a single cross section. This doesn't really have a true dome shape
A29: oz4 | B29: benmoreite | C29: 15030000 | D29: missing | E29: 20 | F29: 0.3006 | G29: Field observations
A30: tg2 | B30: trachyte (pyroclastic) | C30: 9850000 | D30: - | E30: 15.61909893 | F30: 0.1353863495 | G30: Field observations
A31: tg3 | B31: trachyte (pyroclastic) | C31: 8521364.948 | D31: - | E31: 16.07537189 | F31: 0.1205460173 | G31: Field observations
A32: tg4 | B32: trachyte (pyroclastic) | C32: 16617544.35 | D32: - | E32: 15.04434077 | F32: 0.22 | G32: Field observations
A33: tg5 | B33: trachyte (pyroclastic) | C33: 1689420.715 | D33: - | E33: 13.45270159 | F33: 0.02 | G33: Field observations
A34: tef | B34: trachyte (pyroclastic) | C34: 35479631.18 | D34: - | E34: 27.54461348 | F34: 0.86 | G34: Field observations
A35: twa | B35: trachyte (pyroclastic) | C35: 27040000 | D35: - | E35: 15 | F35: 0.356928 | G35: Field observations
A38: Domes and associated pyroclastic deposits
A39: Unit | B39: Composition | C39: Dome Diameter (km) | D39: Dome Height (km) | E39: Dome Volume (km3) | F39: Explosive Volume (km3) | G39: Total Volume (km3) | H39: Source
A40: oju - main dome | B40: benmoreite | C40: 1.5 | D40: 0.188 | E40: 0.3322234231 | F40: 0.110741141 | G40: 0.4429645642 | H40: Dome diameter and height measured in ArcGIS. Explosive volume estimated from field observations.
A41: oju - subsidiary dome | B41: benmoreite | C41: 0.95 | D41: 0.103 | E41: 0.07300864977 | F41: None | G41: 0.07300864977 | H41: Dome diameter and height measured in ArcGIS. Explosive volume estimated from field observations.
A42: td1 | B42: trachyte | C42: 0.964 | D42: 0.2 | E42: 0.1459734743 | F42: 0.02098978951 | G42: 0.1669632638 | H42: Dome diameter and height measured in ArcGIS. Explosive volume estimated from field observations.
A43: tma | B43: trachyte | C43: 1.15 | D43: 0.23 | E43: 0.2388984864 | F43: 0.006 | G43: 0.2448984864 | H43: Dome diameter and height measured in ArcGIS. Explosive volume estimated from field observations.
A44: tmo | B44: trachyte | C44: 0.6 | D44: 0.077 | E44: 0.02177123709 | F44: 0.03346409088 | G44: 0.05523532797 | H44: Dome diameter and height measured in ArcGIS. Explosive volume estimated from field observations.
A45: trg | B45: trachyte | C45: 0.738 | D45: 0.114 | E45: 0.04876491329 | F45: 0.15 | G45: 0.1987649133 | H45: Dome diameter and height measured in ArcGIS. Explosive volume estimated from field observations.
A46: tz1 | B46: trachyte | C46: 0.84 | D46: 0.129 | E46: 0.07148882579 | F46: none | G46: 0.07148882579 | H46: Dome diameter and height measured in ArcGIS. Explosive volume estimated from field observations.

Sheet Summary of age data
A1: 40Ar/39Ar, 36Cl ages, and stratigraphic ages for northern Harrat Rahat
A2: Unit Abbreviation | B2: Absolute Age (ka) | C2: ± 1 sigma | D2: Absolute Age Type
A3: bla | B3: 0.761 | D3: Historic Records
A4: trg | B4: 4.2 | C4: 5.2 | D4: Ar-Ar
A5: bdu | B5: 13.3 | C5: 1.9 | D5: Cl Cosmo
A6: td1 | B6: 17.6 | C6: 1.8 | D6: Ar-Ar*
A7: bsof | B7: 24.4 | C7: 1.3 | D7: Cl Cosmo*
A8: bcef | B8: 24.4 | C8: 1.3 | D8: Cl Cosmo*
A9: bnof | B9: 24.4 | C9: 1.3 | D9: Cl Cosmo*
A10: bdw | B10: 25.6 | C10: 16.2 | D10: Ar-Ar
A11: hkh | B11: 29 | C11: 3.9 | D11: Ar-Ar
A12: tmo | B12: 31.9 | C12: 2.1 | D12: Ar-Ar
A13: twa | B13: 39.2 | C13: 1.6 | D13: Ar-Ar*
A14: han3 | B14: 51 | C14: 9 | D14: Cl Cosmo
A15: bms | B15: 59.1 | C15: 5.7 | D15: Cl Cosmo*
A16: tg5 | B16: 79.7 | C16: 1.6 | D16: Ar-Ar*
A17: bsk | B17: 82.6 | C17: 29.2 | D17: Stratigraphic
A18: tg4 | B18: 84.3 | C18: 1.6 | D18: Ar-Ar*
A19: bsu | B19: 85.7 | C19: 5.7 | D19: Ar-Ar*
A20: tef | B20: 88 | C20: 1.8 | D20: Ar-Ar*
A21: han2 | B21: 91.3 | C21: 50.7 | D21: Stratigraphic
A22: mh11 | B22: 92 | C22: 50 | D22: Stratigraphic
A23: tg2 | B23: 93.8 | C23: 2.1 | D23: Ar-Ar*
A24: bun | B24: 105 | C24: 8.6 | D24: Ar-Ar
A25: mmk | B25: 114.4 | C25: 8.5 | D25: Ar-Ar
A26: bsas | B26: 115.3 | C26: 7.5 | D26: Ar-Ar
A27: md1 | B27: 116.7 | C27: 2.8 | D27: Ar-Ar*
A28: tma | B28: 121.5 | C28: 1.4 | D28: Ar-Ar*
A29: tz2 | B29: 121.6 | C29: 1.8 | D29: Ar-Ar*
A30: bza | B30: 125.3 | C30: 102.2 | D30: Stratigraphic
A31: og2 | B31: 128.2 | C31: 4.2 | D31: Ar-Ar
A32: hd2 | B32: 130 | D32: Geomorphic
A33: bar | B33: 130.3 | C33: 5 | D33: Ar-Ar
A34: hm3 | B34: 130.3 | C34: 101 | D34: Stratigraphic
A35: bm2 | B35: 130.3 | C35: 101 | D35: Stratigraphic
A36: bnu | B36: 131.2 | C36: 8.3 | D36: Ar-Ar
A37: bsb | B37: 136.4 | C37: 95.8 | D37: Stratigraphic
A38: bmat | B38: 136.7 | C38: 7.6 | D38: Ar-Ar
A39: bh10 | B39: 137.3 | C39: 11.3 | D39: Ar-Ar
A40: han1 | B40: 139 | C40: 5.4 | D40: Ar-Ar
A41: bdy | B41: 139.2 | C41: 11.3 | D41: Ar-Ar
A42: tg3 | B42: 142.4 | C42: 2.2 | D42: Ar-Ar
A43: bsq | B43: 144.6 | C43: 19.6 | D43: Paleomagnetic
A44: bka | B44: 144.6 | C44: 19.6 | D44: Ar-Ar
A45: bns | B45: 150 | D45: Neighboring Stratigraphy/Geomophic
A46: har | B46: 151.2 | C46: 7.9 | D46: In Prep
A47: bjb | B47: 151.2 | C47: 7.9 | D47: Stratigraphic
A48: bwar | B48: 151.2 | C48: 7.9 | D48: Stratigraphic
A49: bwm | B49: 151.2 | C49: 7.9 | D49: Stratigraphic
A50: brt | B50: 151.2 | C50: 7.9 | D50: Stratigraphic
A51: bsi | B51: 151.9 | C51: 9.9 | D51: Ar-Ar*
A52: bnar | B52: 153 | C52: 6.2 | D52: Stratigraphic
A53: mma | B53: 154 | C53: 8.3 | D53: Ar-Ar
A54: hlh | B54: 154.8 | C54: 5.5 | D54: Ar-Ar
A55: bna | B55: 162.9 | C55: 11.1 | D55: Ar-Ar
A56: oqa | B56: 175.2 | C56: 7.5 | D56: Ar-Ar***
A57: bmz | B57: 179.5 | C57: 52.6 | D57: Stratigraphic
A58: bra | B58: 179.5 | C58: 52.6 | D58: Stratigraphic
A59: bru | B59: 181.7 | C59: 50.3 | D59: Stratigraphic
A60: buqh | B60: 185.9 | C60: 39.1 | D60: Stratigraphic
A61: blqh | B61: 185.9 | C61: 39.1 | D61: Stratigraphic
A62: bjs | B62: 188.3 | C62: 4.2 | D62: Stratigraphic/Paleomagnetic
A63: bsh | B63: 191.5 | C63: 4.2 | D63: Ar-Ar*
A64: mz2 | B64: 195.9 | C64: 1.3 | D64: Ar-Ar*
A65: blqa | B65: 196.9 | C65: 10.3 | D65: Ar-Ar
A66: bam2 | B66: 199.4 | C66: 59.7 | D66: Stratigraphic
A67: bam3 | B67: 199.4 | C67: 59.7 | D67: Stratigraphic
A68: bam4 | B68: 199.4 | C68: 59.7 | D68: Stratigraphic
A69: ort | B69: 200 | D69: Neighboring Stratigraphy
A70: busi | B70: 200 | D70: Geomorphic
A71: bjr | B71: 207.3 | C71: 8.4 | D71: Ar-Ar
A72: bmd | B72: 208.9 | C72: 16.9 | D72: Stratigraphic
A73: buak | B73: 208.9 | C73: 16.9 | D73: Stratigraphic
A74: badh | B74: 208.9 | C74: 16.9 | D74: Ar-Ar***
A75: buaa | B75: 208.9 | C75: 16.9 | D75: Stratigraphic
A76: bqg | B76: 215.2 | C76: 6.9 | D76: Ar-Ar*
A77: murr | B77: 216 | C77: 15.3 | D77: Stratigraphic
A78: bli | B78: 216.7 | C78: 8.2 | D78: Stratigraphic
A79: bups | B79: 216.8 | C79: 10.7 | D79: Stratigraphic
A80: bsf | B80: 217.5 | C80: 6.7 | D80: Ar-Ar
A81: bh81 | B81: 217.5 | C81: 6.7 | D81: Stratigraphic
A82: bwh8 | B82: 217.5 | C82: 6.7 | D82: Stratigraphic
A83: mmy | B83: 219.3 | C83: 18.6 | D83: Stratigraphic
A84: mmu | B84: 219.6 | C84: 4 | D84: Ar-Ar*
A85: bag | B85: 220.3 | C85: 8.3 | D85: Ar-Ar*
A86: hma | B86: 220.5 | C86: 10.9 | D86: Ar-Ar
A87: bso | B87: 222.2 | C87: 5.8 | D87: Stratigraphic
A88: bml | B88: 222.2 | C88: 5.8 | D88: Ar-Ar*
A89: bda | B89: 223 | C89: 18.9 | D89: Ar-Ar
A90: bbd | B90: 223.4 | C90: 8.6 | D90: Ar-Ar
A91: buru | B91: 224.2 | C91: 187.3 | D91: Stratigraphic
A92: buri | B92: 224.2 | C92: 187.3 | D92: Stratigraphic
A93: oma | B93: 226.9 | C93: 4.3 | D93: Stratigraphic
A94: blsl | B94: 228.6 | C94: 12 | D94: Ar-Ar
A95: bm1 | B95: 230.7 | C95: 4.4 | D95: Ar-Ar
A96: bdr | B96: 232.7 | C96: 15.9 | D96: Ar-Ar
A97: bmt | B97: 235 | C97: 4 | D97: Stratigraphic
A98: bhy | B98: 235.1 | C98: 7.5 | D98: Ar-Ar
A99: bsy | B99: 236.2 | C99: 29.2 | D99: Ar-Ar
A100: badb | B100: 238.1 | C100: 27.3 | D100: Stratigraphic
A101: hmo | B101: 239 | C101: 4.1 | D101: Ar-Ar
A102: bbr | B102: 242.3 | C102: 24.6 | D102: Stratigraphic
A103: oba | B103: 242.8 | C103: 2.4 | D103: Ar-Ar
A104: bhb | B104: 246.4 | C104: 25 | D104: Ar-Ar
A105: hmk | B105: 248.2 | C105: 8.3 | D105: Ar-Ar*
A106: masu | B106: 252.2 | C106: 2.7 | D106: Ar-Ar
A107: bam1 | B107: 252.2 | C107: 6.8 | D107: Ar-Ar
A108: bahu | B108: 252.2 | C108: 2.7 | D108: Stratigraphic
A109: bawa | B109: 252.2 | C109: 2.7 | D109: Stratigraphic
A110: bqar | B110: 252.2 | C110: 2.7 | D110: Stratigraphic
A111: besa | B111: 258.6 | C111: 44.7 | D111: Stratigraphic
A112: bmk | B112: 261.3 | C112: 19.1 | D112: Ar-Ar***
A113: tz1 | B113: 269.1 | C113: 5 | D113: Ar-Ar*
A114: bau | B114: 280.4 | C114: 6.5 | D114: Paleomagnetic
A115: bsuy | B115: 282.4 | C115: 71.6 | D115: Stratigraphic
A116: bhu | B116: 285.1 | C116: 6.6 | D116: Ar-Ar
A117: bh86 | B117: 285.4 | C117: 20.1 | D117: Ar-Ar*
A118: bhag | B118: 287.1 | C118: 21.8 | D118: Stratigraphic
A119: bsa | B119: 288.8 | C119: 19.6 | D119: Ar-Ar
A120: bhm | B120: 300 | D120: Geomorphic
A121: bqaq | B121: 300 | D121: Geomorphic
A122: busb | B122: 302.3 | C122: 14.8 | D122: Ar-Ar
A123: bash | B123: 305 | C123: 161.8 | D123: Stratigraphic
A124: bd3 | B124: 307.7 | C124: 4.6 | D124: Ar-Ar*
A125: bssu | B125: 313.9 | C125: 11.3 | D125: Ar-Ar
A126: og4 | B126: 316.4 | C126: 2.1 | D126: Ar-Ar* / Ar-Ar
A127: bya | B127: 321.4 | C127: 97.6 | D127: Stratigraphic
A128: bjab | B128: 324.7 | C128: 29.3 | D128: Ar-Ar
A129: bsm | B129: 331.2 | C129: 135.6 | D129: Stratigraphic
A130: bmu | B130: 344.7 | C130: 4.8 | D130: Ar-Ar
A131: blsa | B131: 346.9 | C131: 9.9 | D131: Ar-Ar
A132: bsj | B132: 357.1 | C132: 54.5 | D132: Stratigraphic
A133: bju | B133: 362.6 | C133: 97.3 | D133: Stratigraphic
A134: burr | B134: 366.4 | C134: 9.3 | D134: Ar-Ar*
A135: bay | B135: 366.4 | C135: 9.3 | D135: Stratigraphic
A136: bte | B136: 366.6 | C136: 159.6 | D136: Stratigraphic
A137: bpr | B137: 378.8 | C137: 10 | D137: Ar-Ar
A138: bqr | B138: 380.7 | C138: 165.9 | D138: Stratigraphic
A139: bhg | B139: 382.5 | C139: 5.8 | D139: Ar-Ar
A140: bnj | B140: 383.7 | C140: 81.1 | D140: Neighboring Stratigraphy
A141: muq | B141: 385.6 | C141: 12.6 | D141: Ar-Ar
A142: osa | B142: 388.4 | C142: 9.9 | D142: Stratigraphic
A143: mns | B143: 388.4 | C143: 9.9 | D143: Stratigraphic
A144: msr | B144: 389.9 | C144: 5 | D144: Ar-Ar
A145: hsb | B145: 400 | D145: Neighboring Stratgraphy
A146: bduw | B146: 400 | D146: Geomorphic
A147: bh87 | B147: 400 | D147: Geomorphic
A148: bsaw | B148: 400 | D148: Geomorphic
A149: bsah | B149: 401.6 | C149: 9.8 | D149: Ar-Ar
A150: bsou | B150: 401.6 | C150: 9.8 | D150: Stratigraphic
A151: bur | B151: 401.8 | C151: 6.3 | D151: Ar-Ar
A152: bni | B152: 402.5 | C152: 15.4 | D152: Ar-Ar
A153: mzy | B153: 410.3 | C153: 3.4 | D153: Ar-Ar
A154: brh | B154: 411.5 | C154: 5.9 | D154: Ar-Ar
A155: mha | B155: 411.8 | C155: 1.9 | D155: Stratigraphic
A156: tqa | B156: 411.8 | C156: 1.9 | D156: Stratigraphic
A157: bmus | B157: 412 | D157: Neighboring Stratigraphy
A158: ozy | B158: 418.8 | C158: 1.9 | D158: Ar-Ar
A159: oju | B159: 424.2 | C159: 1.8 | D159: Ar-Ar / Ar-Ar*
A160: oz4 | B160: 430.2 | C160: 6.9 | D160: Ar-Ar*
A161: msi | B161: 430.2 | C161: 6.9 | D161: Stratigraphic
A162: oju | B162: 437.6 | C162: 4.3 | D162: Ar-Ar / Ar-Ar*
A163: bri | B163: 438.9 | C163: 21 | D163: Ar-Ar
A164: bmuf | B164: 438.9 | C164: 21 | D164: Stratigraphic
A165: brum | B165: 438.9 | C165: 21 | D165: Stratigraphic
A166: baaj | B166: 438.9 | C166: 21 | D166: Stratigraphic
A167: baq | B167: 438.9 | C167: 21 | D167: Stratigraphic
A168: brb | B168: 438.9 | C168: 21 | D168: Stratigraphic
A169: bsam | B169: 438.9 | C169: 21 | D169: Stratigraphic
A170: brw | B170: 438.9 | C170: 21 | D170: Stratigraphic
A171: bswu | B171: 438.9 | C171: 21 | D171: Stratigraphic
A172: busa | B172: 438.9 | C172: 21 | D172: Stratigraphic
A173: busq | B173: 438.9 | C173: 21 | D173: Stratigraphic
A174: buj | B174: 445.4 | C174: 149.6 | D174: Stratigraphic
A175: oz5 | B175: 449.6 | C175: 6.6 | D175: Ar-Ar***
A176: bnh | B176: 450 | D176: Neighboring Stratigraphy
A177: buh | B177: 450 | D177: Geomorphic
A178: mz3 | B178: 451.8 | C178: 4.4 | D178: Stratigraphic/Paleomagnetic
A179: mz6 | B179: 451.8 | C179: 4.4 | D179: Stratigraphic/Paleomagnetic
A180: tz6 | B180: 451.8 | C180: 4.4 | D180: Stratigraphic/Paleomagnetic
A181: basu | B181: 453.4 | C181: 12.8 | D181: Ar-Ar*
A182: bdg | B182: 453.4 | C182: 12.8 | D182: Stratigraphic
A183: bqi | B183: 453.4 | C183: 12.8 | D183: Stratigraphic
A184: mnzy | B184: 461.2 | C184: 6.2 | D184: Ar-Ar
A185: bss | B185: 461.9 | C185: 4.9 | D185: Ar-Ar
A186: bbsh | B186: 461.9 | C186: 4.9 | D186: Stratigraphic
A187: bwhu | B187: 461.9 | C187: 4.9 | D187: Stratigraphic
A188: bjg | B188: 466.4 | D188: Neighboring Stratigraphy
A189: bis | B189: 467.7 | C189: 78.8 | D189: Stratigraphic
A190: bqu | B190: 476.1 | C190: 70.5 | D190: Stratigraphic/Paleomagnetic
A191: bha | B191: 476.1 | C191: 70.5 | D191: Stratigraphic/Paleomagnetic
A192: hhil | B192: 490.1 | C192: 4.6 | D192: Ar-Ar
A193: btw | B193: 497.5 | C193: 37.5 | D193: Ar-Ar
A194: bhin | B194: 500 | D194: Geomorphic
A195: bara | B195: 500 | D195: Geomorphic
A196: bme | B196: 500 | D196: Neighboring Stratigraphy
A197: byid | B197: 500 | D197: Geomorphic
A198: brag | B198: 500 | D198: Geomorphic
A199: bzi | B199: 500 | D199: Geomorphic
A200: bef | B200: 500 | D200: Geomorphic
... 43 more rows

Sheet MCsim
A1: Age Rank | B1: Probability | C1: Modeled Volume (km3) | D1: Modeled Cumulative Vol. (km3) | E1: Age (ka) | F1: 1 sigma (ka) | G1: Unit | H1: Gamma Dist 1 (alpha) | I1: Gamma Dist 1 (beta) | J1: Gamma Dist 2 (alpha) | K1: Gamma Dist 2 (beta) | L1: Cutoff | N1: # of models to run | R1: Model Description: Volume distributions for each magma composition are in their respective tabs. Gamma distributions are used in these volume distributions. Up to two gamma distributions can be used to model the observed data. The MC simulation will draw from the user defined probability distributions for the respective composition when randomly calculating volumes for units. Volumes of eruptive products used in defining the volume distributions for each composition are not randomly generated in the MC simulation. These volumes can be found in the “Volume estimates (for MC input)” tab. Order of operations: [1] A random probability between 0 and 1 is calculated (column B). [2] A volume is assigned to each unit based on the randomly generated probability value and the user defined DRE volume vs. cumulative probability distribution (column C). [3] The cumulative volume through time is calculated (column D) and exported to the "MCsimOutput" tab where it is stored. This is done for the specified number of iterations. [4] Once all model iterations have been run, two new plots are generated in new tabs. One plot shows cumulative volume vs. age (where the age values are derived from column E in this tab). The second plot show the cumulative volume (separated by composition) vs. age. Age uncertainties are not incorporated into this model.
A2: 1 | B2: =RAND() -> 0.316490541 | C2: 0.42 | D2: =SUM($C2:$C$237) -> 84.14832413 | E2: =IFERROR(VLOOKUP(G2,'Summary of age data'!$A$3:$D$243,2,FALSE),"") -> 0.761 | F2: =IFERROR(VLOOKUP(G2,'Summary of age data'!$A$3:$D$243,3,FALSE),"") -> 0 | G2: bla | H2: =IF(OR(LEFT(G2,1)="b",LEFT(G2,1)="h")=TRUE,'Basalt & Hawaite Vol Dist'!$H$6,IF(OR(LEFT(G2,1)="m",LEFT(G2,1)="o")=TRUE,'Mug & Ben Vol Dist'!$H$6,IF(LEFT(G2,1)="t",'Trachyte Vol Dist'!$H$6,""))) -> 1.13 | I2: =IF(OR(LEFT(G2,1)="b",LEFT(G2,1)="h")=TRUE,'Basalt & Hawaite Vol Dist'!$I$6,IF(OR(LEFT(G2,1)="m",LEFT(G2,1)="o")=TRUE,'Mug & Ben Vol Dist'!$I$6,IF(LEFT(G2,1)="t",'Trachyte Vol Dist'!$I$6,""))) -> 0.34 | J2: =IF(OR(LEFT(G2,1)="b",LEFT(G2,1)="h")=TRUE,'Basalt & Hawaite Vol Dist'!$J$6,IF(OR(LEFT(G2,1)="m",LEFT(G2,1)="o")=TRUE,'Mug & Ben Vol Dist'!$J$6,IF(LEFT(G2,1)="t",'Trachyte Vol Dist'!$J$6,""))) -> 1.13 | K2: =IF(OR(LEFT(G2,1)="b",LEFT(G2,1)="h")=TRUE,'Basalt & Hawaite Vol Dist'!$K$6,IF(OR(LEFT(G2,1)="m",LEFT(G2,1)="o")=TRUE,'Mug & Ben Vol Dist'!$K$6,IF(LEFT(G2,1)="t",'Trachyte Vol Dist'!$K$6,""))) -> 0.34 | L2: =IF(OR(LEFT(G2,1)="b",LEFT(G2,1)="h")=TRUE,'Basalt & Hawaite Vol Dist'!$B$42,IF(OR(LEFT(G2,1)="m",LEFT(G2,1)="o")=TRUE,'Mug & Ben Vol Dist'!$B$42,IF(LEFT(G2,1)="t",'Trachyte Vol Dist'!$B$42,""))) -> 0.999 | N2: 100
A3: 2 | B3: =RAND() -> 0.8544369 | C3: 0.199 | D3: =SUM($C3:$C$237) -> 83.72832413 | E3: =IFERROR(VLOOKUP(G3,'Summary of age data'!$A$3:$D$243,2,FALSE),"") -> 4.2 | F3: =IFERROR(VLOOKUP(G3,'Summary of age data'!$A$3:$D$243,3,FALSE),"") -> 5.2 | G3: trg | H3: =IF(OR(LEFT(G3,1)="b",LEFT(G3,1)="h")=TRUE,'Basalt & Hawaite Vol Dist'!$H$6,IF(OR(LEFT(G3,1)="m",LEFT(G3,1)="o")=TRUE,'Mug & Ben Vol Dist'!$H$6,IF(LEFT(G3,1)="t",'Trachyte Vol Dist'!$H$6,""))) -> 2 | I3: =IF(OR(LEFT(G3,1)="b",LEFT(G3,1)="h")=TRUE,'Basalt & Hawaite Vol Dist'!$I$6,IF(OR(LEFT(G3,1)="m",LEFT(G3,1)="o")=TRUE,'Mug & Ben Vol Dist'!$I$6,IF(LEFT(G3,1)="t",'Trachyte Vol Dist'!$I$6,""))) -> 0.083 | J3: =IF(OR(LEFT(G3,1)="b",LEFT(G3,1)="h")=TRUE,'Basalt & Hawaite Vol Dist'!$J$6,IF(OR(LEFT(G3,1)="m",LEFT(G3,1)="o")=TRUE,'Mug & Ben Vol Dist'!$J$6,IF(LEFT(G3,1)="t",'Trachyte Vol Dist'!$J$6,""))) -> 2 | K3: =IF(OR(LEFT(G3,1)="b",LEFT(G3,1)="h")=TRUE,'Basalt & Hawaite Vol Dist'!$K$6,IF(OR(LEFT(G3,1)="m",LEFT(G3,1)="o")=TRUE,'Mug & Ben Vol Dist'!$K$6,IF(LEFT(G3,1)="t",'Trachyte Vol Dist'!$K$6,""))) -> 0.083 | L3: =IF(OR(LEFT(G3,1)="b",LEFT(G3,1)="h")=TRUE,'Basalt & Hawaite Vol Dist'!$B$42,IF(OR(LEFT(G3,1)="m",LEFT(G3,1)="o")=TRUE,'Mug & Ben Vol Dist'!$B$42,IF(LEFT(G3,1)="t",'Trachyte Vol Dist'!$B$42,""))) -> 0.999 | N3: Conf. level (α)
A4: 3 | B4: 0.674016204 | C4: 0.000418 | D4: =SUM($C4:$C$237) -> 83.52932413 | E4: =IFERROR(VLOOKUP(G4,'Summary of age data'!$A$3:$D$243,2,FALSE),"") -> 13.3 | F4: =IFERROR(VLOOKUP(G4,'Summary of age data'!$A$3:$D$243,3,FALSE),"") -> 1.9 | G4: bdu | H4: =IF(OR(LEFT(G4,1)="b",LEFT(G4,1)="h")=TRUE,'Basalt & Hawaite Vol Dist'!$H$6,IF(OR(LEFT(G4,1)="m",LEFT(G4,1)="o")=TRUE,'Mug & Ben Vol Dist'!$H$6,IF(LEFT(G4,1)="t",'Trachyte Vol Dist'!$H$6,""))) -> 1.13 | I4: =IF(OR(LEFT(G4,1)="b",LEFT(G4,1)="h")=TRUE,'Basalt & Hawaite Vol Dist'!$I$6,IF(OR(LEFT(G4,1)="m",LEFT(G4,1)="o")=TRUE,'Mug & Ben Vol Dist'!$I$6,IF(LEFT(G4,1)="t",'Trachyte Vol Dist'!$I$6,""))) -> 0.34 | J4: =IF(OR(LEFT(G4,1)="b",LEFT(G4,1)="h")=TRUE,'Basalt & Hawaite Vol Dist'!$J$6,IF(OR(LEFT(G4,1)="m",LEFT(G4,1)="o")=TRUE,'Mug & Ben Vol Dist'!$J$6,IF(LEFT(G4,1)="t",'Trachyte Vol Dist'!$J$6,""))) -> 1.13 | K4: =IF(OR(LEFT(G4,1)="b",LEFT(G4,1)="h")=TRUE,'Basalt & Hawaite Vol Dist'!$K$6,IF(OR(LEFT(G4,1)="m",LEFT(G4,1)="o")=TRUE,'Mug & Ben Vol Dist'!$K$6,IF(LEFT(G4,1)="t",'Trachyte Vol Dist'!$K$6,""))) -> 0.34 | L4: =IF(OR(LEFT(G4,1)="b",LEFT(G4,1)="h")=TRUE,'Basalt & Hawaite Vol Dist'!$B$42,IF(OR(LEFT(G4,1)="m",LEFT(G4,1)="o")=TRUE,'Mug & Ben Vol Dist'!$B$42,IF(LEFT(G4,1)="t",'Trachyte Vol Dist'!$B$42,""))) -> 0.999 | N4: 0.95
A5: 4 | B5: 0.3811434496 | C5: 0.167 | D5: =SUM($C5:$C$237) -> 83.52890613 | E5: =IFERROR(VLOOKUP(G5,'Summary of age data'!$A$3:$D$243,2,FALSE),"") -> 17.6 | F5: =IFERROR(VLOOKUP(G5,'Summary of age data'!$A$3:$D$243,3,FALSE),"") -> 1.8 | G5: td1 | H5: =IF(OR(LEFT(G5,1)="b",LEFT(G5,1)="h")=TRUE,'Basalt & Hawaite Vol Dist'!$H$6,IF(OR(LEFT(G5,1)="m",LEFT(G5,1)="o")=TRUE,'Mug & Ben Vol Dist'!$H$6,IF(LEFT(G5,1)="t",'Trachyte Vol Dist'!$H$6,""))) -> 2 | I5: =IF(OR(LEFT(G5,1)="b",LEFT(G5,1)="h")=TRUE,'Basalt & Hawaite Vol Dist'!$I$6,IF(OR(LEFT(G5,1)="m",LEFT(G5,1)="o")=TRUE,'Mug & Ben Vol Dist'!$I$6,IF(LEFT(G5,1)="t",'Trachyte Vol Dist'!$I$6,""))) -> 0.083 | J5: =IF(OR(LEFT(G5,1)="b",LEFT(G5,1)="h")=TRUE,'Basalt & Hawaite Vol Dist'!$J$6,IF(OR(LEFT(G5,1)="m",LEFT(G5,1)="o")=TRUE,'Mug & Ben Vol Dist'!$J$6,IF(LEFT(G5,1)="t",'Trachyte Vol Dist'!$J$6,""))) -> 2 | K5: =IF(OR(LEFT(G5,1)="b",LEFT(G5,1)="h")=TRUE,'Basalt & Hawaite Vol Dist'!$K$6,IF(OR(LEFT(G5,1)="m",LEFT(G5,1)="o")=TRUE,'Mug & Ben Vol Dist'!$K$6,IF(LEFT(G5,1)="t",'Trachyte Vol Dist'!$K$6,""))) -> 0.083 | L5: =IF(OR(LEFT(G5,1)="b",LEFT(G5,1)="h")=TRUE,'Basalt & Hawaite Vol Dist'!$B$42,IF(OR(LEFT(G5,1)="m",LEFT(G5,1)="o")=TRUE,'Mug & Ben Vol Dist'!$B$42,IF(LEFT(G5,1)="t",'Trachyte Vol Dist'!$B$42,""))) -> 0.999 | N5: Plot SD instead of conf. int.?
A6: 5 | B6: 0.0845921343 | C6: 0.13 | D6: =SUM($C6:$C$237) -> 83.36190613 | E6: =IFERROR(VLOOKUP(G6,'Summary of age data'!$A$3:$D$243,2,FALSE),"") -> 24.4 | F6: =IFERROR(VLOOKUP(G6,'Summary of age data'!$A$3:$D$243,3,FALSE),"") -> 1.3 | G6: bsof | H6: =IF(OR(LEFT(G6,1)="b",LEFT(G6,1)="h")=TRUE,'Basalt & Hawaite Vol Dist'!$H$6,IF(OR(LEFT(G6,1)="m",LEFT(G6,1)="o")=TRUE,'Mug & Ben Vol Dist'!$H$6,IF(LEFT(G6,1)="t",'Trachyte Vol Dist'!$H$6,""))) -> 1.13 | I6: =IF(OR(LEFT(G6,1)="b",LEFT(G6,1)="h")=TRUE,'Basalt & Hawaite Vol Dist'!$I$6,IF(OR(LEFT(G6,1)="m",LEFT(G6,1)="o")=TRUE,'Mug & Ben Vol Dist'!$I$6,IF(LEFT(G6,1)="t",'Trachyte Vol Dist'!$I$6,""))) -> 0.34 | J6: =IF(OR(LEFT(G6,1)="b",LEFT(G6,1)="h")=TRUE,'Basalt & Hawaite Vol Dist'!$J$6,IF(OR(LEFT(G6,1)="m",LEFT(G6,1)="o")=TRUE,'Mug & Ben Vol Dist'!$J$6,IF(LEFT(G6,1)="t",'Trachyte Vol Dist'!$J$6,""))) -> 1.13 | K6: =IF(OR(LEFT(G6,1)="b",LEFT(G6,1)="h")=TRUE,'Basalt & Hawaite Vol Dist'!$K$6,IF(OR(LEFT(G6,1)="m",LEFT(G6,1)="o")=TRUE,'Mug & Ben Vol Dist'!$K$6,IF(LEFT(G6,1)="t",'Trachyte Vol Dist'!$K$6,""))) -> 0.34 | L6: =IF(OR(LEFT(G6,1)="b",LEFT(G6,1)="h")=TRUE,'Basalt & Hawaite Vol Dist'!$B$42,IF(OR(LEFT(G6,1)="m",LEFT(G6,1)="o")=TRUE,'Mug & Ben Vol Dist'!$B$42,IF(LEFT(G6,1)="t",'Trachyte Vol Dist'!$B$42,""))) -> 0.999 | TY6: 0.06
A7: 6 | B7: 0.8779360878 | C7: 0.07 | D7: =SUM($C7:$C$237) -> 83.23190613 | E7: =IFERROR(VLOOKUP(G7,'Summary of age data'!$A$3:$D$243,2,FALSE),"") -> 24.4 | F7: =IFERROR(VLOOKUP(G7,'Summary of age data'!$A$3:$D$243,3,FALSE),"") -> 1.3 | G7: bcef | H7: =IF(OR(LEFT(G7,1)="b",LEFT(G7,1)="h")=TRUE,'Basalt & Hawaite Vol Dist'!$H$6,IF(OR(LEFT(G7,1)="m",LEFT(G7,1)="o")=TRUE,'Mug & Ben Vol Dist'!$H$6,IF(LEFT(G7,1)="t",'Trachyte Vol Dist'!$H$6,""))) -> 1.13 | I7: =IF(OR(LEFT(G7,1)="b",LEFT(G7,1)="h")=TRUE,'Basalt & Hawaite Vol Dist'!$I$6,IF(OR(LEFT(G7,1)="m",LEFT(G7,1)="o")=TRUE,'Mug & Ben Vol Dist'!$I$6,IF(LEFT(G7,1)="t",'Trachyte Vol Dist'!$I$6,""))) -> 0.34 | J7: =IF(OR(LEFT(G7,1)="b",LEFT(G7,1)="h")=TRUE,'Basalt & Hawaite Vol Dist'!$J$6,IF(OR(LEFT(G7,1)="m",LEFT(G7,1)="o")=TRUE,'Mug & Ben Vol Dist'!$J$6,IF(LEFT(G7,1)="t",'Trachyte Vol Dist'!$J$6,""))) -> 1.13 | K7: =IF(OR(LEFT(G7,1)="b",LEFT(G7,1)="h")=TRUE,'Basalt & Hawaite Vol Dist'!$K$6,IF(OR(LEFT(G7,1)="m",LEFT(G7,1)="o")=TRUE,'Mug & Ben Vol Dist'!$K$6,IF(LEFT(G7,1)="t",'Trachyte Vol Dist'!$K$6,""))) -> 0.34 | L7: =IF(OR(LEFT(G7,1)="b",LEFT(G7,1)="h")=TRUE,'Basalt & Hawaite Vol Dist'!$B$42,IF(OR(LEFT(G7,1)="m",LEFT(G7,1)="o")=TRUE,'Mug & Ben Vol Dist'!$B$42,IF(LEFT(G7,1)="t",'Trachyte Vol Dist'!$B$42,""))) -> 0.999 | N7: Yes
A8: 7 | B8: 0.8955786957 | C8: 0.1702431776 | D8: =SUM($C8:$C$237) -> 83.16190613 | E8: =IFERROR(VLOOKUP(G8,'Summary of age data'!$A$3:$D$243,2,FALSE),"") -> 24.4 | F8: =IFERROR(VLOOKUP(G8,'Summary of age data'!$A$3:$D$243,3,FALSE),"") -> 1.3 | G8: bnof | H8: =IF(OR(LEFT(G8,1)="b",LEFT(G8,1)="h")=TRUE,'Basalt & Hawaite Vol Dist'!$H$6,IF(OR(LEFT(G8,1)="m",LEFT(G8,1)="o")=TRUE,'Mug & Ben Vol Dist'!$H$6,IF(LEFT(G8,1)="t",'Trachyte Vol Dist'!$H$6,""))) -> 1.13 | I8: =IF(OR(LEFT(G8,1)="b",LEFT(G8,1)="h")=TRUE,'Basalt & Hawaite Vol Dist'!$I$6,IF(OR(LEFT(G8,1)="m",LEFT(G8,1)="o")=TRUE,'Mug & Ben Vol Dist'!$I$6,IF(LEFT(G8,1)="t",'Trachyte Vol Dist'!$I$6,""))) -> 0.34 | J8: =IF(OR(LEFT(G8,1)="b",LEFT(G8,1)="h")=TRUE,'Basalt & Hawaite Vol Dist'!$J$6,IF(OR(LEFT(G8,1)="m",LEFT(G8,1)="o")=TRUE,'Mug & Ben Vol Dist'!$J$6,IF(LEFT(G8,1)="t",'Trachyte Vol Dist'!$J$6,""))) -> 1.13 | K8: =IF(OR(LEFT(G8,1)="b",LEFT(G8,1)="h")=TRUE,'Basalt & Hawaite Vol Dist'!$K$6,IF(OR(LEFT(G8,1)="m",LEFT(G8,1)="o")=TRUE,'Mug & Ben Vol Dist'!$K$6,IF(LEFT(G8,1)="t",'Trachyte Vol Dist'!$K$6,""))) -> 0.34 | L8: =IF(OR(LEFT(G8,1)="b",LEFT(G8,1)="h")=TRUE,'Basalt & Hawaite Vol Dist'!$B$42,IF(OR(LEFT(G8,1)="m",LEFT(G8,1)="o")=TRUE,'Mug & Ben Vol Dist'!$B$42,IF(LEFT(G8,1)="t",'Trachyte Vol Dist'!$B$42,""))) -> 0.999
A9: 8 | B9: 0.5853277515 | C9: =IF(B9<=L9,_xlfn.GAMMA.INV(B9,H9,I9),_xlfn.GAMMA.INV(B9,J9,K9)) -> 0.3478142237 | D9: =SUM($C9:$C$237) -> 82.99166295 | E9: =IFERROR(VLOOKUP(G9,'Summary of age data'!$A$3:$D$243,2,FALSE),"") -> 25.6 | F9: =IFERROR(VLOOKUP(G9,'Summary of age data'!$A$3:$D$243,3,FALSE),"") -> 16.2 | G9: bdw | H9: =IF(OR(LEFT(G9,1)="b",LEFT(G9,1)="h")=TRUE,'Basalt & Hawaite Vol Dist'!$H$6,IF(OR(LEFT(G9,1)="m",LEFT(G9,1)="o")=TRUE,'Mug & Ben Vol Dist'!$H$6,IF(LEFT(G9,1)="t",'Trachyte Vol Dist'!$H$6,""))) -> 1.13 | I9: =IF(OR(LEFT(G9,1)="b",LEFT(G9,1)="h")=TRUE,'Basalt & Hawaite Vol Dist'!$I$6,IF(OR(LEFT(G9,1)="m",LEFT(G9,1)="o")=TRUE,'Mug & Ben Vol Dist'!$I$6,IF(LEFT(G9,1)="t",'Trachyte Vol Dist'!$I$6,""))) -> 0.34 | J9: =IF(OR(LEFT(G9,1)="b",LEFT(G9,1)="h")=TRUE,'Basalt & Hawaite Vol Dist'!$J$6,IF(OR(LEFT(G9,1)="m",LEFT(G9,1)="o")=TRUE,'Mug & Ben Vol Dist'!$J$6,IF(LEFT(G9,1)="t",'Trachyte Vol Dist'!$J$6,""))) -> 1.13 | K9: =IF(OR(LEFT(G9,1)="b",LEFT(G9,1)="h")=TRUE,'Basalt & Hawaite Vol Dist'!$K$6,IF(OR(LEFT(G9,1)="m",LEFT(G9,1)="o")=TRUE,'Mug & Ben Vol Dist'!$K$6,IF(LEFT(G9,1)="t",'Trachyte Vol Dist'!$K$6,""))) -> 0.34 | L9: =IF(OR(LEFT(G9,1)="b",LEFT(G9,1)="h")=TRUE,'Basalt & Hawaite Vol Dist'!$B$42,IF(OR(LEFT(G9,1)="m",LEFT(G9,1)="o")=TRUE,'Mug & Ben Vol Dist'!$B$42,IF(LEFT(G9,1)="t",'Trachyte Vol Dist'!$B$42,""))) -> 0.999
A10: 9 | B10: 0.6976877999 | C10: 0.8068301895 | D10: =SUM($C10:$C$237) -> 82.64384873 | E10: =IFERROR(VLOOKUP(G10,'Summary of age data'!$A$3:$D$243,2,FALSE),"") -> 29 | F10: =IFERROR(VLOOKUP(G10,'Summary of age data'!$A$3:$D$243,3,FALSE),"") -> 3.9 | G10: hkh | H10: =IF(OR(LEFT(G10,1)="b",LEFT(G10,1)="h")=TRUE,'Basalt & Hawaite Vol Dist'!$H$6,IF(OR(LEFT(G10,1)="m",LEFT(G10,1)="o")=TRUE,'Mug & Ben Vol Dist'!$H$6,IF(LEFT(G10,1)="t",'Trachyte Vol Dist'!$H$6,""))) -> 1.13 | I10: =IF(OR(LEFT(G10,1)="b",LEFT(G10,1)="h")=TRUE,'Basalt & Hawaite Vol Dist'!$I$6,IF(OR(LEFT(G10,1)="m",LEFT(G10,1)="o")=TRUE,'Mug & Ben Vol Dist'!$I$6,IF(LEFT(G10,1)="t",'Trachyte Vol Dist'!$I$6,""))) -> 0.34 | J10: =IF(OR(LEFT(G10,1)="b",LEFT(G10,1)="h")=TRUE,'Basalt & Hawaite Vol Dist'!$J$6,IF(OR(LEFT(G10,1)="m",LEFT(G10,1)="o")=TRUE,'Mug & Ben Vol Dist'!$J$6,IF(LEFT(G10,1)="t",'Trachyte Vol Dist'!$J$6,""))) -> 1.13 | K10: =IF(OR(LEFT(G10,1)="b",LEFT(G10,1)="h")=TRUE,'Basalt & Hawaite Vol Dist'!$K$6,IF(OR(LEFT(G10,1)="m",LEFT(G10,1)="o")=TRUE,'Mug & Ben Vol Dist'!$K$6,IF(LEFT(G10,1)="t",'Trachyte Vol Dist'!$K$6,""))) -> 0.34 | L10: =IF(OR(LEFT(G10,1)="b",LEFT(G10,1)="h")=TRUE,'Basalt & Hawaite Vol Dist'!$B$42,IF(OR(LEFT(G10,1)="m",LEFT(G10,1)="o")=TRUE,'Mug & Ben Vol Dist'!$B$42,IF(LEFT(G10,1)="t",'Trachyte Vol Dist'!$B$42,""))) -> 0.999
A11: 10 | B11: 0.669478208 | C11: 0.055 | D11: =SUM($C11:$C$237) -> 81.83701854 | E11: =IFERROR(VLOOKUP(G11,'Summary of age data'!$A$3:$D$243,2,FALSE),"") -> 31.9 | F11: =IFERROR(VLOOKUP(G11,'Summary of age data'!$A$3:$D$243,3,FALSE),"") -> 2.1 | G11: tmo | H11: =IF(OR(LEFT(G11,1)="b",LEFT(G11,1)="h")=TRUE,'Basalt & Hawaite Vol Dist'!$H$6,IF(OR(LEFT(G11,1)="m",LEFT(G11,1)="o")=TRUE,'Mug & Ben Vol Dist'!$H$6,IF(LEFT(G11,1)="t",'Trachyte Vol Dist'!$H$6,""))) -> 2 | I11: =IF(OR(LEFT(G11,1)="b",LEFT(G11,1)="h")=TRUE,'Basalt & Hawaite Vol Dist'!$I$6,IF(OR(LEFT(G11,1)="m",LEFT(G11,1)="o")=TRUE,'Mug & Ben Vol Dist'!$I$6,IF(LEFT(G11,1)="t",'Trachyte Vol Dist'!$I$6,""))) -> 0.083 | J11: =IF(OR(LEFT(G11,1)="b",LEFT(G11,1)="h")=TRUE,'Basalt & Hawaite Vol Dist'!$J$6,IF(OR(LEFT(G11,1)="m",LEFT(G11,1)="o")=TRUE,'Mug & Ben Vol Dist'!$J$6,IF(LEFT(G11,1)="t",'Trachyte Vol Dist'!$J$6,""))) -> 2 | K11: =IF(OR(LEFT(G11,1)="b",LEFT(G11,1)="h")=TRUE,'Basalt & Hawaite Vol Dist'!$K$6,IF(OR(LEFT(G11,1)="m",LEFT(G11,1)="o")=TRUE,'Mug & Ben Vol Dist'!$K$6,IF(LEFT(G11,1)="t",'Trachyte Vol Dist'!$K$6,""))) -> 0.083 | L11: =IF(OR(LEFT(G11,1)="b",LEFT(G11,1)="h")=TRUE,'Basalt & Hawaite Vol Dist'!$B$42,IF(OR(LEFT(G11,1)="m",LEFT(G11,1)="o")=TRUE,'Mug & Ben Vol Dist'!$B$42,IF(LEFT(G11,1)="t",'Trachyte Vol Dist'!$B$42,""))) -> 0.999
A12: 11 | B12: 0.7144987006 | C12: 0.356928 | D12: =SUM($C12:$C$237) -> 81.78201854 | E12: =IFERROR(VLOOKUP(G12,'Summary of age data'!$A$3:$D$243,2,FALSE),"") -> 39.2 | F12: =IFERROR(VLOOKUP(G12,'Summary of age data'!$A$3:$D$243,3,FALSE),"") -> 1.6 | G12: twa | H12: =IF(OR(LEFT(G12,1)="b",LEFT(G12,1)="h")=TRUE,'Basalt & Hawaite Vol Dist'!$H$6,IF(OR(LEFT(G12,1)="m",LEFT(G12,1)="o")=TRUE,'Mug & Ben Vol Dist'!$H$6,IF(LEFT(G12,1)="t",'Trachyte Vol Dist'!$H$6,""))) -> 2 | I12: =IF(OR(LEFT(G12,1)="b",LEFT(G12,1)="h")=TRUE,'Basalt & Hawaite Vol Dist'!$I$6,IF(OR(LEFT(G12,1)="m",LEFT(G12,1)="o")=TRUE,'Mug & Ben Vol Dist'!$I$6,IF(LEFT(G12,1)="t",'Trachyte Vol Dist'!$I$6,""))) -> 0.083 | J12: =IF(OR(LEFT(G12,1)="b",LEFT(G12,1)="h")=TRUE,'Basalt & Hawaite Vol Dist'!$J$6,IF(OR(LEFT(G12,1)="m",LEFT(G12,1)="o")=TRUE,'Mug & Ben Vol Dist'!$J$6,IF(LEFT(G12,1)="t",'Trachyte Vol Dist'!$J$6,""))) -> 2 | K12: =IF(OR(LEFT(G12,1)="b",LEFT(G12,1)="h")=TRUE,'Basalt & Hawaite Vol Dist'!$K$6,IF(OR(LEFT(G12,1)="m",LEFT(G12,1)="o")=TRUE,'Mug & Ben Vol Dist'!$K$6,IF(LEFT(G12,1)="t",'Trachyte Vol Dist'!$K$6,""))) -> 0.083 | L12: =IF(OR(LEFT(G12,1)="b",LEFT(G12,1)="h")=TRUE,'Basalt & Hawaite Vol Dist'!$B$42,IF(OR(LEFT(G12,1)="m",LEFT(G12,1)="o")=TRUE,'Mug & Ben Vol Dist'!$B$42,IF(LEFT(G12,1)="t",'Trachyte Vol Dist'!$B$42,""))) -> 0.999
A13: 12 | B13: 0.2565797788 | C13: 0.6332703052 | D13: =SUM($C13:$C$237) -> 81.42509054 | E13: =IFERROR(VLOOKUP(G13,'Summary of age data'!$A$3:$D$243,2,FALSE),"") -> 51 | F13: =IFERROR(VLOOKUP(G13,'Summary of age data'!$A$3:$D$243,3,FALSE),"") -> 9 | G13: han3 | H13: =IF(OR(LEFT(G13,1)="b",LEFT(G13,1)="h")=TRUE,'Basalt & Hawaite Vol Dist'!$H$6,IF(OR(LEFT(G13,1)="m",LEFT(G13,1)="o")=TRUE,'Mug & Ben Vol Dist'!$H$6,IF(LEFT(G13,1)="t",'Trachyte Vol Dist'!$H$6,""))) -> 1.13 | I13: =IF(OR(LEFT(G13,1)="b",LEFT(G13,1)="h")=TRUE,'Basalt & Hawaite Vol Dist'!$I$6,IF(OR(LEFT(G13,1)="m",LEFT(G13,1)="o")=TRUE,'Mug & Ben Vol Dist'!$I$6,IF(LEFT(G13,1)="t",'Trachyte Vol Dist'!$I$6,""))) -> 0.34 | J13: =IF(OR(LEFT(G13,1)="b",LEFT(G13,1)="h")=TRUE,'Basalt & Hawaite Vol Dist'!$J$6,IF(OR(LEFT(G13,1)="m",LEFT(G13,1)="o")=TRUE,'Mug & Ben Vol Dist'!$J$6,IF(LEFT(G13,1)="t",'Trachyte Vol Dist'!$J$6,""))) -> 1.13 | K13: =IF(OR(LEFT(G13,1)="b",LEFT(G13,1)="h")=TRUE,'Basalt & Hawaite Vol Dist'!$K$6,IF(OR(LEFT(G13,1)="m",LEFT(G13,1)="o")=TRUE,'Mug & Ben Vol Dist'!$K$6,IF(LEFT(G13,1)="t",'Trachyte Vol Dist'!$K$6,""))) -> 0.34 | L13: =IF(OR(LEFT(G13,1)="b",LEFT(G13,1)="h")=TRUE,'Basalt & Hawaite Vol Dist'!$B$42,IF(OR(LEFT(G13,1)="m",LEFT(G13,1)="o")=TRUE,'Mug & Ben Vol Dist'!$B$42,IF(LEFT(G13,1)="t",'Trachyte Vol Dist'!$B$42,""))) -> 0.999
A14: 13 | B14: 0.9581900788 | C14: =IF(B14<=L14,_xlfn.GAMMA.INV(B14,H14,I14),_xlfn.GAMMA.INV(B14,J14,K14)) -> 1.1653758 | D14: =SUM($C14:$C$237) -> 80.79182023 | E14: =IFERROR(VLOOKUP(G14,'Summary of age data'!$A$3:$D$243,2,FALSE),"") -> 59.1 | F14: =IFERROR(VLOOKUP(G14,'Summary of age data'!$A$3:$D$243,3,FALSE),"") -> 5.7 | G14: bms | H14: =IF(OR(LEFT(G14,1)="b",LEFT(G14,1)="h")=TRUE,'Basalt & Hawaite Vol Dist'!$H$6,IF(OR(LEFT(G14,1)="m",LEFT(G14,1)="o")=TRUE,'Mug & Ben Vol Dist'!$H$6,IF(LEFT(G14,1)="t",'Trachyte Vol Dist'!$H$6,""))) -> 1.13 | I14: =IF(OR(LEFT(G14,1)="b",LEFT(G14,1)="h")=TRUE,'Basalt & Hawaite Vol Dist'!$I$6,IF(OR(LEFT(G14,1)="m",LEFT(G14,1)="o")=TRUE,'Mug & Ben Vol Dist'!$I$6,IF(LEFT(G14,1)="t",'Trachyte Vol Dist'!$I$6,""))) -> 0.34 | J14: =IF(OR(LEFT(G14,1)="b",LEFT(G14,1)="h")=TRUE,'Basalt & Hawaite Vol Dist'!$J$6,IF(OR(LEFT(G14,1)="m",LEFT(G14,1)="o")=TRUE,'Mug & Ben Vol Dist'!$J$6,IF(LEFT(G14,1)="t",'Trachyte Vol Dist'!$J$6,""))) -> 1.13 | K14: =IF(OR(LEFT(G14,1)="b",LEFT(G14,1)="h")=TRUE,'Basalt & Hawaite Vol Dist'!$K$6,IF(OR(LEFT(G14,1)="m",LEFT(G14,1)="o")=TRUE,'Mug & Ben Vol Dist'!$K$6,IF(LEFT(G14,1)="t",'Trachyte Vol Dist'!$K$6,""))) -> 0.34 | L14: =IF(OR(LEFT(G14,1)="b",LEFT(G14,1)="h")=TRUE,'Basalt & Hawaite Vol Dist'!$B$42,IF(OR(LEFT(G14,1)="m",LEFT(G14,1)="o")=TRUE,'Mug & Ben Vol Dist'!$B$42,IF(LEFT(G14,1)="t",'Trachyte Vol Dist'!$B$42,""))) -> 0.999
A15: 14 | B15: 0.02454501247 | C15: 0.02 | D15: =SUM($C15:$C$237) -> 79.62644443 | E15: =IFERROR(VLOOKUP(G15,'Summary of age data'!$A$3:$D$243,2,FALSE),"") -> 79.7 | F15: =IFERROR(VLOOKUP(G15,'Summary of age data'!$A$3:$D$243,3,FALSE),"") -> 1.6 | G15: tg5 | H15: =IF(OR(LEFT(G15,1)="b",LEFT(G15,1)="h")=TRUE,'Basalt & Hawaite Vol Dist'!$H$6,IF(OR(LEFT(G15,1)="m",LEFT(G15,1)="o")=TRUE,'Mug & Ben Vol Dist'!$H$6,IF(LEFT(G15,1)="t",'Trachyte Vol Dist'!$H$6,""))) -> 2 | I15: =IF(OR(LEFT(G15,1)="b",LEFT(G15,1)="h")=TRUE,'Basalt & Hawaite Vol Dist'!$I$6,IF(OR(LEFT(G15,1)="m",LEFT(G15,1)="o")=TRUE,'Mug & Ben Vol Dist'!$I$6,IF(LEFT(G15,1)="t",'Trachyte Vol Dist'!$I$6,""))) -> 0.083 | J15: =IF(OR(LEFT(G15,1)="b",LEFT(G15,1)="h")=TRUE,'Basalt & Hawaite Vol Dist'!$J$6,IF(OR(LEFT(G15,1)="m",LEFT(G15,1)="o")=TRUE,'Mug & Ben Vol Dist'!$J$6,IF(LEFT(G15,1)="t",'Trachyte Vol Dist'!$J$6,""))) -> 2 | K15: =IF(OR(LEFT(G15,1)="b",LEFT(G15,1)="h")=TRUE,'Basalt & Hawaite Vol Dist'!$K$6,IF(OR(LEFT(G15,1)="m",LEFT(G15,1)="o")=TRUE,'Mug & Ben Vol Dist'!$K$6,IF(LEFT(G15,1)="t",'Trachyte Vol Dist'!$K$6,""))) -> 0.083 | L15: =IF(OR(LEFT(G15,1)="b",LEFT(G15,1)="h")=TRUE,'Basalt & Hawaite Vol Dist'!$B$42,IF(OR(LEFT(G15,1)="m",LEFT(G15,1)="o")=TRUE,'Mug & Ben Vol Dist'!$B$42,IF(LEFT(G15,1)="t",'Trachyte Vol Dist'!$B$42,""))) -> 0.999
A16: 15 | B16: 0.9839752899 | C16: =IF(B16<=L16,_xlfn.GAMMA.INV(B16,H16,I16),_xlfn.GAMMA.INV(B16,J16,K16)) -> 1.500582292 | D16: =SUM($C16:$C$237) -> 79.60644443 | E16: =IFERROR(VLOOKUP(G16,'Summary of age data'!$A$3:$D$243,2,FALSE),"") -> 82.6 | F16: =IFERROR(VLOOKUP(G16,'Summary of age data'!$A$3:$D$243,3,FALSE),"") -> 29.2 | G16: bsk | H16: =IF(OR(LEFT(G16,1)="b",LEFT(G16,1)="h")=TRUE,'Basalt & Hawaite Vol Dist'!$H$6,IF(OR(LEFT(G16,1)="m",LEFT(G16,1)="o")=TRUE,'Mug & Ben Vol Dist'!$H$6,IF(LEFT(G16,1)="t",'Trachyte Vol Dist'!$H$6,""))) -> 1.13 | I16: =IF(OR(LEFT(G16,1)="b",LEFT(G16,1)="h")=TRUE,'Basalt & Hawaite Vol Dist'!$I$6,IF(OR(LEFT(G16,1)="m",LEFT(G16,1)="o")=TRUE,'Mug & Ben Vol Dist'!$I$6,IF(LEFT(G16,1)="t",'Trachyte Vol Dist'!$I$6,""))) -> 0.34 | J16: =IF(OR(LEFT(G16,1)="b",LEFT(G16,1)="h")=TRUE,'Basalt & Hawaite Vol Dist'!$J$6,IF(OR(LEFT(G16,1)="m",LEFT(G16,1)="o")=TRUE,'Mug & Ben Vol Dist'!$J$6,IF(LEFT(G16,1)="t",'Trachyte Vol Dist'!$J$6,""))) -> 1.13 | K16: =IF(OR(LEFT(G16,1)="b",LEFT(G16,1)="h")=TRUE,'Basalt & Hawaite Vol Dist'!$K$6,IF(OR(LEFT(G16,1)="m",LEFT(G16,1)="o")=TRUE,'Mug & Ben Vol Dist'!$K$6,IF(LEFT(G16,1)="t",'Trachyte Vol Dist'!$K$6,""))) -> 0.34 | L16: =IF(OR(LEFT(G16,1)="b",LEFT(G16,1)="h")=TRUE,'Basalt & Hawaite Vol Dist'!$B$42,IF(OR(LEFT(G16,1)="m",LEFT(G16,1)="o")=TRUE,'Mug & Ben Vol Dist'!$B$42,IF(LEFT(G16,1)="t",'Trachyte Vol Dist'!$B$42,""))) -> 0.999
A17: 16 | B17: 0.7936870493 | C17: 0.22 | D17: =SUM($C17:$C$237) -> 78.10586214 | E17: =IFERROR(VLOOKUP(G17,'Summary of age data'!$A$3:$D$243,2,FALSE),"") -> 84.3 | F17: =IFERROR(VLOOKUP(G17,'Summary of age data'!$A$3:$D$243,3,FALSE),"") -> 1.6 | G17: tg4 | H17: =IF(OR(LEFT(G17,1)="b",LEFT(G17,1)="h")=TRUE,'Basalt & Hawaite Vol Dist'!$H$6,IF(OR(LEFT(G17,1)="m",LEFT(G17,1)="o")=TRUE,'Mug & Ben Vol Dist'!$H$6,IF(LEFT(G17,1)="t",'Trachyte Vol Dist'!$H$6,""))) -> 2 | I17: =IF(OR(LEFT(G17,1)="b",LEFT(G17,1)="h")=TRUE,'Basalt & Hawaite Vol Dist'!$I$6,IF(OR(LEFT(G17,1)="m",LEFT(G17,1)="o")=TRUE,'Mug & Ben Vol Dist'!$I$6,IF(LEFT(G17,1)="t",'Trachyte Vol Dist'!$I$6,""))) -> 0.083 | J17: =IF(OR(LEFT(G17,1)="b",LEFT(G17,1)="h")=TRUE,'Basalt & Hawaite Vol Dist'!$J$6,IF(OR(LEFT(G17,1)="m",LEFT(G17,1)="o")=TRUE,'Mug & Ben Vol Dist'!$J$6,IF(LEFT(G17,1)="t",'Trachyte Vol Dist'!$J$6,""))) -> 2 | K17: =IF(OR(LEFT(G17,1)="b",LEFT(G17,1)="h")=TRUE,'Basalt & Hawaite Vol Dist'!$K$6,IF(OR(LEFT(G17,1)="m",LEFT(G17,1)="o")=TRUE,'Mug & Ben Vol Dist'!$K$6,IF(LEFT(G17,1)="t",'Trachyte Vol Dist'!$K$6,""))) -> 0.083 | L17: =IF(OR(LEFT(G17,1)="b",LEFT(G17,1)="h")=TRUE,'Basalt & Hawaite Vol Dist'!$B$42,IF(OR(LEFT(G17,1)="m",LEFT(G17,1)="o")=TRUE,'Mug & Ben Vol Dist'!$B$42,IF(LEFT(G17,1)="t",'Trachyte Vol Dist'!$B$42,""))) -> 0.999
A18: 17 | B18: 0.1335516843 | C18: =IF(B18<=L18,_xlfn.GAMMA.INV(B18,H18,I18),_xlfn.GAMMA.INV(B18,J18,K18)) -> 0.06605655319 | D18: =SUM($C18:$C$237) -> 77.88586214 | E18: =IFERROR(VLOOKUP(G18,'Summary of age data'!$A$3:$D$243,2,FALSE),"") -> 85.7 | F18: =IFERROR(VLOOKUP(G18,'Summary of age data'!$A$3:$D$243,3,FALSE),"") -> 5.7 | G18: bsu | H18: =IF(OR(LEFT(G18,1)="b",LEFT(G18,1)="h")=TRUE,'Basalt & Hawaite Vol Dist'!$H$6,IF(OR(LEFT(G18,1)="m",LEFT(G18,1)="o")=TRUE,'Mug & Ben Vol Dist'!$H$6,IF(LEFT(G18,1)="t",'Trachyte Vol Dist'!$H$6,""))) -> 1.13 | I18: =IF(OR(LEFT(G18,1)="b",LEFT(G18,1)="h")=TRUE,'Basalt & Hawaite Vol Dist'!$I$6,IF(OR(LEFT(G18,1)="m",LEFT(G18,1)="o")=TRUE,'Mug & Ben Vol Dist'!$I$6,IF(LEFT(G18,1)="t",'Trachyte Vol Dist'!$I$6,""))) -> 0.34 | J18: =IF(OR(LEFT(G18,1)="b",LEFT(G18,1)="h")=TRUE,'Basalt & Hawaite Vol Dist'!$J$6,IF(OR(LEFT(G18,1)="m",LEFT(G18,1)="o")=TRUE,'Mug & Ben Vol Dist'!$J$6,IF(LEFT(G18,1)="t",'Trachyte Vol Dist'!$J$6,""))) -> 1.13 | K18: =IF(OR(LEFT(G18,1)="b",LEFT(G18,1)="h")=TRUE,'Basalt & Hawaite Vol Dist'!$K$6,IF(OR(LEFT(G18,1)="m",LEFT(G18,1)="o")=TRUE,'Mug & Ben Vol Dist'!$K$6,IF(LEFT(G18,1)="t",'Trachyte Vol Dist'!$K$6,""))) -> 0.34 | L18: =IF(OR(LEFT(G18,1)="b",LEFT(G18,1)="h")=TRUE,'Basalt & Hawaite Vol Dist'!$B$42,IF(OR(LEFT(G18,1)="m",LEFT(G18,1)="o")=TRUE,'Mug & Ben Vol Dist'!$B$42,IF(LEFT(G18,1)="t",'Trachyte Vol Dist'!$B$42,""))) -> 0.999
A19: 18 | B19: 0.6705910173 | C19: 0.86 | D19: =SUM($C19:$C$237) -> 77.81980559 | E19: =IFERROR(VLOOKUP(G19,'Summary of age data'!$A$3:$D$243,2,FALSE),"") -> 88 | F19: =IFERROR(VLOOKUP(G19,'Summary of age data'!$A$3:$D$243,3,FALSE),"") -> 1.8 | G19: tef | H19: =IF(OR(LEFT(G19,1)="b",LEFT(G19,1)="h")=TRUE,'Basalt & Hawaite Vol Dist'!$H$6,IF(OR(LEFT(G19,1)="m",LEFT(G19,1)="o")=TRUE,'Mug & Ben Vol Dist'!$H$6,IF(LEFT(G19,1)="t",'Trachyte Vol Dist'!$H$6,""))) -> 2 | I19: =IF(OR(LEFT(G19,1)="b",LEFT(G19,1)="h")=TRUE,'Basalt & Hawaite Vol Dist'!$I$6,IF(OR(LEFT(G19,1)="m",LEFT(G19,1)="o")=TRUE,'Mug & Ben Vol Dist'!$I$6,IF(LEFT(G19,1)="t",'Trachyte Vol Dist'!$I$6,""))) -> 0.083 | J19: =IF(OR(LEFT(G19,1)="b",LEFT(G19,1)="h")=TRUE,'Basalt & Hawaite Vol Dist'!$J$6,IF(OR(LEFT(G19,1)="m",LEFT(G19,1)="o")=TRUE,'Mug & Ben Vol Dist'!$J$6,IF(LEFT(G19,1)="t",'Trachyte Vol Dist'!$J$6,""))) -> 2 | K19: =IF(OR(LEFT(G19,1)="b",LEFT(G19,1)="h")=TRUE,'Basalt & Hawaite Vol Dist'!$K$6,IF(OR(LEFT(G19,1)="m",LEFT(G19,1)="o")=TRUE,'Mug & Ben Vol Dist'!$K$6,IF(LEFT(G19,1)="t",'Trachyte Vol Dist'!$K$6,""))) -> 0.083 | L19: =IF(OR(LEFT(G19,1)="b",LEFT(G19,1)="h")=TRUE,'Basalt & Hawaite Vol Dist'!$B$42,IF(OR(LEFT(G19,1)="m",LEFT(G19,1)="o")=TRUE,'Mug & Ben Vol Dist'!$B$42,IF(LEFT(G19,1)="t",'Trachyte Vol Dist'!$B$42,""))) -> 0.999
A20: 19 | B20: 0.730615123 | C20: =IF(B20<=L20,_xlfn.GAMMA.INV(B20,H20,I20),_xlfn.GAMMA.INV(B20,J20,K20)) -> 0.5047743594 | D20: =SUM($C20:$C$237) -> 76.95980559 | E20: =IFERROR(VLOOKUP(G20,'Summary of age data'!$A$3:$D$243,2,FALSE),"") -> 91.3 | F20: =IFERROR(VLOOKUP(G20,'Summary of age data'!$A$3:$D$243,3,FALSE),"") -> 50.7 | G20: han2 | H20: =IF(OR(LEFT(G20,1)="b",LEFT(G20,1)="h")=TRUE,'Basalt & Hawaite Vol Dist'!$H$6,IF(OR(LEFT(G20,1)="m",LEFT(G20,1)="o")=TRUE,'Mug & Ben Vol Dist'!$H$6,IF(LEFT(G20,1)="t",'Trachyte Vol Dist'!$H$6,""))) -> 1.13 | I20: =IF(OR(LEFT(G20,1)="b",LEFT(G20,1)="h")=TRUE,'Basalt & Hawaite Vol Dist'!$I$6,IF(OR(LEFT(G20,1)="m",LEFT(G20,1)="o")=TRUE,'Mug & Ben Vol Dist'!$I$6,IF(LEFT(G20,1)="t",'Trachyte Vol Dist'!$I$6,""))) -> 0.34 | J20: =IF(OR(LEFT(G20,1)="b",LEFT(G20,1)="h")=TRUE,'Basalt & Hawaite Vol Dist'!$J$6,IF(OR(LEFT(G20,1)="m",LEFT(G20,1)="o")=TRUE,'Mug & Ben Vol Dist'!$J$6,IF(LEFT(G20,1)="t",'Trachyte Vol Dist'!$J$6,""))) -> 1.13 | K20: =IF(OR(LEFT(G20,1)="b",LEFT(G20,1)="h")=TRUE,'Basalt & Hawaite Vol Dist'!$K$6,IF(OR(LEFT(G20,1)="m",LEFT(G20,1)="o")=TRUE,'Mug & Ben Vol Dist'!$K$6,IF(LEFT(G20,1)="t",'Trachyte Vol Dist'!$K$6,""))) -> 0.34 | L20: =IF(OR(LEFT(G20,1)="b",LEFT(G20,1)="h")=TRUE,'Basalt & Hawaite Vol Dist'!$B$42,IF(OR(LEFT(G20,1)="m",LEFT(G20,1)="o")=TRUE,'Mug & Ben Vol Dist'!$B$42,IF(LEFT(G20,1)="t",'Trachyte Vol Dist'!$B$42,""))) -> 0.999
A21: 20 | B21: 0.2150092853 | C21: =IF(B21<=L21,_xlfn.GAMMA.INV(B21,H21,I21),_xlfn.GAMMA.INV(B21,J21,K21)) -> 0.002656467202 | D21: =SUM($C21:$C$237) -> 76.45503123 | E21: =IFERROR(VLOOKUP(G21,'Summary of age data'!$A$3:$D$243,2,FALSE),"") -> 92 | F21: =IFERROR(VLOOKUP(G21,'Summary of age data'!$A$3:$D$243,3,FALSE),"") -> 50 | G21: mh11 | H21: =IF(OR(LEFT(G21,1)="b",LEFT(G21,1)="h")=TRUE,'Basalt & Hawaite Vol Dist'!$H$6,IF(OR(LEFT(G21,1)="m",LEFT(G21,1)="o")=TRUE,'Mug & Ben Vol Dist'!$H$6,IF(LEFT(G21,1)="t",'Trachyte Vol Dist'!$H$6,""))) -> 0.21 | I21: =IF(OR(LEFT(G21,1)="b",LEFT(G21,1)="h")=TRUE,'Basalt & Hawaite Vol Dist'!$I$6,IF(OR(LEFT(G21,1)="m",LEFT(G21,1)="o")=TRUE,'Mug & Ben Vol Dist'!$I$6,IF(LEFT(G21,1)="t",'Trachyte Vol Dist'!$I$6,""))) -> 6.1 | J21: =IF(OR(LEFT(G21,1)="b",LEFT(G21,1)="h")=TRUE,'Basalt & Hawaite Vol Dist'!$J$6,IF(OR(LEFT(G21,1)="m",LEFT(G21,1)="o")=TRUE,'Mug & Ben Vol Dist'!$J$6,IF(LEFT(G21,1)="t",'Trachyte Vol Dist'!$J$6,""))) -> 8.9 | K21: =IF(OR(LEFT(G21,1)="b",LEFT(G21,1)="h")=TRUE,'Basalt & Hawaite Vol Dist'!$K$6,IF(OR(LEFT(G21,1)="m",LEFT(G21,1)="o")=TRUE,'Mug & Ben Vol Dist'!$K$6,IF(LEFT(G21,1)="t",'Trachyte Vol Dist'!$K$6,""))) -> 0.028 | L21: =IF(OR(LEFT(G21,1)="b",LEFT(G21,1)="h")=TRUE,'Basalt & Hawaite Vol Dist'!$B$42,IF(OR(LEFT(G21,1)="m",LEFT(G21,1)="o")=TRUE,'Mug & Ben Vol Dist'!$B$42,IF(LEFT(G21,1)="t",'Trachyte Vol Dist'!$B$42,""))) -> 0.5551036823
A22: 21 | B22: 0.1409855849 | C22: 0.1353863495 | D22: =SUM($C22:$C$237) -> 76.45237476 | E22: =IFERROR(VLOOKUP(G22,'Summary of age data'!$A$3:$D$243,2,FALSE),"") -> 93.8 | F22: =IFERROR(VLOOKUP(G22,'Summary of age data'!$A$3:$D$243,3,FALSE),"") -> 2.1 | G22: tg2 | H22: =IF(OR(LEFT(G22,1)="b",LEFT(G22,1)="h")=TRUE,'Basalt & Hawaite Vol Dist'!$H$6,IF(OR(LEFT(G22,1)="m",LEFT(G22,1)="o")=TRUE,'Mug & Ben Vol Dist'!$H$6,IF(LEFT(G22,1)="t",'Trachyte Vol Dist'!$H$6,""))) -> 2 | I22: =IF(OR(LEFT(G22,1)="b",LEFT(G22,1)="h")=TRUE,'Basalt & Hawaite Vol Dist'!$I$6,IF(OR(LEFT(G22,1)="m",LEFT(G22,1)="o")=TRUE,'Mug & Ben Vol Dist'!$I$6,IF(LEFT(G22,1)="t",'Trachyte Vol Dist'!$I$6,""))) -> 0.083 | J22: =IF(OR(LEFT(G22,1)="b",LEFT(G22,1)="h")=TRUE,'Basalt & Hawaite Vol Dist'!$J$6,IF(OR(LEFT(G22,1)="m",LEFT(G22,1)="o")=TRUE,'Mug & Ben Vol Dist'!$J$6,IF(LEFT(G22,1)="t",'Trachyte Vol Dist'!$J$6,""))) -> 2 | K22: =IF(OR(LEFT(G22,1)="b",LEFT(G22,1)="h")=TRUE,'Basalt & Hawaite Vol Dist'!$K$6,IF(OR(LEFT(G22,1)="m",LEFT(G22,1)="o")=TRUE,'Mug & Ben Vol Dist'!$K$6,IF(LEFT(G22,1)="t",'Trachyte Vol Dist'!$K$6,""))) -> 0.083 | L22: =IF(OR(LEFT(G22,1)="b",LEFT(G22,1)="h")=TRUE,'Basalt & Hawaite Vol Dist'!$B$42,IF(OR(LEFT(G22,1)="m",LEFT(G22,1)="o")=TRUE,'Mug & Ben Vol Dist'!$B$42,IF(LEFT(G22,1)="t",'Trachyte Vol Dist'!$B$42,""))) -> 0.999
A23: 22 | B23: 0.6308313191 | C23: 0.1461696291 | D23: =SUM($C23:$C$237) -> 76.31698841 | E23: =IFERROR(VLOOKUP(G23,'Summary of age data'!$A$3:$D$243,2,FALSE),"") -> 105 | F23: =IFERROR(VLOOKUP(G23,'Summary of age data'!$A$3:$D$243,3,FALSE),"") -> 8.6 | G23: bun | H23: =IF(OR(LEFT(G23,1)="b",LEFT(G23,1)="h")=TRUE,'Basalt & Hawaite Vol Dist'!$H$6,IF(OR(LEFT(G23,1)="m",LEFT(G23,1)="o")=TRUE,'Mug & Ben Vol Dist'!$H$6,IF(LEFT(G23,1)="t",'Trachyte Vol Dist'!$H$6,""))) -> 1.13 | I23: =IF(OR(LEFT(G23,1)="b",LEFT(G23,1)="h")=TRUE,'Basalt & Hawaite Vol Dist'!$I$6,IF(OR(LEFT(G23,1)="m",LEFT(G23,1)="o")=TRUE,'Mug & Ben Vol Dist'!$I$6,IF(LEFT(G23,1)="t",'Trachyte Vol Dist'!$I$6,""))) -> 0.34 | J23: =IF(OR(LEFT(G23,1)="b",LEFT(G23,1)="h")=TRUE,'Basalt & Hawaite Vol Dist'!$J$6,IF(OR(LEFT(G23,1)="m",LEFT(G23,1)="o")=TRUE,'Mug & Ben Vol Dist'!$J$6,IF(LEFT(G23,1)="t",'Trachyte Vol Dist'!$J$6,""))) -> 1.13 | K23: =IF(OR(LEFT(G23,1)="b",LEFT(G23,1)="h")=TRUE,'Basalt & Hawaite Vol Dist'!$K$6,IF(OR(LEFT(G23,1)="m",LEFT(G23,1)="o")=TRUE,'Mug & Ben Vol Dist'!$K$6,IF(LEFT(G23,1)="t",'Trachyte Vol Dist'!$K$6,""))) -> 0.34 | L23: =IF(OR(LEFT(G23,1)="b",LEFT(G23,1)="h")=TRUE,'Basalt & Hawaite Vol Dist'!$B$42,IF(OR(LEFT(G23,1)="m",LEFT(G23,1)="o")=TRUE,'Mug & Ben Vol Dist'!$B$42,IF(LEFT(G23,1)="t",'Trachyte Vol Dist'!$B$42,""))) -> 0.999
A24: 23 | B24: 0.7728000477 | C24: 1.26042714 | D24: =SUM($C24:$C$237) -> 76.17081878 | E24: =IFERROR(VLOOKUP(G24,'Summary of age data'!$A$3:$D$243,2,FALSE),"") -> 114.4 | F24: =IFERROR(VLOOKUP(G24,'Summary of age data'!$A$3:$D$243,3,FALSE),"") -> 8.5 | G24: mmk | H24: =IF(OR(LEFT(G24,1)="b",LEFT(G24,1)="h")=TRUE,'Basalt & Hawaite Vol Dist'!$H$6,IF(OR(LEFT(G24,1)="m",LEFT(G24,1)="o")=TRUE,'Mug & Ben Vol Dist'!$H$6,IF(LEFT(G24,1)="t",'Trachyte Vol Dist'!$H$6,""))) -> 0.21 | I24: =IF(OR(LEFT(G24,1)="b",LEFT(G24,1)="h")=TRUE,'Basalt & Hawaite Vol Dist'!$I$6,IF(OR(LEFT(G24,1)="m",LEFT(G24,1)="o")=TRUE,'Mug & Ben Vol Dist'!$I$6,IF(LEFT(G24,1)="t",'Trachyte Vol Dist'!$I$6,""))) -> 6.1 | J24: =IF(OR(LEFT(G24,1)="b",LEFT(G24,1)="h")=TRUE,'Basalt & Hawaite Vol Dist'!$J$6,IF(OR(LEFT(G24,1)="m",LEFT(G24,1)="o")=TRUE,'Mug & Ben Vol Dist'!$J$6,IF(LEFT(G24,1)="t",'Trachyte Vol Dist'!$J$6,""))) -> 8.9 | K24: =IF(OR(LEFT(G24,1)="b",LEFT(G24,1)="h")=TRUE,'Basalt & Hawaite Vol Dist'!$K$6,IF(OR(LEFT(G24,1)="m",LEFT(G24,1)="o")=TRUE,'Mug & Ben Vol Dist'!$K$6,IF(LEFT(G24,1)="t",'Trachyte Vol Dist'!$K$6,""))) -> 0.028 | L24: =IF(OR(LEFT(G24,1)="b",LEFT(G24,1)="h")=TRUE,'Basalt & Hawaite Vol Dist'!$B$42,IF(OR(LEFT(G24,1)="m",LEFT(G24,1)="o")=TRUE,'Mug & Ben Vol Dist'!$B$42,IF(LEFT(G24,1)="t",'Trachyte Vol Dist'!$B$42,""))) -> 0.5551036823
A25: 24 | B25: 0.7768346683 | C25: 0.8346375785 | D25: =SUM($C25:$C$237) -> 74.91039164 | E25: =IFERROR(VLOOKUP(G25,'Summary of age data'!$A$3:$D$243,2,FALSE),"") -> 115.3 | F25: =IFERROR(VLOOKUP(G25,'Summary of age data'!$A$3:$D$243,3,FALSE),"") -> 7.5 | G25: bsas | H25: =IF(OR(LEFT(G25,1)="b",LEFT(G25,1)="h")=TRUE,'Basalt & Hawaite Vol Dist'!$H$6,IF(OR(LEFT(G25,1)="m",LEFT(G25,1)="o")=TRUE,'Mug & Ben Vol Dist'!$H$6,IF(LEFT(G25,1)="t",'Trachyte Vol Dist'!$H$6,""))) -> 1.13 | I25: =IF(OR(LEFT(G25,1)="b",LEFT(G25,1)="h")=TRUE,'Basalt & Hawaite Vol Dist'!$I$6,IF(OR(LEFT(G25,1)="m",LEFT(G25,1)="o")=TRUE,'Mug & Ben Vol Dist'!$I$6,IF(LEFT(G25,1)="t",'Trachyte Vol Dist'!$I$6,""))) -> 0.34 | J25: =IF(OR(LEFT(G25,1)="b",LEFT(G25,1)="h")=TRUE,'Basalt & Hawaite Vol Dist'!$J$6,IF(OR(LEFT(G25,1)="m",LEFT(G25,1)="o")=TRUE,'Mug & Ben Vol Dist'!$J$6,IF(LEFT(G25,1)="t",'Trachyte Vol Dist'!$J$6,""))) -> 1.13 | K25: =IF(OR(LEFT(G25,1)="b",LEFT(G25,1)="h")=TRUE,'Basalt & Hawaite Vol Dist'!$K$6,IF(OR(LEFT(G25,1)="m",LEFT(G25,1)="o")=TRUE,'Mug & Ben Vol Dist'!$K$6,IF(LEFT(G25,1)="t",'Trachyte Vol Dist'!$K$6,""))) -> 0.34 | L25: =IF(OR(LEFT(G25,1)="b",LEFT(G25,1)="h")=TRUE,'Basalt & Hawaite Vol Dist'!$B$42,IF(OR(LEFT(G25,1)="m",LEFT(G25,1)="o")=TRUE,'Mug & Ben Vol Dist'!$B$42,IF(LEFT(G25,1)="t",'Trachyte Vol Dist'!$B$42,""))) -> 0.999
A26: 25 | B26: 0.120744102 | C26: =IF(B26<=L26,_xlfn.GAMMA.INV(B26,H26,I26),_xlfn.GAMMA.INV(B26,J26,K26)) -> 0.0001701634659 | D26: =SUM($C26:$C$237) -> 74.07575406 | E26: =IFERROR(VLOOKUP(G26,'Summary of age data'!$A$3:$D$243,2,FALSE),"") -> 116.7 | F26: =IFERROR(VLOOKUP(G26,'Summary of age data'!$A$3:$D$243,3,FALSE),"") -> 2.8 | G26: md1 | H26: =IF(OR(LEFT(G26,1)="b",LEFT(G26,1)="h")=TRUE,'Basalt & Hawaite Vol Dist'!$H$6,IF(OR(LEFT(G26,1)="m",LEFT(G26,1)="o")=TRUE,'Mug & Ben Vol Dist'!$H$6,IF(LEFT(G26,1)="t",'Trachyte Vol Dist'!$H$6,""))) -> 0.21 | I26: =IF(OR(LEFT(G26,1)="b",LEFT(G26,1)="h")=TRUE,'Basalt & Hawaite Vol Dist'!$I$6,IF(OR(LEFT(G26,1)="m",LEFT(G26,1)="o")=TRUE,'Mug & Ben Vol Dist'!$I$6,IF(LEFT(G26,1)="t",'Trachyte Vol Dist'!$I$6,""))) -> 6.1 | J26: =IF(OR(LEFT(G26,1)="b",LEFT(G26,1)="h")=TRUE,'Basalt & Hawaite Vol Dist'!$J$6,IF(OR(LEFT(G26,1)="m",LEFT(G26,1)="o")=TRUE,'Mug & Ben Vol Dist'!$J$6,IF(LEFT(G26,1)="t",'Trachyte Vol Dist'!$J$6,""))) -> 8.9 | K26: =IF(OR(LEFT(G26,1)="b",LEFT(G26,1)="h")=TRUE,'Basalt & Hawaite Vol Dist'!$K$6,IF(OR(LEFT(G26,1)="m",LEFT(G26,1)="o")=TRUE,'Mug & Ben Vol Dist'!$K$6,IF(LEFT(G26,1)="t",'Trachyte Vol Dist'!$K$6,""))) -> 0.028 | L26: =IF(OR(LEFT(G26,1)="b",LEFT(G26,1)="h")=TRUE,'Basalt & Hawaite Vol Dist'!$B$42,IF(OR(LEFT(G26,1)="m",LEFT(G26,1)="o")=TRUE,'Mug & Ben Vol Dist'!$B$42,IF(LEFT(G26,1)="t",'Trachyte Vol Dist'!$B$42,""))) -> 0.5551036823
A27: 26 | B27: 0.5215216757 | C27: 0.245 | D27: =SUM($C27:$C$237) -> 74.0755839 | E27: =IFERROR(VLOOKUP(G27,'Summary of age data'!$A$3:$D$243,2,FALSE),"") -> 121.5 | F27: =IFERROR(VLOOKUP(G27,'Summary of age data'!$A$3:$D$243,3,FALSE),"") -> 1.4 | G27: tma | H27: =IF(OR(LEFT(G27,1)="b",LEFT(G27,1)="h")=TRUE,'Basalt & Hawaite Vol Dist'!$H$6,IF(OR(LEFT(G27,1)="m",LEFT(G27,1)="o")=TRUE,'Mug & Ben Vol Dist'!$H$6,IF(LEFT(G27,1)="t",'Trachyte Vol Dist'!$H$6,""))) -> 2 | I27: =IF(OR(LEFT(G27,1)="b",LEFT(G27,1)="h")=TRUE,'Basalt & Hawaite Vol Dist'!$I$6,IF(OR(LEFT(G27,1)="m",LEFT(G27,1)="o")=TRUE,'Mug & Ben Vol Dist'!$I$6,IF(LEFT(G27,1)="t",'Trachyte Vol Dist'!$I$6,""))) -> 0.083 | J27: =IF(OR(LEFT(G27,1)="b",LEFT(G27,1)="h")=TRUE,'Basalt & Hawaite Vol Dist'!$J$6,IF(OR(LEFT(G27,1)="m",LEFT(G27,1)="o")=TRUE,'Mug & Ben Vol Dist'!$J$6,IF(LEFT(G27,1)="t",'Trachyte Vol Dist'!$J$6,""))) -> 2 | K27: =IF(OR(LEFT(G27,1)="b",LEFT(G27,1)="h")=TRUE,'Basalt & Hawaite Vol Dist'!$K$6,IF(OR(LEFT(G27,1)="m",LEFT(G27,1)="o")=TRUE,'Mug & Ben Vol Dist'!$K$6,IF(LEFT(G27,1)="t",'Trachyte Vol Dist'!$K$6,""))) -> 0.083 | L27: =IF(OR(LEFT(G27,1)="b",LEFT(G27,1)="h")=TRUE,'Basalt & Hawaite Vol Dist'!$B$42,IF(OR(LEFT(G27,1)="m",LEFT(G27,1)="o")=TRUE,'Mug & Ben Vol Dist'!$B$42,IF(LEFT(G27,1)="t",'Trachyte Vol Dist'!$B$42,""))) -> 0.999
A28: 27 | B28: 0.365046316 | C28: =IF(B28<=L28,_xlfn.GAMMA.INV(B28,H28,I28),_xlfn.GAMMA.INV(B28,J28,K28)) -> 0.1060001768 | D28: =SUM($C28:$C$237) -> 73.8305839 | E28: =IFERROR(VLOOKUP(G28,'Summary of age data'!$A$3:$D$243,2,FALSE),"") -> 121.6 | F28: =IFERROR(VLOOKUP(G28,'Summary of age data'!$A$3:$D$243,3,FALSE),"") -> 1.8 | G28: tz2 | H28: =IF(OR(LEFT(G28,1)="b",LEFT(G28,1)="h")=TRUE,'Basalt & Hawaite Vol Dist'!$H$6,IF(OR(LEFT(G28,1)="m",LEFT(G28,1)="o")=TRUE,'Mug & Ben Vol Dist'!$H$6,IF(LEFT(G28,1)="t",'Trachyte Vol Dist'!$H$6,""))) -> 2 | I28: =IF(OR(LEFT(G28,1)="b",LEFT(G28,1)="h")=TRUE,'Basalt & Hawaite Vol Dist'!$I$6,IF(OR(LEFT(G28,1)="m",LEFT(G28,1)="o")=TRUE,'Mug & Ben Vol Dist'!$I$6,IF(LEFT(G28,1)="t",'Trachyte Vol Dist'!$I$6,""))) -> 0.083 | J28: =IF(OR(LEFT(G28,1)="b",LEFT(G28,1)="h")=TRUE,'Basalt & Hawaite Vol Dist'!$J$6,IF(OR(LEFT(G28,1)="m",LEFT(G28,1)="o")=TRUE,'Mug & Ben Vol Dist'!$J$6,IF(LEFT(G28,1)="t",'Trachyte Vol Dist'!$J$6,""))) -> 2 | K28: =IF(OR(LEFT(G28,1)="b",LEFT(G28,1)="h")=TRUE,'Basalt & Hawaite Vol Dist'!$K$6,IF(OR(LEFT(G28,1)="m",LEFT(G28,1)="o")=TRUE,'Mug & Ben Vol Dist'!$K$6,IF(LEFT(G28,1)="t",'Trachyte Vol Dist'!$K$6,""))) -> 0.083 | L28: =IF(OR(LEFT(G28,1)="b",LEFT(G28,1)="h")=TRUE,'Basalt & Hawaite Vol Dist'!$B$42,IF(OR(LEFT(G28,1)="m",LEFT(G28,1)="o")=TRUE,'Mug & Ben Vol Dist'!$B$42,IF(LEFT(G28,1)="t",'Trachyte Vol Dist'!$B$42,""))) -> 0.999
A29: 28 | B29: 0.02527510263 | C29: =IF(B29<=L29,_xlfn.GAMMA.INV(B29,H29,I29),_xlfn.GAMMA.INV(B29,J29,K29)) -> 0.01411014797 | D29: =SUM($C29:$C$237) -> 73.72458372 | E29: =IFERROR(VLOOKUP(G29,'Summary of age data'!$A$3:$D$243,2,FALSE),"") -> 125.3 | F29: =IFERROR(VLOOKUP(G29,'Summary of age data'!$A$3:$D$243,3,FALSE),"") -> 102.2 | G29: bza | H29: =IF(OR(LEFT(G29,1)="b",LEFT(G29,1)="h")=TRUE,'Basalt & Hawaite Vol Dist'!$H$6,IF(OR(LEFT(G29,1)="m",LEFT(G29,1)="o")=TRUE,'Mug & Ben Vol Dist'!$H$6,IF(LEFT(G29,1)="t",'Trachyte Vol Dist'!$H$6,""))) -> 1.13 | I29: =IF(OR(LEFT(G29,1)="b",LEFT(G29,1)="h")=TRUE,'Basalt & Hawaite Vol Dist'!$I$6,IF(OR(LEFT(G29,1)="m",LEFT(G29,1)="o")=TRUE,'Mug & Ben Vol Dist'!$I$6,IF(LEFT(G29,1)="t",'Trachyte Vol Dist'!$I$6,""))) -> 0.34 | J29: =IF(OR(LEFT(G29,1)="b",LEFT(G29,1)="h")=TRUE,'Basalt & Hawaite Vol Dist'!$J$6,IF(OR(LEFT(G29,1)="m",LEFT(G29,1)="o")=TRUE,'Mug & Ben Vol Dist'!$J$6,IF(LEFT(G29,1)="t",'Trachyte Vol Dist'!$J$6,""))) -> 1.13 | K29: =IF(OR(LEFT(G29,1)="b",LEFT(G29,1)="h")=TRUE,'Basalt & Hawaite Vol Dist'!$K$6,IF(OR(LEFT(G29,1)="m",LEFT(G29,1)="o")=TRUE,'Mug & Ben Vol Dist'!$K$6,IF(LEFT(G29,1)="t",'Trachyte Vol Dist'!$K$6,""))) -> 0.34 | L29: =IF(OR(LEFT(G29,1)="b",LEFT(G29,1)="h")=TRUE,'Basalt & Hawaite Vol Dist'!$B$42,IF(OR(LEFT(G29,1)="m",LEFT(G29,1)="o")=TRUE,'Mug & Ben Vol Dist'!$B$42,IF(LEFT(G29,1)="t",'Trachyte Vol Dist'!$B$42,""))) -> 0.999
A30: 29 | B30: 0.7036568267 | C30: =IF(B30<=L30,_xlfn.GAMMA.INV(B30,H30,I30),_xlfn.GAMMA.INV(B30,J30,K30)) -> 0.2863368733 | D30: =SUM($C30:$C$237) -> 73.71047358 | E30: =IFERROR(VLOOKUP(G30,'Summary of age data'!$A$3:$D$243,2,FALSE),"") -> 128.2 | F30: =IFERROR(VLOOKUP(G30,'Summary of age data'!$A$3:$D$243,3,FALSE),"") -> 4.2 | G30: og2 | H30: =IF(OR(LEFT(G30,1)="b",LEFT(G30,1)="h")=TRUE,'Basalt & Hawaite Vol Dist'!$H$6,IF(OR(LEFT(G30,1)="m",LEFT(G30,1)="o")=TRUE,'Mug & Ben Vol Dist'!$H$6,IF(LEFT(G30,1)="t",'Trachyte Vol Dist'!$H$6,""))) -> 0.21 | I30: =IF(OR(LEFT(G30,1)="b",LEFT(G30,1)="h")=TRUE,'Basalt & Hawaite Vol Dist'!$I$6,IF(OR(LEFT(G30,1)="m",LEFT(G30,1)="o")=TRUE,'Mug & Ben Vol Dist'!$I$6,IF(LEFT(G30,1)="t",'Trachyte Vol Dist'!$I$6,""))) -> 6.1 | J30: =IF(OR(LEFT(G30,1)="b",LEFT(G30,1)="h")=TRUE,'Basalt & Hawaite Vol Dist'!$J$6,IF(OR(LEFT(G30,1)="m",LEFT(G30,1)="o")=TRUE,'Mug & Ben Vol Dist'!$J$6,IF(LEFT(G30,1)="t",'Trachyte Vol Dist'!$J$6,""))) -> 8.9 | K30: =IF(OR(LEFT(G30,1)="b",LEFT(G30,1)="h")=TRUE,'Basalt & Hawaite Vol Dist'!$K$6,IF(OR(LEFT(G30,1)="m",LEFT(G30,1)="o")=TRUE,'Mug & Ben Vol Dist'!$K$6,IF(LEFT(G30,1)="t",'Trachyte Vol Dist'!$K$6,""))) -> 0.028 | L30: =IF(OR(LEFT(G30,1)="b",LEFT(G30,1)="h")=TRUE,'Basalt & Hawaite Vol Dist'!$B$42,IF(OR(LEFT(G30,1)="m",LEFT(G30,1)="o")=TRUE,'Mug & Ben Vol Dist'!$B$42,IF(LEFT(G30,1)="t",'Trachyte Vol Dist'!$B$42,""))) -> 0.5551036823
A31: 30 | B31: 0.3927244341 | C31: 0.7326427443 | D31: =SUM($C31:$C$237) -> 73.4241367 | E31: =IFERROR(VLOOKUP(G31,'Summary of age data'!$A$3:$D$243,2,FALSE),"") -> 130 | F31: =IFERROR(VLOOKUP(G31,'Summary of age data'!$A$3:$D$243,3,FALSE),"") -> 0 | G31: hd2 | H31: =IF(OR(LEFT(G31,1)="b",LEFT(G31,1)="h")=TRUE,'Basalt & Hawaite Vol Dist'!$H$6,IF(OR(LEFT(G31,1)="m",LEFT(G31,1)="o")=TRUE,'Mug & Ben Vol Dist'!$H$6,IF(LEFT(G31,1)="t",'Trachyte Vol Dist'!$H$6,""))) -> 1.13 | I31: =IF(OR(LEFT(G31,1)="b",LEFT(G31,1)="h")=TRUE,'Basalt & Hawaite Vol Dist'!$I$6,IF(OR(LEFT(G31,1)="m",LEFT(G31,1)="o")=TRUE,'Mug & Ben Vol Dist'!$I$6,IF(LEFT(G31,1)="t",'Trachyte Vol Dist'!$I$6,""))) -> 0.34 | J31: =IF(OR(LEFT(G31,1)="b",LEFT(G31,1)="h")=TRUE,'Basalt & Hawaite Vol Dist'!$J$6,IF(OR(LEFT(G31,1)="m",LEFT(G31,1)="o")=TRUE,'Mug & Ben Vol Dist'!$J$6,IF(LEFT(G31,1)="t",'Trachyte Vol Dist'!$J$6,""))) -> 1.13 | K31: =IF(OR(LEFT(G31,1)="b",LEFT(G31,1)="h")=TRUE,'Basalt & Hawaite Vol Dist'!$K$6,IF(OR(LEFT(G31,1)="m",LEFT(G31,1)="o")=TRUE,'Mug & Ben Vol Dist'!$K$6,IF(LEFT(G31,1)="t",'Trachyte Vol Dist'!$K$6,""))) -> 0.34 | L31: =IF(OR(LEFT(G31,1)="b",LEFT(G31,1)="h")=TRUE,'Basalt & Hawaite Vol Dist'!$B$42,IF(OR(LEFT(G31,1)="m",LEFT(G31,1)="o")=TRUE,'Mug & Ben Vol Dist'!$B$42,IF(LEFT(G31,1)="t",'Trachyte Vol Dist'!$B$42,""))) -> 0.999
A32: 31 | B32: 0.858615706 | C32: =IF(B32<=L32,_xlfn.GAMMA.INV(B32,H32,I32),_xlfn.GAMMA.INV(B32,J32,K32)) -> 0.7355452952 | D32: =SUM($C32:$C$237) -> 72.69149396 | E32: =IFERROR(VLOOKUP(G32,'Summary of age data'!$A$3:$D$243,2,FALSE),"") -> 130.3 | F32: =IFERROR(VLOOKUP(G32,'Summary of age data'!$A$3:$D$243,3,FALSE),"") -> 5 | G32: bar | H32: =IF(OR(LEFT(G32,1)="b",LEFT(G32,1)="h")=TRUE,'Basalt & Hawaite Vol Dist'!$H$6,IF(OR(LEFT(G32,1)="m",LEFT(G32,1)="o")=TRUE,'Mug & Ben Vol Dist'!$H$6,IF(LEFT(G32,1)="t",'Trachyte Vol Dist'!$H$6,""))) -> 1.13 | I32: =IF(OR(LEFT(G32,1)="b",LEFT(G32,1)="h")=TRUE,'Basalt & Hawaite Vol Dist'!$I$6,IF(OR(LEFT(G32,1)="m",LEFT(G32,1)="o")=TRUE,'Mug & Ben Vol Dist'!$I$6,IF(LEFT(G32,1)="t",'Trachyte Vol Dist'!$I$6,""))) -> 0.34 | J32: =IF(OR(LEFT(G32,1)="b",LEFT(G32,1)="h")=TRUE,'Basalt & Hawaite Vol Dist'!$J$6,IF(OR(LEFT(G32,1)="m",LEFT(G32,1)="o")=TRUE,'Mug & Ben Vol Dist'!$J$6,IF(LEFT(G32,1)="t",'Trachyte Vol Dist'!$J$6,""))) -> 1.13 | K32: =IF(OR(LEFT(G32,1)="b",LEFT(G32,1)="h")=TRUE,'Basalt & Hawaite Vol Dist'!$K$6,IF(OR(LEFT(G32,1)="m",LEFT(G32,1)="o")=TRUE,'Mug & Ben Vol Dist'!$K$6,IF(LEFT(G32,1)="t",'Trachyte Vol Dist'!$K$6,""))) -> 0.34 | L32: =IF(OR(LEFT(G32,1)="b",LEFT(G32,1)="h")=TRUE,'Basalt & Hawaite Vol Dist'!$B$42,IF(OR(LEFT(G32,1)="m",LEFT(G32,1)="o")=TRUE,'Mug & Ben Vol Dist'!$B$42,IF(LEFT(G32,1)="t",'Trachyte Vol Dist'!$B$42,""))) -> 0.999
A33: 32 | B33: 0.5482301112 | C33: 0.01593211453 | D33: =SUM($C33:$C$237) -> 71.95594866 | E33: =IFERROR(VLOOKUP(G33,'Summary of age data'!$A$3:$D$243,2,FALSE),"") -> 130.3 | F33: =IFERROR(VLOOKUP(G33,'Summary of age data'!$A$3:$D$243,3,FALSE),"") -> 101 | G33: hm3 | H33: =IF(OR(LEFT(G33,1)="b",LEFT(G33,1)="h")=TRUE,'Basalt & Hawaite Vol Dist'!$H$6,IF(OR(LEFT(G33,1)="m",LEFT(G33,1)="o")=TRUE,'Mug & Ben Vol Dist'!$H$6,IF(LEFT(G33,1)="t",'Trachyte Vol Dist'!$H$6,""))) -> 1.13 | I33: =IF(OR(LEFT(G33,1)="b",LEFT(G33,1)="h")=TRUE,'Basalt & Hawaite Vol Dist'!$I$6,IF(OR(LEFT(G33,1)="m",LEFT(G33,1)="o")=TRUE,'Mug & Ben Vol Dist'!$I$6,IF(LEFT(G33,1)="t",'Trachyte Vol Dist'!$I$6,""))) -> 0.34 | J33: =IF(OR(LEFT(G33,1)="b",LEFT(G33,1)="h")=TRUE,'Basalt & Hawaite Vol Dist'!$J$6,IF(OR(LEFT(G33,1)="m",LEFT(G33,1)="o")=TRUE,'Mug & Ben Vol Dist'!$J$6,IF(LEFT(G33,1)="t",'Trachyte Vol Dist'!$J$6,""))) -> 1.13 | K33: =IF(OR(LEFT(G33,1)="b",LEFT(G33,1)="h")=TRUE,'Basalt & Hawaite Vol Dist'!$K$6,IF(OR(LEFT(G33,1)="m",LEFT(G33,1)="o")=TRUE,'Mug & Ben Vol Dist'!$K$6,IF(LEFT(G33,1)="t",'Trachyte Vol Dist'!$K$6,""))) -> 0.34 | L33: =IF(OR(LEFT(G33,1)="b",LEFT(G33,1)="h")=TRUE,'Basalt & Hawaite Vol Dist'!$B$42,IF(OR(LEFT(G33,1)="m",LEFT(G33,1)="o")=TRUE,'Mug & Ben Vol Dist'!$B$42,IF(LEFT(G33,1)="t",'Trachyte Vol Dist'!$B$42,""))) -> 0.999
A34: 33 | B34: 0.7764649132 | C34: =IF(B34<=L34,_xlfn.GAMMA.INV(B34,H34,I34),_xlfn.GAMMA.INV(B34,J34,K34)) -> 0.5719270686 | D34: =SUM($C34:$C$237) -> 71.94001655 | E34: =IFERROR(VLOOKUP(G34,'Summary of age data'!$A$3:$D$243,2,FALSE),"") -> 130.3 | F34: =IFERROR(VLOOKUP(G34,'Summary of age data'!$A$3:$D$243,3,FALSE),"") -> 101 | G34: bm2 | H34: =IF(OR(LEFT(G34,1)="b",LEFT(G34,1)="h")=TRUE,'Basalt & Hawaite Vol Dist'!$H$6,IF(OR(LEFT(G34,1)="m",LEFT(G34,1)="o")=TRUE,'Mug & Ben Vol Dist'!$H$6,IF(LEFT(G34,1)="t",'Trachyte Vol Dist'!$H$6,""))) -> 1.13 | I34: =IF(OR(LEFT(G34,1)="b",LEFT(G34,1)="h")=TRUE,'Basalt & Hawaite Vol Dist'!$I$6,IF(OR(LEFT(G34,1)="m",LEFT(G34,1)="o")=TRUE,'Mug & Ben Vol Dist'!$I$6,IF(LEFT(G34,1)="t",'Trachyte Vol Dist'!$I$6,""))) -> 0.34 | J34: =IF(OR(LEFT(G34,1)="b",LEFT(G34,1)="h")=TRUE,'Basalt & Hawaite Vol Dist'!$J$6,IF(OR(LEFT(G34,1)="m",LEFT(G34,1)="o")=TRUE,'Mug & Ben Vol Dist'!$J$6,IF(LEFT(G34,1)="t",'Trachyte Vol Dist'!$J$6,""))) -> 1.13 | K34: =IF(OR(LEFT(G34,1)="b",LEFT(G34,1)="h")=TRUE,'Basalt & Hawaite Vol Dist'!$K$6,IF(OR(LEFT(G34,1)="m",LEFT(G34,1)="o")=TRUE,'Mug & Ben Vol Dist'!$K$6,IF(LEFT(G34,1)="t",'Trachyte Vol Dist'!$K$6,""))) -> 0.34 | L34: =IF(OR(LEFT(G34,1)="b",LEFT(G34,1)="h")=TRUE,'Basalt & Hawaite Vol Dist'!$B$42,IF(OR(LEFT(G34,1)="m",LEFT(G34,1)="o")=TRUE,'Mug & Ben Vol Dist'!$B$42,IF(LEFT(G34,1)="t",'Trachyte Vol Dist'!$B$42,""))) -> 0.999
A35: 34 | B35: 0.377244476 | C35: 0.1960946059 | D35: =SUM($C35:$C$237) -> 71.36808948 | E35: =IFERROR(VLOOKUP(G35,'Summary of age data'!$A$3:$D$243,2,FALSE),"") -> 131.2 | F35: =IFERROR(VLOOKUP(G35,'Summary of age data'!$A$3:$D$243,3,FALSE),"") -> 8.3 | G35: bnu | H35: =IF(OR(LEFT(G35,1)="b",LEFT(G35,1)="h")=TRUE,'Basalt & Hawaite Vol Dist'!$H$6,IF(OR(LEFT(G35,1)="m",LEFT(G35,1)="o")=TRUE,'Mug & Ben Vol Dist'!$H$6,IF(LEFT(G35,1)="t",'Trachyte Vol Dist'!$H$6,""))) -> 1.13 | I35: =IF(OR(LEFT(G35,1)="b",LEFT(G35,1)="h")=TRUE,'Basalt & Hawaite Vol Dist'!$I$6,IF(OR(LEFT(G35,1)="m",LEFT(G35,1)="o")=TRUE,'Mug & Ben Vol Dist'!$I$6,IF(LEFT(G35,1)="t",'Trachyte Vol Dist'!$I$6,""))) -> 0.34 | J35: =IF(OR(LEFT(G35,1)="b",LEFT(G35,1)="h")=TRUE,'Basalt & Hawaite Vol Dist'!$J$6,IF(OR(LEFT(G35,1)="m",LEFT(G35,1)="o")=TRUE,'Mug & Ben Vol Dist'!$J$6,IF(LEFT(G35,1)="t",'Trachyte Vol Dist'!$J$6,""))) -> 1.13 | K35: =IF(OR(LEFT(G35,1)="b",LEFT(G35,1)="h")=TRUE,'Basalt & Hawaite Vol Dist'!$K$6,IF(OR(LEFT(G35,1)="m",LEFT(G35,1)="o")=TRUE,'Mug & Ben Vol Dist'!$K$6,IF(LEFT(G35,1)="t",'Trachyte Vol Dist'!$K$6,""))) -> 0.34 | L35: =IF(OR(LEFT(G35,1)="b",LEFT(G35,1)="h")=TRUE,'Basalt & Hawaite Vol Dist'!$B$42,IF(OR(LEFT(G35,1)="m",LEFT(G35,1)="o")=TRUE,'Mug & Ben Vol Dist'!$B$42,IF(LEFT(G35,1)="t",'Trachyte Vol Dist'!$B$42,""))) -> 0.999
A36: 35 | B36: 0.09085174917 | C36: 0.04570295384 | D36: =SUM($C36:$C$237) -> 71.17199487 | E36: =IFERROR(VLOOKUP(G36,'Summary of age data'!$A$3:$D$243,2,FALSE),"") -> 136.4 | F36: =IFERROR(VLOOKUP(G36,'Summary of age data'!$A$3:$D$243,3,FALSE),"") -> 95.8 | G36: bsb | H36: =IF(OR(LEFT(G36,1)="b",LEFT(G36,1)="h")=TRUE,'Basalt & Hawaite Vol Dist'!$H$6,IF(OR(LEFT(G36,1)="m",LEFT(G36,1)="o")=TRUE,'Mug & Ben Vol Dist'!$H$6,IF(LEFT(G36,1)="t",'Trachyte Vol Dist'!$H$6,""))) -> 1.13 | I36: =IF(OR(LEFT(G36,1)="b",LEFT(G36,1)="h")=TRUE,'Basalt & Hawaite Vol Dist'!$I$6,IF(OR(LEFT(G36,1)="m",LEFT(G36,1)="o")=TRUE,'Mug & Ben Vol Dist'!$I$6,IF(LEFT(G36,1)="t",'Trachyte Vol Dist'!$I$6,""))) -> 0.34 | J36: =IF(OR(LEFT(G36,1)="b",LEFT(G36,1)="h")=TRUE,'Basalt & Hawaite Vol Dist'!$J$6,IF(OR(LEFT(G36,1)="m",LEFT(G36,1)="o")=TRUE,'Mug & Ben Vol Dist'!$J$6,IF(LEFT(G36,1)="t",'Trachyte Vol Dist'!$J$6,""))) -> 1.13 | K36: =IF(OR(LEFT(G36,1)="b",LEFT(G36,1)="h")=TRUE,'Basalt & Hawaite Vol Dist'!$K$6,IF(OR(LEFT(G36,1)="m",LEFT(G36,1)="o")=TRUE,'Mug & Ben Vol Dist'!$K$6,IF(LEFT(G36,1)="t",'Trachyte Vol Dist'!$K$6,""))) -> 0.34 | L36: =IF(OR(LEFT(G36,1)="b",LEFT(G36,1)="h")=TRUE,'Basalt & Hawaite Vol Dist'!$B$42,IF(OR(LEFT(G36,1)="m",LEFT(G36,1)="o")=TRUE,'Mug & Ben Vol Dist'!$B$42,IF(LEFT(G36,1)="t",'Trachyte Vol Dist'!$B$42,""))) -> 0.999
A37: 36 | B37: 0.8421277948 | C37: 0.6962844147 | D37: =SUM($C37:$C$237) -> 71.12629192 | E37: =IFERROR(VLOOKUP(G37,'Summary of age data'!$A$3:$D$243,2,FALSE),"") -> 136.7 | F37: =IFERROR(VLOOKUP(G37,'Summary of age data'!$A$3:$D$243,3,FALSE),"") -> 7.6 | G37: bmat | H37: =IF(OR(LEFT(G37,1)="b",LEFT(G37,1)="h")=TRUE,'Basalt & Hawaite Vol Dist'!$H$6,IF(OR(LEFT(G37,1)="m",LEFT(G37,1)="o")=TRUE,'Mug & Ben Vol Dist'!$H$6,IF(LEFT(G37,1)="t",'Trachyte Vol Dist'!$H$6,""))) -> 1.13 | I37: =IF(OR(LEFT(G37,1)="b",LEFT(G37,1)="h")=TRUE,'Basalt & Hawaite Vol Dist'!$I$6,IF(OR(LEFT(G37,1)="m",LEFT(G37,1)="o")=TRUE,'Mug & Ben Vol Dist'!$I$6,IF(LEFT(G37,1)="t",'Trachyte Vol Dist'!$I$6,""))) -> 0.34 | J37: =IF(OR(LEFT(G37,1)="b",LEFT(G37,1)="h")=TRUE,'Basalt & Hawaite Vol Dist'!$J$6,IF(OR(LEFT(G37,1)="m",LEFT(G37,1)="o")=TRUE,'Mug & Ben Vol Dist'!$J$6,IF(LEFT(G37,1)="t",'Trachyte Vol Dist'!$J$6,""))) -> 1.13 | K37: =IF(OR(LEFT(G37,1)="b",LEFT(G37,1)="h")=TRUE,'Basalt & Hawaite Vol Dist'!$K$6,IF(OR(LEFT(G37,1)="m",LEFT(G37,1)="o")=TRUE,'Mug & Ben Vol Dist'!$K$6,IF(LEFT(G37,1)="t",'Trachyte Vol Dist'!$K$6,""))) -> 0.34 | L37: =IF(OR(LEFT(G37,1)="b",LEFT(G37,1)="h")=TRUE,'Basalt & Hawaite Vol Dist'!$B$42,IF(OR(LEFT(G37,1)="m",LEFT(G37,1)="o")=TRUE,'Mug & Ben Vol Dist'!$B$42,IF(LEFT(G37,1)="t",'Trachyte Vol Dist'!$B$42,""))) -> 0.999
A38: 37 | B38: 0.6870615522 | C38: 0.4505502466 | D38: =SUM($C38:$C$237) -> 70.43000751 | E38: =IFERROR(VLOOKUP(G38,'Summary of age data'!$A$3:$D$243,2,FALSE),"") -> 137.3 | F38: =IFERROR(VLOOKUP(G38,'Summary of age data'!$A$3:$D$243,3,FALSE),"") -> 11.3 | G38: bh10 | H38: =IF(OR(LEFT(G38,1)="b",LEFT(G38,1)="h")=TRUE,'Basalt & Hawaite Vol Dist'!$H$6,IF(OR(LEFT(G38,1)="m",LEFT(G38,1)="o")=TRUE,'Mug & Ben Vol Dist'!$H$6,IF(LEFT(G38,1)="t",'Trachyte Vol Dist'!$H$6,""))) -> 1.13 | I38: =IF(OR(LEFT(G38,1)="b",LEFT(G38,1)="h")=TRUE,'Basalt & Hawaite Vol Dist'!$I$6,IF(OR(LEFT(G38,1)="m",LEFT(G38,1)="o")=TRUE,'Mug & Ben Vol Dist'!$I$6,IF(LEFT(G38,1)="t",'Trachyte Vol Dist'!$I$6,""))) -> 0.34 | J38: =IF(OR(LEFT(G38,1)="b",LEFT(G38,1)="h")=TRUE,'Basalt & Hawaite Vol Dist'!$J$6,IF(OR(LEFT(G38,1)="m",LEFT(G38,1)="o")=TRUE,'Mug & Ben Vol Dist'!$J$6,IF(LEFT(G38,1)="t",'Trachyte Vol Dist'!$J$6,""))) -> 1.13 | K38: =IF(OR(LEFT(G38,1)="b",LEFT(G38,1)="h")=TRUE,'Basalt & Hawaite Vol Dist'!$K$6,IF(OR(LEFT(G38,1)="m",LEFT(G38,1)="o")=TRUE,'Mug & Ben Vol Dist'!$K$6,IF(LEFT(G38,1)="t",'Trachyte Vol Dist'!$K$6,""))) -> 0.34 | L38: =IF(OR(LEFT(G38,1)="b",LEFT(G38,1)="h")=TRUE,'Basalt & Hawaite Vol Dist'!$B$42,IF(OR(LEFT(G38,1)="m",LEFT(G38,1)="o")=TRUE,'Mug & Ben Vol Dist'!$B$42,IF(LEFT(G38,1)="t",'Trachyte Vol Dist'!$B$42,""))) -> 0.999
A39: 38 | B39: 0.9000613358 | C39: 0.8585754362 | D39: =SUM($C39:$C$237) -> 69.97945726 | E39: =IFERROR(VLOOKUP(G39,'Summary of age data'!$A$3:$D$243,2,FALSE),"") -> 139 | F39: =IFERROR(VLOOKUP(G39,'Summary of age data'!$A$3:$D$243,3,FALSE),"") -> 5.4 | G39: han1 | H39: =IF(OR(LEFT(G39,1)="b",LEFT(G39,1)="h")=TRUE,'Basalt & Hawaite Vol Dist'!$H$6,IF(OR(LEFT(G39,1)="m",LEFT(G39,1)="o")=TRUE,'Mug & Ben Vol Dist'!$H$6,IF(LEFT(G39,1)="t",'Trachyte Vol Dist'!$H$6,""))) -> 1.13 | I39: =IF(OR(LEFT(G39,1)="b",LEFT(G39,1)="h")=TRUE,'Basalt & Hawaite Vol Dist'!$I$6,IF(OR(LEFT(G39,1)="m",LEFT(G39,1)="o")=TRUE,'Mug & Ben Vol Dist'!$I$6,IF(LEFT(G39,1)="t",'Trachyte Vol Dist'!$I$6,""))) -> 0.34 | J39: =IF(OR(LEFT(G39,1)="b",LEFT(G39,1)="h")=TRUE,'Basalt & Hawaite Vol Dist'!$J$6,IF(OR(LEFT(G39,1)="m",LEFT(G39,1)="o")=TRUE,'Mug & Ben Vol Dist'!$J$6,IF(LEFT(G39,1)="t",'Trachyte Vol Dist'!$J$6,""))) -> 1.13 | K39: =IF(OR(LEFT(G39,1)="b",LEFT(G39,1)="h")=TRUE,'Basalt & Hawaite Vol Dist'!$K$6,IF(OR(LEFT(G39,1)="m",LEFT(G39,1)="o")=TRUE,'Mug & Ben Vol Dist'!$K$6,IF(LEFT(G39,1)="t",'Trachyte Vol Dist'!$K$6,""))) -> 0.34 | L39: =IF(OR(LEFT(G39,1)="b",LEFT(G39,1)="h")=TRUE,'Basalt & Hawaite Vol Dist'!$B$42,IF(OR(LEFT(G39,1)="m",LEFT(G39,1)="o")=TRUE,'Mug & Ben Vol Dist'!$B$42,IF(LEFT(G39,1)="t",'Trachyte Vol Dist'!$B$42,""))) -> 0.999
A40: 39 | B40: 0.05631112642 | C40: 0.02926931279 | D40: =SUM($C40:$C$237) -> 69.12088182 | E40: =IFERROR(VLOOKUP(G40,'Summary of age data'!$A$3:$D$243,2,FALSE),"") -> 139.2 | F40: =IFERROR(VLOOKUP(G40,'Summary of age data'!$A$3:$D$243,3,FALSE),"") -> 11.3 | G40: bdy | H40: =IF(OR(LEFT(G40,1)="b",LEFT(G40,1)="h")=TRUE,'Basalt & Hawaite Vol Dist'!$H$6,IF(OR(LEFT(G40,1)="m",LEFT(G40,1)="o")=TRUE,'Mug & Ben Vol Dist'!$H$6,IF(LEFT(G40,1)="t",'Trachyte Vol Dist'!$H$6,""))) -> 1.13 | I40: =IF(OR(LEFT(G40,1)="b",LEFT(G40,1)="h")=TRUE,'Basalt & Hawaite Vol Dist'!$I$6,IF(OR(LEFT(G40,1)="m",LEFT(G40,1)="o")=TRUE,'Mug & Ben Vol Dist'!$I$6,IF(LEFT(G40,1)="t",'Trachyte Vol Dist'!$I$6,""))) -> 0.34 | J40: =IF(OR(LEFT(G40,1)="b",LEFT(G40,1)="h")=TRUE,'Basalt & Hawaite Vol Dist'!$J$6,IF(OR(LEFT(G40,1)="m",LEFT(G40,1)="o")=TRUE,'Mug & Ben Vol Dist'!$J$6,IF(LEFT(G40,1)="t",'Trachyte Vol Dist'!$J$6,""))) -> 1.13 | K40: =IF(OR(LEFT(G40,1)="b",LEFT(G40,1)="h")=TRUE,'Basalt & Hawaite Vol Dist'!$K$6,IF(OR(LEFT(G40,1)="m",LEFT(G40,1)="o")=TRUE,'Mug & Ben Vol Dist'!$K$6,IF(LEFT(G40,1)="t",'Trachyte Vol Dist'!$K$6,""))) -> 0.34 | L40: =IF(OR(LEFT(G40,1)="b",LEFT(G40,1)="h")=TRUE,'Basalt & Hawaite Vol Dist'!$B$42,IF(OR(LEFT(G40,1)="m",LEFT(G40,1)="o")=TRUE,'Mug & Ben Vol Dist'!$B$42,IF(LEFT(G40,1)="t",'Trachyte Vol Dist'!$B$42,""))) -> 0.999
A41: 40 | B41: 0.4967805215 | C41: 0.1205460173 | D41: =SUM($C41:$C$237) -> 69.09161251 | E41: =IFERROR(VLOOKUP(G41,'Summary of age data'!$A$3:$D$243,2,FALSE),"") -> 142.4 | F41: =IFERROR(VLOOKUP(G41,'Summary of age data'!$A$3:$D$243,3,FALSE),"") -> 2.2 | G41: tg3 | H41: =IF(OR(LEFT(G41,1)="b",LEFT(G41,1)="h")=TRUE,'Basalt & Hawaite Vol Dist'!$H$6,IF(OR(LEFT(G41,1)="m",LEFT(G41,1)="o")=TRUE,'Mug & Ben Vol Dist'!$H$6,IF(LEFT(G41,1)="t",'Trachyte Vol Dist'!$H$6,""))) -> 2 | I41: =IF(OR(LEFT(G41,1)="b",LEFT(G41,1)="h")=TRUE,'Basalt & Hawaite Vol Dist'!$I$6,IF(OR(LEFT(G41,1)="m",LEFT(G41,1)="o")=TRUE,'Mug & Ben Vol Dist'!$I$6,IF(LEFT(G41,1)="t",'Trachyte Vol Dist'!$I$6,""))) -> 0.083 | J41: =IF(OR(LEFT(G41,1)="b",LEFT(G41,1)="h")=TRUE,'Basalt & Hawaite Vol Dist'!$J$6,IF(OR(LEFT(G41,1)="m",LEFT(G41,1)="o")=TRUE,'Mug & Ben Vol Dist'!$J$6,IF(LEFT(G41,1)="t",'Trachyte Vol Dist'!$J$6,""))) -> 2 | K41: =IF(OR(LEFT(G41,1)="b",LEFT(G41,1)="h")=TRUE,'Basalt & Hawaite Vol Dist'!$K$6,IF(OR(LEFT(G41,1)="m",LEFT(G41,1)="o")=TRUE,'Mug & Ben Vol Dist'!$K$6,IF(LEFT(G41,1)="t",'Trachyte Vol Dist'!$K$6,""))) -> 0.083 | L41: =IF(OR(LEFT(G41,1)="b",LEFT(G41,1)="h")=TRUE,'Basalt & Hawaite Vol Dist'!$B$42,IF(OR(LEFT(G41,1)="m",LEFT(G41,1)="o")=TRUE,'Mug & Ben Vol Dist'!$B$42,IF(LEFT(G41,1)="t",'Trachyte Vol Dist'!$B$42,""))) -> 0.999
A42: 41 | B42: 0.1900837981 | C42: =IF(B42<=L42,_xlfn.GAMMA.INV(B42,H42,I42),_xlfn.GAMMA.INV(B42,J42,K42)) -> 0.09365764892 | D42: =SUM($C42:$C$237) -> 68.97106649 | E42: =IFERROR(VLOOKUP(G42,'Summary of age data'!$A$3:$D$243,2,FALSE),"") -> 144.6 | F42: =IFERROR(VLOOKUP(G42,'Summary of age data'!$A$3:$D$243,3,FALSE),"") -> 19.6 | G42: bsq | H42: =IF(OR(LEFT(G42,1)="b",LEFT(G42,1)="h")=TRUE,'Basalt & Hawaite Vol Dist'!$H$6,IF(OR(LEFT(G42,1)="m",LEFT(G42,1)="o")=TRUE,'Mug & Ben Vol Dist'!$H$6,IF(LEFT(G42,1)="t",'Trachyte Vol Dist'!$H$6,""))) -> 1.13 | I42: =IF(OR(LEFT(G42,1)="b",LEFT(G42,1)="h")=TRUE,'Basalt & Hawaite Vol Dist'!$I$6,IF(OR(LEFT(G42,1)="m",LEFT(G42,1)="o")=TRUE,'Mug & Ben Vol Dist'!$I$6,IF(LEFT(G42,1)="t",'Trachyte Vol Dist'!$I$6,""))) -> 0.34 | J42: =IF(OR(LEFT(G42,1)="b",LEFT(G42,1)="h")=TRUE,'Basalt & Hawaite Vol Dist'!$J$6,IF(OR(LEFT(G42,1)="m",LEFT(G42,1)="o")=TRUE,'Mug & Ben Vol Dist'!$J$6,IF(LEFT(G42,1)="t",'Trachyte Vol Dist'!$J$6,""))) -> 1.13 | K42: =IF(OR(LEFT(G42,1)="b",LEFT(G42,1)="h")=TRUE,'Basalt & Hawaite Vol Dist'!$K$6,IF(OR(LEFT(G42,1)="m",LEFT(G42,1)="o")=TRUE,'Mug & Ben Vol Dist'!$K$6,IF(LEFT(G42,1)="t",'Trachyte Vol Dist'!$K$6,""))) -> 0.34 | L42: =IF(OR(LEFT(G42,1)="b",LEFT(G42,1)="h")=TRUE,'Basalt & Hawaite Vol Dist'!$B$42,IF(OR(LEFT(G42,1)="m",LEFT(G42,1)="o")=TRUE,'Mug & Ben Vol Dist'!$B$42,IF(LEFT(G42,1)="t",'Trachyte Vol Dist'!$B$42,""))) -> 0.999
A43: 42 | B43: 0.6043477428 | C43: =IF(B43<=L43,_xlfn.GAMMA.INV(B43,H43,I43),_xlfn.GAMMA.INV(B43,J43,K43)) -> 0.3650477062 | D43: =SUM($C43:$C$237) -> 68.87740884 | E43: =IFERROR(VLOOKUP(G43,'Summary of age data'!$A$3:$D$243,2,FALSE),"") -> 144.6 | F43: =IFERROR(VLOOKUP(G43,'Summary of age data'!$A$3:$D$243,3,FALSE),"") -> 19.6 | G43: bka | H43: =IF(OR(LEFT(G43,1)="b",LEFT(G43,1)="h")=TRUE,'Basalt & Hawaite Vol Dist'!$H$6,IF(OR(LEFT(G43,1)="m",LEFT(G43,1)="o")=TRUE,'Mug & Ben Vol Dist'!$H$6,IF(LEFT(G43,1)="t",'Trachyte Vol Dist'!$H$6,""))) -> 1.13 | I43: =IF(OR(LEFT(G43,1)="b",LEFT(G43,1)="h")=TRUE,'Basalt & Hawaite Vol Dist'!$I$6,IF(OR(LEFT(G43,1)="m",LEFT(G43,1)="o")=TRUE,'Mug & Ben Vol Dist'!$I$6,IF(LEFT(G43,1)="t",'Trachyte Vol Dist'!$I$6,""))) -> 0.34 | J43: =IF(OR(LEFT(G43,1)="b",LEFT(G43,1)="h")=TRUE,'Basalt & Hawaite Vol Dist'!$J$6,IF(OR(LEFT(G43,1)="m",LEFT(G43,1)="o")=TRUE,'Mug & Ben Vol Dist'!$J$6,IF(LEFT(G43,1)="t",'Trachyte Vol Dist'!$J$6,""))) -> 1.13 | K43: =IF(OR(LEFT(G43,1)="b",LEFT(G43,1)="h")=TRUE,'Basalt & Hawaite Vol Dist'!$K$6,IF(OR(LEFT(G43,1)="m",LEFT(G43,1)="o")=TRUE,'Mug & Ben Vol Dist'!$K$6,IF(LEFT(G43,1)="t",'Trachyte Vol Dist'!$K$6,""))) -> 0.34 | L43: =IF(OR(LEFT(G43,1)="b",LEFT(G43,1)="h")=TRUE,'Basalt & Hawaite Vol Dist'!$B$42,IF(OR(LEFT(G43,1)="m",LEFT(G43,1)="o")=TRUE,'Mug & Ben Vol Dist'!$B$42,IF(LEFT(G43,1)="t",'Trachyte Vol Dist'!$B$42,""))) -> 0.999
A44: 43 | B44: 0.2096884317 | C44: 0.6462935521 | D44: =SUM($C44:$C$237) -> 68.51236114 | E44: =IFERROR(VLOOKUP(G44,'Summary of age data'!$A$3:$D$243,2,FALSE),"") -> 150 | F44: =IFERROR(VLOOKUP(G44,'Summary of age data'!$A$3:$D$243,3,FALSE),"") -> 0 | G44: bns | H44: =IF(OR(LEFT(G44,1)="b",LEFT(G44,1)="h")=TRUE,'Basalt & Hawaite Vol Dist'!$H$6,IF(OR(LEFT(G44,1)="m",LEFT(G44,1)="o")=TRUE,'Mug & Ben Vol Dist'!$H$6,IF(LEFT(G44,1)="t",'Trachyte Vol Dist'!$H$6,""))) -> 1.13 | I44: =IF(OR(LEFT(G44,1)="b",LEFT(G44,1)="h")=TRUE,'Basalt & Hawaite Vol Dist'!$I$6,IF(OR(LEFT(G44,1)="m",LEFT(G44,1)="o")=TRUE,'Mug & Ben Vol Dist'!$I$6,IF(LEFT(G44,1)="t",'Trachyte Vol Dist'!$I$6,""))) -> 0.34 | J44: =IF(OR(LEFT(G44,1)="b",LEFT(G44,1)="h")=TRUE,'Basalt & Hawaite Vol Dist'!$J$6,IF(OR(LEFT(G44,1)="m",LEFT(G44,1)="o")=TRUE,'Mug & Ben Vol Dist'!$J$6,IF(LEFT(G44,1)="t",'Trachyte Vol Dist'!$J$6,""))) -> 1.13 | K44: =IF(OR(LEFT(G44,1)="b",LEFT(G44,1)="h")=TRUE,'Basalt & Hawaite Vol Dist'!$K$6,IF(OR(LEFT(G44,1)="m",LEFT(G44,1)="o")=TRUE,'Mug & Ben Vol Dist'!$K$6,IF(LEFT(G44,1)="t",'Trachyte Vol Dist'!$K$6,""))) -> 0.34 | L44: =IF(OR(LEFT(G44,1)="b",LEFT(G44,1)="h")=TRUE,'Basalt & Hawaite Vol Dist'!$B$42,IF(OR(LEFT(G44,1)="m",LEFT(G44,1)="o")=TRUE,'Mug & Ben Vol Dist'!$B$42,IF(LEFT(G44,1)="t",'Trachyte Vol Dist'!$B$42,""))) -> 0.999
A45: 44 | B45: 0.7652996279 | C45: =IF(B45<=L45,_xlfn.GAMMA.INV(B45,H45,I45),_xlfn.GAMMA.INV(B45,J45,K45)) -> 0.5544174793 | D45: =SUM($C45:$C$237) -> 67.86606759 | E45: =IFERROR(VLOOKUP(G45,'Summary of age data'!$A$3:$D$243,2,FALSE),"") -> 151.2 | F45: =IFERROR(VLOOKUP(G45,'Summary of age data'!$A$3:$D$243,3,FALSE),"") -> 7.9 | G45: har | H45: =IF(OR(LEFT(G45,1)="b",LEFT(G45,1)="h")=TRUE,'Basalt & Hawaite Vol Dist'!$H$6,IF(OR(LEFT(G45,1)="m",LEFT(G45,1)="o")=TRUE,'Mug & Ben Vol Dist'!$H$6,IF(LEFT(G45,1)="t",'Trachyte Vol Dist'!$H$6,""))) -> 1.13 | I45: =IF(OR(LEFT(G45,1)="b",LEFT(G45,1)="h")=TRUE,'Basalt & Hawaite Vol Dist'!$I$6,IF(OR(LEFT(G45,1)="m",LEFT(G45,1)="o")=TRUE,'Mug & Ben Vol Dist'!$I$6,IF(LEFT(G45,1)="t",'Trachyte Vol Dist'!$I$6,""))) -> 0.34 | J45: =IF(OR(LEFT(G45,1)="b",LEFT(G45,1)="h")=TRUE,'Basalt & Hawaite Vol Dist'!$J$6,IF(OR(LEFT(G45,1)="m",LEFT(G45,1)="o")=TRUE,'Mug & Ben Vol Dist'!$J$6,IF(LEFT(G45,1)="t",'Trachyte Vol Dist'!$J$6,""))) -> 1.13 | K45: =IF(OR(LEFT(G45,1)="b",LEFT(G45,1)="h")=TRUE,'Basalt & Hawaite Vol Dist'!$K$6,IF(OR(LEFT(G45,1)="m",LEFT(G45,1)="o")=TRUE,'Mug & Ben Vol Dist'!$K$6,IF(LEFT(G45,1)="t",'Trachyte Vol Dist'!$K$6,""))) -> 0.34 | L45: =IF(OR(LEFT(G45,1)="b",LEFT(G45,1)="h")=TRUE,'Basalt & Hawaite Vol Dist'!$B$42,IF(OR(LEFT(G45,1)="m",LEFT(G45,1)="o")=TRUE,'Mug & Ben Vol Dist'!$B$42,IF(LEFT(G45,1)="t",'Trachyte Vol Dist'!$B$42,""))) -> 0.999
A46: 45 | B46: 0.1704308295 | C46: 0.08394684446 | D46: =SUM($C46:$C$237) -> 67.31165011 | E46: =IFERROR(VLOOKUP(G46,'Summary of age data'!$A$3:$D$243,2,FALSE),"") -> 151.2 | F46: =IFERROR(VLOOKUP(G46,'Summary of age data'!$A$3:$D$243,3,FALSE),"") -> 7.9 | G46: bjb | H46: =IF(OR(LEFT(G46,1)="b",LEFT(G46,1)="h")=TRUE,'Basalt & Hawaite Vol Dist'!$H$6,IF(OR(LEFT(G46,1)="m",LEFT(G46,1)="o")=TRUE,'Mug & Ben Vol Dist'!$H$6,IF(LEFT(G46,1)="t",'Trachyte Vol Dist'!$H$6,""))) -> 1.13 | I46: =IF(OR(LEFT(G46,1)="b",LEFT(G46,1)="h")=TRUE,'Basalt & Hawaite Vol Dist'!$I$6,IF(OR(LEFT(G46,1)="m",LEFT(G46,1)="o")=TRUE,'Mug & Ben Vol Dist'!$I$6,IF(LEFT(G46,1)="t",'Trachyte Vol Dist'!$I$6,""))) -> 0.34 | J46: =IF(OR(LEFT(G46,1)="b",LEFT(G46,1)="h")=TRUE,'Basalt & Hawaite Vol Dist'!$J$6,IF(OR(LEFT(G46,1)="m",LEFT(G46,1)="o")=TRUE,'Mug & Ben Vol Dist'!$J$6,IF(LEFT(G46,1)="t",'Trachyte Vol Dist'!$J$6,""))) -> 1.13 | K46: =IF(OR(LEFT(G46,1)="b",LEFT(G46,1)="h")=TRUE,'Basalt & Hawaite Vol Dist'!$K$6,IF(OR(LEFT(G46,1)="m",LEFT(G46,1)="o")=TRUE,'Mug & Ben Vol Dist'!$K$6,IF(LEFT(G46,1)="t",'Trachyte Vol Dist'!$K$6,""))) -> 0.34 | L46: =IF(OR(LEFT(G46,1)="b",LEFT(G46,1)="h")=TRUE,'Basalt & Hawaite Vol Dist'!$B$42,IF(OR(LEFT(G46,1)="m",LEFT(G46,1)="o")=TRUE,'Mug & Ben Vol Dist'!$B$42,IF(LEFT(G46,1)="t",'Trachyte Vol Dist'!$B$42,""))) -> 0.999
A47: 46 | B47: 0.2702948558 | C47: 0.1350191422 | D47: =SUM($C47:$C$237) -> 67.22770326 | E47: =IFERROR(VLOOKUP(G47,'Summary of age data'!$A$3:$D$243,2,FALSE),"") -> 151.2 | F47: =IFERROR(VLOOKUP(G47,'Summary of age data'!$A$3:$D$243,3,FALSE),"") -> 7.9 | G47: bwar | H47: =IF(OR(LEFT(G47,1)="b",LEFT(G47,1)="h")=TRUE,'Basalt & Hawaite Vol Dist'!$H$6,IF(OR(LEFT(G47,1)="m",LEFT(G47,1)="o")=TRUE,'Mug & Ben Vol Dist'!$H$6,IF(LEFT(G47,1)="t",'Trachyte Vol Dist'!$H$6,""))) -> 1.13 | I47: =IF(OR(LEFT(G47,1)="b",LEFT(G47,1)="h")=TRUE,'Basalt & Hawaite Vol Dist'!$I$6,IF(OR(LEFT(G47,1)="m",LEFT(G47,1)="o")=TRUE,'Mug & Ben Vol Dist'!$I$6,IF(LEFT(G47,1)="t",'Trachyte Vol Dist'!$I$6,""))) -> 0.34 | J47: =IF(OR(LEFT(G47,1)="b",LEFT(G47,1)="h")=TRUE,'Basalt & Hawaite Vol Dist'!$J$6,IF(OR(LEFT(G47,1)="m",LEFT(G47,1)="o")=TRUE,'Mug & Ben Vol Dist'!$J$6,IF(LEFT(G47,1)="t",'Trachyte Vol Dist'!$J$6,""))) -> 1.13 | K47: =IF(OR(LEFT(G47,1)="b",LEFT(G47,1)="h")=TRUE,'Basalt & Hawaite Vol Dist'!$K$6,IF(OR(LEFT(G47,1)="m",LEFT(G47,1)="o")=TRUE,'Mug & Ben Vol Dist'!$K$6,IF(LEFT(G47,1)="t",'Trachyte Vol Dist'!$K$6,""))) -> 0.34 | L47: =IF(OR(LEFT(G47,1)="b",LEFT(G47,1)="h")=TRUE,'Basalt & Hawaite Vol Dist'!$B$42,IF(OR(LEFT(G47,1)="m",LEFT(G47,1)="o")=TRUE,'Mug & Ben Vol Dist'!$B$42,IF(LEFT(G47,1)="t",'Trachyte Vol Dist'!$B$42,""))) -> 0.999
A48: 47 | B48: 0.6827645529 | C48: 0.4456014699 | D48: =SUM($C48:$C$237) -> 67.09268412 | E48: =IFERROR(VLOOKUP(G48,'Summary of age data'!$A$3:$D$243,2,FALSE),"") -> 151.2 | F48: =IFERROR(VLOOKUP(G48,'Summary of age data'!$A$3:$D$243,3,FALSE),"") -> 7.9 | G48: bwm | H48: =IF(OR(LEFT(G48,1)="b",LEFT(G48,1)="h")=TRUE,'Basalt & Hawaite Vol Dist'!$H$6,IF(OR(LEFT(G48,1)="m",LEFT(G48,1)="o")=TRUE,'Mug & Ben Vol Dist'!$H$6,IF(LEFT(G48,1)="t",'Trachyte Vol Dist'!$H$6,""))) -> 1.13 | I48: =IF(OR(LEFT(G48,1)="b",LEFT(G48,1)="h")=TRUE,'Basalt & Hawaite Vol Dist'!$I$6,IF(OR(LEFT(G48,1)="m",LEFT(G48,1)="o")=TRUE,'Mug & Ben Vol Dist'!$I$6,IF(LEFT(G48,1)="t",'Trachyte Vol Dist'!$I$6,""))) -> 0.34 | J48: =IF(OR(LEFT(G48,1)="b",LEFT(G48,1)="h")=TRUE,'Basalt & Hawaite Vol Dist'!$J$6,IF(OR(LEFT(G48,1)="m",LEFT(G48,1)="o")=TRUE,'Mug & Ben Vol Dist'!$J$6,IF(LEFT(G48,1)="t",'Trachyte Vol Dist'!$J$6,""))) -> 1.13 | K48: =IF(OR(LEFT(G48,1)="b",LEFT(G48,1)="h")=TRUE,'Basalt & Hawaite Vol Dist'!$K$6,IF(OR(LEFT(G48,1)="m",LEFT(G48,1)="o")=TRUE,'Mug & Ben Vol Dist'!$K$6,IF(LEFT(G48,1)="t",'Trachyte Vol Dist'!$K$6,""))) -> 0.34 | L48: =IF(OR(LEFT(G48,1)="b",LEFT(G48,1)="h")=TRUE,'Basalt & Hawaite Vol Dist'!$B$42,IF(OR(LEFT(G48,1)="m",LEFT(G48,1)="o")=TRUE,'Mug & Ben Vol Dist'!$B$42,IF(LEFT(G48,1)="t",'Trachyte Vol Dist'!$B$42,""))) -> 0.999
A49: 48 | B49: 0.3812829942 | C49: 0.1985695934 | D49: =SUM($C49:$C$237) -> 66.64708265 | E49: =IFERROR(VLOOKUP(G49,'Summary of age data'!$A$3:$D$243,2,FALSE),"") -> 151.2 | F49: =IFERROR(VLOOKUP(G49,'Summary of age data'!$A$3:$D$243,3,FALSE),"") -> 7.9 | G49: brt | H49: =IF(OR(LEFT(G49,1)="b",LEFT(G49,1)="h")=TRUE,'Basalt & Hawaite Vol Dist'!$H$6,IF(OR(LEFT(G49,1)="m",LEFT(G49,1)="o")=TRUE,'Mug & Ben Vol Dist'!$H$6,IF(LEFT(G49,1)="t",'Trachyte Vol Dist'!$H$6,""))) -> 1.13 | I49: =IF(OR(LEFT(G49,1)="b",LEFT(G49,1)="h")=TRUE,'Basalt & Hawaite Vol Dist'!$I$6,IF(OR(LEFT(G49,1)="m",LEFT(G49,1)="o")=TRUE,'Mug & Ben Vol Dist'!$I$6,IF(LEFT(G49,1)="t",'Trachyte Vol Dist'!$I$6,""))) -> 0.34 | J49: =IF(OR(LEFT(G49,1)="b",LEFT(G49,1)="h")=TRUE,'Basalt & Hawaite Vol Dist'!$J$6,IF(OR(LEFT(G49,1)="m",LEFT(G49,1)="o")=TRUE,'Mug & Ben Vol Dist'!$J$6,IF(LEFT(G49,1)="t",'Trachyte Vol Dist'!$J$6,""))) -> 1.13 | K49: =IF(OR(LEFT(G49,1)="b",LEFT(G49,1)="h")=TRUE,'Basalt & Hawaite Vol Dist'!$K$6,IF(OR(LEFT(G49,1)="m",LEFT(G49,1)="o")=TRUE,'Mug & Ben Vol Dist'!$K$6,IF(LEFT(G49,1)="t",'Trachyte Vol Dist'!$K$6,""))) -> 0.34 | L49: =IF(OR(LEFT(G49,1)="b",LEFT(G49,1)="h")=TRUE,'Basalt & Hawaite Vol Dist'!$B$42,IF(OR(LEFT(G49,1)="m",LEFT(G49,1)="o")=TRUE,'Mug & Ben Vol Dist'!$B$42,IF(LEFT(G49,1)="t",'Trachyte Vol Dist'!$B$42,""))) -> 0.999
A50: 49 | B50: 0.832817304 | C50: 0.6758576044 | D50: =SUM($C50:$C$237) -> 66.44851306 | E50: =IFERROR(VLOOKUP(G50,'Summary of age data'!$A$3:$D$243,2,FALSE),"") -> 151.9 | F50: =IFERROR(VLOOKUP(G50,'Summary of age data'!$A$3:$D$243,3,FALSE),"") -> 9.9 | G50: bsi | H50: =IF(OR(LEFT(G50,1)="b",LEFT(G50,1)="h")=TRUE,'Basalt & Hawaite Vol Dist'!$H$6,IF(OR(LEFT(G50,1)="m",LEFT(G50,1)="o")=TRUE,'Mug & Ben Vol Dist'!$H$6,IF(LEFT(G50,1)="t",'Trachyte Vol Dist'!$H$6,""))) -> 1.13 | I50: =IF(OR(LEFT(G50,1)="b",LEFT(G50,1)="h")=TRUE,'Basalt & Hawaite Vol Dist'!$I$6,IF(OR(LEFT(G50,1)="m",LEFT(G50,1)="o")=TRUE,'Mug & Ben Vol Dist'!$I$6,IF(LEFT(G50,1)="t",'Trachyte Vol Dist'!$I$6,""))) -> 0.34 | J50: =IF(OR(LEFT(G50,1)="b",LEFT(G50,1)="h")=TRUE,'Basalt & Hawaite Vol Dist'!$J$6,IF(OR(LEFT(G50,1)="m",LEFT(G50,1)="o")=TRUE,'Mug & Ben Vol Dist'!$J$6,IF(LEFT(G50,1)="t",'Trachyte Vol Dist'!$J$6,""))) -> 1.13 | K50: =IF(OR(LEFT(G50,1)="b",LEFT(G50,1)="h")=TRUE,'Basalt & Hawaite Vol Dist'!$K$6,IF(OR(LEFT(G50,1)="m",LEFT(G50,1)="o")=TRUE,'Mug & Ben Vol Dist'!$K$6,IF(LEFT(G50,1)="t",'Trachyte Vol Dist'!$K$6,""))) -> 0.34 | L50: =IF(OR(LEFT(G50,1)="b",LEFT(G50,1)="h")=TRUE,'Basalt & Hawaite Vol Dist'!$B$42,IF(OR(LEFT(G50,1)="m",LEFT(G50,1)="o")=TRUE,'Mug & Ben Vol Dist'!$B$42,IF(LEFT(G50,1)="t",'Trachyte Vol Dist'!$B$42,""))) -> 0.999
A51: 50 | B51: 0.8483345412 | C51: 0.7105693672 | D51: =SUM($C51:$C$237) -> 65.77265545 | E51: =IFERROR(VLOOKUP(G51,'Summary of age data'!$A$3:$D$243,2,FALSE),"") -> 153 | F51: =IFERROR(VLOOKUP(G51,'Summary of age data'!$A$3:$D$243,3,FALSE),"") -> 6.2 | G51: bnar | H51: =IF(OR(LEFT(G51,1)="b",LEFT(G51,1)="h")=TRUE,'Basalt & Hawaite Vol Dist'!$H$6,IF(OR(LEFT(G51,1)="m",LEFT(G51,1)="o")=TRUE,'Mug & Ben Vol Dist'!$H$6,IF(LEFT(G51,1)="t",'Trachyte Vol Dist'!$H$6,""))) -> 1.13 | I51: =IF(OR(LEFT(G51,1)="b",LEFT(G51,1)="h")=TRUE,'Basalt & Hawaite Vol Dist'!$I$6,IF(OR(LEFT(G51,1)="m",LEFT(G51,1)="o")=TRUE,'Mug & Ben Vol Dist'!$I$6,IF(LEFT(G51,1)="t",'Trachyte Vol Dist'!$I$6,""))) -> 0.34 | J51: =IF(OR(LEFT(G51,1)="b",LEFT(G51,1)="h")=TRUE,'Basalt & Hawaite Vol Dist'!$J$6,IF(OR(LEFT(G51,1)="m",LEFT(G51,1)="o")=TRUE,'Mug & Ben Vol Dist'!$J$6,IF(LEFT(G51,1)="t",'Trachyte Vol Dist'!$J$6,""))) -> 1.13 | K51: =IF(OR(LEFT(G51,1)="b",LEFT(G51,1)="h")=TRUE,'Basalt & Hawaite Vol Dist'!$K$6,IF(OR(LEFT(G51,1)="m",LEFT(G51,1)="o")=TRUE,'Mug & Ben Vol Dist'!$K$6,IF(LEFT(G51,1)="t",'Trachyte Vol Dist'!$K$6,""))) -> 0.34 | L51: =IF(OR(LEFT(G51,1)="b",LEFT(G51,1)="h")=TRUE,'Basalt & Hawaite Vol Dist'!$B$42,IF(OR(LEFT(G51,1)="m",LEFT(G51,1)="o")=TRUE,'Mug & Ben Vol Dist'!$B$42,IF(LEFT(G51,1)="t",'Trachyte Vol Dist'!$B$42,""))) -> 0.999
A52: 51 | B52: 0.390051315 | C52: 0.04555760395 | D52: =SUM($C52:$C$237) -> 65.06208608 | E52: =IFERROR(VLOOKUP(G52,'Summary of age data'!$A$3:$D$243,2,FALSE),"") -> 154 | F52: =IFERROR(VLOOKUP(G52,'Summary of age data'!$A$3:$D$243,3,FALSE),"") -> 8.3 | G52: mma | H52: =IF(OR(LEFT(G52,1)="b",LEFT(G52,1)="h")=TRUE,'Basalt & Hawaite Vol Dist'!$H$6,IF(OR(LEFT(G52,1)="m",LEFT(G52,1)="o")=TRUE,'Mug & Ben Vol Dist'!$H$6,IF(LEFT(G52,1)="t",'Trachyte Vol Dist'!$H$6,""))) -> 0.21 | I52: =IF(OR(LEFT(G52,1)="b",LEFT(G52,1)="h")=TRUE,'Basalt & Hawaite Vol Dist'!$I$6,IF(OR(LEFT(G52,1)="m",LEFT(G52,1)="o")=TRUE,'Mug & Ben Vol Dist'!$I$6,IF(LEFT(G52,1)="t",'Trachyte Vol Dist'!$I$6,""))) -> 6.1 | J52: =IF(OR(LEFT(G52,1)="b",LEFT(G52,1)="h")=TRUE,'Basalt & Hawaite Vol Dist'!$J$6,IF(OR(LEFT(G52,1)="m",LEFT(G52,1)="o")=TRUE,'Mug & Ben Vol Dist'!$J$6,IF(LEFT(G52,1)="t",'Trachyte Vol Dist'!$J$6,""))) -> 8.9 | K52: =IF(OR(LEFT(G52,1)="b",LEFT(G52,1)="h")=TRUE,'Basalt & Hawaite Vol Dist'!$K$6,IF(OR(LEFT(G52,1)="m",LEFT(G52,1)="o")=TRUE,'Mug & Ben Vol Dist'!$K$6,IF(LEFT(G52,1)="t",'Trachyte Vol Dist'!$K$6,""))) -> 0.028 | L52: =IF(OR(LEFT(G52,1)="b",LEFT(G52,1)="h")=TRUE,'Basalt & Hawaite Vol Dist'!$B$42,IF(OR(LEFT(G52,1)="m",LEFT(G52,1)="o")=TRUE,'Mug & Ben Vol Dist'!$B$42,IF(LEFT(G52,1)="t",'Trachyte Vol Dist'!$B$42,""))) -> 0.5551036823
A53: 52 | B53: 0.6997322884 | C53: 1.086967402 | D53: =SUM($C53:$C$237) -> 65.01652848 | E53: =IFERROR(VLOOKUP(G53,'Summary of age data'!$A$3:$D$243,2,FALSE),"") -> 154.8 | F53: =IFERROR(VLOOKUP(G53,'Summary of age data'!$A$3:$D$243,3,FALSE),"") -> 5.5 | G53: hlh | H53: =IF(OR(LEFT(G53,1)="b",LEFT(G53,1)="h")=TRUE,'Basalt & Hawaite Vol Dist'!$H$6,IF(OR(LEFT(G53,1)="m",LEFT(G53,1)="o")=TRUE,'Mug & Ben Vol Dist'!$H$6,IF(LEFT(G53,1)="t",'Trachyte Vol Dist'!$H$6,""))) -> 1.13 | I53: =IF(OR(LEFT(G53,1)="b",LEFT(G53,1)="h")=TRUE,'Basalt & Hawaite Vol Dist'!$I$6,IF(OR(LEFT(G53,1)="m",LEFT(G53,1)="o")=TRUE,'Mug & Ben Vol Dist'!$I$6,IF(LEFT(G53,1)="t",'Trachyte Vol Dist'!$I$6,""))) -> 0.34 | J53: =IF(OR(LEFT(G53,1)="b",LEFT(G53,1)="h")=TRUE,'Basalt & Hawaite Vol Dist'!$J$6,IF(OR(LEFT(G53,1)="m",LEFT(G53,1)="o")=TRUE,'Mug & Ben Vol Dist'!$J$6,IF(LEFT(G53,1)="t",'Trachyte Vol Dist'!$J$6,""))) -> 1.13 | K53: =IF(OR(LEFT(G53,1)="b",LEFT(G53,1)="h")=TRUE,'Basalt & Hawaite Vol Dist'!$K$6,IF(OR(LEFT(G53,1)="m",LEFT(G53,1)="o")=TRUE,'Mug & Ben Vol Dist'!$K$6,IF(LEFT(G53,1)="t",'Trachyte Vol Dist'!$K$6,""))) -> 0.34 | L53: =IF(OR(LEFT(G53,1)="b",LEFT(G53,1)="h")=TRUE,'Basalt & Hawaite Vol Dist'!$B$42,IF(OR(LEFT(G53,1)="m",LEFT(G53,1)="o")=TRUE,'Mug & Ben Vol Dist'!$B$42,IF(LEFT(G53,1)="t",'Trachyte Vol Dist'!$B$42,""))) -> 0.999
A54: 53 | B54: 0.2573397609 | C54: =IF(B54<=L54,_xlfn.GAMMA.INV(B54,H54,I54),_xlfn.GAMMA.INV(B54,J54,K54)) -> 0.1281218227 | D54: =SUM($C54:$C$237) -> 63.92956108 | E54: =IFERROR(VLOOKUP(G54,'Summary of age data'!$A$3:$D$243,2,FALSE),"") -> 162.9 | F54: =IFERROR(VLOOKUP(G54,'Summary of age data'!$A$3:$D$243,3,FALSE),"") -> 11.1 | G54: bna | H54: =IF(OR(LEFT(G54,1)="b",LEFT(G54,1)="h")=TRUE,'Basalt & Hawaite Vol Dist'!$H$6,IF(OR(LEFT(G54,1)="m",LEFT(G54,1)="o")=TRUE,'Mug & Ben Vol Dist'!$H$6,IF(LEFT(G54,1)="t",'Trachyte Vol Dist'!$H$6,""))) -> 1.13 | I54: =IF(OR(LEFT(G54,1)="b",LEFT(G54,1)="h")=TRUE,'Basalt & Hawaite Vol Dist'!$I$6,IF(OR(LEFT(G54,1)="m",LEFT(G54,1)="o")=TRUE,'Mug & Ben Vol Dist'!$I$6,IF(LEFT(G54,1)="t",'Trachyte Vol Dist'!$I$6,""))) -> 0.34 | J54: =IF(OR(LEFT(G54,1)="b",LEFT(G54,1)="h")=TRUE,'Basalt & Hawaite Vol Dist'!$J$6,IF(OR(LEFT(G54,1)="m",LEFT(G54,1)="o")=TRUE,'Mug & Ben Vol Dist'!$J$6,IF(LEFT(G54,1)="t",'Trachyte Vol Dist'!$J$6,""))) -> 1.13 | K54: =IF(OR(LEFT(G54,1)="b",LEFT(G54,1)="h")=TRUE,'Basalt & Hawaite Vol Dist'!$K$6,IF(OR(LEFT(G54,1)="m",LEFT(G54,1)="o")=TRUE,'Mug & Ben Vol Dist'!$K$6,IF(LEFT(G54,1)="t",'Trachyte Vol Dist'!$K$6,""))) -> 0.34 | L54: =IF(OR(LEFT(G54,1)="b",LEFT(G54,1)="h")=TRUE,'Basalt & Hawaite Vol Dist'!$B$42,IF(OR(LEFT(G54,1)="m",LEFT(G54,1)="o")=TRUE,'Mug & Ben Vol Dist'!$B$42,IF(LEFT(G54,1)="t",'Trachyte Vol Dist'!$B$42,""))) -> 0.999
A55: 54 | B55: 0.8388310256 | C55: 0.004492782565 | D55: =SUM($C55:$C$237) -> 63.80143926 | E55: =IFERROR(VLOOKUP(G55,'Summary of age data'!$A$3:$D$243,2,FALSE),"") -> 175.2 | F55: =IFERROR(VLOOKUP(G55,'Summary of age data'!$A$3:$D$243,3,FALSE),"") -> 7.5 | G55: oqa | H55: =IF(OR(LEFT(G55,1)="b",LEFT(G55,1)="h")=TRUE,'Basalt & Hawaite Vol Dist'!$H$6,IF(OR(LEFT(G55,1)="m",LEFT(G55,1)="o")=TRUE,'Mug & Ben Vol Dist'!$H$6,IF(LEFT(G55,1)="t",'Trachyte Vol Dist'!$H$6,""))) -> 0.21 | I55: =IF(OR(LEFT(G55,1)="b",LEFT(G55,1)="h")=TRUE,'Basalt & Hawaite Vol Dist'!$I$6,IF(OR(LEFT(G55,1)="m",LEFT(G55,1)="o")=TRUE,'Mug & Ben Vol Dist'!$I$6,IF(LEFT(G55,1)="t",'Trachyte Vol Dist'!$I$6,""))) -> 6.1 | J55: =IF(OR(LEFT(G55,1)="b",LEFT(G55,1)="h")=TRUE,'Basalt & Hawaite Vol Dist'!$J$6,IF(OR(LEFT(G55,1)="m",LEFT(G55,1)="o")=TRUE,'Mug & Ben Vol Dist'!$J$6,IF(LEFT(G55,1)="t",'Trachyte Vol Dist'!$J$6,""))) -> 8.9 | K55: =IF(OR(LEFT(G55,1)="b",LEFT(G55,1)="h")=TRUE,'Basalt & Hawaite Vol Dist'!$K$6,IF(OR(LEFT(G55,1)="m",LEFT(G55,1)="o")=TRUE,'Mug & Ben Vol Dist'!$K$6,IF(LEFT(G55,1)="t",'Trachyte Vol Dist'!$K$6,""))) -> 0.028 | L55: =IF(OR(LEFT(G55,1)="b",LEFT(G55,1)="h")=TRUE,'Basalt & Hawaite Vol Dist'!$B$42,IF(OR(LEFT(G55,1)="m",LEFT(G55,1)="o")=TRUE,'Mug & Ben Vol Dist'!$B$42,IF(LEFT(G55,1)="t",'Trachyte Vol Dist'!$B$42,""))) -> 0.5551036823
A56: 55 | B56: 0.4121247253 | C56: =IF(B56<=L56,_xlfn.GAMMA.INV(B56,H56,I56),_xlfn.GAMMA.INV(B56,J56,K56)) -> 0.2179512007 | D56: =SUM($C56:$C$237) -> 63.79694647 | E56: =IFERROR(VLOOKUP(G56,'Summary of age data'!$A$3:$D$243,2,FALSE),"") -> 179.5 | F56: =IFERROR(VLOOKUP(G56,'Summary of age data'!$A$3:$D$243,3,FALSE),"") -> 52.6 | G56: bmz | H56: =IF(OR(LEFT(G56,1)="b",LEFT(G56,1)="h")=TRUE,'Basalt & Hawaite Vol Dist'!$H$6,IF(OR(LEFT(G56,1)="m",LEFT(G56,1)="o")=TRUE,'Mug & Ben Vol Dist'!$H$6,IF(LEFT(G56,1)="t",'Trachyte Vol Dist'!$H$6,""))) -> 1.13 | I56: =IF(OR(LEFT(G56,1)="b",LEFT(G56,1)="h")=TRUE,'Basalt & Hawaite Vol Dist'!$I$6,IF(OR(LEFT(G56,1)="m",LEFT(G56,1)="o")=TRUE,'Mug & Ben Vol Dist'!$I$6,IF(LEFT(G56,1)="t",'Trachyte Vol Dist'!$I$6,""))) -> 0.34 | J56: =IF(OR(LEFT(G56,1)="b",LEFT(G56,1)="h")=TRUE,'Basalt & Hawaite Vol Dist'!$J$6,IF(OR(LEFT(G56,1)="m",LEFT(G56,1)="o")=TRUE,'Mug & Ben Vol Dist'!$J$6,IF(LEFT(G56,1)="t",'Trachyte Vol Dist'!$J$6,""))) -> 1.13 | K56: =IF(OR(LEFT(G56,1)="b",LEFT(G56,1)="h")=TRUE,'Basalt & Hawaite Vol Dist'!$K$6,IF(OR(LEFT(G56,1)="m",LEFT(G56,1)="o")=TRUE,'Mug & Ben Vol Dist'!$K$6,IF(LEFT(G56,1)="t",'Trachyte Vol Dist'!$K$6,""))) -> 0.34 | L56: =IF(OR(LEFT(G56,1)="b",LEFT(G56,1)="h")=TRUE,'Basalt & Hawaite Vol Dist'!$B$42,IF(OR(LEFT(G56,1)="m",LEFT(G56,1)="o")=TRUE,'Mug & Ben Vol Dist'!$B$42,IF(LEFT(G56,1)="t",'Trachyte Vol Dist'!$B$42,""))) -> 0.999
A57: 56 | B57: 0.6905656263 | C57: 0.454634471 | D57: =SUM($C57:$C$237) -> 63.57899527 | E57: =IFERROR(VLOOKUP(G57,'Summary of age data'!$A$3:$D$243,2,FALSE),"") -> 179.5 | F57: =IFERROR(VLOOKUP(G57,'Summary of age data'!$A$3:$D$243,3,FALSE),"") -> 52.6 | G57: bra | H57: =IF(OR(LEFT(G57,1)="b",LEFT(G57,1)="h")=TRUE,'Basalt & Hawaite Vol Dist'!$H$6,IF(OR(LEFT(G57,1)="m",LEFT(G57,1)="o")=TRUE,'Mug & Ben Vol Dist'!$H$6,IF(LEFT(G57,1)="t",'Trachyte Vol Dist'!$H$6,""))) -> 1.13 | I57: =IF(OR(LEFT(G57,1)="b",LEFT(G57,1)="h")=TRUE,'Basalt & Hawaite Vol Dist'!$I$6,IF(OR(LEFT(G57,1)="m",LEFT(G57,1)="o")=TRUE,'Mug & Ben Vol Dist'!$I$6,IF(LEFT(G57,1)="t",'Trachyte Vol Dist'!$I$6,""))) -> 0.34 | J57: =IF(OR(LEFT(G57,1)="b",LEFT(G57,1)="h")=TRUE,'Basalt & Hawaite Vol Dist'!$J$6,IF(OR(LEFT(G57,1)="m",LEFT(G57,1)="o")=TRUE,'Mug & Ben Vol Dist'!$J$6,IF(LEFT(G57,1)="t",'Trachyte Vol Dist'!$J$6,""))) -> 1.13 | K57: =IF(OR(LEFT(G57,1)="b",LEFT(G57,1)="h")=TRUE,'Basalt & Hawaite Vol Dist'!$K$6,IF(OR(LEFT(G57,1)="m",LEFT(G57,1)="o")=TRUE,'Mug & Ben Vol Dist'!$K$6,IF(LEFT(G57,1)="t",'Trachyte Vol Dist'!$K$6,""))) -> 0.34 | L57: =IF(OR(LEFT(G57,1)="b",LEFT(G57,1)="h")=TRUE,'Basalt & Hawaite Vol Dist'!$B$42,IF(OR(LEFT(G57,1)="m",LEFT(G57,1)="o")=TRUE,'Mug & Ben Vol Dist'!$B$42,IF(LEFT(G57,1)="t",'Trachyte Vol Dist'!$B$42,""))) -> 0.999
A58: 57 | B58: 0.7689560785 | C58: 0.560060603 | D58: =SUM($C58:$C$237) -> 63.1243608 | E58: =IFERROR(VLOOKUP(G58,'Summary of age data'!$A$3:$D$243,2,FALSE),"") -> 181.7 | F58: =IFERROR(VLOOKUP(G58,'Summary of age data'!$A$3:$D$243,3,FALSE),"") -> 50.3 | G58: bru | H58: =IF(OR(LEFT(G58,1)="b",LEFT(G58,1)="h")=TRUE,'Basalt & Hawaite Vol Dist'!$H$6,IF(OR(LEFT(G58,1)="m",LEFT(G58,1)="o")=TRUE,'Mug & Ben Vol Dist'!$H$6,IF(LEFT(G58,1)="t",'Trachyte Vol Dist'!$H$6,""))) -> 1.13 | I58: =IF(OR(LEFT(G58,1)="b",LEFT(G58,1)="h")=TRUE,'Basalt & Hawaite Vol Dist'!$I$6,IF(OR(LEFT(G58,1)="m",LEFT(G58,1)="o")=TRUE,'Mug & Ben Vol Dist'!$I$6,IF(LEFT(G58,1)="t",'Trachyte Vol Dist'!$I$6,""))) -> 0.34 | J58: =IF(OR(LEFT(G58,1)="b",LEFT(G58,1)="h")=TRUE,'Basalt & Hawaite Vol Dist'!$J$6,IF(OR(LEFT(G58,1)="m",LEFT(G58,1)="o")=TRUE,'Mug & Ben Vol Dist'!$J$6,IF(LEFT(G58,1)="t",'Trachyte Vol Dist'!$J$6,""))) -> 1.13 | K58: =IF(OR(LEFT(G58,1)="b",LEFT(G58,1)="h")=TRUE,'Basalt & Hawaite Vol Dist'!$K$6,IF(OR(LEFT(G58,1)="m",LEFT(G58,1)="o")=TRUE,'Mug & Ben Vol Dist'!$K$6,IF(LEFT(G58,1)="t",'Trachyte Vol Dist'!$K$6,""))) -> 0.34 | L58: =IF(OR(LEFT(G58,1)="b",LEFT(G58,1)="h")=TRUE,'Basalt & Hawaite Vol Dist'!$B$42,IF(OR(LEFT(G58,1)="m",LEFT(G58,1)="o")=TRUE,'Mug & Ben Vol Dist'!$B$42,IF(LEFT(G58,1)="t",'Trachyte Vol Dist'!$B$42,""))) -> 0.999
A59: 58 | B59: 0.970581358 | C59: 1.288475218 | D59: =SUM($C59:$C$237) -> 62.5643002 | E59: =IFERROR(VLOOKUP(G59,'Summary of age data'!$A$3:$D$243,2,FALSE),"") -> 185.9 | F59: =IFERROR(VLOOKUP(G59,'Summary of age data'!$A$3:$D$243,3,FALSE),"") -> 39.1 | G59: buqh | H59: =IF(OR(LEFT(G59,1)="b",LEFT(G59,1)="h")=TRUE,'Basalt & Hawaite Vol Dist'!$H$6,IF(OR(LEFT(G59,1)="m",LEFT(G59,1)="o")=TRUE,'Mug & Ben Vol Dist'!$H$6,IF(LEFT(G59,1)="t",'Trachyte Vol Dist'!$H$6,""))) -> 1.13 | I59: =IF(OR(LEFT(G59,1)="b",LEFT(G59,1)="h")=TRUE,'Basalt & Hawaite Vol Dist'!$I$6,IF(OR(LEFT(G59,1)="m",LEFT(G59,1)="o")=TRUE,'Mug & Ben Vol Dist'!$I$6,IF(LEFT(G59,1)="t",'Trachyte Vol Dist'!$I$6,""))) -> 0.34 | J59: =IF(OR(LEFT(G59,1)="b",LEFT(G59,1)="h")=TRUE,'Basalt & Hawaite Vol Dist'!$J$6,IF(OR(LEFT(G59,1)="m",LEFT(G59,1)="o")=TRUE,'Mug & Ben Vol Dist'!$J$6,IF(LEFT(G59,1)="t",'Trachyte Vol Dist'!$J$6,""))) -> 1.13 | K59: =IF(OR(LEFT(G59,1)="b",LEFT(G59,1)="h")=TRUE,'Basalt & Hawaite Vol Dist'!$K$6,IF(OR(LEFT(G59,1)="m",LEFT(G59,1)="o")=TRUE,'Mug & Ben Vol Dist'!$K$6,IF(LEFT(G59,1)="t",'Trachyte Vol Dist'!$K$6,""))) -> 0.34 | L59: =IF(OR(LEFT(G59,1)="b",LEFT(G59,1)="h")=TRUE,'Basalt & Hawaite Vol Dist'!$B$42,IF(OR(LEFT(G59,1)="m",LEFT(G59,1)="o")=TRUE,'Mug & Ben Vol Dist'!$B$42,IF(LEFT(G59,1)="t",'Trachyte Vol Dist'!$B$42,""))) -> 0.999
A60: 59 | B60: 0.8975815374 | C60: 0.8499034331 | D60: =SUM($C60:$C$237) -> 61.27582498 | E60: =IFERROR(VLOOKUP(G60,'Summary of age data'!$A$3:$D$243,2,FALSE),"") -> 185.9 | F60: =IFERROR(VLOOKUP(G60,'Summary of age data'!$A$3:$D$243,3,FALSE),"") -> 39.1 | G60: blqh | H60: =IF(OR(LEFT(G60,1)="b",LEFT(G60,1)="h")=TRUE,'Basalt & Hawaite Vol Dist'!$H$6,IF(OR(LEFT(G60,1)="m",LEFT(G60,1)="o")=TRUE,'Mug & Ben Vol Dist'!$H$6,IF(LEFT(G60,1)="t",'Trachyte Vol Dist'!$H$6,""))) -> 1.13 | I60: =IF(OR(LEFT(G60,1)="b",LEFT(G60,1)="h")=TRUE,'Basalt & Hawaite Vol Dist'!$I$6,IF(OR(LEFT(G60,1)="m",LEFT(G60,1)="o")=TRUE,'Mug & Ben Vol Dist'!$I$6,IF(LEFT(G60,1)="t",'Trachyte Vol Dist'!$I$6,""))) -> 0.34 | J60: =IF(OR(LEFT(G60,1)="b",LEFT(G60,1)="h")=TRUE,'Basalt & Hawaite Vol Dist'!$J$6,IF(OR(LEFT(G60,1)="m",LEFT(G60,1)="o")=TRUE,'Mug & Ben Vol Dist'!$J$6,IF(LEFT(G60,1)="t",'Trachyte Vol Dist'!$J$6,""))) -> 1.13 | K60: =IF(OR(LEFT(G60,1)="b",LEFT(G60,1)="h")=TRUE,'Basalt & Hawaite Vol Dist'!$K$6,IF(OR(LEFT(G60,1)="m",LEFT(G60,1)="o")=TRUE,'Mug & Ben Vol Dist'!$K$6,IF(LEFT(G60,1)="t",'Trachyte Vol Dist'!$K$6,""))) -> 0.34 | L60: =IF(OR(LEFT(G60,1)="b",LEFT(G60,1)="h")=TRUE,'Basalt & Hawaite Vol Dist'!$B$42,IF(OR(LEFT(G60,1)="m",LEFT(G60,1)="o")=TRUE,'Mug & Ben Vol Dist'!$B$42,IF(LEFT(G60,1)="t",'Trachyte Vol Dist'!$B$42,""))) -> 0.999
A61: 60 | B61: 0.8665067922 | C61: 0.7559573396 | D61: =SUM($C61:$C$237) -> 60.42592155 | E61: =IFERROR(VLOOKUP(G61,'Summary of age data'!$A$3:$D$243,2,FALSE),"") -> 188.3 | F61: =IFERROR(VLOOKUP(G61,'Summary of age data'!$A$3:$D$243,3,FALSE),"") -> 4.2 | G61: bjs | H61: =IF(OR(LEFT(G61,1)="b",LEFT(G61,1)="h")=TRUE,'Basalt & Hawaite Vol Dist'!$H$6,IF(OR(LEFT(G61,1)="m",LEFT(G61,1)="o")=TRUE,'Mug & Ben Vol Dist'!$H$6,IF(LEFT(G61,1)="t",'Trachyte Vol Dist'!$H$6,""))) -> 1.13 | I61: =IF(OR(LEFT(G61,1)="b",LEFT(G61,1)="h")=TRUE,'Basalt & Hawaite Vol Dist'!$I$6,IF(OR(LEFT(G61,1)="m",LEFT(G61,1)="o")=TRUE,'Mug & Ben Vol Dist'!$I$6,IF(LEFT(G61,1)="t",'Trachyte Vol Dist'!$I$6,""))) -> 0.34 | J61: =IF(OR(LEFT(G61,1)="b",LEFT(G61,1)="h")=TRUE,'Basalt & Hawaite Vol Dist'!$J$6,IF(OR(LEFT(G61,1)="m",LEFT(G61,1)="o")=TRUE,'Mug & Ben Vol Dist'!$J$6,IF(LEFT(G61,1)="t",'Trachyte Vol Dist'!$J$6,""))) -> 1.13 | K61: =IF(OR(LEFT(G61,1)="b",LEFT(G61,1)="h")=TRUE,'Basalt & Hawaite Vol Dist'!$K$6,IF(OR(LEFT(G61,1)="m",LEFT(G61,1)="o")=TRUE,'Mug & Ben Vol Dist'!$K$6,IF(LEFT(G61,1)="t",'Trachyte Vol Dist'!$K$6,""))) -> 0.34 | L61: =IF(OR(LEFT(G61,1)="b",LEFT(G61,1)="h")=TRUE,'Basalt & Hawaite Vol Dist'!$B$42,IF(OR(LEFT(G61,1)="m",LEFT(G61,1)="o")=TRUE,'Mug & Ben Vol Dist'!$B$42,IF(LEFT(G61,1)="t",'Trachyte Vol Dist'!$B$42,""))) -> 0.999
A62: 61 | B62: 0.1230435539 | C62: 0.06102186303 | D62: =SUM($C62:$C$237) -> 59.66996421 | E62: =IFERROR(VLOOKUP(G62,'Summary of age data'!$A$3:$D$243,2,FALSE),"") -> 191.5 | F62: =IFERROR(VLOOKUP(G62,'Summary of age data'!$A$3:$D$243,3,FALSE),"") -> 4.2 | G62: bsh | H62: =IF(OR(LEFT(G62,1)="b",LEFT(G62,1)="h")=TRUE,'Basalt & Hawaite Vol Dist'!$H$6,IF(OR(LEFT(G62,1)="m",LEFT(G62,1)="o")=TRUE,'Mug & Ben Vol Dist'!$H$6,IF(LEFT(G62,1)="t",'Trachyte Vol Dist'!$H$6,""))) -> 1.13 | I62: =IF(OR(LEFT(G62,1)="b",LEFT(G62,1)="h")=TRUE,'Basalt & Hawaite Vol Dist'!$I$6,IF(OR(LEFT(G62,1)="m",LEFT(G62,1)="o")=TRUE,'Mug & Ben Vol Dist'!$I$6,IF(LEFT(G62,1)="t",'Trachyte Vol Dist'!$I$6,""))) -> 0.34 | J62: =IF(OR(LEFT(G62,1)="b",LEFT(G62,1)="h")=TRUE,'Basalt & Hawaite Vol Dist'!$J$6,IF(OR(LEFT(G62,1)="m",LEFT(G62,1)="o")=TRUE,'Mug & Ben Vol Dist'!$J$6,IF(LEFT(G62,1)="t",'Trachyte Vol Dist'!$J$6,""))) -> 1.13 | K62: =IF(OR(LEFT(G62,1)="b",LEFT(G62,1)="h")=TRUE,'Basalt & Hawaite Vol Dist'!$K$6,IF(OR(LEFT(G62,1)="m",LEFT(G62,1)="o")=TRUE,'Mug & Ben Vol Dist'!$K$6,IF(LEFT(G62,1)="t",'Trachyte Vol Dist'!$K$6,""))) -> 0.34 | L62: =IF(OR(LEFT(G62,1)="b",LEFT(G62,1)="h")=TRUE,'Basalt & Hawaite Vol Dist'!$B$42,IF(OR(LEFT(G62,1)="m",LEFT(G62,1)="o")=TRUE,'Mug & Ben Vol Dist'!$B$42,IF(LEFT(G62,1)="t",'Trachyte Vol Dist'!$B$42,""))) -> 0.999
A63: 62 | B63: 0.5288517196 | C63: 0.1981782549 | D63: =SUM($C63:$C$237) -> 59.60894234 | E63: =IFERROR(VLOOKUP(G63,'Summary of age data'!$A$3:$D$243,2,FALSE),"") -> 195.9 | F63: =IFERROR(VLOOKUP(G63,'Summary of age data'!$A$3:$D$243,3,FALSE),"") -> 1.3 | G63: mz2 | H63: =IF(OR(LEFT(G63,1)="b",LEFT(G63,1)="h")=TRUE,'Basalt & Hawaite Vol Dist'!$H$6,IF(OR(LEFT(G63,1)="m",LEFT(G63,1)="o")=TRUE,'Mug & Ben Vol Dist'!$H$6,IF(LEFT(G63,1)="t",'Trachyte Vol Dist'!$H$6,""))) -> 0.21 | I63: =IF(OR(LEFT(G63,1)="b",LEFT(G63,1)="h")=TRUE,'Basalt & Hawaite Vol Dist'!$I$6,IF(OR(LEFT(G63,1)="m",LEFT(G63,1)="o")=TRUE,'Mug & Ben Vol Dist'!$I$6,IF(LEFT(G63,1)="t",'Trachyte Vol Dist'!$I$6,""))) -> 6.1 | J63: =IF(OR(LEFT(G63,1)="b",LEFT(G63,1)="h")=TRUE,'Basalt & Hawaite Vol Dist'!$J$6,IF(OR(LEFT(G63,1)="m",LEFT(G63,1)="o")=TRUE,'Mug & Ben Vol Dist'!$J$6,IF(LEFT(G63,1)="t",'Trachyte Vol Dist'!$J$6,""))) -> 8.9 | K63: =IF(OR(LEFT(G63,1)="b",LEFT(G63,1)="h")=TRUE,'Basalt & Hawaite Vol Dist'!$K$6,IF(OR(LEFT(G63,1)="m",LEFT(G63,1)="o")=TRUE,'Mug & Ben Vol Dist'!$K$6,IF(LEFT(G63,1)="t",'Trachyte Vol Dist'!$K$6,""))) -> 0.028 | L63: =IF(OR(LEFT(G63,1)="b",LEFT(G63,1)="h")=TRUE,'Basalt & Hawaite Vol Dist'!$B$42,IF(OR(LEFT(G63,1)="m",LEFT(G63,1)="o")=TRUE,'Mug & Ben Vol Dist'!$B$42,IF(LEFT(G63,1)="t",'Trachyte Vol Dist'!$B$42,""))) -> 0.5551036823
A64: 63 | B64: 0.9193324256 | C64: 0.934254942 | D64: =SUM($C64:$C$237) -> 59.41076409 | E64: =IFERROR(VLOOKUP(G64,'Summary of age data'!$A$3:$D$243,2,FALSE),"") -> 196.9 | F64: =IFERROR(VLOOKUP(G64,'Summary of age data'!$A$3:$D$243,3,FALSE),"") -> 10.3 | G64: blqa | H64: =IF(OR(LEFT(G64,1)="b",LEFT(G64,1)="h")=TRUE,'Basalt & Hawaite Vol Dist'!$H$6,IF(OR(LEFT(G64,1)="m",LEFT(G64,1)="o")=TRUE,'Mug & Ben Vol Dist'!$H$6,IF(LEFT(G64,1)="t",'Trachyte Vol Dist'!$H$6,""))) -> 1.13 | I64: =IF(OR(LEFT(G64,1)="b",LEFT(G64,1)="h")=TRUE,'Basalt & Hawaite Vol Dist'!$I$6,IF(OR(LEFT(G64,1)="m",LEFT(G64,1)="o")=TRUE,'Mug & Ben Vol Dist'!$I$6,IF(LEFT(G64,1)="t",'Trachyte Vol Dist'!$I$6,""))) -> 0.34 | J64: =IF(OR(LEFT(G64,1)="b",LEFT(G64,1)="h")=TRUE,'Basalt & Hawaite Vol Dist'!$J$6,IF(OR(LEFT(G64,1)="m",LEFT(G64,1)="o")=TRUE,'Mug & Ben Vol Dist'!$J$6,IF(LEFT(G64,1)="t",'Trachyte Vol Dist'!$J$6,""))) -> 1.13 | K64: =IF(OR(LEFT(G64,1)="b",LEFT(G64,1)="h")=TRUE,'Basalt & Hawaite Vol Dist'!$K$6,IF(OR(LEFT(G64,1)="m",LEFT(G64,1)="o")=TRUE,'Mug & Ben Vol Dist'!$K$6,IF(LEFT(G64,1)="t",'Trachyte Vol Dist'!$K$6,""))) -> 0.34 | L64: =IF(OR(LEFT(G64,1)="b",LEFT(G64,1)="h")=TRUE,'Basalt & Hawaite Vol Dist'!$B$42,IF(OR(LEFT(G64,1)="m",LEFT(G64,1)="o")=TRUE,'Mug & Ben Vol Dist'!$B$42,IF(LEFT(G64,1)="t",'Trachyte Vol Dist'!$B$42,""))) -> 0.999
A65: 64 | B65: 0.7548927658 | C65: 0.5388122724 | D65: =SUM($C65:$C$237) -> 58.47650915 | E65: =IFERROR(VLOOKUP(G65,'Summary of age data'!$A$3:$D$243,2,FALSE),"") -> 199.4 | F65: =IFERROR(VLOOKUP(G65,'Summary of age data'!$A$3:$D$243,3,FALSE),"") -> 59.7 | G65: bam2 | H65: =IF(OR(LEFT(G65,1)="b",LEFT(G65,1)="h")=TRUE,'Basalt & Hawaite Vol Dist'!$H$6,IF(OR(LEFT(G65,1)="m",LEFT(G65,1)="o")=TRUE,'Mug & Ben Vol Dist'!$H$6,IF(LEFT(G65,1)="t",'Trachyte Vol Dist'!$H$6,""))) -> 1.13 | I65: =IF(OR(LEFT(G65,1)="b",LEFT(G65,1)="h")=TRUE,'Basalt & Hawaite Vol Dist'!$I$6,IF(OR(LEFT(G65,1)="m",LEFT(G65,1)="o")=TRUE,'Mug & Ben Vol Dist'!$I$6,IF(LEFT(G65,1)="t",'Trachyte Vol Dist'!$I$6,""))) -> 0.34 | J65: =IF(OR(LEFT(G65,1)="b",LEFT(G65,1)="h")=TRUE,'Basalt & Hawaite Vol Dist'!$J$6,IF(OR(LEFT(G65,1)="m",LEFT(G65,1)="o")=TRUE,'Mug & Ben Vol Dist'!$J$6,IF(LEFT(G65,1)="t",'Trachyte Vol Dist'!$J$6,""))) -> 1.13 | K65: =IF(OR(LEFT(G65,1)="b",LEFT(G65,1)="h")=TRUE,'Basalt & Hawaite Vol Dist'!$K$6,IF(OR(LEFT(G65,1)="m",LEFT(G65,1)="o")=TRUE,'Mug & Ben Vol Dist'!$K$6,IF(LEFT(G65,1)="t",'Trachyte Vol Dist'!$K$6,""))) -> 0.34 | L65: =IF(OR(LEFT(G65,1)="b",LEFT(G65,1)="h")=TRUE,'Basalt & Hawaite Vol Dist'!$B$42,IF(OR(LEFT(G65,1)="m",LEFT(G65,1)="o")=TRUE,'Mug & Ben Vol Dist'!$B$42,IF(LEFT(G65,1)="t",'Trachyte Vol Dist'!$B$42,""))) -> 0.999
A66: 65 | B66: 0.4551463736 | C66: 0.246553152 | D66: =SUM($C66:$C$237) -> 57.93769688 | E66: =IFERROR(VLOOKUP(G66,'Summary of age data'!$A$3:$D$243,2,FALSE),"") -> 199.4 | F66: =IFERROR(VLOOKUP(G66,'Summary of age data'!$A$3:$D$243,3,FALSE),"") -> 59.7 | G66: bam3 | H66: =IF(OR(LEFT(G66,1)="b",LEFT(G66,1)="h")=TRUE,'Basalt & Hawaite Vol Dist'!$H$6,IF(OR(LEFT(G66,1)="m",LEFT(G66,1)="o")=TRUE,'Mug & Ben Vol Dist'!$H$6,IF(LEFT(G66,1)="t",'Trachyte Vol Dist'!$H$6,""))) -> 1.13 | I66: =IF(OR(LEFT(G66,1)="b",LEFT(G66,1)="h")=TRUE,'Basalt & Hawaite Vol Dist'!$I$6,IF(OR(LEFT(G66,1)="m",LEFT(G66,1)="o")=TRUE,'Mug & Ben Vol Dist'!$I$6,IF(LEFT(G66,1)="t",'Trachyte Vol Dist'!$I$6,""))) -> 0.34 | J66: =IF(OR(LEFT(G66,1)="b",LEFT(G66,1)="h")=TRUE,'Basalt & Hawaite Vol Dist'!$J$6,IF(OR(LEFT(G66,1)="m",LEFT(G66,1)="o")=TRUE,'Mug & Ben Vol Dist'!$J$6,IF(LEFT(G66,1)="t",'Trachyte Vol Dist'!$J$6,""))) -> 1.13 | K66: =IF(OR(LEFT(G66,1)="b",LEFT(G66,1)="h")=TRUE,'Basalt & Hawaite Vol Dist'!$K$6,IF(OR(LEFT(G66,1)="m",LEFT(G66,1)="o")=TRUE,'Mug & Ben Vol Dist'!$K$6,IF(LEFT(G66,1)="t",'Trachyte Vol Dist'!$K$6,""))) -> 0.34 | L66: =IF(OR(LEFT(G66,1)="b",LEFT(G66,1)="h")=TRUE,'Basalt & Hawaite Vol Dist'!$B$42,IF(OR(LEFT(G66,1)="m",LEFT(G66,1)="o")=TRUE,'Mug & Ben Vol Dist'!$B$42,IF(LEFT(G66,1)="t",'Trachyte Vol Dist'!$B$42,""))) -> 0.999
A67: 66 | B67: =RAND() -> 0.2669121864 | C67: 0.1332092014 | D67: =SUM($C67:$C$237) -> 57.69114372 | E67: =IFERROR(VLOOKUP(G67,'Summary of age data'!$A$3:$D$243,2,FALSE),"") -> 199.4 | F67: =IFERROR(VLOOKUP(G67,'Summary of age data'!$A$3:$D$243,3,FALSE),"") -> 59.7 | G67: bam4 | H67: =IF(OR(LEFT(G67,1)="b",LEFT(G67,1)="h")=TRUE,'Basalt & Hawaite Vol Dist'!$H$6,IF(OR(LEFT(G67,1)="m",LEFT(G67,1)="o")=TRUE,'Mug & Ben Vol Dist'!$H$6,IF(LEFT(G67,1)="t",'Trachyte Vol Dist'!$H$6,""))) -> 1.13 | I67: =IF(OR(LEFT(G67,1)="b",LEFT(G67,1)="h")=TRUE,'Basalt & Hawaite Vol Dist'!$I$6,IF(OR(LEFT(G67,1)="m",LEFT(G67,1)="o")=TRUE,'Mug & Ben Vol Dist'!$I$6,IF(LEFT(G67,1)="t",'Trachyte Vol Dist'!$I$6,""))) -> 0.34 | J67: =IF(OR(LEFT(G67,1)="b",LEFT(G67,1)="h")=TRUE,'Basalt & Hawaite Vol Dist'!$J$6,IF(OR(LEFT(G67,1)="m",LEFT(G67,1)="o")=TRUE,'Mug & Ben Vol Dist'!$J$6,IF(LEFT(G67,1)="t",'Trachyte Vol Dist'!$J$6,""))) -> 1.13 | K67: =IF(OR(LEFT(G67,1)="b",LEFT(G67,1)="h")=TRUE,'Basalt & Hawaite Vol Dist'!$K$6,IF(OR(LEFT(G67,1)="m",LEFT(G67,1)="o")=TRUE,'Mug & Ben Vol Dist'!$K$6,IF(LEFT(G67,1)="t",'Trachyte Vol Dist'!$K$6,""))) -> 0.34 | L67: =IF(OR(LEFT(G67,1)="b",LEFT(G67,1)="h")=TRUE,'Basalt & Hawaite Vol Dist'!$B$42,IF(OR(LEFT(G67,1)="m",LEFT(G67,1)="o")=TRUE,'Mug & Ben Vol Dist'!$B$42,IF(LEFT(G67,1)="t",'Trachyte Vol Dist'!$B$42,""))) -> 0.999
A68: 67 | B68: 0.3641845228 | C68: 0.03280244084 | D68: =SUM($C68:$C$237) -> 57.55793452 | E68: =IFERROR(VLOOKUP(G68,'Summary of age data'!$A$3:$D$243,2,FALSE),"") -> 200 | F68: =IFERROR(VLOOKUP(G68,'Summary of age data'!$A$3:$D$243,3,FALSE),"") -> 0 | G68: ort | H68: =IF(OR(LEFT(G68,1)="b",LEFT(G68,1)="h")=TRUE,'Basalt & Hawaite Vol Dist'!$H$6,IF(OR(LEFT(G68,1)="m",LEFT(G68,1)="o")=TRUE,'Mug & Ben Vol Dist'!$H$6,IF(LEFT(G68,1)="t",'Trachyte Vol Dist'!$H$6,""))) -> 0.21 | I68: =IF(OR(LEFT(G68,1)="b",LEFT(G68,1)="h")=TRUE,'Basalt & Hawaite Vol Dist'!$I$6,IF(OR(LEFT(G68,1)="m",LEFT(G68,1)="o")=TRUE,'Mug & Ben Vol Dist'!$I$6,IF(LEFT(G68,1)="t",'Trachyte Vol Dist'!$I$6,""))) -> 6.1 | J68: =IF(OR(LEFT(G68,1)="b",LEFT(G68,1)="h")=TRUE,'Basalt & Hawaite Vol Dist'!$J$6,IF(OR(LEFT(G68,1)="m",LEFT(G68,1)="o")=TRUE,'Mug & Ben Vol Dist'!$J$6,IF(LEFT(G68,1)="t",'Trachyte Vol Dist'!$J$6,""))) -> 8.9 | K68: =IF(OR(LEFT(G68,1)="b",LEFT(G68,1)="h")=TRUE,'Basalt & Hawaite Vol Dist'!$K$6,IF(OR(LEFT(G68,1)="m",LEFT(G68,1)="o")=TRUE,'Mug & Ben Vol Dist'!$K$6,IF(LEFT(G68,1)="t",'Trachyte Vol Dist'!$K$6,""))) -> 0.028 | L68: =IF(OR(LEFT(G68,1)="b",LEFT(G68,1)="h")=TRUE,'Basalt & Hawaite Vol Dist'!$B$42,IF(OR(LEFT(G68,1)="m",LEFT(G68,1)="o")=TRUE,'Mug & Ben Vol Dist'!$B$42,IF(LEFT(G68,1)="t",'Trachyte Vol Dist'!$B$42,""))) -> 0.5551036823
A69: 68 | B69: 0.8469619011 | C69: 0.7073614072 | D69: =SUM($C69:$C$237) -> 57.52513208 | E69: =IFERROR(VLOOKUP(G69,'Summary of age data'!$A$3:$D$243,2,FALSE),"") -> 200 | F69: =IFERROR(VLOOKUP(G69,'Summary of age data'!$A$3:$D$243,3,FALSE),"") -> 0 | G69: busi | H69: =IF(OR(LEFT(G69,1)="b",LEFT(G69,1)="h")=TRUE,'Basalt & Hawaite Vol Dist'!$H$6,IF(OR(LEFT(G69,1)="m",LEFT(G69,1)="o")=TRUE,'Mug & Ben Vol Dist'!$H$6,IF(LEFT(G69,1)="t",'Trachyte Vol Dist'!$H$6,""))) -> 1.13 | I69: =IF(OR(LEFT(G69,1)="b",LEFT(G69,1)="h")=TRUE,'Basalt & Hawaite Vol Dist'!$I$6,IF(OR(LEFT(G69,1)="m",LEFT(G69,1)="o")=TRUE,'Mug & Ben Vol Dist'!$I$6,IF(LEFT(G69,1)="t",'Trachyte Vol Dist'!$I$6,""))) -> 0.34 | J69: =IF(OR(LEFT(G69,1)="b",LEFT(G69,1)="h")=TRUE,'Basalt & Hawaite Vol Dist'!$J$6,IF(OR(LEFT(G69,1)="m",LEFT(G69,1)="o")=TRUE,'Mug & Ben Vol Dist'!$J$6,IF(LEFT(G69,1)="t",'Trachyte Vol Dist'!$J$6,""))) -> 1.13 | K69: =IF(OR(LEFT(G69,1)="b",LEFT(G69,1)="h")=TRUE,'Basalt & Hawaite Vol Dist'!$K$6,IF(OR(LEFT(G69,1)="m",LEFT(G69,1)="o")=TRUE,'Mug & Ben Vol Dist'!$K$6,IF(LEFT(G69,1)="t",'Trachyte Vol Dist'!$K$6,""))) -> 0.34 | L69: =IF(OR(LEFT(G69,1)="b",LEFT(G69,1)="h")=TRUE,'Basalt & Hawaite Vol Dist'!$B$42,IF(OR(LEFT(G69,1)="m",LEFT(G69,1)="o")=TRUE,'Mug & Ben Vol Dist'!$B$42,IF(LEFT(G69,1)="t",'Trachyte Vol Dist'!$B$42,""))) -> 0.999
A70: 69 | B70: 0.3750068285 | C70: 0.1854972149 | D70: =SUM($C70:$C$237) -> 56.81777067 | E70: =IFERROR(VLOOKUP(G70,'Summary of age data'!$A$3:$D$243,2,FALSE),"") -> 207.3 | F70: =IFERROR(VLOOKUP(G70,'Summary of age data'!$A$3:$D$243,3,FALSE),"") -> 8.4 | G70: bjr | H70: =IF(OR(LEFT(G70,1)="b",LEFT(G70,1)="h")=TRUE,'Basalt & Hawaite Vol Dist'!$H$6,IF(OR(LEFT(G70,1)="m",LEFT(G70,1)="o")=TRUE,'Mug & Ben Vol Dist'!$H$6,IF(LEFT(G70,1)="t",'Trachyte Vol Dist'!$H$6,""))) -> 1.13 | I70: =IF(OR(LEFT(G70,1)="b",LEFT(G70,1)="h")=TRUE,'Basalt & Hawaite Vol Dist'!$I$6,IF(OR(LEFT(G70,1)="m",LEFT(G70,1)="o")=TRUE,'Mug & Ben Vol Dist'!$I$6,IF(LEFT(G70,1)="t",'Trachyte Vol Dist'!$I$6,""))) -> 0.34 | J70: =IF(OR(LEFT(G70,1)="b",LEFT(G70,1)="h")=TRUE,'Basalt & Hawaite Vol Dist'!$J$6,IF(OR(LEFT(G70,1)="m",LEFT(G70,1)="o")=TRUE,'Mug & Ben Vol Dist'!$J$6,IF(LEFT(G70,1)="t",'Trachyte Vol Dist'!$J$6,""))) -> 1.13 | K70: =IF(OR(LEFT(G70,1)="b",LEFT(G70,1)="h")=TRUE,'Basalt & Hawaite Vol Dist'!$K$6,IF(OR(LEFT(G70,1)="m",LEFT(G70,1)="o")=TRUE,'Mug & Ben Vol Dist'!$K$6,IF(LEFT(G70,1)="t",'Trachyte Vol Dist'!$K$6,""))) -> 0.34 | L70: =IF(OR(LEFT(G70,1)="b",LEFT(G70,1)="h")=TRUE,'Basalt & Hawaite Vol Dist'!$B$42,IF(OR(LEFT(G70,1)="m",LEFT(G70,1)="o")=TRUE,'Mug & Ben Vol Dist'!$B$42,IF(LEFT(G70,1)="t",'Trachyte Vol Dist'!$B$42,""))) -> 0.999
A71: 70 | B71: 0.3651411934 | C71: =IF(B71<=L71,_xlfn.GAMMA.INV(B71,H71,I71),_xlfn.GAMMA.INV(B71,J71,K71)) -> 0.1887594646 | D71: =SUM($C71:$C$237) -> 56.63227346 | E71: =IFERROR(VLOOKUP(G71,'Summary of age data'!$A$3:$D$243,2,FALSE),"") -> 208.9 | F71: =IFERROR(VLOOKUP(G71,'Summary of age data'!$A$3:$D$243,3,FALSE),"") -> 16.9 | G71: bmd | H71: =IF(OR(LEFT(G71,1)="b",LEFT(G71,1)="h")=TRUE,'Basalt & Hawaite Vol Dist'!$H$6,IF(OR(LEFT(G71,1)="m",LEFT(G71,1)="o")=TRUE,'Mug & Ben Vol Dist'!$H$6,IF(LEFT(G71,1)="t",'Trachyte Vol Dist'!$H$6,""))) -> 1.13 | I71: =IF(OR(LEFT(G71,1)="b",LEFT(G71,1)="h")=TRUE,'Basalt & Hawaite Vol Dist'!$I$6,IF(OR(LEFT(G71,1)="m",LEFT(G71,1)="o")=TRUE,'Mug & Ben Vol Dist'!$I$6,IF(LEFT(G71,1)="t",'Trachyte Vol Dist'!$I$6,""))) -> 0.34 | J71: =IF(OR(LEFT(G71,1)="b",LEFT(G71,1)="h")=TRUE,'Basalt & Hawaite Vol Dist'!$J$6,IF(OR(LEFT(G71,1)="m",LEFT(G71,1)="o")=TRUE,'Mug & Ben Vol Dist'!$J$6,IF(LEFT(G71,1)="t",'Trachyte Vol Dist'!$J$6,""))) -> 1.13 | K71: =IF(OR(LEFT(G71,1)="b",LEFT(G71,1)="h")=TRUE,'Basalt & Hawaite Vol Dist'!$K$6,IF(OR(LEFT(G71,1)="m",LEFT(G71,1)="o")=TRUE,'Mug & Ben Vol Dist'!$K$6,IF(LEFT(G71,1)="t",'Trachyte Vol Dist'!$K$6,""))) -> 0.34 | L71: =IF(OR(LEFT(G71,1)="b",LEFT(G71,1)="h")=TRUE,'Basalt & Hawaite Vol Dist'!$B$42,IF(OR(LEFT(G71,1)="m",LEFT(G71,1)="o")=TRUE,'Mug & Ben Vol Dist'!$B$42,IF(LEFT(G71,1)="t",'Trachyte Vol Dist'!$B$42,""))) -> 0.999
A72: 71 | B72: 0.334703333 | C72: 0.2064456951 | D72: =SUM($C72:$C$237) -> 56.44351399 | E72: =IFERROR(VLOOKUP(G72,'Summary of age data'!$A$3:$D$243,2,FALSE),"") -> 208.9 | F72: =IFERROR(VLOOKUP(G72,'Summary of age data'!$A$3:$D$243,3,FALSE),"") -> 16.9 | G72: buak | H72: =IF(OR(LEFT(G72,1)="b",LEFT(G72,1)="h")=TRUE,'Basalt & Hawaite Vol Dist'!$H$6,IF(OR(LEFT(G72,1)="m",LEFT(G72,1)="o")=TRUE,'Mug & Ben Vol Dist'!$H$6,IF(LEFT(G72,1)="t",'Trachyte Vol Dist'!$H$6,""))) -> 1.13 | I72: =IF(OR(LEFT(G72,1)="b",LEFT(G72,1)="h")=TRUE,'Basalt & Hawaite Vol Dist'!$I$6,IF(OR(LEFT(G72,1)="m",LEFT(G72,1)="o")=TRUE,'Mug & Ben Vol Dist'!$I$6,IF(LEFT(G72,1)="t",'Trachyte Vol Dist'!$I$6,""))) -> 0.34 | J72: =IF(OR(LEFT(G72,1)="b",LEFT(G72,1)="h")=TRUE,'Basalt & Hawaite Vol Dist'!$J$6,IF(OR(LEFT(G72,1)="m",LEFT(G72,1)="o")=TRUE,'Mug & Ben Vol Dist'!$J$6,IF(LEFT(G72,1)="t",'Trachyte Vol Dist'!$J$6,""))) -> 1.13 | K72: =IF(OR(LEFT(G72,1)="b",LEFT(G72,1)="h")=TRUE,'Basalt & Hawaite Vol Dist'!$K$6,IF(OR(LEFT(G72,1)="m",LEFT(G72,1)="o")=TRUE,'Mug & Ben Vol Dist'!$K$6,IF(LEFT(G72,1)="t",'Trachyte Vol Dist'!$K$6,""))) -> 0.34 | L72: =IF(OR(LEFT(G72,1)="b",LEFT(G72,1)="h")=TRUE,'Basalt & Hawaite Vol Dist'!$B$42,IF(OR(LEFT(G72,1)="m",LEFT(G72,1)="o")=TRUE,'Mug & Ben Vol Dist'!$B$42,IF(LEFT(G72,1)="t",'Trachyte Vol Dist'!$B$42,""))) -> 0.999
A73: 72 | B73: 0.8058910212 | C73: =IF(B73<=L73,_xlfn.GAMMA.INV(B73,H73,I73),_xlfn.GAMMA.INV(B73,J73,K73)) -> 0.6225126927 | D73: =SUM($C73:$C$237) -> 56.2370683 | E73: =IFERROR(VLOOKUP(G73,'Summary of age data'!$A$3:$D$243,2,FALSE),"") -> 208.9 | F73: =IFERROR(VLOOKUP(G73,'Summary of age data'!$A$3:$D$243,3,FALSE),"") -> 16.9 | G73: badh | H73: =IF(OR(LEFT(G73,1)="b",LEFT(G73,1)="h")=TRUE,'Basalt & Hawaite Vol Dist'!$H$6,IF(OR(LEFT(G73,1)="m",LEFT(G73,1)="o")=TRUE,'Mug & Ben Vol Dist'!$H$6,IF(LEFT(G73,1)="t",'Trachyte Vol Dist'!$H$6,""))) -> 1.13 | I73: =IF(OR(LEFT(G73,1)="b",LEFT(G73,1)="h")=TRUE,'Basalt & Hawaite Vol Dist'!$I$6,IF(OR(LEFT(G73,1)="m",LEFT(G73,1)="o")=TRUE,'Mug & Ben Vol Dist'!$I$6,IF(LEFT(G73,1)="t",'Trachyte Vol Dist'!$I$6,""))) -> 0.34 | J73: =IF(OR(LEFT(G73,1)="b",LEFT(G73,1)="h")=TRUE,'Basalt & Hawaite Vol Dist'!$J$6,IF(OR(LEFT(G73,1)="m",LEFT(G73,1)="o")=TRUE,'Mug & Ben Vol Dist'!$J$6,IF(LEFT(G73,1)="t",'Trachyte Vol Dist'!$J$6,""))) -> 1.13 | K73: =IF(OR(LEFT(G73,1)="b",LEFT(G73,1)="h")=TRUE,'Basalt & Hawaite Vol Dist'!$K$6,IF(OR(LEFT(G73,1)="m",LEFT(G73,1)="o")=TRUE,'Mug & Ben Vol Dist'!$K$6,IF(LEFT(G73,1)="t",'Trachyte Vol Dist'!$K$6,""))) -> 0.34 | L73: =IF(OR(LEFT(G73,1)="b",LEFT(G73,1)="h")=TRUE,'Basalt & Hawaite Vol Dist'!$B$42,IF(OR(LEFT(G73,1)="m",LEFT(G73,1)="o")=TRUE,'Mug & Ben Vol Dist'!$B$42,IF(LEFT(G73,1)="t",'Trachyte Vol Dist'!$B$42,""))) -> 0.999
A74: 73 | B74: 0.3565778099 | C74: 0.1836419913 | D74: =SUM($C74:$C$237) -> 55.61455561 | E74: =IFERROR(VLOOKUP(G74,'Summary of age data'!$A$3:$D$243,2,FALSE),"") -> 208.9 | F74: =IFERROR(VLOOKUP(G74,'Summary of age data'!$A$3:$D$243,3,FALSE),"") -> 16.9 | G74: buaa | H74: =IF(OR(LEFT(G74,1)="b",LEFT(G74,1)="h")=TRUE,'Basalt & Hawaite Vol Dist'!$H$6,IF(OR(LEFT(G74,1)="m",LEFT(G74,1)="o")=TRUE,'Mug & Ben Vol Dist'!$H$6,IF(LEFT(G74,1)="t",'Trachyte Vol Dist'!$H$6,""))) -> 1.13 | I74: =IF(OR(LEFT(G74,1)="b",LEFT(G74,1)="h")=TRUE,'Basalt & Hawaite Vol Dist'!$I$6,IF(OR(LEFT(G74,1)="m",LEFT(G74,1)="o")=TRUE,'Mug & Ben Vol Dist'!$I$6,IF(LEFT(G74,1)="t",'Trachyte Vol Dist'!$I$6,""))) -> 0.34 | J74: =IF(OR(LEFT(G74,1)="b",LEFT(G74,1)="h")=TRUE,'Basalt & Hawaite Vol Dist'!$J$6,IF(OR(LEFT(G74,1)="m",LEFT(G74,1)="o")=TRUE,'Mug & Ben Vol Dist'!$J$6,IF(LEFT(G74,1)="t",'Trachyte Vol Dist'!$J$6,""))) -> 1.13 | K74: =IF(OR(LEFT(G74,1)="b",LEFT(G74,1)="h")=TRUE,'Basalt & Hawaite Vol Dist'!$K$6,IF(OR(LEFT(G74,1)="m",LEFT(G74,1)="o")=TRUE,'Mug & Ben Vol Dist'!$K$6,IF(LEFT(G74,1)="t",'Trachyte Vol Dist'!$K$6,""))) -> 0.34 | L74: =IF(OR(LEFT(G74,1)="b",LEFT(G74,1)="h")=TRUE,'Basalt & Hawaite Vol Dist'!$B$42,IF(OR(LEFT(G74,1)="m",LEFT(G74,1)="o")=TRUE,'Mug & Ben Vol Dist'!$B$42,IF(LEFT(G74,1)="t",'Trachyte Vol Dist'!$B$42,""))) -> 0.999
A75: 74 | B75: 0.5923933044 | C75: 0.3541271692 | D75: =SUM($C75:$C$237) -> 55.43091362 | E75: =IFERROR(VLOOKUP(G75,'Summary of age data'!$A$3:$D$243,2,FALSE),"") -> 215.2 | F75: =IFERROR(VLOOKUP(G75,'Summary of age data'!$A$3:$D$243,3,FALSE),"") -> 6.9 | G75: bqg | H75: =IF(OR(LEFT(G75,1)="b",LEFT(G75,1)="h")=TRUE,'Basalt & Hawaite Vol Dist'!$H$6,IF(OR(LEFT(G75,1)="m",LEFT(G75,1)="o")=TRUE,'Mug & Ben Vol Dist'!$H$6,IF(LEFT(G75,1)="t",'Trachyte Vol Dist'!$H$6,""))) -> 1.13 | I75: =IF(OR(LEFT(G75,1)="b",LEFT(G75,1)="h")=TRUE,'Basalt & Hawaite Vol Dist'!$I$6,IF(OR(LEFT(G75,1)="m",LEFT(G75,1)="o")=TRUE,'Mug & Ben Vol Dist'!$I$6,IF(LEFT(G75,1)="t",'Trachyte Vol Dist'!$I$6,""))) -> 0.34 | J75: =IF(OR(LEFT(G75,1)="b",LEFT(G75,1)="h")=TRUE,'Basalt & Hawaite Vol Dist'!$J$6,IF(OR(LEFT(G75,1)="m",LEFT(G75,1)="o")=TRUE,'Mug & Ben Vol Dist'!$J$6,IF(LEFT(G75,1)="t",'Trachyte Vol Dist'!$J$6,""))) -> 1.13 | K75: =IF(OR(LEFT(G75,1)="b",LEFT(G75,1)="h")=TRUE,'Basalt & Hawaite Vol Dist'!$K$6,IF(OR(LEFT(G75,1)="m",LEFT(G75,1)="o")=TRUE,'Mug & Ben Vol Dist'!$K$6,IF(LEFT(G75,1)="t",'Trachyte Vol Dist'!$K$6,""))) -> 0.34 | L75: =IF(OR(LEFT(G75,1)="b",LEFT(G75,1)="h")=TRUE,'Basalt & Hawaite Vol Dist'!$B$42,IF(OR(LEFT(G75,1)="m",LEFT(G75,1)="o")=TRUE,'Mug & Ben Vol Dist'!$B$42,IF(LEFT(G75,1)="t",'Trachyte Vol Dist'!$B$42,""))) -> 0.999
A76: 75 | B76: 0.2686694714 | C76: 0.007680104353 | D76: =SUM($C76:$C$237) -> 55.07678645 | E76: =IFERROR(VLOOKUP(G76,'Summary of age data'!$A$3:$D$243,2,FALSE),"") -> 216 | F76: =IFERROR(VLOOKUP(G76,'Summary of age data'!$A$3:$D$243,3,FALSE),"") -> 15.3 | G76: murr | H76: =IF(OR(LEFT(G76,1)="b",LEFT(G76,1)="h")=TRUE,'Basalt & Hawaite Vol Dist'!$H$6,IF(OR(LEFT(G76,1)="m",LEFT(G76,1)="o")=TRUE,'Mug & Ben Vol Dist'!$H$6,IF(LEFT(G76,1)="t",'Trachyte Vol Dist'!$H$6,""))) -> 0.21 | I76: =IF(OR(LEFT(G76,1)="b",LEFT(G76,1)="h")=TRUE,'Basalt & Hawaite Vol Dist'!$I$6,IF(OR(LEFT(G76,1)="m",LEFT(G76,1)="o")=TRUE,'Mug & Ben Vol Dist'!$I$6,IF(LEFT(G76,1)="t",'Trachyte Vol Dist'!$I$6,""))) -> 6.1 | J76: =IF(OR(LEFT(G76,1)="b",LEFT(G76,1)="h")=TRUE,'Basalt & Hawaite Vol Dist'!$J$6,IF(OR(LEFT(G76,1)="m",LEFT(G76,1)="o")=TRUE,'Mug & Ben Vol Dist'!$J$6,IF(LEFT(G76,1)="t",'Trachyte Vol Dist'!$J$6,""))) -> 8.9 | K76: =IF(OR(LEFT(G76,1)="b",LEFT(G76,1)="h")=TRUE,'Basalt & Hawaite Vol Dist'!$K$6,IF(OR(LEFT(G76,1)="m",LEFT(G76,1)="o")=TRUE,'Mug & Ben Vol Dist'!$K$6,IF(LEFT(G76,1)="t",'Trachyte Vol Dist'!$K$6,""))) -> 0.028 | L76: =IF(OR(LEFT(G76,1)="b",LEFT(G76,1)="h")=TRUE,'Basalt & Hawaite Vol Dist'!$B$42,IF(OR(LEFT(G76,1)="m",LEFT(G76,1)="o")=TRUE,'Mug & Ben Vol Dist'!$B$42,IF(LEFT(G76,1)="t",'Trachyte Vol Dist'!$B$42,""))) -> 0.5551036823
A77: 76 | B77: 0.6436558595 | C77: 0.4033061944 | D77: =SUM($C77:$C$237) -> 55.06910634 | E77: =IFERROR(VLOOKUP(G77,'Summary of age data'!$A$3:$D$243,2,FALSE),"") -> 216.7 | F77: =IFERROR(VLOOKUP(G77,'Summary of age data'!$A$3:$D$243,3,FALSE),"") -> 8.2 | G77: bli | H77: =IF(OR(LEFT(G77,1)="b",LEFT(G77,1)="h")=TRUE,'Basalt & Hawaite Vol Dist'!$H$6,IF(OR(LEFT(G77,1)="m",LEFT(G77,1)="o")=TRUE,'Mug & Ben Vol Dist'!$H$6,IF(LEFT(G77,1)="t",'Trachyte Vol Dist'!$H$6,""))) -> 1.13 | I77: =IF(OR(LEFT(G77,1)="b",LEFT(G77,1)="h")=TRUE,'Basalt & Hawaite Vol Dist'!$I$6,IF(OR(LEFT(G77,1)="m",LEFT(G77,1)="o")=TRUE,'Mug & Ben Vol Dist'!$I$6,IF(LEFT(G77,1)="t",'Trachyte Vol Dist'!$I$6,""))) -> 0.34 | J77: =IF(OR(LEFT(G77,1)="b",LEFT(G77,1)="h")=TRUE,'Basalt & Hawaite Vol Dist'!$J$6,IF(OR(LEFT(G77,1)="m",LEFT(G77,1)="o")=TRUE,'Mug & Ben Vol Dist'!$J$6,IF(LEFT(G77,1)="t",'Trachyte Vol Dist'!$J$6,""))) -> 1.13 | K77: =IF(OR(LEFT(G77,1)="b",LEFT(G77,1)="h")=TRUE,'Basalt & Hawaite Vol Dist'!$K$6,IF(OR(LEFT(G77,1)="m",LEFT(G77,1)="o")=TRUE,'Mug & Ben Vol Dist'!$K$6,IF(LEFT(G77,1)="t",'Trachyte Vol Dist'!$K$6,""))) -> 0.34 | L77: =IF(OR(LEFT(G77,1)="b",LEFT(G77,1)="h")=TRUE,'Basalt & Hawaite Vol Dist'!$B$42,IF(OR(LEFT(G77,1)="m",LEFT(G77,1)="o")=TRUE,'Mug & Ben Vol Dist'!$B$42,IF(LEFT(G77,1)="t",'Trachyte Vol Dist'!$B$42,""))) -> 0.999
A78: 77 | B78: 0.6708695991 | C78: 0.4322310845 | D78: =SUM($C78:$C$237) -> 54.66580015 | E78: =IFERROR(VLOOKUP(G78,'Summary of age data'!$A$3:$D$243,2,FALSE),"") -> 216.8 | F78: =IFERROR(VLOOKUP(G78,'Summary of age data'!$A$3:$D$243,3,FALSE),"") -> 10.7 | G78: bups | H78: =IF(OR(LEFT(G78,1)="b",LEFT(G78,1)="h")=TRUE,'Basalt & Hawaite Vol Dist'!$H$6,IF(OR(LEFT(G78,1)="m",LEFT(G78,1)="o")=TRUE,'Mug & Ben Vol Dist'!$H$6,IF(LEFT(G78,1)="t",'Trachyte Vol Dist'!$H$6,""))) -> 1.13 | I78: =IF(OR(LEFT(G78,1)="b",LEFT(G78,1)="h")=TRUE,'Basalt & Hawaite Vol Dist'!$I$6,IF(OR(LEFT(G78,1)="m",LEFT(G78,1)="o")=TRUE,'Mug & Ben Vol Dist'!$I$6,IF(LEFT(G78,1)="t",'Trachyte Vol Dist'!$I$6,""))) -> 0.34 | J78: =IF(OR(LEFT(G78,1)="b",LEFT(G78,1)="h")=TRUE,'Basalt & Hawaite Vol Dist'!$J$6,IF(OR(LEFT(G78,1)="m",LEFT(G78,1)="o")=TRUE,'Mug & Ben Vol Dist'!$J$6,IF(LEFT(G78,1)="t",'Trachyte Vol Dist'!$J$6,""))) -> 1.13 | K78: =IF(OR(LEFT(G78,1)="b",LEFT(G78,1)="h")=TRUE,'Basalt & Hawaite Vol Dist'!$K$6,IF(OR(LEFT(G78,1)="m",LEFT(G78,1)="o")=TRUE,'Mug & Ben Vol Dist'!$K$6,IF(LEFT(G78,1)="t",'Trachyte Vol Dist'!$K$6,""))) -> 0.34 | L78: =IF(OR(LEFT(G78,1)="b",LEFT(G78,1)="h")=TRUE,'Basalt & Hawaite Vol Dist'!$B$42,IF(OR(LEFT(G78,1)="m",LEFT(G78,1)="o")=TRUE,'Mug & Ben Vol Dist'!$B$42,IF(LEFT(G78,1)="t",'Trachyte Vol Dist'!$B$42,""))) -> 0.999
A79: 78 | B79: 0.5196743124 | C79: 0.2935540069 | D79: =SUM($C79:$C$237) -> 54.23356906 | E79: =IFERROR(VLOOKUP(G79,'Summary of age data'!$A$3:$D$243,2,FALSE),"") -> 217.5 | F79: =IFERROR(VLOOKUP(G79,'Summary of age data'!$A$3:$D$243,3,FALSE),"") -> 6.7 | G79: bsf | H79: =IF(OR(LEFT(G79,1)="b",LEFT(G79,1)="h")=TRUE,'Basalt & Hawaite Vol Dist'!$H$6,IF(OR(LEFT(G79,1)="m",LEFT(G79,1)="o")=TRUE,'Mug & Ben Vol Dist'!$H$6,IF(LEFT(G79,1)="t",'Trachyte Vol Dist'!$H$6,""))) -> 1.13 | I79: =IF(OR(LEFT(G79,1)="b",LEFT(G79,1)="h")=TRUE,'Basalt & Hawaite Vol Dist'!$I$6,IF(OR(LEFT(G79,1)="m",LEFT(G79,1)="o")=TRUE,'Mug & Ben Vol Dist'!$I$6,IF(LEFT(G79,1)="t",'Trachyte Vol Dist'!$I$6,""))) -> 0.34 | J79: =IF(OR(LEFT(G79,1)="b",LEFT(G79,1)="h")=TRUE,'Basalt & Hawaite Vol Dist'!$J$6,IF(OR(LEFT(G79,1)="m",LEFT(G79,1)="o")=TRUE,'Mug & Ben Vol Dist'!$J$6,IF(LEFT(G79,1)="t",'Trachyte Vol Dist'!$J$6,""))) -> 1.13 | K79: =IF(OR(LEFT(G79,1)="b",LEFT(G79,1)="h")=TRUE,'Basalt & Hawaite Vol Dist'!$K$6,IF(OR(LEFT(G79,1)="m",LEFT(G79,1)="o")=TRUE,'Mug & Ben Vol Dist'!$K$6,IF(LEFT(G79,1)="t",'Trachyte Vol Dist'!$K$6,""))) -> 0.34 | L79: =IF(OR(LEFT(G79,1)="b",LEFT(G79,1)="h")=TRUE,'Basalt & Hawaite Vol Dist'!$B$42,IF(OR(LEFT(G79,1)="m",LEFT(G79,1)="o")=TRUE,'Mug & Ben Vol Dist'!$B$42,IF(LEFT(G79,1)="t",'Trachyte Vol Dist'!$B$42,""))) -> 0.999
A80: 79 | B80: 0.04234172665 | C80: 0.02253406026 | D80: =SUM($C80:$C$237) -> 53.94001506 | E80: =IFERROR(VLOOKUP(G80,'Summary of age data'!$A$3:$D$243,2,FALSE),"") -> 217.5 | F80: =IFERROR(VLOOKUP(G80,'Summary of age data'!$A$3:$D$243,3,FALSE),"") -> 6.7 | G80: bh81 | H80: =IF(OR(LEFT(G80,1)="b",LEFT(G80,1)="h")=TRUE,'Basalt & Hawaite Vol Dist'!$H$6,IF(OR(LEFT(G80,1)="m",LEFT(G80,1)="o")=TRUE,'Mug & Ben Vol Dist'!$H$6,IF(LEFT(G80,1)="t",'Trachyte Vol Dist'!$H$6,""))) -> 1.13 | I80: =IF(OR(LEFT(G80,1)="b",LEFT(G80,1)="h")=TRUE,'Basalt & Hawaite Vol Dist'!$I$6,IF(OR(LEFT(G80,1)="m",LEFT(G80,1)="o")=TRUE,'Mug & Ben Vol Dist'!$I$6,IF(LEFT(G80,1)="t",'Trachyte Vol Dist'!$I$6,""))) -> 0.34 | J80: =IF(OR(LEFT(G80,1)="b",LEFT(G80,1)="h")=TRUE,'Basalt & Hawaite Vol Dist'!$J$6,IF(OR(LEFT(G80,1)="m",LEFT(G80,1)="o")=TRUE,'Mug & Ben Vol Dist'!$J$6,IF(LEFT(G80,1)="t",'Trachyte Vol Dist'!$J$6,""))) -> 1.13 | K80: =IF(OR(LEFT(G80,1)="b",LEFT(G80,1)="h")=TRUE,'Basalt & Hawaite Vol Dist'!$K$6,IF(OR(LEFT(G80,1)="m",LEFT(G80,1)="o")=TRUE,'Mug & Ben Vol Dist'!$K$6,IF(LEFT(G80,1)="t",'Trachyte Vol Dist'!$K$6,""))) -> 0.34 | L80: =IF(OR(LEFT(G80,1)="b",LEFT(G80,1)="h")=TRUE,'Basalt & Hawaite Vol Dist'!$B$42,IF(OR(LEFT(G80,1)="m",LEFT(G80,1)="o")=TRUE,'Mug & Ben Vol Dist'!$B$42,IF(LEFT(G80,1)="t",'Trachyte Vol Dist'!$B$42,""))) -> 0.999
A81: 80 | B81: 0.06994737269 | C81: 0.03577680712 | D81: =SUM($C81:$C$237) -> 53.917481 | E81: =IFERROR(VLOOKUP(G81,'Summary of age data'!$A$3:$D$243,2,FALSE),"") -> 217.5 | F81: =IFERROR(VLOOKUP(G81,'Summary of age data'!$A$3:$D$243,3,FALSE),"") -> 6.7 | G81: bwh8 | H81: =IF(OR(LEFT(G81,1)="b",LEFT(G81,1)="h")=TRUE,'Basalt & Hawaite Vol Dist'!$H$6,IF(OR(LEFT(G81,1)="m",LEFT(G81,1)="o")=TRUE,'Mug & Ben Vol Dist'!$H$6,IF(LEFT(G81,1)="t",'Trachyte Vol Dist'!$H$6,""))) -> 1.13 | I81: =IF(OR(LEFT(G81,1)="b",LEFT(G81,1)="h")=TRUE,'Basalt & Hawaite Vol Dist'!$I$6,IF(OR(LEFT(G81,1)="m",LEFT(G81,1)="o")=TRUE,'Mug & Ben Vol Dist'!$I$6,IF(LEFT(G81,1)="t",'Trachyte Vol Dist'!$I$6,""))) -> 0.34 | J81: =IF(OR(LEFT(G81,1)="b",LEFT(G81,1)="h")=TRUE,'Basalt & Hawaite Vol Dist'!$J$6,IF(OR(LEFT(G81,1)="m",LEFT(G81,1)="o")=TRUE,'Mug & Ben Vol Dist'!$J$6,IF(LEFT(G81,1)="t",'Trachyte Vol Dist'!$J$6,""))) -> 1.13 | K81: =IF(OR(LEFT(G81,1)="b",LEFT(G81,1)="h")=TRUE,'Basalt & Hawaite Vol Dist'!$K$6,IF(OR(LEFT(G81,1)="m",LEFT(G81,1)="o")=TRUE,'Mug & Ben Vol Dist'!$K$6,IF(LEFT(G81,1)="t",'Trachyte Vol Dist'!$K$6,""))) -> 0.34 | L81: =IF(OR(LEFT(G81,1)="b",LEFT(G81,1)="h")=TRUE,'Basalt & Hawaite Vol Dist'!$B$42,IF(OR(LEFT(G81,1)="m",LEFT(G81,1)="o")=TRUE,'Mug & Ben Vol Dist'!$B$42,IF(LEFT(G81,1)="t",'Trachyte Vol Dist'!$B$42,""))) -> 0.999
A82: 81 | B82: 0.3950922481 | C82: 0.04844919166 | D82: =SUM($C82:$C$237) -> 53.88170419 | E82: =IFERROR(VLOOKUP(G82,'Summary of age data'!$A$3:$D$243,2,FALSE),"") -> 219.3 | F82: =IFERROR(VLOOKUP(G82,'Summary of age data'!$A$3:$D$243,3,FALSE),"") -> 18.6 | G82: mmy | H82: =IF(OR(LEFT(G82,1)="b",LEFT(G82,1)="h")=TRUE,'Basalt & Hawaite Vol Dist'!$H$6,IF(OR(LEFT(G82,1)="m",LEFT(G82,1)="o")=TRUE,'Mug & Ben Vol Dist'!$H$6,IF(LEFT(G82,1)="t",'Trachyte Vol Dist'!$H$6,""))) -> 0.21 | I82: =IF(OR(LEFT(G82,1)="b",LEFT(G82,1)="h")=TRUE,'Basalt & Hawaite Vol Dist'!$I$6,IF(OR(LEFT(G82,1)="m",LEFT(G82,1)="o")=TRUE,'Mug & Ben Vol Dist'!$I$6,IF(LEFT(G82,1)="t",'Trachyte Vol Dist'!$I$6,""))) -> 6.1 | J82: =IF(OR(LEFT(G82,1)="b",LEFT(G82,1)="h")=TRUE,'Basalt & Hawaite Vol Dist'!$J$6,IF(OR(LEFT(G82,1)="m",LEFT(G82,1)="o")=TRUE,'Mug & Ben Vol Dist'!$J$6,IF(LEFT(G82,1)="t",'Trachyte Vol Dist'!$J$6,""))) -> 8.9 | K82: =IF(OR(LEFT(G82,1)="b",LEFT(G82,1)="h")=TRUE,'Basalt & Hawaite Vol Dist'!$K$6,IF(OR(LEFT(G82,1)="m",LEFT(G82,1)="o")=TRUE,'Mug & Ben Vol Dist'!$K$6,IF(LEFT(G82,1)="t",'Trachyte Vol Dist'!$K$6,""))) -> 0.028 | L82: =IF(OR(LEFT(G82,1)="b",LEFT(G82,1)="h")=TRUE,'Basalt & Hawaite Vol Dist'!$B$42,IF(OR(LEFT(G82,1)="m",LEFT(G82,1)="o")=TRUE,'Mug & Ben Vol Dist'!$B$42,IF(LEFT(G82,1)="t",'Trachyte Vol Dist'!$B$42,""))) -> 0.5551036823
A83: 82 | B83: 0.6617175395 | C83: 0.2651719455 | D83: =SUM($C83:$C$237) -> 53.833255 | E83: =IFERROR(VLOOKUP(G83,'Summary of age data'!$A$3:$D$243,2,FALSE),"") -> 219.6 | F83: =IFERROR(VLOOKUP(G83,'Summary of age data'!$A$3:$D$243,3,FALSE),"") -> 4 | G83: mmu | H83: =IF(OR(LEFT(G83,1)="b",LEFT(G83,1)="h")=TRUE,'Basalt & Hawaite Vol Dist'!$H$6,IF(OR(LEFT(G83,1)="m",LEFT(G83,1)="o")=TRUE,'Mug & Ben Vol Dist'!$H$6,IF(LEFT(G83,1)="t",'Trachyte Vol Dist'!$H$6,""))) -> 0.21 | I83: =IF(OR(LEFT(G83,1)="b",LEFT(G83,1)="h")=TRUE,'Basalt & Hawaite Vol Dist'!$I$6,IF(OR(LEFT(G83,1)="m",LEFT(G83,1)="o")=TRUE,'Mug & Ben Vol Dist'!$I$6,IF(LEFT(G83,1)="t",'Trachyte Vol Dist'!$I$6,""))) -> 6.1 | J83: =IF(OR(LEFT(G83,1)="b",LEFT(G83,1)="h")=TRUE,'Basalt & Hawaite Vol Dist'!$J$6,IF(OR(LEFT(G83,1)="m",LEFT(G83,1)="o")=TRUE,'Mug & Ben Vol Dist'!$J$6,IF(LEFT(G83,1)="t",'Trachyte Vol Dist'!$J$6,""))) -> 8.9 | K83: =IF(OR(LEFT(G83,1)="b",LEFT(G83,1)="h")=TRUE,'Basalt & Hawaite Vol Dist'!$K$6,IF(OR(LEFT(G83,1)="m",LEFT(G83,1)="o")=TRUE,'Mug & Ben Vol Dist'!$K$6,IF(LEFT(G83,1)="t",'Trachyte Vol Dist'!$K$6,""))) -> 0.028 | L83: =IF(OR(LEFT(G83,1)="b",LEFT(G83,1)="h")=TRUE,'Basalt & Hawaite Vol Dist'!$B$42,IF(OR(LEFT(G83,1)="m",LEFT(G83,1)="o")=TRUE,'Mug & Ben Vol Dist'!$B$42,IF(LEFT(G83,1)="t",'Trachyte Vol Dist'!$B$42,""))) -> 0.5551036823
A84: 83 | B84: 0.3927316714 | C84: =IF(B84<=L84,_xlfn.GAMMA.INV(B84,H84,I84),_xlfn.GAMMA.INV(B84,J84,K84)) -> 0.2056631366 | D84: =SUM($C84:$C$237) -> 53.56808305 | E84: =IFERROR(VLOOKUP(G84,'Summary of age data'!$A$3:$D$243,2,FALSE),"") -> 220.3 | F84: =IFERROR(VLOOKUP(G84,'Summary of age data'!$A$3:$D$243,3,FALSE),"") -> 8.3 | G84: bag | H84: =IF(OR(LEFT(G84,1)="b",LEFT(G84,1)="h")=TRUE,'Basalt & Hawaite Vol Dist'!$H$6,IF(OR(LEFT(G84,1)="m",LEFT(G84,1)="o")=TRUE,'Mug & Ben Vol Dist'!$H$6,IF(LEFT(G84,1)="t",'Trachyte Vol Dist'!$H$6,""))) -> 1.13 | I84: =IF(OR(LEFT(G84,1)="b",LEFT(G84,1)="h")=TRUE,'Basalt & Hawaite Vol Dist'!$I$6,IF(OR(LEFT(G84,1)="m",LEFT(G84,1)="o")=TRUE,'Mug & Ben Vol Dist'!$I$6,IF(LEFT(G84,1)="t",'Trachyte Vol Dist'!$I$6,""))) -> 0.34 | J84: =IF(OR(LEFT(G84,1)="b",LEFT(G84,1)="h")=TRUE,'Basalt & Hawaite Vol Dist'!$J$6,IF(OR(LEFT(G84,1)="m",LEFT(G84,1)="o")=TRUE,'Mug & Ben Vol Dist'!$J$6,IF(LEFT(G84,1)="t",'Trachyte Vol Dist'!$J$6,""))) -> 1.13 | K84: =IF(OR(LEFT(G84,1)="b",LEFT(G84,1)="h")=TRUE,'Basalt & Hawaite Vol Dist'!$K$6,IF(OR(LEFT(G84,1)="m",LEFT(G84,1)="o")=TRUE,'Mug & Ben Vol Dist'!$K$6,IF(LEFT(G84,1)="t",'Trachyte Vol Dist'!$K$6,""))) -> 0.34 | L84: =IF(OR(LEFT(G84,1)="b",LEFT(G84,1)="h")=TRUE,'Basalt & Hawaite Vol Dist'!$B$42,IF(OR(LEFT(G84,1)="m",LEFT(G84,1)="o")=TRUE,'Mug & Ben Vol Dist'!$B$42,IF(LEFT(G84,1)="t",'Trachyte Vol Dist'!$B$42,""))) -> 0.999
A85: 84 | B85: 0.5363462394 | C85: =IF(B85<=L85,_xlfn.GAMMA.INV(B85,H85,I85),_xlfn.GAMMA.INV(B85,J85,K85)) -> 0.3066434422 | D85: =SUM($C85:$C$237) -> 53.36241991 | E85: =IFERROR(VLOOKUP(G85,'Summary of age data'!$A$3:$D$243,2,FALSE),"") -> 220.5 | F85: =IFERROR(VLOOKUP(G85,'Summary of age data'!$A$3:$D$243,3,FALSE),"") -> 10.9 | G85: hma | H85: =IF(OR(LEFT(G85,1)="b",LEFT(G85,1)="h")=TRUE,'Basalt & Hawaite Vol Dist'!$H$6,IF(OR(LEFT(G85,1)="m",LEFT(G85,1)="o")=TRUE,'Mug & Ben Vol Dist'!$H$6,IF(LEFT(G85,1)="t",'Trachyte Vol Dist'!$H$6,""))) -> 1.13 | I85: =IF(OR(LEFT(G85,1)="b",LEFT(G85,1)="h")=TRUE,'Basalt & Hawaite Vol Dist'!$I$6,IF(OR(LEFT(G85,1)="m",LEFT(G85,1)="o")=TRUE,'Mug & Ben Vol Dist'!$I$6,IF(LEFT(G85,1)="t",'Trachyte Vol Dist'!$I$6,""))) -> 0.34 | J85: =IF(OR(LEFT(G85,1)="b",LEFT(G85,1)="h")=TRUE,'Basalt & Hawaite Vol Dist'!$J$6,IF(OR(LEFT(G85,1)="m",LEFT(G85,1)="o")=TRUE,'Mug & Ben Vol Dist'!$J$6,IF(LEFT(G85,1)="t",'Trachyte Vol Dist'!$J$6,""))) -> 1.13 | K85: =IF(OR(LEFT(G85,1)="b",LEFT(G85,1)="h")=TRUE,'Basalt & Hawaite Vol Dist'!$K$6,IF(OR(LEFT(G85,1)="m",LEFT(G85,1)="o")=TRUE,'Mug & Ben Vol Dist'!$K$6,IF(LEFT(G85,1)="t",'Trachyte Vol Dist'!$K$6,""))) -> 0.34 | L85: =IF(OR(LEFT(G85,1)="b",LEFT(G85,1)="h")=TRUE,'Basalt & Hawaite Vol Dist'!$B$42,IF(OR(LEFT(G85,1)="m",LEFT(G85,1)="o")=TRUE,'Mug & Ben Vol Dist'!$B$42,IF(LEFT(G85,1)="t",'Trachyte Vol Dist'!$B$42,""))) -> 0.999
A86: 85 | B86: 0.1380558831 | C86: =IF(B86<=L86,_xlfn.GAMMA.INV(B86,H86,I86),_xlfn.GAMMA.INV(B86,J86,K86)) -> 0.06822196132 | D86: =SUM($C86:$C$237) -> 53.05577647 | E86: =IFERROR(VLOOKUP(G86,'Summary of age data'!$A$3:$D$243,2,FALSE),"") -> 222.2 | F86: =IFERROR(VLOOKUP(G86,'Summary of age data'!$A$3:$D$243,3,FALSE),"") -> 5.8 | G86: bso | H86: =IF(OR(LEFT(G86,1)="b",LEFT(G86,1)="h")=TRUE,'Basalt & Hawaite Vol Dist'!$H$6,IF(OR(LEFT(G86,1)="m",LEFT(G86,1)="o")=TRUE,'Mug & Ben Vol Dist'!$H$6,IF(LEFT(G86,1)="t",'Trachyte Vol Dist'!$H$6,""))) -> 1.13 | I86: =IF(OR(LEFT(G86,1)="b",LEFT(G86,1)="h")=TRUE,'Basalt & Hawaite Vol Dist'!$I$6,IF(OR(LEFT(G86,1)="m",LEFT(G86,1)="o")=TRUE,'Mug & Ben Vol Dist'!$I$6,IF(LEFT(G86,1)="t",'Trachyte Vol Dist'!$I$6,""))) -> 0.34 | J86: =IF(OR(LEFT(G86,1)="b",LEFT(G86,1)="h")=TRUE,'Basalt & Hawaite Vol Dist'!$J$6,IF(OR(LEFT(G86,1)="m",LEFT(G86,1)="o")=TRUE,'Mug & Ben Vol Dist'!$J$6,IF(LEFT(G86,1)="t",'Trachyte Vol Dist'!$J$6,""))) -> 1.13 | K86: =IF(OR(LEFT(G86,1)="b",LEFT(G86,1)="h")=TRUE,'Basalt & Hawaite Vol Dist'!$K$6,IF(OR(LEFT(G86,1)="m",LEFT(G86,1)="o")=TRUE,'Mug & Ben Vol Dist'!$K$6,IF(LEFT(G86,1)="t",'Trachyte Vol Dist'!$K$6,""))) -> 0.34 | L86: =IF(OR(LEFT(G86,1)="b",LEFT(G86,1)="h")=TRUE,'Basalt & Hawaite Vol Dist'!$B$42,IF(OR(LEFT(G86,1)="m",LEFT(G86,1)="o")=TRUE,'Mug & Ben Vol Dist'!$B$42,IF(LEFT(G86,1)="t",'Trachyte Vol Dist'!$B$42,""))) -> 0.999
A87: 86 | B87: 0.1038120999 | C87: 0.2546529033 | D87: =SUM($C87:$C$237) -> 52.98755451 | E87: =IFERROR(VLOOKUP(G87,'Summary of age data'!$A$3:$D$243,2,FALSE),"") -> 222.2 | F87: =IFERROR(VLOOKUP(G87,'Summary of age data'!$A$3:$D$243,3,FALSE),"") -> 5.8 | G87: bml | H87: =IF(OR(LEFT(G87,1)="b",LEFT(G87,1)="h")=TRUE,'Basalt & Hawaite Vol Dist'!$H$6,IF(OR(LEFT(G87,1)="m",LEFT(G87,1)="o")=TRUE,'Mug & Ben Vol Dist'!$H$6,IF(LEFT(G87,1)="t",'Trachyte Vol Dist'!$H$6,""))) -> 1.13 | I87: =IF(OR(LEFT(G87,1)="b",LEFT(G87,1)="h")=TRUE,'Basalt & Hawaite Vol Dist'!$I$6,IF(OR(LEFT(G87,1)="m",LEFT(G87,1)="o")=TRUE,'Mug & Ben Vol Dist'!$I$6,IF(LEFT(G87,1)="t",'Trachyte Vol Dist'!$I$6,""))) -> 0.34 | J87: =IF(OR(LEFT(G87,1)="b",LEFT(G87,1)="h")=TRUE,'Basalt & Hawaite Vol Dist'!$J$6,IF(OR(LEFT(G87,1)="m",LEFT(G87,1)="o")=TRUE,'Mug & Ben Vol Dist'!$J$6,IF(LEFT(G87,1)="t",'Trachyte Vol Dist'!$J$6,""))) -> 1.13 | K87: =IF(OR(LEFT(G87,1)="b",LEFT(G87,1)="h")=TRUE,'Basalt & Hawaite Vol Dist'!$K$6,IF(OR(LEFT(G87,1)="m",LEFT(G87,1)="o")=TRUE,'Mug & Ben Vol Dist'!$K$6,IF(LEFT(G87,1)="t",'Trachyte Vol Dist'!$K$6,""))) -> 0.34 | L87: =IF(OR(LEFT(G87,1)="b",LEFT(G87,1)="h")=TRUE,'Basalt & Hawaite Vol Dist'!$B$42,IF(OR(LEFT(G87,1)="m",LEFT(G87,1)="o")=TRUE,'Mug & Ben Vol Dist'!$B$42,IF(LEFT(G87,1)="t",'Trachyte Vol Dist'!$B$42,""))) -> 0.999
A88: 87 | B88: 0.5024858125 | C88: =IF(B88<=L88,_xlfn.GAMMA.INV(B88,H88,I88),_xlfn.GAMMA.INV(B88,J88,K88)) -> 0.2804926797 | D88: =SUM($C88:$C$237) -> 52.73290161 | E88: =IFERROR(VLOOKUP(G88,'Summary of age data'!$A$3:$D$243,2,FALSE),"") -> 223 | F88: =IFERROR(VLOOKUP(G88,'Summary of age data'!$A$3:$D$243,3,FALSE),"") -> 18.9 | G88: bda | H88: =IF(OR(LEFT(G88,1)="b",LEFT(G88,1)="h")=TRUE,'Basalt & Hawaite Vol Dist'!$H$6,IF(OR(LEFT(G88,1)="m",LEFT(G88,1)="o")=TRUE,'Mug & Ben Vol Dist'!$H$6,IF(LEFT(G88,1)="t",'Trachyte Vol Dist'!$H$6,""))) -> 1.13 | I88: =IF(OR(LEFT(G88,1)="b",LEFT(G88,1)="h")=TRUE,'Basalt & Hawaite Vol Dist'!$I$6,IF(OR(LEFT(G88,1)="m",LEFT(G88,1)="o")=TRUE,'Mug & Ben Vol Dist'!$I$6,IF(LEFT(G88,1)="t",'Trachyte Vol Dist'!$I$6,""))) -> 0.34 | J88: =IF(OR(LEFT(G88,1)="b",LEFT(G88,1)="h")=TRUE,'Basalt & Hawaite Vol Dist'!$J$6,IF(OR(LEFT(G88,1)="m",LEFT(G88,1)="o")=TRUE,'Mug & Ben Vol Dist'!$J$6,IF(LEFT(G88,1)="t",'Trachyte Vol Dist'!$J$6,""))) -> 1.13 | K88: =IF(OR(LEFT(G88,1)="b",LEFT(G88,1)="h")=TRUE,'Basalt & Hawaite Vol Dist'!$K$6,IF(OR(LEFT(G88,1)="m",LEFT(G88,1)="o")=TRUE,'Mug & Ben Vol Dist'!$K$6,IF(LEFT(G88,1)="t",'Trachyte Vol Dist'!$K$6,""))) -> 0.34 | L88: =IF(OR(LEFT(G88,1)="b",LEFT(G88,1)="h")=TRUE,'Basalt & Hawaite Vol Dist'!$B$42,IF(OR(LEFT(G88,1)="m",LEFT(G88,1)="o")=TRUE,'Mug & Ben Vol Dist'!$B$42,IF(LEFT(G88,1)="t",'Trachyte Vol Dist'!$B$42,""))) -> 0.999
A89: 88 | B89: 0.8997804714 | C89: 0.8575826375 | D89: =SUM($C89:$C$237) -> 52.45240893 | E89: =IFERROR(VLOOKUP(G89,'Summary of age data'!$A$3:$D$243,2,FALSE),"") -> 223.4 | F89: =IFERROR(VLOOKUP(G89,'Summary of age data'!$A$3:$D$243,3,FALSE),"") -> 8.6 | G89: bbd | H89: =IF(OR(LEFT(G89,1)="b",LEFT(G89,1)="h")=TRUE,'Basalt & Hawaite Vol Dist'!$H$6,IF(OR(LEFT(G89,1)="m",LEFT(G89,1)="o")=TRUE,'Mug & Ben Vol Dist'!$H$6,IF(LEFT(G89,1)="t",'Trachyte Vol Dist'!$H$6,""))) -> 1.13 | I89: =IF(OR(LEFT(G89,1)="b",LEFT(G89,1)="h")=TRUE,'Basalt & Hawaite Vol Dist'!$I$6,IF(OR(LEFT(G89,1)="m",LEFT(G89,1)="o")=TRUE,'Mug & Ben Vol Dist'!$I$6,IF(LEFT(G89,1)="t",'Trachyte Vol Dist'!$I$6,""))) -> 0.34 | J89: =IF(OR(LEFT(G89,1)="b",LEFT(G89,1)="h")=TRUE,'Basalt & Hawaite Vol Dist'!$J$6,IF(OR(LEFT(G89,1)="m",LEFT(G89,1)="o")=TRUE,'Mug & Ben Vol Dist'!$J$6,IF(LEFT(G89,1)="t",'Trachyte Vol Dist'!$J$6,""))) -> 1.13 | K89: =IF(OR(LEFT(G89,1)="b",LEFT(G89,1)="h")=TRUE,'Basalt & Hawaite Vol Dist'!$K$6,IF(OR(LEFT(G89,1)="m",LEFT(G89,1)="o")=TRUE,'Mug & Ben Vol Dist'!$K$6,IF(LEFT(G89,1)="t",'Trachyte Vol Dist'!$K$6,""))) -> 0.34 | L89: =IF(OR(LEFT(G89,1)="b",LEFT(G89,1)="h")=TRUE,'Basalt & Hawaite Vol Dist'!$B$42,IF(OR(LEFT(G89,1)="m",LEFT(G89,1)="o")=TRUE,'Mug & Ben Vol Dist'!$B$42,IF(LEFT(G89,1)="t",'Trachyte Vol Dist'!$B$42,""))) -> 0.999
A90: 89 | B90: 0.3144577765 | C90: 0.1592793643 | D90: =SUM($C90:$C$237) -> 51.59482629 | E90: =IFERROR(VLOOKUP(G90,'Summary of age data'!$A$3:$D$243,2,FALSE),"") -> 224.2 | F90: =IFERROR(VLOOKUP(G90,'Summary of age data'!$A$3:$D$243,3,FALSE),"") -> 187.3 | G90: buru | H90: =IF(OR(LEFT(G90,1)="b",LEFT(G90,1)="h")=TRUE,'Basalt & Hawaite Vol Dist'!$H$6,IF(OR(LEFT(G90,1)="m",LEFT(G90,1)="o")=TRUE,'Mug & Ben Vol Dist'!$H$6,IF(LEFT(G90,1)="t",'Trachyte Vol Dist'!$H$6,""))) -> 1.13 | I90: =IF(OR(LEFT(G90,1)="b",LEFT(G90,1)="h")=TRUE,'Basalt & Hawaite Vol Dist'!$I$6,IF(OR(LEFT(G90,1)="m",LEFT(G90,1)="o")=TRUE,'Mug & Ben Vol Dist'!$I$6,IF(LEFT(G90,1)="t",'Trachyte Vol Dist'!$I$6,""))) -> 0.34 | J90: =IF(OR(LEFT(G90,1)="b",LEFT(G90,1)="h")=TRUE,'Basalt & Hawaite Vol Dist'!$J$6,IF(OR(LEFT(G90,1)="m",LEFT(G90,1)="o")=TRUE,'Mug & Ben Vol Dist'!$J$6,IF(LEFT(G90,1)="t",'Trachyte Vol Dist'!$J$6,""))) -> 1.13 | K90: =IF(OR(LEFT(G90,1)="b",LEFT(G90,1)="h")=TRUE,'Basalt & Hawaite Vol Dist'!$K$6,IF(OR(LEFT(G90,1)="m",LEFT(G90,1)="o")=TRUE,'Mug & Ben Vol Dist'!$K$6,IF(LEFT(G90,1)="t",'Trachyte Vol Dist'!$K$6,""))) -> 0.34 | L90: =IF(OR(LEFT(G90,1)="b",LEFT(G90,1)="h")=TRUE,'Basalt & Hawaite Vol Dist'!$B$42,IF(OR(LEFT(G90,1)="m",LEFT(G90,1)="o")=TRUE,'Mug & Ben Vol Dist'!$B$42,IF(LEFT(G90,1)="t",'Trachyte Vol Dist'!$B$42,""))) -> 0.999
A91: 90 | B91: 0.650066132 | C91: 0.4099242391 | D91: =SUM($C91:$C$237) -> 51.43554693 | E91: =IFERROR(VLOOKUP(G91,'Summary of age data'!$A$3:$D$243,2,FALSE),"") -> 224.2 | F91: =IFERROR(VLOOKUP(G91,'Summary of age data'!$A$3:$D$243,3,FALSE),"") -> 187.3 | G91: buri | H91: =IF(OR(LEFT(G91,1)="b",LEFT(G91,1)="h")=TRUE,'Basalt & Hawaite Vol Dist'!$H$6,IF(OR(LEFT(G91,1)="m",LEFT(G91,1)="o")=TRUE,'Mug & Ben Vol Dist'!$H$6,IF(LEFT(G91,1)="t",'Trachyte Vol Dist'!$H$6,""))) -> 1.13 | I91: =IF(OR(LEFT(G91,1)="b",LEFT(G91,1)="h")=TRUE,'Basalt & Hawaite Vol Dist'!$I$6,IF(OR(LEFT(G91,1)="m",LEFT(G91,1)="o")=TRUE,'Mug & Ben Vol Dist'!$I$6,IF(LEFT(G91,1)="t",'Trachyte Vol Dist'!$I$6,""))) -> 0.34 | J91: =IF(OR(LEFT(G91,1)="b",LEFT(G91,1)="h")=TRUE,'Basalt & Hawaite Vol Dist'!$J$6,IF(OR(LEFT(G91,1)="m",LEFT(G91,1)="o")=TRUE,'Mug & Ben Vol Dist'!$J$6,IF(LEFT(G91,1)="t",'Trachyte Vol Dist'!$J$6,""))) -> 1.13 | K91: =IF(OR(LEFT(G91,1)="b",LEFT(G91,1)="h")=TRUE,'Basalt & Hawaite Vol Dist'!$K$6,IF(OR(LEFT(G91,1)="m",LEFT(G91,1)="o")=TRUE,'Mug & Ben Vol Dist'!$K$6,IF(LEFT(G91,1)="t",'Trachyte Vol Dist'!$K$6,""))) -> 0.34 | L91: =IF(OR(LEFT(G91,1)="b",LEFT(G91,1)="h")=TRUE,'Basalt & Hawaite Vol Dist'!$B$42,IF(OR(LEFT(G91,1)="m",LEFT(G91,1)="o")=TRUE,'Mug & Ben Vol Dist'!$B$42,IF(LEFT(G91,1)="t",'Trachyte Vol Dist'!$B$42,""))) -> 0.999
A92: 91 | B92: 0.9598103029 | C92: 0.4125444909 | D92: =SUM($C92:$C$237) -> 51.02562269 | E92: =IFERROR(VLOOKUP(G92,'Summary of age data'!$A$3:$D$243,2,FALSE),"") -> 226.9 | F92: =IFERROR(VLOOKUP(G92,'Summary of age data'!$A$3:$D$243,3,FALSE),"") -> 4.3 | G92: oma | H92: =IF(OR(LEFT(G92,1)="b",LEFT(G92,1)="h")=TRUE,'Basalt & Hawaite Vol Dist'!$H$6,IF(OR(LEFT(G92,1)="m",LEFT(G92,1)="o")=TRUE,'Mug & Ben Vol Dist'!$H$6,IF(LEFT(G92,1)="t",'Trachyte Vol Dist'!$H$6,""))) -> 0.21 | I92: =IF(OR(LEFT(G92,1)="b",LEFT(G92,1)="h")=TRUE,'Basalt & Hawaite Vol Dist'!$I$6,IF(OR(LEFT(G92,1)="m",LEFT(G92,1)="o")=TRUE,'Mug & Ben Vol Dist'!$I$6,IF(LEFT(G92,1)="t",'Trachyte Vol Dist'!$I$6,""))) -> 6.1 | J92: =IF(OR(LEFT(G92,1)="b",LEFT(G92,1)="h")=TRUE,'Basalt & Hawaite Vol Dist'!$J$6,IF(OR(LEFT(G92,1)="m",LEFT(G92,1)="o")=TRUE,'Mug & Ben Vol Dist'!$J$6,IF(LEFT(G92,1)="t",'Trachyte Vol Dist'!$J$6,""))) -> 8.9 | K92: =IF(OR(LEFT(G92,1)="b",LEFT(G92,1)="h")=TRUE,'Basalt & Hawaite Vol Dist'!$K$6,IF(OR(LEFT(G92,1)="m",LEFT(G92,1)="o")=TRUE,'Mug & Ben Vol Dist'!$K$6,IF(LEFT(G92,1)="t",'Trachyte Vol Dist'!$K$6,""))) -> 0.028 | L92: =IF(OR(LEFT(G92,1)="b",LEFT(G92,1)="h")=TRUE,'Basalt & Hawaite Vol Dist'!$B$42,IF(OR(LEFT(G92,1)="m",LEFT(G92,1)="o")=TRUE,'Mug & Ben Vol Dist'!$B$42,IF(LEFT(G92,1)="t",'Trachyte Vol Dist'!$B$42,""))) -> 0.5551036823
A93: 92 | B93: 0.5895676251 | C93: 0.3515901673 | D93: =SUM($C93:$C$237) -> 50.6130782 | E93: =IFERROR(VLOOKUP(G93,'Summary of age data'!$A$3:$D$243,2,FALSE),"") -> 228.6 | F93: =IFERROR(VLOOKUP(G93,'Summary of age data'!$A$3:$D$243,3,FALSE),"") -> 12 | G93: blsl | H93: =IF(OR(LEFT(G93,1)="b",LEFT(G93,1)="h")=TRUE,'Basalt & Hawaite Vol Dist'!$H$6,IF(OR(LEFT(G93,1)="m",LEFT(G93,1)="o")=TRUE,'Mug & Ben Vol Dist'!$H$6,IF(LEFT(G93,1)="t",'Trachyte Vol Dist'!$H$6,""))) -> 1.13 | I93: =IF(OR(LEFT(G93,1)="b",LEFT(G93,1)="h")=TRUE,'Basalt & Hawaite Vol Dist'!$I$6,IF(OR(LEFT(G93,1)="m",LEFT(G93,1)="o")=TRUE,'Mug & Ben Vol Dist'!$I$6,IF(LEFT(G93,1)="t",'Trachyte Vol Dist'!$I$6,""))) -> 0.34 | J93: =IF(OR(LEFT(G93,1)="b",LEFT(G93,1)="h")=TRUE,'Basalt & Hawaite Vol Dist'!$J$6,IF(OR(LEFT(G93,1)="m",LEFT(G93,1)="o")=TRUE,'Mug & Ben Vol Dist'!$J$6,IF(LEFT(G93,1)="t",'Trachyte Vol Dist'!$J$6,""))) -> 1.13 | K93: =IF(OR(LEFT(G93,1)="b",LEFT(G93,1)="h")=TRUE,'Basalt & Hawaite Vol Dist'!$K$6,IF(OR(LEFT(G93,1)="m",LEFT(G93,1)="o")=TRUE,'Mug & Ben Vol Dist'!$K$6,IF(LEFT(G93,1)="t",'Trachyte Vol Dist'!$K$6,""))) -> 0.34 | L93: =IF(OR(LEFT(G93,1)="b",LEFT(G93,1)="h")=TRUE,'Basalt & Hawaite Vol Dist'!$B$42,IF(OR(LEFT(G93,1)="m",LEFT(G93,1)="o")=TRUE,'Mug & Ben Vol Dist'!$B$42,IF(LEFT(G93,1)="t",'Trachyte Vol Dist'!$B$42,""))) -> 0.999
A94: 93 | B94: 0.6896211641 | C94: 0.4535292737 | D94: =SUM($C94:$C$237) -> 50.26148803 | E94: =IFERROR(VLOOKUP(G94,'Summary of age data'!$A$3:$D$243,2,FALSE),"") -> 230.7 | F94: =IFERROR(VLOOKUP(G94,'Summary of age data'!$A$3:$D$243,3,FALSE),"") -> 4.4 | G94: bm1 | H94: =IF(OR(LEFT(G94,1)="b",LEFT(G94,1)="h")=TRUE,'Basalt & Hawaite Vol Dist'!$H$6,IF(OR(LEFT(G94,1)="m",LEFT(G94,1)="o")=TRUE,'Mug & Ben Vol Dist'!$H$6,IF(LEFT(G94,1)="t",'Trachyte Vol Dist'!$H$6,""))) -> 1.13 | I94: =IF(OR(LEFT(G94,1)="b",LEFT(G94,1)="h")=TRUE,'Basalt & Hawaite Vol Dist'!$I$6,IF(OR(LEFT(G94,1)="m",LEFT(G94,1)="o")=TRUE,'Mug & Ben Vol Dist'!$I$6,IF(LEFT(G94,1)="t",'Trachyte Vol Dist'!$I$6,""))) -> 0.34 | J94: =IF(OR(LEFT(G94,1)="b",LEFT(G94,1)="h")=TRUE,'Basalt & Hawaite Vol Dist'!$J$6,IF(OR(LEFT(G94,1)="m",LEFT(G94,1)="o")=TRUE,'Mug & Ben Vol Dist'!$J$6,IF(LEFT(G94,1)="t",'Trachyte Vol Dist'!$J$6,""))) -> 1.13 | K94: =IF(OR(LEFT(G94,1)="b",LEFT(G94,1)="h")=TRUE,'Basalt & Hawaite Vol Dist'!$K$6,IF(OR(LEFT(G94,1)="m",LEFT(G94,1)="o")=TRUE,'Mug & Ben Vol Dist'!$K$6,IF(LEFT(G94,1)="t",'Trachyte Vol Dist'!$K$6,""))) -> 0.34 | L94: =IF(OR(LEFT(G94,1)="b",LEFT(G94,1)="h")=TRUE,'Basalt & Hawaite Vol Dist'!$B$42,IF(OR(LEFT(G94,1)="m",LEFT(G94,1)="o")=TRUE,'Mug & Ben Vol Dist'!$B$42,IF(LEFT(G94,1)="t",'Trachyte Vol Dist'!$B$42,""))) -> 0.999
A95: 94 | B95: 0.5297635986 | C95: 0.3014238256 | D95: =SUM($C95:$C$237) -> 49.80795876 | E95: =IFERROR(VLOOKUP(G95,'Summary of age data'!$A$3:$D$243,2,FALSE),"") -> 232.7 | F95: =IFERROR(VLOOKUP(G95,'Summary of age data'!$A$3:$D$243,3,FALSE),"") -> 15.9 | G95: bdr | H95: =IF(OR(LEFT(G95,1)="b",LEFT(G95,1)="h")=TRUE,'Basalt & Hawaite Vol Dist'!$H$6,IF(OR(LEFT(G95,1)="m",LEFT(G95,1)="o")=TRUE,'Mug & Ben Vol Dist'!$H$6,IF(LEFT(G95,1)="t",'Trachyte Vol Dist'!$H$6,""))) -> 1.13 | I95: =IF(OR(LEFT(G95,1)="b",LEFT(G95,1)="h")=TRUE,'Basalt & Hawaite Vol Dist'!$I$6,IF(OR(LEFT(G95,1)="m",LEFT(G95,1)="o")=TRUE,'Mug & Ben Vol Dist'!$I$6,IF(LEFT(G95,1)="t",'Trachyte Vol Dist'!$I$6,""))) -> 0.34 | J95: =IF(OR(LEFT(G95,1)="b",LEFT(G95,1)="h")=TRUE,'Basalt & Hawaite Vol Dist'!$J$6,IF(OR(LEFT(G95,1)="m",LEFT(G95,1)="o")=TRUE,'Mug & Ben Vol Dist'!$J$6,IF(LEFT(G95,1)="t",'Trachyte Vol Dist'!$J$6,""))) -> 1.13 | K95: =IF(OR(LEFT(G95,1)="b",LEFT(G95,1)="h")=TRUE,'Basalt & Hawaite Vol Dist'!$K$6,IF(OR(LEFT(G95,1)="m",LEFT(G95,1)="o")=TRUE,'Mug & Ben Vol Dist'!$K$6,IF(LEFT(G95,1)="t",'Trachyte Vol Dist'!$K$6,""))) -> 0.34 | L95: =IF(OR(LEFT(G95,1)="b",LEFT(G95,1)="h")=TRUE,'Basalt & Hawaite Vol Dist'!$B$42,IF(OR(LEFT(G95,1)="m",LEFT(G95,1)="o")=TRUE,'Mug & Ben Vol Dist'!$B$42,IF(LEFT(G95,1)="t",'Trachyte Vol Dist'!$B$42,""))) -> 0.999
A96: 95 | B96: 0.05769302623 | C96: 0.02993105098 | D96: =SUM($C96:$C$237) -> 49.50653493 | E96: =IFERROR(VLOOKUP(G96,'Summary of age data'!$A$3:$D$243,2,FALSE),"") -> 235 | F96: =IFERROR(VLOOKUP(G96,'Summary of age data'!$A$3:$D$243,3,FALSE),"") -> 4 | G96: bmt | H96: =IF(OR(LEFT(G96,1)="b",LEFT(G96,1)="h")=TRUE,'Basalt & Hawaite Vol Dist'!$H$6,IF(OR(LEFT(G96,1)="m",LEFT(G96,1)="o")=TRUE,'Mug & Ben Vol Dist'!$H$6,IF(LEFT(G96,1)="t",'Trachyte Vol Dist'!$H$6,""))) -> 1.13 | I96: =IF(OR(LEFT(G96,1)="b",LEFT(G96,1)="h")=TRUE,'Basalt & Hawaite Vol Dist'!$I$6,IF(OR(LEFT(G96,1)="m",LEFT(G96,1)="o")=TRUE,'Mug & Ben Vol Dist'!$I$6,IF(LEFT(G96,1)="t",'Trachyte Vol Dist'!$I$6,""))) -> 0.34 | J96: =IF(OR(LEFT(G96,1)="b",LEFT(G96,1)="h")=TRUE,'Basalt & Hawaite Vol Dist'!$J$6,IF(OR(LEFT(G96,1)="m",LEFT(G96,1)="o")=TRUE,'Mug & Ben Vol Dist'!$J$6,IF(LEFT(G96,1)="t",'Trachyte Vol Dist'!$J$6,""))) -> 1.13 | K96: =IF(OR(LEFT(G96,1)="b",LEFT(G96,1)="h")=TRUE,'Basalt & Hawaite Vol Dist'!$K$6,IF(OR(LEFT(G96,1)="m",LEFT(G96,1)="o")=TRUE,'Mug & Ben Vol Dist'!$K$6,IF(LEFT(G96,1)="t",'Trachyte Vol Dist'!$K$6,""))) -> 0.34 | L96: =IF(OR(LEFT(G96,1)="b",LEFT(G96,1)="h")=TRUE,'Basalt & Hawaite Vol Dist'!$B$42,IF(OR(LEFT(G96,1)="m",LEFT(G96,1)="o")=TRUE,'Mug & Ben Vol Dist'!$B$42,IF(LEFT(G96,1)="t",'Trachyte Vol Dist'!$B$42,""))) -> 0.999
A97: 96 | B97: 0.2135096917 | C97: 0.1054282394 | D97: =SUM($C97:$C$237) -> 49.47660388 | E97: =IFERROR(VLOOKUP(G97,'Summary of age data'!$A$3:$D$243,2,FALSE),"") -> 235.1 | F97: =IFERROR(VLOOKUP(G97,'Summary of age data'!$A$3:$D$243,3,FALSE),"") -> 7.5 | G97: bhy | H97: =IF(OR(LEFT(G97,1)="b",LEFT(G97,1)="h")=TRUE,'Basalt & Hawaite Vol Dist'!$H$6,IF(OR(LEFT(G97,1)="m",LEFT(G97,1)="o")=TRUE,'Mug & Ben Vol Dist'!$H$6,IF(LEFT(G97,1)="t",'Trachyte Vol Dist'!$H$6,""))) -> 1.13 | I97: =IF(OR(LEFT(G97,1)="b",LEFT(G97,1)="h")=TRUE,'Basalt & Hawaite Vol Dist'!$I$6,IF(OR(LEFT(G97,1)="m",LEFT(G97,1)="o")=TRUE,'Mug & Ben Vol Dist'!$I$6,IF(LEFT(G97,1)="t",'Trachyte Vol Dist'!$I$6,""))) -> 0.34 | J97: =IF(OR(LEFT(G97,1)="b",LEFT(G97,1)="h")=TRUE,'Basalt & Hawaite Vol Dist'!$J$6,IF(OR(LEFT(G97,1)="m",LEFT(G97,1)="o")=TRUE,'Mug & Ben Vol Dist'!$J$6,IF(LEFT(G97,1)="t",'Trachyte Vol Dist'!$J$6,""))) -> 1.13 | K97: =IF(OR(LEFT(G97,1)="b",LEFT(G97,1)="h")=TRUE,'Basalt & Hawaite Vol Dist'!$K$6,IF(OR(LEFT(G97,1)="m",LEFT(G97,1)="o")=TRUE,'Mug & Ben Vol Dist'!$K$6,IF(LEFT(G97,1)="t",'Trachyte Vol Dist'!$K$6,""))) -> 0.34 | L97: =IF(OR(LEFT(G97,1)="b",LEFT(G97,1)="h")=TRUE,'Basalt & Hawaite Vol Dist'!$B$42,IF(OR(LEFT(G97,1)="m",LEFT(G97,1)="o")=TRUE,'Mug & Ben Vol Dist'!$B$42,IF(LEFT(G97,1)="t",'Trachyte Vol Dist'!$B$42,""))) -> 0.999
A98: 97 | B98: 0.4275260856 | C98: 0.2279684015 | D98: =SUM($C98:$C$237) -> 49.37117564 | E98: =IFERROR(VLOOKUP(G98,'Summary of age data'!$A$3:$D$243,2,FALSE),"") -> 236.2 | F98: =IFERROR(VLOOKUP(G98,'Summary of age data'!$A$3:$D$243,3,FALSE),"") -> 29.2 | G98: bsy | H98: =IF(OR(LEFT(G98,1)="b",LEFT(G98,1)="h")=TRUE,'Basalt & Hawaite Vol Dist'!$H$6,IF(OR(LEFT(G98,1)="m",LEFT(G98,1)="o")=TRUE,'Mug & Ben Vol Dist'!$H$6,IF(LEFT(G98,1)="t",'Trachyte Vol Dist'!$H$6,""))) -> 1.13 | I98: =IF(OR(LEFT(G98,1)="b",LEFT(G98,1)="h")=TRUE,'Basalt & Hawaite Vol Dist'!$I$6,IF(OR(LEFT(G98,1)="m",LEFT(G98,1)="o")=TRUE,'Mug & Ben Vol Dist'!$I$6,IF(LEFT(G98,1)="t",'Trachyte Vol Dist'!$I$6,""))) -> 0.34 | J98: =IF(OR(LEFT(G98,1)="b",LEFT(G98,1)="h")=TRUE,'Basalt & Hawaite Vol Dist'!$J$6,IF(OR(LEFT(G98,1)="m",LEFT(G98,1)="o")=TRUE,'Mug & Ben Vol Dist'!$J$6,IF(LEFT(G98,1)="t",'Trachyte Vol Dist'!$J$6,""))) -> 1.13 | K98: =IF(OR(LEFT(G98,1)="b",LEFT(G98,1)="h")=TRUE,'Basalt & Hawaite Vol Dist'!$K$6,IF(OR(LEFT(G98,1)="m",LEFT(G98,1)="o")=TRUE,'Mug & Ben Vol Dist'!$K$6,IF(LEFT(G98,1)="t",'Trachyte Vol Dist'!$K$6,""))) -> 0.34 | L98: =IF(OR(LEFT(G98,1)="b",LEFT(G98,1)="h")=TRUE,'Basalt & Hawaite Vol Dist'!$B$42,IF(OR(LEFT(G98,1)="m",LEFT(G98,1)="o")=TRUE,'Mug & Ben Vol Dist'!$B$42,IF(LEFT(G98,1)="t",'Trachyte Vol Dist'!$B$42,""))) -> 0.999
A99: 98 | B99: 0.2195128182 | C99: 0.108482231 | D99: =SUM($C99:$C$237) -> 49.14320724 | E99: =IFERROR(VLOOKUP(G99,'Summary of age data'!$A$3:$D$243,2,FALSE),"") -> 238.1 | F99: =IFERROR(VLOOKUP(G99,'Summary of age data'!$A$3:$D$243,3,FALSE),"") -> 27.3 | G99: badb | H99: =IF(OR(LEFT(G99,1)="b",LEFT(G99,1)="h")=TRUE,'Basalt & Hawaite Vol Dist'!$H$6,IF(OR(LEFT(G99,1)="m",LEFT(G99,1)="o")=TRUE,'Mug & Ben Vol Dist'!$H$6,IF(LEFT(G99,1)="t",'Trachyte Vol Dist'!$H$6,""))) -> 1.13 | I99: =IF(OR(LEFT(G99,1)="b",LEFT(G99,1)="h")=TRUE,'Basalt & Hawaite Vol Dist'!$I$6,IF(OR(LEFT(G99,1)="m",LEFT(G99,1)="o")=TRUE,'Mug & Ben Vol Dist'!$I$6,IF(LEFT(G99,1)="t",'Trachyte Vol Dist'!$I$6,""))) -> 0.34 | J99: =IF(OR(LEFT(G99,1)="b",LEFT(G99,1)="h")=TRUE,'Basalt & Hawaite Vol Dist'!$J$6,IF(OR(LEFT(G99,1)="m",LEFT(G99,1)="o")=TRUE,'Mug & Ben Vol Dist'!$J$6,IF(LEFT(G99,1)="t",'Trachyte Vol Dist'!$J$6,""))) -> 1.13 | K99: =IF(OR(LEFT(G99,1)="b",LEFT(G99,1)="h")=TRUE,'Basalt & Hawaite Vol Dist'!$K$6,IF(OR(LEFT(G99,1)="m",LEFT(G99,1)="o")=TRUE,'Mug & Ben Vol Dist'!$K$6,IF(LEFT(G99,1)="t",'Trachyte Vol Dist'!$K$6,""))) -> 0.34 | L99: =IF(OR(LEFT(G99,1)="b",LEFT(G99,1)="h")=TRUE,'Basalt & Hawaite Vol Dist'!$B$42,IF(OR(LEFT(G99,1)="m",LEFT(G99,1)="o")=TRUE,'Mug & Ben Vol Dist'!$B$42,IF(LEFT(G99,1)="t",'Trachyte Vol Dist'!$B$42,""))) -> 0.999
A100: 99 | B100: 0.4169722617 | C100: 0.2210786631 | D100: =SUM($C100:$C$237) -> 49.03472501 | E100: =IFERROR(VLOOKUP(G100,'Summary of age data'!$A$3:$D$243,2,FALSE),"") -> 239 | F100: =IFERROR(VLOOKUP(G100,'Summary of age data'!$A$3:$D$243,3,FALSE),"") -> 4.1 | G100: hmo | H100: =IF(OR(LEFT(G100,1)="b",LEFT(G100,1)="h")=TRUE,'Basalt & Hawaite Vol Dist'!$H$6,IF(OR(LEFT(G100,1)="m",LEFT(G100,1)="o")=TRUE,'Mug & Ben Vol Dist'!$H$6,IF(LEFT(G100,1)="t",'Trachyte Vol Dist'!$H$6,""))) -> 1.13 | I100: =IF(OR(LEFT(G100,1)="b",LEFT(G100,1)="h")=TRUE,'Basalt & Hawaite Vol Dist'!$I$6,IF(OR(LEFT(G100,1)="m",LEFT(G100,1)="o")=TRUE,'Mug & Ben Vol Dist'!$I$6,IF(LEFT(G100,1)="t",'Trachyte Vol Dist'!$I$6,""))) -> 0.34 | J100: =IF(OR(LEFT(G100,1)="b",LEFT(G100,1)="h")=TRUE,'Basalt & Hawaite Vol Dist'!$J$6,IF(OR(LEFT(G100,1)="m",LEFT(G100,1)="o")=TRUE,'Mug & Ben Vol Dist'!$J$6,IF(LEFT(G100,1)="t",'Trachyte Vol Dist'!$J$6,""))) -> 1.13 | K100: =IF(OR(LEFT(G100,1)="b",LEFT(G100,1)="h")=TRUE,'Basalt & Hawaite Vol Dist'!$K$6,IF(OR(LEFT(G100,1)="m",LEFT(G100,1)="o")=TRUE,'Mug & Ben Vol Dist'!$K$6,IF(LEFT(G100,1)="t",'Trachyte Vol Dist'!$K$6,""))) -> 0.34 | L100: =IF(OR(LEFT(G100,1)="b",LEFT(G100,1)="h")=TRUE,'Basalt & Hawaite Vol Dist'!$B$42,IF(OR(LEFT(G100,1)="m",LEFT(G100,1)="o")=TRUE,'Mug & Ben Vol Dist'!$B$42,IF(LEFT(G100,1)="t",'Trachyte Vol Dist'!$B$42,""))) -> 0.999
A101: 100 | B101: 0.5571448003 | C101: 0.323602029 | D101: =SUM($C101:$C$237) -> 48.81364634 | E101: =IFERROR(VLOOKUP(G101,'Summary of age data'!$A$3:$D$243,2,FALSE),"") -> 242.3 | F101: =IFERROR(VLOOKUP(G101,'Summary of age data'!$A$3:$D$243,3,FALSE),"") -> 24.6 | G101: bbr | H101: =IF(OR(LEFT(G101,1)="b",LEFT(G101,1)="h")=TRUE,'Basalt & Hawaite Vol Dist'!$H$6,IF(OR(LEFT(G101,1)="m",LEFT(G101,1)="o")=TRUE,'Mug & Ben Vol Dist'!$H$6,IF(LEFT(G101,1)="t",'Trachyte Vol Dist'!$H$6,""))) -> 1.13 | I101: =IF(OR(LEFT(G101,1)="b",LEFT(G101,1)="h")=TRUE,'Basalt & Hawaite Vol Dist'!$I$6,IF(OR(LEFT(G101,1)="m",LEFT(G101,1)="o")=TRUE,'Mug & Ben Vol Dist'!$I$6,IF(LEFT(G101,1)="t",'Trachyte Vol Dist'!$I$6,""))) -> 0.34 | J101: =IF(OR(LEFT(G101,1)="b",LEFT(G101,1)="h")=TRUE,'Basalt & Hawaite Vol Dist'!$J$6,IF(OR(LEFT(G101,1)="m",LEFT(G101,1)="o")=TRUE,'Mug & Ben Vol Dist'!$J$6,IF(LEFT(G101,1)="t",'Trachyte Vol Dist'!$J$6,""))) -> 1.13 | K101: =IF(OR(LEFT(G101,1)="b",LEFT(G101,1)="h")=TRUE,'Basalt & Hawaite Vol Dist'!$K$6,IF(OR(LEFT(G101,1)="m",LEFT(G101,1)="o")=TRUE,'Mug & Ben Vol Dist'!$K$6,IF(LEFT(G101,1)="t",'Trachyte Vol Dist'!$K$6,""))) -> 0.34 | L101: =IF(OR(LEFT(G101,1)="b",LEFT(G101,1)="h")=TRUE,'Basalt & Hawaite Vol Dist'!$B$42,IF(OR(LEFT(G101,1)="m",LEFT(G101,1)="o")=TRUE,'Mug & Ben Vol Dist'!$B$42,IF(LEFT(G101,1)="t",'Trachyte Vol Dist'!$B$42,""))) -> 0.999
A102: 101 | B102: 0.9522317069 | C102: 0.4031123704 | D102: =SUM($C102:$C$237) -> 48.49004431 | E102: =IFERROR(VLOOKUP(G102,'Summary of age data'!$A$3:$D$243,2,FALSE),"") -> 242.8 | F102: =IFERROR(VLOOKUP(G102,'Summary of age data'!$A$3:$D$243,3,FALSE),"") -> 2.4 | G102: oba | H102: =IF(OR(LEFT(G102,1)="b",LEFT(G102,1)="h")=TRUE,'Basalt & Hawaite Vol Dist'!$H$6,IF(OR(LEFT(G102,1)="m",LEFT(G102,1)="o")=TRUE,'Mug & Ben Vol Dist'!$H$6,IF(LEFT(G102,1)="t",'Trachyte Vol Dist'!$H$6,""))) -> 0.21 | I102: =IF(OR(LEFT(G102,1)="b",LEFT(G102,1)="h")=TRUE,'Basalt & Hawaite Vol Dist'!$I$6,IF(OR(LEFT(G102,1)="m",LEFT(G102,1)="o")=TRUE,'Mug & Ben Vol Dist'!$I$6,IF(LEFT(G102,1)="t",'Trachyte Vol Dist'!$I$6,""))) -> 6.1 | J102: =IF(OR(LEFT(G102,1)="b",LEFT(G102,1)="h")=TRUE,'Basalt & Hawaite Vol Dist'!$J$6,IF(OR(LEFT(G102,1)="m",LEFT(G102,1)="o")=TRUE,'Mug & Ben Vol Dist'!$J$6,IF(LEFT(G102,1)="t",'Trachyte Vol Dist'!$J$6,""))) -> 8.9 | K102: =IF(OR(LEFT(G102,1)="b",LEFT(G102,1)="h")=TRUE,'Basalt & Hawaite Vol Dist'!$K$6,IF(OR(LEFT(G102,1)="m",LEFT(G102,1)="o")=TRUE,'Mug & Ben Vol Dist'!$K$6,IF(LEFT(G102,1)="t",'Trachyte Vol Dist'!$K$6,""))) -> 0.028 | L102: =IF(OR(LEFT(G102,1)="b",LEFT(G102,1)="h")=TRUE,'Basalt & Hawaite Vol Dist'!$B$42,IF(OR(LEFT(G102,1)="m",LEFT(G102,1)="o")=TRUE,'Mug & Ben Vol Dist'!$B$42,IF(LEFT(G102,1)="t",'Trachyte Vol Dist'!$B$42,""))) -> 0.5551036823
A103: 102 | B103: 0.0598274351 | C103: 0.03095194591 | D103: =SUM($C103:$C$237) -> 48.08693194 | E103: =IFERROR(VLOOKUP(G103,'Summary of age data'!$A$3:$D$243,2,FALSE),"") -> 246.4 | F103: =IFERROR(VLOOKUP(G103,'Summary of age data'!$A$3:$D$243,3,FALSE),"") -> 25 | G103: bhb | H103: =IF(OR(LEFT(G103,1)="b",LEFT(G103,1)="h")=TRUE,'Basalt & Hawaite Vol Dist'!$H$6,IF(OR(LEFT(G103,1)="m",LEFT(G103,1)="o")=TRUE,'Mug & Ben Vol Dist'!$H$6,IF(LEFT(G103,1)="t",'Trachyte Vol Dist'!$H$6,""))) -> 1.13 | I103: =IF(OR(LEFT(G103,1)="b",LEFT(G103,1)="h")=TRUE,'Basalt & Hawaite Vol Dist'!$I$6,IF(OR(LEFT(G103,1)="m",LEFT(G103,1)="o")=TRUE,'Mug & Ben Vol Dist'!$I$6,IF(LEFT(G103,1)="t",'Trachyte Vol Dist'!$I$6,""))) -> 0.34 | J103: =IF(OR(LEFT(G103,1)="b",LEFT(G103,1)="h")=TRUE,'Basalt & Hawaite Vol Dist'!$J$6,IF(OR(LEFT(G103,1)="m",LEFT(G103,1)="o")=TRUE,'Mug & Ben Vol Dist'!$J$6,IF(LEFT(G103,1)="t",'Trachyte Vol Dist'!$J$6,""))) -> 1.13 | K103: =IF(OR(LEFT(G103,1)="b",LEFT(G103,1)="h")=TRUE,'Basalt & Hawaite Vol Dist'!$K$6,IF(OR(LEFT(G103,1)="m",LEFT(G103,1)="o")=TRUE,'Mug & Ben Vol Dist'!$K$6,IF(LEFT(G103,1)="t",'Trachyte Vol Dist'!$K$6,""))) -> 0.34 | L103: =IF(OR(LEFT(G103,1)="b",LEFT(G103,1)="h")=TRUE,'Basalt & Hawaite Vol Dist'!$B$42,IF(OR(LEFT(G103,1)="m",LEFT(G103,1)="o")=TRUE,'Mug & Ben Vol Dist'!$B$42,IF(LEFT(G103,1)="t",'Trachyte Vol Dist'!$B$42,""))) -> 0.999
A104: 103 | B104: 0.2588391477 | C104: 0.1289153777 | D104: =SUM($C104:$C$237) -> 48.05598 | E104: =IFERROR(VLOOKUP(G104,'Summary of age data'!$A$3:$D$243,2,FALSE),"") -> 248.2 | F104: =IFERROR(VLOOKUP(G104,'Summary of age data'!$A$3:$D$243,3,FALSE),"") -> 8.3 | G104: hmk | H104: =IF(OR(LEFT(G104,1)="b",LEFT(G104,1)="h")=TRUE,'Basalt & Hawaite Vol Dist'!$H$6,IF(OR(LEFT(G104,1)="m",LEFT(G104,1)="o")=TRUE,'Mug & Ben Vol Dist'!$H$6,IF(LEFT(G104,1)="t",'Trachyte Vol Dist'!$H$6,""))) -> 1.13 | I104: =IF(OR(LEFT(G104,1)="b",LEFT(G104,1)="h")=TRUE,'Basalt & Hawaite Vol Dist'!$I$6,IF(OR(LEFT(G104,1)="m",LEFT(G104,1)="o")=TRUE,'Mug & Ben Vol Dist'!$I$6,IF(LEFT(G104,1)="t",'Trachyte Vol Dist'!$I$6,""))) -> 0.34 | J104: =IF(OR(LEFT(G104,1)="b",LEFT(G104,1)="h")=TRUE,'Basalt & Hawaite Vol Dist'!$J$6,IF(OR(LEFT(G104,1)="m",LEFT(G104,1)="o")=TRUE,'Mug & Ben Vol Dist'!$J$6,IF(LEFT(G104,1)="t",'Trachyte Vol Dist'!$J$6,""))) -> 1.13 | K104: =IF(OR(LEFT(G104,1)="b",LEFT(G104,1)="h")=TRUE,'Basalt & Hawaite Vol Dist'!$K$6,IF(OR(LEFT(G104,1)="m",LEFT(G104,1)="o")=TRUE,'Mug & Ben Vol Dist'!$K$6,IF(LEFT(G104,1)="t",'Trachyte Vol Dist'!$K$6,""))) -> 0.34 | L104: =IF(OR(LEFT(G104,1)="b",LEFT(G104,1)="h")=TRUE,'Basalt & Hawaite Vol Dist'!$B$42,IF(OR(LEFT(G104,1)="m",LEFT(G104,1)="o")=TRUE,'Mug & Ben Vol Dist'!$B$42,IF(LEFT(G104,1)="t",'Trachyte Vol Dist'!$B$42,""))) -> 0.999
A105: 104 | B105: 0.3667240053 | C105: 0.0339111092 | D105: =SUM($C105:$C$237) -> 47.92706462 | E105: =IFERROR(VLOOKUP(G105,'Summary of age data'!$A$3:$D$243,2,FALSE),"") -> 252.2 | F105: =IFERROR(VLOOKUP(G105,'Summary of age data'!$A$3:$D$243,3,FALSE),"") -> 2.7 | G105: masu | H105: =IF(OR(LEFT(G105,1)="b",LEFT(G105,1)="h")=TRUE,'Basalt & Hawaite Vol Dist'!$H$6,IF(OR(LEFT(G105,1)="m",LEFT(G105,1)="o")=TRUE,'Mug & Ben Vol Dist'!$H$6,IF(LEFT(G105,1)="t",'Trachyte Vol Dist'!$H$6,""))) -> 0.21 | I105: =IF(OR(LEFT(G105,1)="b",LEFT(G105,1)="h")=TRUE,'Basalt & Hawaite Vol Dist'!$I$6,IF(OR(LEFT(G105,1)="m",LEFT(G105,1)="o")=TRUE,'Mug & Ben Vol Dist'!$I$6,IF(LEFT(G105,1)="t",'Trachyte Vol Dist'!$I$6,""))) -> 6.1 | J105: =IF(OR(LEFT(G105,1)="b",LEFT(G105,1)="h")=TRUE,'Basalt & Hawaite Vol Dist'!$J$6,IF(OR(LEFT(G105,1)="m",LEFT(G105,1)="o")=TRUE,'Mug & Ben Vol Dist'!$J$6,IF(LEFT(G105,1)="t",'Trachyte Vol Dist'!$J$6,""))) -> 8.9 | K105: =IF(OR(LEFT(G105,1)="b",LEFT(G105,1)="h")=TRUE,'Basalt & Hawaite Vol Dist'!$K$6,IF(OR(LEFT(G105,1)="m",LEFT(G105,1)="o")=TRUE,'Mug & Ben Vol Dist'!$K$6,IF(LEFT(G105,1)="t",'Trachyte Vol Dist'!$K$6,""))) -> 0.028 | L105: =IF(OR(LEFT(G105,1)="b",LEFT(G105,1)="h")=TRUE,'Basalt & Hawaite Vol Dist'!$B$42,IF(OR(LEFT(G105,1)="m",LEFT(G105,1)="o")=TRUE,'Mug & Ben Vol Dist'!$B$42,IF(LEFT(G105,1)="t",'Trachyte Vol Dist'!$B$42,""))) -> 0.5551036823
A106: 105 | B106: 0.7860162226 | C106: 0.5875955609 | D106: =SUM($C106:$C$237) -> 47.89315351 | E106: =IFERROR(VLOOKUP(G106,'Summary of age data'!$A$3:$D$243,2,FALSE),"") -> 252.2 | F106: =IFERROR(VLOOKUP(G106,'Summary of age data'!$A$3:$D$243,3,FALSE),"") -> 6.8 | G106: bam1 | H106: =IF(OR(LEFT(G106,1)="b",LEFT(G106,1)="h")=TRUE,'Basalt & Hawaite Vol Dist'!$H$6,IF(OR(LEFT(G106,1)="m",LEFT(G106,1)="o")=TRUE,'Mug & Ben Vol Dist'!$H$6,IF(LEFT(G106,1)="t",'Trachyte Vol Dist'!$H$6,""))) -> 1.13 | I106: =IF(OR(LEFT(G106,1)="b",LEFT(G106,1)="h")=TRUE,'Basalt & Hawaite Vol Dist'!$I$6,IF(OR(LEFT(G106,1)="m",LEFT(G106,1)="o")=TRUE,'Mug & Ben Vol Dist'!$I$6,IF(LEFT(G106,1)="t",'Trachyte Vol Dist'!$I$6,""))) -> 0.34 | J106: =IF(OR(LEFT(G106,1)="b",LEFT(G106,1)="h")=TRUE,'Basalt & Hawaite Vol Dist'!$J$6,IF(OR(LEFT(G106,1)="m",LEFT(G106,1)="o")=TRUE,'Mug & Ben Vol Dist'!$J$6,IF(LEFT(G106,1)="t",'Trachyte Vol Dist'!$J$6,""))) -> 1.13 | K106: =IF(OR(LEFT(G106,1)="b",LEFT(G106,1)="h")=TRUE,'Basalt & Hawaite Vol Dist'!$K$6,IF(OR(LEFT(G106,1)="m",LEFT(G106,1)="o")=TRUE,'Mug & Ben Vol Dist'!$K$6,IF(LEFT(G106,1)="t",'Trachyte Vol Dist'!$K$6,""))) -> 0.34 | L106: =IF(OR(LEFT(G106,1)="b",LEFT(G106,1)="h")=TRUE,'Basalt & Hawaite Vol Dist'!$B$42,IF(OR(LEFT(G106,1)="m",LEFT(G106,1)="o")=TRUE,'Mug & Ben Vol Dist'!$B$42,IF(LEFT(G106,1)="t",'Trachyte Vol Dist'!$B$42,""))) -> 0.999
A107: 106 | B107: 0.281671611 | C107: 0.1411546616 | D107: =SUM($C107:$C$237) -> 47.30555795 | E107: =IFERROR(VLOOKUP(G107,'Summary of age data'!$A$3:$D$243,2,FALSE),"") -> 252.2 | F107: =IFERROR(VLOOKUP(G107,'Summary of age data'!$A$3:$D$243,3,FALSE),"") -> 2.7 | G107: bahu | H107: =IF(OR(LEFT(G107,1)="b",LEFT(G107,1)="h")=TRUE,'Basalt & Hawaite Vol Dist'!$H$6,IF(OR(LEFT(G107,1)="m",LEFT(G107,1)="o")=TRUE,'Mug & Ben Vol Dist'!$H$6,IF(LEFT(G107,1)="t",'Trachyte Vol Dist'!$H$6,""))) -> 1.13 | I107: =IF(OR(LEFT(G107,1)="b",LEFT(G107,1)="h")=TRUE,'Basalt & Hawaite Vol Dist'!$I$6,IF(OR(LEFT(G107,1)="m",LEFT(G107,1)="o")=TRUE,'Mug & Ben Vol Dist'!$I$6,IF(LEFT(G107,1)="t",'Trachyte Vol Dist'!$I$6,""))) -> 0.34 | J107: =IF(OR(LEFT(G107,1)="b",LEFT(G107,1)="h")=TRUE,'Basalt & Hawaite Vol Dist'!$J$6,IF(OR(LEFT(G107,1)="m",LEFT(G107,1)="o")=TRUE,'Mug & Ben Vol Dist'!$J$6,IF(LEFT(G107,1)="t",'Trachyte Vol Dist'!$J$6,""))) -> 1.13 | K107: =IF(OR(LEFT(G107,1)="b",LEFT(G107,1)="h")=TRUE,'Basalt & Hawaite Vol Dist'!$K$6,IF(OR(LEFT(G107,1)="m",LEFT(G107,1)="o")=TRUE,'Mug & Ben Vol Dist'!$K$6,IF(LEFT(G107,1)="t",'Trachyte Vol Dist'!$K$6,""))) -> 0.34 | L107: =IF(OR(LEFT(G107,1)="b",LEFT(G107,1)="h")=TRUE,'Basalt & Hawaite Vol Dist'!$B$42,IF(OR(LEFT(G107,1)="m",LEFT(G107,1)="o")=TRUE,'Mug & Ben Vol Dist'!$B$42,IF(LEFT(G107,1)="t",'Trachyte Vol Dist'!$B$42,""))) -> 0.999
A108: 107 | B108: 0.3101072797 | C108: 0.156834513 | D108: =SUM($C108:$C$237) -> 47.16440329 | E108: =IFERROR(VLOOKUP(G108,'Summary of age data'!$A$3:$D$243,2,FALSE),"") -> 252.2 | F108: =IFERROR(VLOOKUP(G108,'Summary of age data'!$A$3:$D$243,3,FALSE),"") -> 2.7 | G108: bawa | H108: =IF(OR(LEFT(G108,1)="b",LEFT(G108,1)="h")=TRUE,'Basalt & Hawaite Vol Dist'!$H$6,IF(OR(LEFT(G108,1)="m",LEFT(G108,1)="o")=TRUE,'Mug & Ben Vol Dist'!$H$6,IF(LEFT(G108,1)="t",'Trachyte Vol Dist'!$H$6,""))) -> 1.13 | I108: =IF(OR(LEFT(G108,1)="b",LEFT(G108,1)="h")=TRUE,'Basalt & Hawaite Vol Dist'!$I$6,IF(OR(LEFT(G108,1)="m",LEFT(G108,1)="o")=TRUE,'Mug & Ben Vol Dist'!$I$6,IF(LEFT(G108,1)="t",'Trachyte Vol Dist'!$I$6,""))) -> 0.34 | J108: =IF(OR(LEFT(G108,1)="b",LEFT(G108,1)="h")=TRUE,'Basalt & Hawaite Vol Dist'!$J$6,IF(OR(LEFT(G108,1)="m",LEFT(G108,1)="o")=TRUE,'Mug & Ben Vol Dist'!$J$6,IF(LEFT(G108,1)="t",'Trachyte Vol Dist'!$J$6,""))) -> 1.13 | K108: =IF(OR(LEFT(G108,1)="b",LEFT(G108,1)="h")=TRUE,'Basalt & Hawaite Vol Dist'!$K$6,IF(OR(LEFT(G108,1)="m",LEFT(G108,1)="o")=TRUE,'Mug & Ben Vol Dist'!$K$6,IF(LEFT(G108,1)="t",'Trachyte Vol Dist'!$K$6,""))) -> 0.34 | L108: =IF(OR(LEFT(G108,1)="b",LEFT(G108,1)="h")=TRUE,'Basalt & Hawaite Vol Dist'!$B$42,IF(OR(LEFT(G108,1)="m",LEFT(G108,1)="o")=TRUE,'Mug & Ben Vol Dist'!$B$42,IF(LEFT(G108,1)="t",'Trachyte Vol Dist'!$B$42,""))) -> 0.999
A109: 108 | B109: 0.6570111694 | C109: 0.4172265267 | D109: =SUM($C109:$C$237) -> 47.00756878 | E109: =IFERROR(VLOOKUP(G109,'Summary of age data'!$A$3:$D$243,2,FALSE),"") -> 252.2 | F109: =IFERROR(VLOOKUP(G109,'Summary of age data'!$A$3:$D$243,3,FALSE),"") -> 2.7 | G109: bqar | H109: =IF(OR(LEFT(G109,1)="b",LEFT(G109,1)="h")=TRUE,'Basalt & Hawaite Vol Dist'!$H$6,IF(OR(LEFT(G109,1)="m",LEFT(G109,1)="o")=TRUE,'Mug & Ben Vol Dist'!$H$6,IF(LEFT(G109,1)="t",'Trachyte Vol Dist'!$H$6,""))) -> 1.13 | I109: =IF(OR(LEFT(G109,1)="b",LEFT(G109,1)="h")=TRUE,'Basalt & Hawaite Vol Dist'!$I$6,IF(OR(LEFT(G109,1)="m",LEFT(G109,1)="o")=TRUE,'Mug & Ben Vol Dist'!$I$6,IF(LEFT(G109,1)="t",'Trachyte Vol Dist'!$I$6,""))) -> 0.34 | J109: =IF(OR(LEFT(G109,1)="b",LEFT(G109,1)="h")=TRUE,'Basalt & Hawaite Vol Dist'!$J$6,IF(OR(LEFT(G109,1)="m",LEFT(G109,1)="o")=TRUE,'Mug & Ben Vol Dist'!$J$6,IF(LEFT(G109,1)="t",'Trachyte Vol Dist'!$J$6,""))) -> 1.13 | K109: =IF(OR(LEFT(G109,1)="b",LEFT(G109,1)="h")=TRUE,'Basalt & Hawaite Vol Dist'!$K$6,IF(OR(LEFT(G109,1)="m",LEFT(G109,1)="o")=TRUE,'Mug & Ben Vol Dist'!$K$6,IF(LEFT(G109,1)="t",'Trachyte Vol Dist'!$K$6,""))) -> 0.34 | L109: =IF(OR(LEFT(G109,1)="b",LEFT(G109,1)="h")=TRUE,'Basalt & Hawaite Vol Dist'!$B$42,IF(OR(LEFT(G109,1)="m",LEFT(G109,1)="o")=TRUE,'Mug & Ben Vol Dist'!$B$42,IF(LEFT(G109,1)="t",'Trachyte Vol Dist'!$B$42,""))) -> 0.999
A110: 109 | B110: 0.7452957223 | C110: 0.5249818546 | D110: =SUM($C110:$C$237) -> 46.59034225 | E110: =IFERROR(VLOOKUP(G110,'Summary of age data'!$A$3:$D$243,2,FALSE),"") -> 258.6 | F110: =IFERROR(VLOOKUP(G110,'Summary of age data'!$A$3:$D$243,3,FALSE),"") -> 44.7 | G110: besa | H110: =IF(OR(LEFT(G110,1)="b",LEFT(G110,1)="h")=TRUE,'Basalt & Hawaite Vol Dist'!$H$6,IF(OR(LEFT(G110,1)="m",LEFT(G110,1)="o")=TRUE,'Mug & Ben Vol Dist'!$H$6,IF(LEFT(G110,1)="t",'Trachyte Vol Dist'!$H$6,""))) -> 1.13 | I110: =IF(OR(LEFT(G110,1)="b",LEFT(G110,1)="h")=TRUE,'Basalt & Hawaite Vol Dist'!$I$6,IF(OR(LEFT(G110,1)="m",LEFT(G110,1)="o")=TRUE,'Mug & Ben Vol Dist'!$I$6,IF(LEFT(G110,1)="t",'Trachyte Vol Dist'!$I$6,""))) -> 0.34 | J110: =IF(OR(LEFT(G110,1)="b",LEFT(G110,1)="h")=TRUE,'Basalt & Hawaite Vol Dist'!$J$6,IF(OR(LEFT(G110,1)="m",LEFT(G110,1)="o")=TRUE,'Mug & Ben Vol Dist'!$J$6,IF(LEFT(G110,1)="t",'Trachyte Vol Dist'!$J$6,""))) -> 1.13 | K110: =IF(OR(LEFT(G110,1)="b",LEFT(G110,1)="h")=TRUE,'Basalt & Hawaite Vol Dist'!$K$6,IF(OR(LEFT(G110,1)="m",LEFT(G110,1)="o")=TRUE,'Mug & Ben Vol Dist'!$K$6,IF(LEFT(G110,1)="t",'Trachyte Vol Dist'!$K$6,""))) -> 0.34 | L110: =IF(OR(LEFT(G110,1)="b",LEFT(G110,1)="h")=TRUE,'Basalt & Hawaite Vol Dist'!$B$42,IF(OR(LEFT(G110,1)="m",LEFT(G110,1)="o")=TRUE,'Mug & Ben Vol Dist'!$B$42,IF(LEFT(G110,1)="t",'Trachyte Vol Dist'!$B$42,""))) -> 0.999
A111: 110 | B111: 0.9554765356 | C111: 1.143320054 | D111: =SUM($C111:$C$237) -> 46.06536039 | E111: =IFERROR(VLOOKUP(G111,'Summary of age data'!$A$3:$D$243,2,FALSE),"") -> 261.3 | F111: =IFERROR(VLOOKUP(G111,'Summary of age data'!$A$3:$D$243,3,FALSE),"") -> 19.1 | G111: bmk | H111: =IF(OR(LEFT(G111,1)="b",LEFT(G111,1)="h")=TRUE,'Basalt & Hawaite Vol Dist'!$H$6,IF(OR(LEFT(G111,1)="m",LEFT(G111,1)="o")=TRUE,'Mug & Ben Vol Dist'!$H$6,IF(LEFT(G111,1)="t",'Trachyte Vol Dist'!$H$6,""))) -> 1.13 | I111: =IF(OR(LEFT(G111,1)="b",LEFT(G111,1)="h")=TRUE,'Basalt & Hawaite Vol Dist'!$I$6,IF(OR(LEFT(G111,1)="m",LEFT(G111,1)="o")=TRUE,'Mug & Ben Vol Dist'!$I$6,IF(LEFT(G111,1)="t",'Trachyte Vol Dist'!$I$6,""))) -> 0.34 | J111: =IF(OR(LEFT(G111,1)="b",LEFT(G111,1)="h")=TRUE,'Basalt & Hawaite Vol Dist'!$J$6,IF(OR(LEFT(G111,1)="m",LEFT(G111,1)="o")=TRUE,'Mug & Ben Vol Dist'!$J$6,IF(LEFT(G111,1)="t",'Trachyte Vol Dist'!$J$6,""))) -> 1.13 | K111: =IF(OR(LEFT(G111,1)="b",LEFT(G111,1)="h")=TRUE,'Basalt & Hawaite Vol Dist'!$K$6,IF(OR(LEFT(G111,1)="m",LEFT(G111,1)="o")=TRUE,'Mug & Ben Vol Dist'!$K$6,IF(LEFT(G111,1)="t",'Trachyte Vol Dist'!$K$6,""))) -> 0.34 | L111: =IF(OR(LEFT(G111,1)="b",LEFT(G111,1)="h")=TRUE,'Basalt & Hawaite Vol Dist'!$B$42,IF(OR(LEFT(G111,1)="m",LEFT(G111,1)="o")=TRUE,'Mug & Ben Vol Dist'!$B$42,IF(LEFT(G111,1)="t",'Trachyte Vol Dist'!$B$42,""))) -> 0.999
A112: 111 | B112: 0.156580823 | C112: 0.071 | D112: =SUM($C112:$C$237) -> 44.92204034 | E112: =IFERROR(VLOOKUP(G112,'Summary of age data'!$A$3:$D$243,2,FALSE),"") -> 269.1 | F112: =IFERROR(VLOOKUP(G112,'Summary of age data'!$A$3:$D$243,3,FALSE),"") -> 5 | G112: tz1 | H112: =IF(OR(LEFT(G112,1)="b",LEFT(G112,1)="h")=TRUE,'Basalt & Hawaite Vol Dist'!$H$6,IF(OR(LEFT(G112,1)="m",LEFT(G112,1)="o")=TRUE,'Mug & Ben Vol Dist'!$H$6,IF(LEFT(G112,1)="t",'Trachyte Vol Dist'!$H$6,""))) -> 2 | I112: =IF(OR(LEFT(G112,1)="b",LEFT(G112,1)="h")=TRUE,'Basalt & Hawaite Vol Dist'!$I$6,IF(OR(LEFT(G112,1)="m",LEFT(G112,1)="o")=TRUE,'Mug & Ben Vol Dist'!$I$6,IF(LEFT(G112,1)="t",'Trachyte Vol Dist'!$I$6,""))) -> 0.083 | J112: =IF(OR(LEFT(G112,1)="b",LEFT(G112,1)="h")=TRUE,'Basalt & Hawaite Vol Dist'!$J$6,IF(OR(LEFT(G112,1)="m",LEFT(G112,1)="o")=TRUE,'Mug & Ben Vol Dist'!$J$6,IF(LEFT(G112,1)="t",'Trachyte Vol Dist'!$J$6,""))) -> 2 | K112: =IF(OR(LEFT(G112,1)="b",LEFT(G112,1)="h")=TRUE,'Basalt & Hawaite Vol Dist'!$K$6,IF(OR(LEFT(G112,1)="m",LEFT(G112,1)="o")=TRUE,'Mug & Ben Vol Dist'!$K$6,IF(LEFT(G112,1)="t",'Trachyte Vol Dist'!$K$6,""))) -> 0.083 | L112: =IF(OR(LEFT(G112,1)="b",LEFT(G112,1)="h")=TRUE,'Basalt & Hawaite Vol Dist'!$B$42,IF(OR(LEFT(G112,1)="m",LEFT(G112,1)="o")=TRUE,'Mug & Ben Vol Dist'!$B$42,IF(LEFT(G112,1)="t",'Trachyte Vol Dist'!$B$42,""))) -> 0.999
A113: 112 | B113: 0.1468332209 | C113: =IF(B113<=L113,_xlfn.GAMMA.INV(B113,H113,I113),_xlfn.GAMMA.INV(B113,J113,K113)) -> 0.07245594686 | D113: =SUM($C113:$C$237) -> 44.85104034 | E113: =IFERROR(VLOOKUP(G113,'Summary of age data'!$A$3:$D$243,2,FALSE),"") -> 280.4 | F113: =IFERROR(VLOOKUP(G113,'Summary of age data'!$A$3:$D$243,3,FALSE),"") -> 6.5 | G113: bau | H113: =IF(OR(LEFT(G113,1)="b",LEFT(G113,1)="h")=TRUE,'Basalt & Hawaite Vol Dist'!$H$6,IF(OR(LEFT(G113,1)="m",LEFT(G113,1)="o")=TRUE,'Mug & Ben Vol Dist'!$H$6,IF(LEFT(G113,1)="t",'Trachyte Vol Dist'!$H$6,""))) -> 1.13 | I113: =IF(OR(LEFT(G113,1)="b",LEFT(G113,1)="h")=TRUE,'Basalt & Hawaite Vol Dist'!$I$6,IF(OR(LEFT(G113,1)="m",LEFT(G113,1)="o")=TRUE,'Mug & Ben Vol Dist'!$I$6,IF(LEFT(G113,1)="t",'Trachyte Vol Dist'!$I$6,""))) -> 0.34 | J113: =IF(OR(LEFT(G113,1)="b",LEFT(G113,1)="h")=TRUE,'Basalt & Hawaite Vol Dist'!$J$6,IF(OR(LEFT(G113,1)="m",LEFT(G113,1)="o")=TRUE,'Mug & Ben Vol Dist'!$J$6,IF(LEFT(G113,1)="t",'Trachyte Vol Dist'!$J$6,""))) -> 1.13 | K113: =IF(OR(LEFT(G113,1)="b",LEFT(G113,1)="h")=TRUE,'Basalt & Hawaite Vol Dist'!$K$6,IF(OR(LEFT(G113,1)="m",LEFT(G113,1)="o")=TRUE,'Mug & Ben Vol Dist'!$K$6,IF(LEFT(G113,1)="t",'Trachyte Vol Dist'!$K$6,""))) -> 0.34 | L113: =IF(OR(LEFT(G113,1)="b",LEFT(G113,1)="h")=TRUE,'Basalt & Hawaite Vol Dist'!$B$42,IF(OR(LEFT(G113,1)="m",LEFT(G113,1)="o")=TRUE,'Mug & Ben Vol Dist'!$B$42,IF(LEFT(G113,1)="t",'Trachyte Vol Dist'!$B$42,""))) -> 0.999
A114: 113 | B114: 0.2817957135 | C114: =IF(B114<=L114,_xlfn.GAMMA.INV(B114,H114,I114),_xlfn.GAMMA.INV(B114,J114,K114)) -> 0.1412220088 | D114: =SUM($C114:$C$237) -> 44.77858439 | E114: =IFERROR(VLOOKUP(G114,'Summary of age data'!$A$3:$D$243,2,FALSE),"") -> 282.4 | F114: =IFERROR(VLOOKUP(G114,'Summary of age data'!$A$3:$D$243,3,FALSE),"") -> 71.6 | G114: bsuy | H114: =IF(OR(LEFT(G114,1)="b",LEFT(G114,1)="h")=TRUE,'Basalt & Hawaite Vol Dist'!$H$6,IF(OR(LEFT(G114,1)="m",LEFT(G114,1)="o")=TRUE,'Mug & Ben Vol Dist'!$H$6,IF(LEFT(G114,1)="t",'Trachyte Vol Dist'!$H$6,""))) -> 1.13 | I114: =IF(OR(LEFT(G114,1)="b",LEFT(G114,1)="h")=TRUE,'Basalt & Hawaite Vol Dist'!$I$6,IF(OR(LEFT(G114,1)="m",LEFT(G114,1)="o")=TRUE,'Mug & Ben Vol Dist'!$I$6,IF(LEFT(G114,1)="t",'Trachyte Vol Dist'!$I$6,""))) -> 0.34 | J114: =IF(OR(LEFT(G114,1)="b",LEFT(G114,1)="h")=TRUE,'Basalt & Hawaite Vol Dist'!$J$6,IF(OR(LEFT(G114,1)="m",LEFT(G114,1)="o")=TRUE,'Mug & Ben Vol Dist'!$J$6,IF(LEFT(G114,1)="t",'Trachyte Vol Dist'!$J$6,""))) -> 1.13 | K114: =IF(OR(LEFT(G114,1)="b",LEFT(G114,1)="h")=TRUE,'Basalt & Hawaite Vol Dist'!$K$6,IF(OR(LEFT(G114,1)="m",LEFT(G114,1)="o")=TRUE,'Mug & Ben Vol Dist'!$K$6,IF(LEFT(G114,1)="t",'Trachyte Vol Dist'!$K$6,""))) -> 0.34 | L114: =IF(OR(LEFT(G114,1)="b",LEFT(G114,1)="h")=TRUE,'Basalt & Hawaite Vol Dist'!$B$42,IF(OR(LEFT(G114,1)="m",LEFT(G114,1)="o")=TRUE,'Mug & Ben Vol Dist'!$B$42,IF(LEFT(G114,1)="t",'Trachyte Vol Dist'!$B$42,""))) -> 0.999
A115: 114 | B115: 0.4823622256 | C115: =IF(B115<=L115,_xlfn.GAMMA.INV(B115,H115,I115),_xlfn.GAMMA.INV(B115,J115,K115)) -> 0.2657192658 | D115: =SUM($C115:$C$237) -> 44.63736238 | E115: =IFERROR(VLOOKUP(G115,'Summary of age data'!$A$3:$D$243,2,FALSE),"") -> 285.1 | F115: =IFERROR(VLOOKUP(G115,'Summary of age data'!$A$3:$D$243,3,FALSE),"") -> 6.6 | G115: bhu | H115: =IF(OR(LEFT(G115,1)="b",LEFT(G115,1)="h")=TRUE,'Basalt & Hawaite Vol Dist'!$H$6,IF(OR(LEFT(G115,1)="m",LEFT(G115,1)="o")=TRUE,'Mug & Ben Vol Dist'!$H$6,IF(LEFT(G115,1)="t",'Trachyte Vol Dist'!$H$6,""))) -> 1.13 | I115: =IF(OR(LEFT(G115,1)="b",LEFT(G115,1)="h")=TRUE,'Basalt & Hawaite Vol Dist'!$I$6,IF(OR(LEFT(G115,1)="m",LEFT(G115,1)="o")=TRUE,'Mug & Ben Vol Dist'!$I$6,IF(LEFT(G115,1)="t",'Trachyte Vol Dist'!$I$6,""))) -> 0.34 | J115: =IF(OR(LEFT(G115,1)="b",LEFT(G115,1)="h")=TRUE,'Basalt & Hawaite Vol Dist'!$J$6,IF(OR(LEFT(G115,1)="m",LEFT(G115,1)="o")=TRUE,'Mug & Ben Vol Dist'!$J$6,IF(LEFT(G115,1)="t",'Trachyte Vol Dist'!$J$6,""))) -> 1.13 | K115: =IF(OR(LEFT(G115,1)="b",LEFT(G115,1)="h")=TRUE,'Basalt & Hawaite Vol Dist'!$K$6,IF(OR(LEFT(G115,1)="m",LEFT(G115,1)="o")=TRUE,'Mug & Ben Vol Dist'!$K$6,IF(LEFT(G115,1)="t",'Trachyte Vol Dist'!$K$6,""))) -> 0.34 | L115: =IF(OR(LEFT(G115,1)="b",LEFT(G115,1)="h")=TRUE,'Basalt & Hawaite Vol Dist'!$B$42,IF(OR(LEFT(G115,1)="m",LEFT(G115,1)="o")=TRUE,'Mug & Ben Vol Dist'!$B$42,IF(LEFT(G115,1)="t",'Trachyte Vol Dist'!$B$42,""))) -> 0.999
A116: 115 | B116: 0.1247884439 | C116: =IF(B116<=L116,_xlfn.GAMMA.INV(B116,H116,I116),_xlfn.GAMMA.INV(B116,J116,K116)) -> 0.06185634399 | D116: =SUM($C116:$C$237) -> 44.37164312 | E116: =IFERROR(VLOOKUP(G116,'Summary of age data'!$A$3:$D$243,2,FALSE),"") -> 285.4 | F116: =IFERROR(VLOOKUP(G116,'Summary of age data'!$A$3:$D$243,3,FALSE),"") -> 20.1 | G116: bh86 | H116: =IF(OR(LEFT(G116,1)="b",LEFT(G116,1)="h")=TRUE,'Basalt & Hawaite Vol Dist'!$H$6,IF(OR(LEFT(G116,1)="m",LEFT(G116,1)="o")=TRUE,'Mug & Ben Vol Dist'!$H$6,IF(LEFT(G116,1)="t",'Trachyte Vol Dist'!$H$6,""))) -> 1.13 | I116: =IF(OR(LEFT(G116,1)="b",LEFT(G116,1)="h")=TRUE,'Basalt & Hawaite Vol Dist'!$I$6,IF(OR(LEFT(G116,1)="m",LEFT(G116,1)="o")=TRUE,'Mug & Ben Vol Dist'!$I$6,IF(LEFT(G116,1)="t",'Trachyte Vol Dist'!$I$6,""))) -> 0.34 | J116: =IF(OR(LEFT(G116,1)="b",LEFT(G116,1)="h")=TRUE,'Basalt & Hawaite Vol Dist'!$J$6,IF(OR(LEFT(G116,1)="m",LEFT(G116,1)="o")=TRUE,'Mug & Ben Vol Dist'!$J$6,IF(LEFT(G116,1)="t",'Trachyte Vol Dist'!$J$6,""))) -> 1.13 | K116: =IF(OR(LEFT(G116,1)="b",LEFT(G116,1)="h")=TRUE,'Basalt & Hawaite Vol Dist'!$K$6,IF(OR(LEFT(G116,1)="m",LEFT(G116,1)="o")=TRUE,'Mug & Ben Vol Dist'!$K$6,IF(LEFT(G116,1)="t",'Trachyte Vol Dist'!$K$6,""))) -> 0.34 | L116: =IF(OR(LEFT(G116,1)="b",LEFT(G116,1)="h")=TRUE,'Basalt & Hawaite Vol Dist'!$B$42,IF(OR(LEFT(G116,1)="m",LEFT(G116,1)="o")=TRUE,'Mug & Ben Vol Dist'!$B$42,IF(LEFT(G116,1)="t",'Trachyte Vol Dist'!$B$42,""))) -> 0.999
A117: 116 | B117: 0.2027797182 | C117: 0.3029014198 | D117: =SUM($C117:$C$237) -> 44.30978678 | E117: =IFERROR(VLOOKUP(G117,'Summary of age data'!$A$3:$D$243,2,FALSE),"") -> 287.1 | F117: =IFERROR(VLOOKUP(G117,'Summary of age data'!$A$3:$D$243,3,FALSE),"") -> 21.8 | G117: bhag | H117: =IF(OR(LEFT(G117,1)="b",LEFT(G117,1)="h")=TRUE,'Basalt & Hawaite Vol Dist'!$H$6,IF(OR(LEFT(G117,1)="m",LEFT(G117,1)="o")=TRUE,'Mug & Ben Vol Dist'!$H$6,IF(LEFT(G117,1)="t",'Trachyte Vol Dist'!$H$6,""))) -> 1.13 | I117: =IF(OR(LEFT(G117,1)="b",LEFT(G117,1)="h")=TRUE,'Basalt & Hawaite Vol Dist'!$I$6,IF(OR(LEFT(G117,1)="m",LEFT(G117,1)="o")=TRUE,'Mug & Ben Vol Dist'!$I$6,IF(LEFT(G117,1)="t",'Trachyte Vol Dist'!$I$6,""))) -> 0.34 | J117: =IF(OR(LEFT(G117,1)="b",LEFT(G117,1)="h")=TRUE,'Basalt & Hawaite Vol Dist'!$J$6,IF(OR(LEFT(G117,1)="m",LEFT(G117,1)="o")=TRUE,'Mug & Ben Vol Dist'!$J$6,IF(LEFT(G117,1)="t",'Trachyte Vol Dist'!$J$6,""))) -> 1.13 | K117: =IF(OR(LEFT(G117,1)="b",LEFT(G117,1)="h")=TRUE,'Basalt & Hawaite Vol Dist'!$K$6,IF(OR(LEFT(G117,1)="m",LEFT(G117,1)="o")=TRUE,'Mug & Ben Vol Dist'!$K$6,IF(LEFT(G117,1)="t",'Trachyte Vol Dist'!$K$6,""))) -> 0.34 | L117: =IF(OR(LEFT(G117,1)="b",LEFT(G117,1)="h")=TRUE,'Basalt & Hawaite Vol Dist'!$B$42,IF(OR(LEFT(G117,1)="m",LEFT(G117,1)="o")=TRUE,'Mug & Ben Vol Dist'!$B$42,IF(LEFT(G117,1)="t",'Trachyte Vol Dist'!$B$42,""))) -> 0.999
A118: 117 | B118: 0.6520949578 | C118: =IF(B118<=L118,_xlfn.GAMMA.INV(B118,H118,I118),_xlfn.GAMMA.INV(B118,J118,K118)) -> 0.4120429851 | D118: =SUM($C118:$C$237) -> 44.00688536 | E118: =IFERROR(VLOOKUP(G118,'Summary of age data'!$A$3:$D$243,2,FALSE),"") -> 288.8 | F118: =IFERROR(VLOOKUP(G118,'Summary of age data'!$A$3:$D$243,3,FALSE),"") -> 19.6 | G118: bsa | H118: =IF(OR(LEFT(G118,1)="b",LEFT(G118,1)="h")=TRUE,'Basalt & Hawaite Vol Dist'!$H$6,IF(OR(LEFT(G118,1)="m",LEFT(G118,1)="o")=TRUE,'Mug & Ben Vol Dist'!$H$6,IF(LEFT(G118,1)="t",'Trachyte Vol Dist'!$H$6,""))) -> 1.13 | I118: =IF(OR(LEFT(G118,1)="b",LEFT(G118,1)="h")=TRUE,'Basalt & Hawaite Vol Dist'!$I$6,IF(OR(LEFT(G118,1)="m",LEFT(G118,1)="o")=TRUE,'Mug & Ben Vol Dist'!$I$6,IF(LEFT(G118,1)="t",'Trachyte Vol Dist'!$I$6,""))) -> 0.34 | J118: =IF(OR(LEFT(G118,1)="b",LEFT(G118,1)="h")=TRUE,'Basalt & Hawaite Vol Dist'!$J$6,IF(OR(LEFT(G118,1)="m",LEFT(G118,1)="o")=TRUE,'Mug & Ben Vol Dist'!$J$6,IF(LEFT(G118,1)="t",'Trachyte Vol Dist'!$J$6,""))) -> 1.13 | K118: =IF(OR(LEFT(G118,1)="b",LEFT(G118,1)="h")=TRUE,'Basalt & Hawaite Vol Dist'!$K$6,IF(OR(LEFT(G118,1)="m",LEFT(G118,1)="o")=TRUE,'Mug & Ben Vol Dist'!$K$6,IF(LEFT(G118,1)="t",'Trachyte Vol Dist'!$K$6,""))) -> 0.34 | L118: =IF(OR(LEFT(G118,1)="b",LEFT(G118,1)="h")=TRUE,'Basalt & Hawaite Vol Dist'!$B$42,IF(OR(LEFT(G118,1)="m",LEFT(G118,1)="o")=TRUE,'Mug & Ben Vol Dist'!$B$42,IF(LEFT(G118,1)="t",'Trachyte Vol Dist'!$B$42,""))) -> 0.999
A119: 118 | B119: 0.003434125195 | C119: 0.002373401226 | D119: =SUM($C119:$C$237) -> 43.59484237 | E119: =IFERROR(VLOOKUP(G119,'Summary of age data'!$A$3:$D$243,2,FALSE),"") -> 300 | F119: =IFERROR(VLOOKUP(G119,'Summary of age data'!$A$3:$D$243,3,FALSE),"") -> 0 | G119: bhm | H119: =IF(OR(LEFT(G119,1)="b",LEFT(G119,1)="h")=TRUE,'Basalt & Hawaite Vol Dist'!$H$6,IF(OR(LEFT(G119,1)="m",LEFT(G119,1)="o")=TRUE,'Mug & Ben Vol Dist'!$H$6,IF(LEFT(G119,1)="t",'Trachyte Vol Dist'!$H$6,""))) -> 1.13 | I119: =IF(OR(LEFT(G119,1)="b",LEFT(G119,1)="h")=TRUE,'Basalt & Hawaite Vol Dist'!$I$6,IF(OR(LEFT(G119,1)="m",LEFT(G119,1)="o")=TRUE,'Mug & Ben Vol Dist'!$I$6,IF(LEFT(G119,1)="t",'Trachyte Vol Dist'!$I$6,""))) -> 0.34 | J119: =IF(OR(LEFT(G119,1)="b",LEFT(G119,1)="h")=TRUE,'Basalt & Hawaite Vol Dist'!$J$6,IF(OR(LEFT(G119,1)="m",LEFT(G119,1)="o")=TRUE,'Mug & Ben Vol Dist'!$J$6,IF(LEFT(G119,1)="t",'Trachyte Vol Dist'!$J$6,""))) -> 1.13 | K119: =IF(OR(LEFT(G119,1)="b",LEFT(G119,1)="h")=TRUE,'Basalt & Hawaite Vol Dist'!$K$6,IF(OR(LEFT(G119,1)="m",LEFT(G119,1)="o")=TRUE,'Mug & Ben Vol Dist'!$K$6,IF(LEFT(G119,1)="t",'Trachyte Vol Dist'!$K$6,""))) -> 0.34 | L119: =IF(OR(LEFT(G119,1)="b",LEFT(G119,1)="h")=TRUE,'Basalt & Hawaite Vol Dist'!$B$42,IF(OR(LEFT(G119,1)="m",LEFT(G119,1)="o")=TRUE,'Mug & Ben Vol Dist'!$B$42,IF(LEFT(G119,1)="t",'Trachyte Vol Dist'!$B$42,""))) -> 0.999
A120: 119 | B120: 0.8700720207 | C120: 0.7655719643 | D120: =SUM($C120:$C$237) -> 43.59246897 | E120: =IFERROR(VLOOKUP(G120,'Summary of age data'!$A$3:$D$243,2,FALSE),"") -> 300 | F120: =IFERROR(VLOOKUP(G120,'Summary of age data'!$A$3:$D$243,3,FALSE),"") -> 0 | G120: bqaq | H120: =IF(OR(LEFT(G120,1)="b",LEFT(G120,1)="h")=TRUE,'Basalt & Hawaite Vol Dist'!$H$6,IF(OR(LEFT(G120,1)="m",LEFT(G120,1)="o")=TRUE,'Mug & Ben Vol Dist'!$H$6,IF(LEFT(G120,1)="t",'Trachyte Vol Dist'!$H$6,""))) -> 1.13 | I120: =IF(OR(LEFT(G120,1)="b",LEFT(G120,1)="h")=TRUE,'Basalt & Hawaite Vol Dist'!$I$6,IF(OR(LEFT(G120,1)="m",LEFT(G120,1)="o")=TRUE,'Mug & Ben Vol Dist'!$I$6,IF(LEFT(G120,1)="t",'Trachyte Vol Dist'!$I$6,""))) -> 0.34 | J120: =IF(OR(LEFT(G120,1)="b",LEFT(G120,1)="h")=TRUE,'Basalt & Hawaite Vol Dist'!$J$6,IF(OR(LEFT(G120,1)="m",LEFT(G120,1)="o")=TRUE,'Mug & Ben Vol Dist'!$J$6,IF(LEFT(G120,1)="t",'Trachyte Vol Dist'!$J$6,""))) -> 1.13 | K120: =IF(OR(LEFT(G120,1)="b",LEFT(G120,1)="h")=TRUE,'Basalt & Hawaite Vol Dist'!$K$6,IF(OR(LEFT(G120,1)="m",LEFT(G120,1)="o")=TRUE,'Mug & Ben Vol Dist'!$K$6,IF(LEFT(G120,1)="t",'Trachyte Vol Dist'!$K$6,""))) -> 0.34 | L120: =IF(OR(LEFT(G120,1)="b",LEFT(G120,1)="h")=TRUE,'Basalt & Hawaite Vol Dist'!$B$42,IF(OR(LEFT(G120,1)="m",LEFT(G120,1)="o")=TRUE,'Mug & Ben Vol Dist'!$B$42,IF(LEFT(G120,1)="t",'Trachyte Vol Dist'!$B$42,""))) -> 0.999
A121: 120 | B121: 0.8650340637 | C121: 0.7520592521 | D121: =SUM($C121:$C$237) -> 42.826897 | E121: =IFERROR(VLOOKUP(G121,'Summary of age data'!$A$3:$D$243,2,FALSE),"") -> 302.3 | F121: =IFERROR(VLOOKUP(G121,'Summary of age data'!$A$3:$D$243,3,FALSE),"") -> 14.8 | G121: busb | H121: =IF(OR(LEFT(G121,1)="b",LEFT(G121,1)="h")=TRUE,'Basalt & Hawaite Vol Dist'!$H$6,IF(OR(LEFT(G121,1)="m",LEFT(G121,1)="o")=TRUE,'Mug & Ben Vol Dist'!$H$6,IF(LEFT(G121,1)="t",'Trachyte Vol Dist'!$H$6,""))) -> 1.13 | I121: =IF(OR(LEFT(G121,1)="b",LEFT(G121,1)="h")=TRUE,'Basalt & Hawaite Vol Dist'!$I$6,IF(OR(LEFT(G121,1)="m",LEFT(G121,1)="o")=TRUE,'Mug & Ben Vol Dist'!$I$6,IF(LEFT(G121,1)="t",'Trachyte Vol Dist'!$I$6,""))) -> 0.34 | J121: =IF(OR(LEFT(G121,1)="b",LEFT(G121,1)="h")=TRUE,'Basalt & Hawaite Vol Dist'!$J$6,IF(OR(LEFT(G121,1)="m",LEFT(G121,1)="o")=TRUE,'Mug & Ben Vol Dist'!$J$6,IF(LEFT(G121,1)="t",'Trachyte Vol Dist'!$J$6,""))) -> 1.13 | K121: =IF(OR(LEFT(G121,1)="b",LEFT(G121,1)="h")=TRUE,'Basalt & Hawaite Vol Dist'!$K$6,IF(OR(LEFT(G121,1)="m",LEFT(G121,1)="o")=TRUE,'Mug & Ben Vol Dist'!$K$6,IF(LEFT(G121,1)="t",'Trachyte Vol Dist'!$K$6,""))) -> 0.34 | L121: =IF(OR(LEFT(G121,1)="b",LEFT(G121,1)="h")=TRUE,'Basalt & Hawaite Vol Dist'!$B$42,IF(OR(LEFT(G121,1)="m",LEFT(G121,1)="o")=TRUE,'Mug & Ben Vol Dist'!$B$42,IF(LEFT(G121,1)="t",'Trachyte Vol Dist'!$B$42,""))) -> 0.999
A122: 121 | B122: 0.3434459059 | C122: 0.1759060787 | D122: =SUM($C122:$C$237) -> 42.07483775 | E122: =IFERROR(VLOOKUP(G122,'Summary of age data'!$A$3:$D$243,2,FALSE),"") -> 305 | F122: =IFERROR(VLOOKUP(G122,'Summary of age data'!$A$3:$D$243,3,FALSE),"") -> 161.8 | G122: bash | H122: =IF(OR(LEFT(G122,1)="b",LEFT(G122,1)="h")=TRUE,'Basalt & Hawaite Vol Dist'!$H$6,IF(OR(LEFT(G122,1)="m",LEFT(G122,1)="o")=TRUE,'Mug & Ben Vol Dist'!$H$6,IF(LEFT(G122,1)="t",'Trachyte Vol Dist'!$H$6,""))) -> 1.13 | I122: =IF(OR(LEFT(G122,1)="b",LEFT(G122,1)="h")=TRUE,'Basalt & Hawaite Vol Dist'!$I$6,IF(OR(LEFT(G122,1)="m",LEFT(G122,1)="o")=TRUE,'Mug & Ben Vol Dist'!$I$6,IF(LEFT(G122,1)="t",'Trachyte Vol Dist'!$I$6,""))) -> 0.34 | J122: =IF(OR(LEFT(G122,1)="b",LEFT(G122,1)="h")=TRUE,'Basalt & Hawaite Vol Dist'!$J$6,IF(OR(LEFT(G122,1)="m",LEFT(G122,1)="o")=TRUE,'Mug & Ben Vol Dist'!$J$6,IF(LEFT(G122,1)="t",'Trachyte Vol Dist'!$J$6,""))) -> 1.13 | K122: =IF(OR(LEFT(G122,1)="b",LEFT(G122,1)="h")=TRUE,'Basalt & Hawaite Vol Dist'!$K$6,IF(OR(LEFT(G122,1)="m",LEFT(G122,1)="o")=TRUE,'Mug & Ben Vol Dist'!$K$6,IF(LEFT(G122,1)="t",'Trachyte Vol Dist'!$K$6,""))) -> 0.34 | L122: =IF(OR(LEFT(G122,1)="b",LEFT(G122,1)="h")=TRUE,'Basalt & Hawaite Vol Dist'!$B$42,IF(OR(LEFT(G122,1)="m",LEFT(G122,1)="o")=TRUE,'Mug & Ben Vol Dist'!$B$42,IF(LEFT(G122,1)="t",'Trachyte Vol Dist'!$B$42,""))) -> 0.999
A123: 122 | B123: 0.0337900529 | C123: 0.01835039892 | D123: =SUM($C123:$C$237) -> 41.89893167 | E123: =IFERROR(VLOOKUP(G123,'Summary of age data'!$A$3:$D$243,2,FALSE),"") -> 307.7 | F123: =IFERROR(VLOOKUP(G123,'Summary of age data'!$A$3:$D$243,3,FALSE),"") -> 4.6 | G123: bd3 | H123: =IF(OR(LEFT(G123,1)="b",LEFT(G123,1)="h")=TRUE,'Basalt & Hawaite Vol Dist'!$H$6,IF(OR(LEFT(G123,1)="m",LEFT(G123,1)="o")=TRUE,'Mug & Ben Vol Dist'!$H$6,IF(LEFT(G123,1)="t",'Trachyte Vol Dist'!$H$6,""))) -> 1.13 | I123: =IF(OR(LEFT(G123,1)="b",LEFT(G123,1)="h")=TRUE,'Basalt & Hawaite Vol Dist'!$I$6,IF(OR(LEFT(G123,1)="m",LEFT(G123,1)="o")=TRUE,'Mug & Ben Vol Dist'!$I$6,IF(LEFT(G123,1)="t",'Trachyte Vol Dist'!$I$6,""))) -> 0.34 | J123: =IF(OR(LEFT(G123,1)="b",LEFT(G123,1)="h")=TRUE,'Basalt & Hawaite Vol Dist'!$J$6,IF(OR(LEFT(G123,1)="m",LEFT(G123,1)="o")=TRUE,'Mug & Ben Vol Dist'!$J$6,IF(LEFT(G123,1)="t",'Trachyte Vol Dist'!$J$6,""))) -> 1.13 | K123: =IF(OR(LEFT(G123,1)="b",LEFT(G123,1)="h")=TRUE,'Basalt & Hawaite Vol Dist'!$K$6,IF(OR(LEFT(G123,1)="m",LEFT(G123,1)="o")=TRUE,'Mug & Ben Vol Dist'!$K$6,IF(LEFT(G123,1)="t",'Trachyte Vol Dist'!$K$6,""))) -> 0.34 | L123: =IF(OR(LEFT(G123,1)="b",LEFT(G123,1)="h")=TRUE,'Basalt & Hawaite Vol Dist'!$B$42,IF(OR(LEFT(G123,1)="m",LEFT(G123,1)="o")=TRUE,'Mug & Ben Vol Dist'!$B$42,IF(LEFT(G123,1)="t",'Trachyte Vol Dist'!$B$42,""))) -> 0.999
A124: 123 | B124: 0.04470477689 | C124: 0.02368056096 | D124: =SUM($C124:$C$237) -> 41.88058127 | E124: =IFERROR(VLOOKUP(G124,'Summary of age data'!$A$3:$D$243,2,FALSE),"") -> 313.9 | F124: =IFERROR(VLOOKUP(G124,'Summary of age data'!$A$3:$D$243,3,FALSE),"") -> 11.3 | G124: bssu | H124: =IF(OR(LEFT(G124,1)="b",LEFT(G124,1)="h")=TRUE,'Basalt & Hawaite Vol Dist'!$H$6,IF(OR(LEFT(G124,1)="m",LEFT(G124,1)="o")=TRUE,'Mug & Ben Vol Dist'!$H$6,IF(LEFT(G124,1)="t",'Trachyte Vol Dist'!$H$6,""))) -> 1.13 | I124: =IF(OR(LEFT(G124,1)="b",LEFT(G124,1)="h")=TRUE,'Basalt & Hawaite Vol Dist'!$I$6,IF(OR(LEFT(G124,1)="m",LEFT(G124,1)="o")=TRUE,'Mug & Ben Vol Dist'!$I$6,IF(LEFT(G124,1)="t",'Trachyte Vol Dist'!$I$6,""))) -> 0.34 | J124: =IF(OR(LEFT(G124,1)="b",LEFT(G124,1)="h")=TRUE,'Basalt & Hawaite Vol Dist'!$J$6,IF(OR(LEFT(G124,1)="m",LEFT(G124,1)="o")=TRUE,'Mug & Ben Vol Dist'!$J$6,IF(LEFT(G124,1)="t",'Trachyte Vol Dist'!$J$6,""))) -> 1.13 | K124: =IF(OR(LEFT(G124,1)="b",LEFT(G124,1)="h")=TRUE,'Basalt & Hawaite Vol Dist'!$K$6,IF(OR(LEFT(G124,1)="m",LEFT(G124,1)="o")=TRUE,'Mug & Ben Vol Dist'!$K$6,IF(LEFT(G124,1)="t",'Trachyte Vol Dist'!$K$6,""))) -> 0.34 | L124: =IF(OR(LEFT(G124,1)="b",LEFT(G124,1)="h")=TRUE,'Basalt & Hawaite Vol Dist'!$B$42,IF(OR(LEFT(G124,1)="m",LEFT(G124,1)="o")=TRUE,'Mug & Ben Vol Dist'!$B$42,IF(LEFT(G124,1)="t",'Trachyte Vol Dist'!$B$42,""))) -> 0.999
A125: 124 | B125: 0.0423491672 | C125: 1.159016091e-06 | D125: =SUM($C125:$C$237) -> 41.85690071 | E125: =IFERROR(VLOOKUP(G125,'Summary of age data'!$A$3:$D$243,2,FALSE),"") -> 316.4 | F125: =IFERROR(VLOOKUP(G125,'Summary of age data'!$A$3:$D$243,3,FALSE),"") -> 2.1 | G125: og4 | H125: =IF(OR(LEFT(G125,1)="b",LEFT(G125,1)="h")=TRUE,'Basalt & Hawaite Vol Dist'!$H$6,IF(OR(LEFT(G125,1)="m",LEFT(G125,1)="o")=TRUE,'Mug & Ben Vol Dist'!$H$6,IF(LEFT(G125,1)="t",'Trachyte Vol Dist'!$H$6,""))) -> 0.21 | I125: =IF(OR(LEFT(G125,1)="b",LEFT(G125,1)="h")=TRUE,'Basalt & Hawaite Vol Dist'!$I$6,IF(OR(LEFT(G125,1)="m",LEFT(G125,1)="o")=TRUE,'Mug & Ben Vol Dist'!$I$6,IF(LEFT(G125,1)="t",'Trachyte Vol Dist'!$I$6,""))) -> 6.1 | J125: =IF(OR(LEFT(G125,1)="b",LEFT(G125,1)="h")=TRUE,'Basalt & Hawaite Vol Dist'!$J$6,IF(OR(LEFT(G125,1)="m",LEFT(G125,1)="o")=TRUE,'Mug & Ben Vol Dist'!$J$6,IF(LEFT(G125,1)="t",'Trachyte Vol Dist'!$J$6,""))) -> 8.9 | K125: =IF(OR(LEFT(G125,1)="b",LEFT(G125,1)="h")=TRUE,'Basalt & Hawaite Vol Dist'!$K$6,IF(OR(LEFT(G125,1)="m",LEFT(G125,1)="o")=TRUE,'Mug & Ben Vol Dist'!$K$6,IF(LEFT(G125,1)="t",'Trachyte Vol Dist'!$K$6,""))) -> 0.028 | L125: =IF(OR(LEFT(G125,1)="b",LEFT(G125,1)="h")=TRUE,'Basalt & Hawaite Vol Dist'!$B$42,IF(OR(LEFT(G125,1)="m",LEFT(G125,1)="o")=TRUE,'Mug & Ben Vol Dist'!$B$42,IF(LEFT(G125,1)="t",'Trachyte Vol Dist'!$B$42,""))) -> 0.5551036823
A126: 125 | B126: 0.24214165 | C126: 0.1201452324 | D126: =SUM($C126:$C$237) -> 41.85689955 | E126: =IFERROR(VLOOKUP(G126,'Summary of age data'!$A$3:$D$243,2,FALSE),"") -> 321.4 | F126: =IFERROR(VLOOKUP(G126,'Summary of age data'!$A$3:$D$243,3,FALSE),"") -> 97.6 | G126: bya | H126: =IF(OR(LEFT(G126,1)="b",LEFT(G126,1)="h")=TRUE,'Basalt & Hawaite Vol Dist'!$H$6,IF(OR(LEFT(G126,1)="m",LEFT(G126,1)="o")=TRUE,'Mug & Ben Vol Dist'!$H$6,IF(LEFT(G126,1)="t",'Trachyte Vol Dist'!$H$6,""))) -> 1.13 | I126: =IF(OR(LEFT(G126,1)="b",LEFT(G126,1)="h")=TRUE,'Basalt & Hawaite Vol Dist'!$I$6,IF(OR(LEFT(G126,1)="m",LEFT(G126,1)="o")=TRUE,'Mug & Ben Vol Dist'!$I$6,IF(LEFT(G126,1)="t",'Trachyte Vol Dist'!$I$6,""))) -> 0.34 | J126: =IF(OR(LEFT(G126,1)="b",LEFT(G126,1)="h")=TRUE,'Basalt & Hawaite Vol Dist'!$J$6,IF(OR(LEFT(G126,1)="m",LEFT(G126,1)="o")=TRUE,'Mug & Ben Vol Dist'!$J$6,IF(LEFT(G126,1)="t",'Trachyte Vol Dist'!$J$6,""))) -> 1.13 | K126: =IF(OR(LEFT(G126,1)="b",LEFT(G126,1)="h")=TRUE,'Basalt & Hawaite Vol Dist'!$K$6,IF(OR(LEFT(G126,1)="m",LEFT(G126,1)="o")=TRUE,'Mug & Ben Vol Dist'!$K$6,IF(LEFT(G126,1)="t",'Trachyte Vol Dist'!$K$6,""))) -> 0.34 | L126: =IF(OR(LEFT(G126,1)="b",LEFT(G126,1)="h")=TRUE,'Basalt & Hawaite Vol Dist'!$B$42,IF(OR(LEFT(G126,1)="m",LEFT(G126,1)="o")=TRUE,'Mug & Ben Vol Dist'!$B$42,IF(LEFT(G126,1)="t",'Trachyte Vol Dist'!$B$42,""))) -> 0.999
A127: 126 | B127: 0.3807241869 | C127: 0.1982262959 | D127: =SUM($C127:$C$237) -> 41.73675432 | E127: =IFERROR(VLOOKUP(G127,'Summary of age data'!$A$3:$D$243,2,FALSE),"") -> 324.7 | F127: =IFERROR(VLOOKUP(G127,'Summary of age data'!$A$3:$D$243,3,FALSE),"") -> 29.3 | G127: bjab | H127: =IF(OR(LEFT(G127,1)="b",LEFT(G127,1)="h")=TRUE,'Basalt & Hawaite Vol Dist'!$H$6,IF(OR(LEFT(G127,1)="m",LEFT(G127,1)="o")=TRUE,'Mug & Ben Vol Dist'!$H$6,IF(LEFT(G127,1)="t",'Trachyte Vol Dist'!$H$6,""))) -> 1.13 | I127: =IF(OR(LEFT(G127,1)="b",LEFT(G127,1)="h")=TRUE,'Basalt & Hawaite Vol Dist'!$I$6,IF(OR(LEFT(G127,1)="m",LEFT(G127,1)="o")=TRUE,'Mug & Ben Vol Dist'!$I$6,IF(LEFT(G127,1)="t",'Trachyte Vol Dist'!$I$6,""))) -> 0.34 | J127: =IF(OR(LEFT(G127,1)="b",LEFT(G127,1)="h")=TRUE,'Basalt & Hawaite Vol Dist'!$J$6,IF(OR(LEFT(G127,1)="m",LEFT(G127,1)="o")=TRUE,'Mug & Ben Vol Dist'!$J$6,IF(LEFT(G127,1)="t",'Trachyte Vol Dist'!$J$6,""))) -> 1.13 | K127: =IF(OR(LEFT(G127,1)="b",LEFT(G127,1)="h")=TRUE,'Basalt & Hawaite Vol Dist'!$K$6,IF(OR(LEFT(G127,1)="m",LEFT(G127,1)="o")=TRUE,'Mug & Ben Vol Dist'!$K$6,IF(LEFT(G127,1)="t",'Trachyte Vol Dist'!$K$6,""))) -> 0.34 | L127: =IF(OR(LEFT(G127,1)="b",LEFT(G127,1)="h")=TRUE,'Basalt & Hawaite Vol Dist'!$B$42,IF(OR(LEFT(G127,1)="m",LEFT(G127,1)="o")=TRUE,'Mug & Ben Vol Dist'!$B$42,IF(LEFT(G127,1)="t",'Trachyte Vol Dist'!$B$42,""))) -> 0.999
A128: 127 | B128: 0.3583897241 | C128: 0.1847199056 | D128: =SUM($C128:$C$237) -> 41.53852803 | E128: =IFERROR(VLOOKUP(G128,'Summary of age data'!$A$3:$D$243,2,FALSE),"") -> 331.2 | F128: =IFERROR(VLOOKUP(G128,'Summary of age data'!$A$3:$D$243,3,FALSE),"") -> 135.6 | G128: bsm | H128: =IF(OR(LEFT(G128,1)="b",LEFT(G128,1)="h")=TRUE,'Basalt & Hawaite Vol Dist'!$H$6,IF(OR(LEFT(G128,1)="m",LEFT(G128,1)="o")=TRUE,'Mug & Ben Vol Dist'!$H$6,IF(LEFT(G128,1)="t",'Trachyte Vol Dist'!$H$6,""))) -> 1.13 | I128: =IF(OR(LEFT(G128,1)="b",LEFT(G128,1)="h")=TRUE,'Basalt & Hawaite Vol Dist'!$I$6,IF(OR(LEFT(G128,1)="m",LEFT(G128,1)="o")=TRUE,'Mug & Ben Vol Dist'!$I$6,IF(LEFT(G128,1)="t",'Trachyte Vol Dist'!$I$6,""))) -> 0.34 | J128: =IF(OR(LEFT(G128,1)="b",LEFT(G128,1)="h")=TRUE,'Basalt & Hawaite Vol Dist'!$J$6,IF(OR(LEFT(G128,1)="m",LEFT(G128,1)="o")=TRUE,'Mug & Ben Vol Dist'!$J$6,IF(LEFT(G128,1)="t",'Trachyte Vol Dist'!$J$6,""))) -> 1.13 | K128: =IF(OR(LEFT(G128,1)="b",LEFT(G128,1)="h")=TRUE,'Basalt & Hawaite Vol Dist'!$K$6,IF(OR(LEFT(G128,1)="m",LEFT(G128,1)="o")=TRUE,'Mug & Ben Vol Dist'!$K$6,IF(LEFT(G128,1)="t",'Trachyte Vol Dist'!$K$6,""))) -> 0.34 | L128: =IF(OR(LEFT(G128,1)="b",LEFT(G128,1)="h")=TRUE,'Basalt & Hawaite Vol Dist'!$B$42,IF(OR(LEFT(G128,1)="m",LEFT(G128,1)="o")=TRUE,'Mug & Ben Vol Dist'!$B$42,IF(LEFT(G128,1)="t",'Trachyte Vol Dist'!$B$42,""))) -> 0.999
A129: 128 | B129: 0.3409865714 | C129: 0.1744718963 | D129: =SUM($C129:$C$237) -> 41.35380812 | E129: =IFERROR(VLOOKUP(G129,'Summary of age data'!$A$3:$D$243,2,FALSE),"") -> 344.7 | F129: =IFERROR(VLOOKUP(G129,'Summary of age data'!$A$3:$D$243,3,FALSE),"") -> 4.8 | G129: bmu | H129: =IF(OR(LEFT(G129,1)="b",LEFT(G129,1)="h")=TRUE,'Basalt & Hawaite Vol Dist'!$H$6,IF(OR(LEFT(G129,1)="m",LEFT(G129,1)="o")=TRUE,'Mug & Ben Vol Dist'!$H$6,IF(LEFT(G129,1)="t",'Trachyte Vol Dist'!$H$6,""))) -> 1.13 | I129: =IF(OR(LEFT(G129,1)="b",LEFT(G129,1)="h")=TRUE,'Basalt & Hawaite Vol Dist'!$I$6,IF(OR(LEFT(G129,1)="m",LEFT(G129,1)="o")=TRUE,'Mug & Ben Vol Dist'!$I$6,IF(LEFT(G129,1)="t",'Trachyte Vol Dist'!$I$6,""))) -> 0.34 | J129: =IF(OR(LEFT(G129,1)="b",LEFT(G129,1)="h")=TRUE,'Basalt & Hawaite Vol Dist'!$J$6,IF(OR(LEFT(G129,1)="m",LEFT(G129,1)="o")=TRUE,'Mug & Ben Vol Dist'!$J$6,IF(LEFT(G129,1)="t",'Trachyte Vol Dist'!$J$6,""))) -> 1.13 | K129: =IF(OR(LEFT(G129,1)="b",LEFT(G129,1)="h")=TRUE,'Basalt & Hawaite Vol Dist'!$K$6,IF(OR(LEFT(G129,1)="m",LEFT(G129,1)="o")=TRUE,'Mug & Ben Vol Dist'!$K$6,IF(LEFT(G129,1)="t",'Trachyte Vol Dist'!$K$6,""))) -> 0.34 | L129: =IF(OR(LEFT(G129,1)="b",LEFT(G129,1)="h")=TRUE,'Basalt & Hawaite Vol Dist'!$B$42,IF(OR(LEFT(G129,1)="m",LEFT(G129,1)="o")=TRUE,'Mug & Ben Vol Dist'!$B$42,IF(LEFT(G129,1)="t",'Trachyte Vol Dist'!$B$42,""))) -> 0.999
A130: 129 | B130: 0.3760187591 | C130: 0.1953461854 | D130: =SUM($C130:$C$237) -> 41.17933622 | E130: =IFERROR(VLOOKUP(G130,'Summary of age data'!$A$3:$D$243,2,FALSE),"") -> 346.9 | F130: =IFERROR(VLOOKUP(G130,'Summary of age data'!$A$3:$D$243,3,FALSE),"") -> 9.9 | G130: blsa | H130: =IF(OR(LEFT(G130,1)="b",LEFT(G130,1)="h")=TRUE,'Basalt & Hawaite Vol Dist'!$H$6,IF(OR(LEFT(G130,1)="m",LEFT(G130,1)="o")=TRUE,'Mug & Ben Vol Dist'!$H$6,IF(LEFT(G130,1)="t",'Trachyte Vol Dist'!$H$6,""))) -> 1.13 | I130: =IF(OR(LEFT(G130,1)="b",LEFT(G130,1)="h")=TRUE,'Basalt & Hawaite Vol Dist'!$I$6,IF(OR(LEFT(G130,1)="m",LEFT(G130,1)="o")=TRUE,'Mug & Ben Vol Dist'!$I$6,IF(LEFT(G130,1)="t",'Trachyte Vol Dist'!$I$6,""))) -> 0.34 | J130: =IF(OR(LEFT(G130,1)="b",LEFT(G130,1)="h")=TRUE,'Basalt & Hawaite Vol Dist'!$J$6,IF(OR(LEFT(G130,1)="m",LEFT(G130,1)="o")=TRUE,'Mug & Ben Vol Dist'!$J$6,IF(LEFT(G130,1)="t",'Trachyte Vol Dist'!$J$6,""))) -> 1.13 | K130: =IF(OR(LEFT(G130,1)="b",LEFT(G130,1)="h")=TRUE,'Basalt & Hawaite Vol Dist'!$K$6,IF(OR(LEFT(G130,1)="m",LEFT(G130,1)="o")=TRUE,'Mug & Ben Vol Dist'!$K$6,IF(LEFT(G130,1)="t",'Trachyte Vol Dist'!$K$6,""))) -> 0.34 | L130: =IF(OR(LEFT(G130,1)="b",LEFT(G130,1)="h")=TRUE,'Basalt & Hawaite Vol Dist'!$B$42,IF(OR(LEFT(G130,1)="m",LEFT(G130,1)="o")=TRUE,'Mug & Ben Vol Dist'!$B$42,IF(LEFT(G130,1)="t",'Trachyte Vol Dist'!$B$42,""))) -> 0.999
A131: 130 | B131: =RAND() -> 0.7717892283 | C131: 0.5644931957 | D131: =SUM($C131:$C$237) -> 40.98399004 | E131: =IFERROR(VLOOKUP(G131,'Summary of age data'!$A$3:$D$243,2,FALSE),"") -> 357.1 | F131: =IFERROR(VLOOKUP(G131,'Summary of age data'!$A$3:$D$243,3,FALSE),"") -> 54.5 | G131: bsj | H131: =IF(OR(LEFT(G131,1)="b",LEFT(G131,1)="h")=TRUE,'Basalt & Hawaite Vol Dist'!$H$6,IF(OR(LEFT(G131,1)="m",LEFT(G131,1)="o")=TRUE,'Mug & Ben Vol Dist'!$H$6,IF(LEFT(G131,1)="t",'Trachyte Vol Dist'!$H$6,""))) -> 1.13 | I131: =IF(OR(LEFT(G131,1)="b",LEFT(G131,1)="h")=TRUE,'Basalt & Hawaite Vol Dist'!$I$6,IF(OR(LEFT(G131,1)="m",LEFT(G131,1)="o")=TRUE,'Mug & Ben Vol Dist'!$I$6,IF(LEFT(G131,1)="t",'Trachyte Vol Dist'!$I$6,""))) -> 0.34 | J131: =IF(OR(LEFT(G131,1)="b",LEFT(G131,1)="h")=TRUE,'Basalt & Hawaite Vol Dist'!$J$6,IF(OR(LEFT(G131,1)="m",LEFT(G131,1)="o")=TRUE,'Mug & Ben Vol Dist'!$J$6,IF(LEFT(G131,1)="t",'Trachyte Vol Dist'!$J$6,""))) -> 1.13 | K131: =IF(OR(LEFT(G131,1)="b",LEFT(G131,1)="h")=TRUE,'Basalt & Hawaite Vol Dist'!$K$6,IF(OR(LEFT(G131,1)="m",LEFT(G131,1)="o")=TRUE,'Mug & Ben Vol Dist'!$K$6,IF(LEFT(G131,1)="t",'Trachyte Vol Dist'!$K$6,""))) -> 0.34 | L131: =IF(OR(LEFT(G131,1)="b",LEFT(G131,1)="h")=TRUE,'Basalt & Hawaite Vol Dist'!$B$42,IF(OR(LEFT(G131,1)="m",LEFT(G131,1)="o")=TRUE,'Mug & Ben Vol Dist'!$B$42,IF(LEFT(G131,1)="t",'Trachyte Vol Dist'!$B$42,""))) -> 0.999
A132: 131 | B132: 0.4178355906 | C132: 0.2216380732 | D132: =SUM($C132:$C$237) -> 40.41949684 | E132: =IFERROR(VLOOKUP(G132,'Summary of age data'!$A$3:$D$243,2,FALSE),"") -> 362.6 | F132: =IFERROR(VLOOKUP(G132,'Summary of age data'!$A$3:$D$243,3,FALSE),"") -> 97.3 | G132: bju | H132: =IF(OR(LEFT(G132,1)="b",LEFT(G132,1)="h")=TRUE,'Basalt & Hawaite Vol Dist'!$H$6,IF(OR(LEFT(G132,1)="m",LEFT(G132,1)="o")=TRUE,'Mug & Ben Vol Dist'!$H$6,IF(LEFT(G132,1)="t",'Trachyte Vol Dist'!$H$6,""))) -> 1.13 | I132: =IF(OR(LEFT(G132,1)="b",LEFT(G132,1)="h")=TRUE,'Basalt & Hawaite Vol Dist'!$I$6,IF(OR(LEFT(G132,1)="m",LEFT(G132,1)="o")=TRUE,'Mug & Ben Vol Dist'!$I$6,IF(LEFT(G132,1)="t",'Trachyte Vol Dist'!$I$6,""))) -> 0.34 | J132: =IF(OR(LEFT(G132,1)="b",LEFT(G132,1)="h")=TRUE,'Basalt & Hawaite Vol Dist'!$J$6,IF(OR(LEFT(G132,1)="m",LEFT(G132,1)="o")=TRUE,'Mug & Ben Vol Dist'!$J$6,IF(LEFT(G132,1)="t",'Trachyte Vol Dist'!$J$6,""))) -> 1.13 | K132: =IF(OR(LEFT(G132,1)="b",LEFT(G132,1)="h")=TRUE,'Basalt & Hawaite Vol Dist'!$K$6,IF(OR(LEFT(G132,1)="m",LEFT(G132,1)="o")=TRUE,'Mug & Ben Vol Dist'!$K$6,IF(LEFT(G132,1)="t",'Trachyte Vol Dist'!$K$6,""))) -> 0.34 | L132: =IF(OR(LEFT(G132,1)="b",LEFT(G132,1)="h")=TRUE,'Basalt & Hawaite Vol Dist'!$B$42,IF(OR(LEFT(G132,1)="m",LEFT(G132,1)="o")=TRUE,'Mug & Ben Vol Dist'!$B$42,IF(LEFT(G132,1)="t",'Trachyte Vol Dist'!$B$42,""))) -> 0.999
A133: 132 | B133: 0.4717399457 | C133: 0.2581320063 | D133: =SUM($C133:$C$237) -> 40.19785877 | E133: =IFERROR(VLOOKUP(G133,'Summary of age data'!$A$3:$D$243,2,FALSE),"") -> 366.4 | F133: =IFERROR(VLOOKUP(G133,'Summary of age data'!$A$3:$D$243,3,FALSE),"") -> 9.3 | G133: burr | H133: =IF(OR(LEFT(G133,1)="b",LEFT(G133,1)="h")=TRUE,'Basalt & Hawaite Vol Dist'!$H$6,IF(OR(LEFT(G133,1)="m",LEFT(G133,1)="o")=TRUE,'Mug & Ben Vol Dist'!$H$6,IF(LEFT(G133,1)="t",'Trachyte Vol Dist'!$H$6,""))) -> 1.13 | I133: =IF(OR(LEFT(G133,1)="b",LEFT(G133,1)="h")=TRUE,'Basalt & Hawaite Vol Dist'!$I$6,IF(OR(LEFT(G133,1)="m",LEFT(G133,1)="o")=TRUE,'Mug & Ben Vol Dist'!$I$6,IF(LEFT(G133,1)="t",'Trachyte Vol Dist'!$I$6,""))) -> 0.34 | J133: =IF(OR(LEFT(G133,1)="b",LEFT(G133,1)="h")=TRUE,'Basalt & Hawaite Vol Dist'!$J$6,IF(OR(LEFT(G133,1)="m",LEFT(G133,1)="o")=TRUE,'Mug & Ben Vol Dist'!$J$6,IF(LEFT(G133,1)="t",'Trachyte Vol Dist'!$J$6,""))) -> 1.13 | K133: =IF(OR(LEFT(G133,1)="b",LEFT(G133,1)="h")=TRUE,'Basalt & Hawaite Vol Dist'!$K$6,IF(OR(LEFT(G133,1)="m",LEFT(G133,1)="o")=TRUE,'Mug & Ben Vol Dist'!$K$6,IF(LEFT(G133,1)="t",'Trachyte Vol Dist'!$K$6,""))) -> 0.34 | L133: =IF(OR(LEFT(G133,1)="b",LEFT(G133,1)="h")=TRUE,'Basalt & Hawaite Vol Dist'!$B$42,IF(OR(LEFT(G133,1)="m",LEFT(G133,1)="o")=TRUE,'Mug & Ben Vol Dist'!$B$42,IF(LEFT(G133,1)="t",'Trachyte Vol Dist'!$B$42,""))) -> 0.999
A134: 133 | B134: 0.8214795199 | C134: 0.6524385191 | D134: =SUM($C134:$C$237) -> 39.93972676 | E134: =IFERROR(VLOOKUP(G134,'Summary of age data'!$A$3:$D$243,2,FALSE),"") -> 366.4 | F134: =IFERROR(VLOOKUP(G134,'Summary of age data'!$A$3:$D$243,3,FALSE),"") -> 9.3 | G134: bay | H134: =IF(OR(LEFT(G134,1)="b",LEFT(G134,1)="h")=TRUE,'Basalt & Hawaite Vol Dist'!$H$6,IF(OR(LEFT(G134,1)="m",LEFT(G134,1)="o")=TRUE,'Mug & Ben Vol Dist'!$H$6,IF(LEFT(G134,1)="t",'Trachyte Vol Dist'!$H$6,""))) -> 1.13 | I134: =IF(OR(LEFT(G134,1)="b",LEFT(G134,1)="h")=TRUE,'Basalt & Hawaite Vol Dist'!$I$6,IF(OR(LEFT(G134,1)="m",LEFT(G134,1)="o")=TRUE,'Mug & Ben Vol Dist'!$I$6,IF(LEFT(G134,1)="t",'Trachyte Vol Dist'!$I$6,""))) -> 0.34 | J134: =IF(OR(LEFT(G134,1)="b",LEFT(G134,1)="h")=TRUE,'Basalt & Hawaite Vol Dist'!$J$6,IF(OR(LEFT(G134,1)="m",LEFT(G134,1)="o")=TRUE,'Mug & Ben Vol Dist'!$J$6,IF(LEFT(G134,1)="t",'Trachyte Vol Dist'!$J$6,""))) -> 1.13 | K134: =IF(OR(LEFT(G134,1)="b",LEFT(G134,1)="h")=TRUE,'Basalt & Hawaite Vol Dist'!$K$6,IF(OR(LEFT(G134,1)="m",LEFT(G134,1)="o")=TRUE,'Mug & Ben Vol Dist'!$K$6,IF(LEFT(G134,1)="t",'Trachyte Vol Dist'!$K$6,""))) -> 0.34 | L134: =IF(OR(LEFT(G134,1)="b",LEFT(G134,1)="h")=TRUE,'Basalt & Hawaite Vol Dist'!$B$42,IF(OR(LEFT(G134,1)="m",LEFT(G134,1)="o")=TRUE,'Mug & Ben Vol Dist'!$B$42,IF(LEFT(G134,1)="t",'Trachyte Vol Dist'!$B$42,""))) -> 0.999
A135: 134 | B135: 0.7072882509 | C135: 0.4747609388 | D135: =SUM($C135:$C$237) -> 39.28728825 | E135: =IFERROR(VLOOKUP(G135,'Summary of age data'!$A$3:$D$243,2,FALSE),"") -> 366.6 | F135: =IFERROR(VLOOKUP(G135,'Summary of age data'!$A$3:$D$243,3,FALSE),"") -> 159.6 | G135: bte | H135: =IF(OR(LEFT(G135,1)="b",LEFT(G135,1)="h")=TRUE,'Basalt & Hawaite Vol Dist'!$H$6,IF(OR(LEFT(G135,1)="m",LEFT(G135,1)="o")=TRUE,'Mug & Ben Vol Dist'!$H$6,IF(LEFT(G135,1)="t",'Trachyte Vol Dist'!$H$6,""))) -> 1.13 | I135: =IF(OR(LEFT(G135,1)="b",LEFT(G135,1)="h")=TRUE,'Basalt & Hawaite Vol Dist'!$I$6,IF(OR(LEFT(G135,1)="m",LEFT(G135,1)="o")=TRUE,'Mug & Ben Vol Dist'!$I$6,IF(LEFT(G135,1)="t",'Trachyte Vol Dist'!$I$6,""))) -> 0.34 | J135: =IF(OR(LEFT(G135,1)="b",LEFT(G135,1)="h")=TRUE,'Basalt & Hawaite Vol Dist'!$J$6,IF(OR(LEFT(G135,1)="m",LEFT(G135,1)="o")=TRUE,'Mug & Ben Vol Dist'!$J$6,IF(LEFT(G135,1)="t",'Trachyte Vol Dist'!$J$6,""))) -> 1.13 | K135: =IF(OR(LEFT(G135,1)="b",LEFT(G135,1)="h")=TRUE,'Basalt & Hawaite Vol Dist'!$K$6,IF(OR(LEFT(G135,1)="m",LEFT(G135,1)="o")=TRUE,'Mug & Ben Vol Dist'!$K$6,IF(LEFT(G135,1)="t",'Trachyte Vol Dist'!$K$6,""))) -> 0.34 | L135: =IF(OR(LEFT(G135,1)="b",LEFT(G135,1)="h")=TRUE,'Basalt & Hawaite Vol Dist'!$B$42,IF(OR(LEFT(G135,1)="m",LEFT(G135,1)="o")=TRUE,'Mug & Ben Vol Dist'!$B$42,IF(LEFT(G135,1)="t",'Trachyte Vol Dist'!$B$42,""))) -> 0.999
A136: 135 | B136: 0.5381361052 | C136: 0.3080746235 | D136: =SUM($C136:$C$237) -> 38.81252731 | E136: =IFERROR(VLOOKUP(G136,'Summary of age data'!$A$3:$D$243,2,FALSE),"") -> 378.8 | F136: =IFERROR(VLOOKUP(G136,'Summary of age data'!$A$3:$D$243,3,FALSE),"") -> 10 | G136: bpr | H136: =IF(OR(LEFT(G136,1)="b",LEFT(G136,1)="h")=TRUE,'Basalt & Hawaite Vol Dist'!$H$6,IF(OR(LEFT(G136,1)="m",LEFT(G136,1)="o")=TRUE,'Mug & Ben Vol Dist'!$H$6,IF(LEFT(G136,1)="t",'Trachyte Vol Dist'!$H$6,""))) -> 1.13 | I136: =IF(OR(LEFT(G136,1)="b",LEFT(G136,1)="h")=TRUE,'Basalt & Hawaite Vol Dist'!$I$6,IF(OR(LEFT(G136,1)="m",LEFT(G136,1)="o")=TRUE,'Mug & Ben Vol Dist'!$I$6,IF(LEFT(G136,1)="t",'Trachyte Vol Dist'!$I$6,""))) -> 0.34 | J136: =IF(OR(LEFT(G136,1)="b",LEFT(G136,1)="h")=TRUE,'Basalt & Hawaite Vol Dist'!$J$6,IF(OR(LEFT(G136,1)="m",LEFT(G136,1)="o")=TRUE,'Mug & Ben Vol Dist'!$J$6,IF(LEFT(G136,1)="t",'Trachyte Vol Dist'!$J$6,""))) -> 1.13 | K136: =IF(OR(LEFT(G136,1)="b",LEFT(G136,1)="h")=TRUE,'Basalt & Hawaite Vol Dist'!$K$6,IF(OR(LEFT(G136,1)="m",LEFT(G136,1)="o")=TRUE,'Mug & Ben Vol Dist'!$K$6,IF(LEFT(G136,1)="t",'Trachyte Vol Dist'!$K$6,""))) -> 0.34 | L136: =IF(OR(LEFT(G136,1)="b",LEFT(G136,1)="h")=TRUE,'Basalt & Hawaite Vol Dist'!$B$42,IF(OR(LEFT(G136,1)="m",LEFT(G136,1)="o")=TRUE,'Mug & Ben Vol Dist'!$B$42,IF(LEFT(G136,1)="t",'Trachyte Vol Dist'!$B$42,""))) -> 0.999
A137: 136 | B137: 0.1718944965 | C137: 0.08466535873 | D137: =SUM($C137:$C$237) -> 38.50445268 | E137: =IFERROR(VLOOKUP(G137,'Summary of age data'!$A$3:$D$243,2,FALSE),"") -> 380.7 | F137: =IFERROR(VLOOKUP(G137,'Summary of age data'!$A$3:$D$243,3,FALSE),"") -> 165.9 | G137: bqr | H137: =IF(OR(LEFT(G137,1)="b",LEFT(G137,1)="h")=TRUE,'Basalt & Hawaite Vol Dist'!$H$6,IF(OR(LEFT(G137,1)="m",LEFT(G137,1)="o")=TRUE,'Mug & Ben Vol Dist'!$H$6,IF(LEFT(G137,1)="t",'Trachyte Vol Dist'!$H$6,""))) -> 1.13 | I137: =IF(OR(LEFT(G137,1)="b",LEFT(G137,1)="h")=TRUE,'Basalt & Hawaite Vol Dist'!$I$6,IF(OR(LEFT(G137,1)="m",LEFT(G137,1)="o")=TRUE,'Mug & Ben Vol Dist'!$I$6,IF(LEFT(G137,1)="t",'Trachyte Vol Dist'!$I$6,""))) -> 0.34 | J137: =IF(OR(LEFT(G137,1)="b",LEFT(G137,1)="h")=TRUE,'Basalt & Hawaite Vol Dist'!$J$6,IF(OR(LEFT(G137,1)="m",LEFT(G137,1)="o")=TRUE,'Mug & Ben Vol Dist'!$J$6,IF(LEFT(G137,1)="t",'Trachyte Vol Dist'!$J$6,""))) -> 1.13 | K137: =IF(OR(LEFT(G137,1)="b",LEFT(G137,1)="h")=TRUE,'Basalt & Hawaite Vol Dist'!$K$6,IF(OR(LEFT(G137,1)="m",LEFT(G137,1)="o")=TRUE,'Mug & Ben Vol Dist'!$K$6,IF(LEFT(G137,1)="t",'Trachyte Vol Dist'!$K$6,""))) -> 0.34 | L137: =IF(OR(LEFT(G137,1)="b",LEFT(G137,1)="h")=TRUE,'Basalt & Hawaite Vol Dist'!$B$42,IF(OR(LEFT(G137,1)="m",LEFT(G137,1)="o")=TRUE,'Mug & Ben Vol Dist'!$B$42,IF(LEFT(G137,1)="t",'Trachyte Vol Dist'!$B$42,""))) -> 0.999
A138: 137 | B138: 0.08392018203 | C138: 0.04241394088 | D138: =SUM($C138:$C$237) -> 38.41978732 | E138: =IFERROR(VLOOKUP(G138,'Summary of age data'!$A$3:$D$243,2,FALSE),"") -> 382.5 | F138: =IFERROR(VLOOKUP(G138,'Summary of age data'!$A$3:$D$243,3,FALSE),"") -> 5.8 | G138: bhg | H138: =IF(OR(LEFT(G138,1)="b",LEFT(G138,1)="h")=TRUE,'Basalt & Hawaite Vol Dist'!$H$6,IF(OR(LEFT(G138,1)="m",LEFT(G138,1)="o")=TRUE,'Mug & Ben Vol Dist'!$H$6,IF(LEFT(G138,1)="t",'Trachyte Vol Dist'!$H$6,""))) -> 1.13 | I138: =IF(OR(LEFT(G138,1)="b",LEFT(G138,1)="h")=TRUE,'Basalt & Hawaite Vol Dist'!$I$6,IF(OR(LEFT(G138,1)="m",LEFT(G138,1)="o")=TRUE,'Mug & Ben Vol Dist'!$I$6,IF(LEFT(G138,1)="t",'Trachyte Vol Dist'!$I$6,""))) -> 0.34 | J138: =IF(OR(LEFT(G138,1)="b",LEFT(G138,1)="h")=TRUE,'Basalt & Hawaite Vol Dist'!$J$6,IF(OR(LEFT(G138,1)="m",LEFT(G138,1)="o")=TRUE,'Mug & Ben Vol Dist'!$J$6,IF(LEFT(G138,1)="t",'Trachyte Vol Dist'!$J$6,""))) -> 1.13 | K138: =IF(OR(LEFT(G138,1)="b",LEFT(G138,1)="h")=TRUE,'Basalt & Hawaite Vol Dist'!$K$6,IF(OR(LEFT(G138,1)="m",LEFT(G138,1)="o")=TRUE,'Mug & Ben Vol Dist'!$K$6,IF(LEFT(G138,1)="t",'Trachyte Vol Dist'!$K$6,""))) -> 0.34 | L138: =IF(OR(LEFT(G138,1)="b",LEFT(G138,1)="h")=TRUE,'Basalt & Hawaite Vol Dist'!$B$42,IF(OR(LEFT(G138,1)="m",LEFT(G138,1)="o")=TRUE,'Mug & Ben Vol Dist'!$B$42,IF(LEFT(G138,1)="t",'Trachyte Vol Dist'!$B$42,""))) -> 0.999
A139: 138 | B139: 0.4536533996 | C139: 0.2455271107 | D139: =SUM($C139:$C$237) -> 38.37737338 | E139: =IFERROR(VLOOKUP(G139,'Summary of age data'!$A$3:$D$243,2,FALSE),"") -> 383.7 | F139: =IFERROR(VLOOKUP(G139,'Summary of age data'!$A$3:$D$243,3,FALSE),"") -> 81.1 | G139: bnj | H139: =IF(OR(LEFT(G139,1)="b",LEFT(G139,1)="h")=TRUE,'Basalt & Hawaite Vol Dist'!$H$6,IF(OR(LEFT(G139,1)="m",LEFT(G139,1)="o")=TRUE,'Mug & Ben Vol Dist'!$H$6,IF(LEFT(G139,1)="t",'Trachyte Vol Dist'!$H$6,""))) -> 1.13 | I139: =IF(OR(LEFT(G139,1)="b",LEFT(G139,1)="h")=TRUE,'Basalt & Hawaite Vol Dist'!$I$6,IF(OR(LEFT(G139,1)="m",LEFT(G139,1)="o")=TRUE,'Mug & Ben Vol Dist'!$I$6,IF(LEFT(G139,1)="t",'Trachyte Vol Dist'!$I$6,""))) -> 0.34 | J139: =IF(OR(LEFT(G139,1)="b",LEFT(G139,1)="h")=TRUE,'Basalt & Hawaite Vol Dist'!$J$6,IF(OR(LEFT(G139,1)="m",LEFT(G139,1)="o")=TRUE,'Mug & Ben Vol Dist'!$J$6,IF(LEFT(G139,1)="t",'Trachyte Vol Dist'!$J$6,""))) -> 1.13 | K139: =IF(OR(LEFT(G139,1)="b",LEFT(G139,1)="h")=TRUE,'Basalt & Hawaite Vol Dist'!$K$6,IF(OR(LEFT(G139,1)="m",LEFT(G139,1)="o")=TRUE,'Mug & Ben Vol Dist'!$K$6,IF(LEFT(G139,1)="t",'Trachyte Vol Dist'!$K$6,""))) -> 0.34 | L139: =IF(OR(LEFT(G139,1)="b",LEFT(G139,1)="h")=TRUE,'Basalt & Hawaite Vol Dist'!$B$42,IF(OR(LEFT(G139,1)="m",LEFT(G139,1)="o")=TRUE,'Mug & Ben Vol Dist'!$B$42,IF(LEFT(G139,1)="t",'Trachyte Vol Dist'!$B$42,""))) -> 0.999
A140: 139 | B140: 0.6991567434 | C140: 0.28514687 | D140: =SUM($C140:$C$237) -> 38.13184627 | E140: =IFERROR(VLOOKUP(G140,'Summary of age data'!$A$3:$D$243,2,FALSE),"") -> 385.6 | F140: =IFERROR(VLOOKUP(G140,'Summary of age data'!$A$3:$D$243,3,FALSE),"") -> 12.6 | G140: muq | H140: =IF(OR(LEFT(G140,1)="b",LEFT(G140,1)="h")=TRUE,'Basalt & Hawaite Vol Dist'!$H$6,IF(OR(LEFT(G140,1)="m",LEFT(G140,1)="o")=TRUE,'Mug & Ben Vol Dist'!$H$6,IF(LEFT(G140,1)="t",'Trachyte Vol Dist'!$H$6,""))) -> 0.21 | I140: =IF(OR(LEFT(G140,1)="b",LEFT(G140,1)="h")=TRUE,'Basalt & Hawaite Vol Dist'!$I$6,IF(OR(LEFT(G140,1)="m",LEFT(G140,1)="o")=TRUE,'Mug & Ben Vol Dist'!$I$6,IF(LEFT(G140,1)="t",'Trachyte Vol Dist'!$I$6,""))) -> 6.1 | J140: =IF(OR(LEFT(G140,1)="b",LEFT(G140,1)="h")=TRUE,'Basalt & Hawaite Vol Dist'!$J$6,IF(OR(LEFT(G140,1)="m",LEFT(G140,1)="o")=TRUE,'Mug & Ben Vol Dist'!$J$6,IF(LEFT(G140,1)="t",'Trachyte Vol Dist'!$J$6,""))) -> 8.9 | K140: =IF(OR(LEFT(G140,1)="b",LEFT(G140,1)="h")=TRUE,'Basalt & Hawaite Vol Dist'!$K$6,IF(OR(LEFT(G140,1)="m",LEFT(G140,1)="o")=TRUE,'Mug & Ben Vol Dist'!$K$6,IF(LEFT(G140,1)="t",'Trachyte Vol Dist'!$K$6,""))) -> 0.028 | L140: =IF(OR(LEFT(G140,1)="b",LEFT(G140,1)="h")=TRUE,'Basalt & Hawaite Vol Dist'!$B$42,IF(OR(LEFT(G140,1)="m",LEFT(G140,1)="o")=TRUE,'Mug & Ben Vol Dist'!$B$42,IF(LEFT(G140,1)="t",'Trachyte Vol Dist'!$B$42,""))) -> 0.5551036823
A141: 140 | B141: 0.9804370173 | C141: 0.4501952319 | D141: =SUM($C141:$C$237) -> 37.8466994 | E141: =IFERROR(VLOOKUP(G141,'Summary of age data'!$A$3:$D$243,2,FALSE),"") -> 388.4 | F141: =IFERROR(VLOOKUP(G141,'Summary of age data'!$A$3:$D$243,3,FALSE),"") -> 9.9 | G141: osa | H141: =IF(OR(LEFT(G141,1)="b",LEFT(G141,1)="h")=TRUE,'Basalt & Hawaite Vol Dist'!$H$6,IF(OR(LEFT(G141,1)="m",LEFT(G141,1)="o")=TRUE,'Mug & Ben Vol Dist'!$H$6,IF(LEFT(G141,1)="t",'Trachyte Vol Dist'!$H$6,""))) -> 0.21 | I141: =IF(OR(LEFT(G141,1)="b",LEFT(G141,1)="h")=TRUE,'Basalt & Hawaite Vol Dist'!$I$6,IF(OR(LEFT(G141,1)="m",LEFT(G141,1)="o")=TRUE,'Mug & Ben Vol Dist'!$I$6,IF(LEFT(G141,1)="t",'Trachyte Vol Dist'!$I$6,""))) -> 6.1 | J141: =IF(OR(LEFT(G141,1)="b",LEFT(G141,1)="h")=TRUE,'Basalt & Hawaite Vol Dist'!$J$6,IF(OR(LEFT(G141,1)="m",LEFT(G141,1)="o")=TRUE,'Mug & Ben Vol Dist'!$J$6,IF(LEFT(G141,1)="t",'Trachyte Vol Dist'!$J$6,""))) -> 8.9 | K141: =IF(OR(LEFT(G141,1)="b",LEFT(G141,1)="h")=TRUE,'Basalt & Hawaite Vol Dist'!$K$6,IF(OR(LEFT(G141,1)="m",LEFT(G141,1)="o")=TRUE,'Mug & Ben Vol Dist'!$K$6,IF(LEFT(G141,1)="t",'Trachyte Vol Dist'!$K$6,""))) -> 0.028 | L141: =IF(OR(LEFT(G141,1)="b",LEFT(G141,1)="h")=TRUE,'Basalt & Hawaite Vol Dist'!$B$42,IF(OR(LEFT(G141,1)="m",LEFT(G141,1)="o")=TRUE,'Mug & Ben Vol Dist'!$B$42,IF(LEFT(G141,1)="t",'Trachyte Vol Dist'!$B$42,""))) -> 0.5551036823
A142: 141 | B142: 0.09194040161 | C142: 4.647744417e-05 | D142: =SUM($C142:$C$237) -> 37.39650417 | E142: =IFERROR(VLOOKUP(G142,'Summary of age data'!$A$3:$D$243,2,FALSE),"") -> 388.4 | F142: =IFERROR(VLOOKUP(G142,'Summary of age data'!$A$3:$D$243,3,FALSE),"") -> 9.9 | G142: mns | H142: =IF(OR(LEFT(G142,1)="b",LEFT(G142,1)="h")=TRUE,'Basalt & Hawaite Vol Dist'!$H$6,IF(OR(LEFT(G142,1)="m",LEFT(G142,1)="o")=TRUE,'Mug & Ben Vol Dist'!$H$6,IF(LEFT(G142,1)="t",'Trachyte Vol Dist'!$H$6,""))) -> 0.21 | I142: =IF(OR(LEFT(G142,1)="b",LEFT(G142,1)="h")=TRUE,'Basalt & Hawaite Vol Dist'!$I$6,IF(OR(LEFT(G142,1)="m",LEFT(G142,1)="o")=TRUE,'Mug & Ben Vol Dist'!$I$6,IF(LEFT(G142,1)="t",'Trachyte Vol Dist'!$I$6,""))) -> 6.1 | J142: =IF(OR(LEFT(G142,1)="b",LEFT(G142,1)="h")=TRUE,'Basalt & Hawaite Vol Dist'!$J$6,IF(OR(LEFT(G142,1)="m",LEFT(G142,1)="o")=TRUE,'Mug & Ben Vol Dist'!$J$6,IF(LEFT(G142,1)="t",'Trachyte Vol Dist'!$J$6,""))) -> 8.9 | K142: =IF(OR(LEFT(G142,1)="b",LEFT(G142,1)="h")=TRUE,'Basalt & Hawaite Vol Dist'!$K$6,IF(OR(LEFT(G142,1)="m",LEFT(G142,1)="o")=TRUE,'Mug & Ben Vol Dist'!$K$6,IF(LEFT(G142,1)="t",'Trachyte Vol Dist'!$K$6,""))) -> 0.028 | L142: =IF(OR(LEFT(G142,1)="b",LEFT(G142,1)="h")=TRUE,'Basalt & Hawaite Vol Dist'!$B$42,IF(OR(LEFT(G142,1)="m",LEFT(G142,1)="o")=TRUE,'Mug & Ben Vol Dist'!$B$42,IF(LEFT(G142,1)="t",'Trachyte Vol Dist'!$B$42,""))) -> 0.5551036823
A143: 142 | B143: 0.4828655598 | C143: 0.02571419135 | D143: =SUM($C143:$C$237) -> 37.39645769 | E143: =IFERROR(VLOOKUP(G143,'Summary of age data'!$A$3:$D$243,2,FALSE),"") -> 389.9 | F143: =IFERROR(VLOOKUP(G143,'Summary of age data'!$A$3:$D$243,3,FALSE),"") -> 5 | G143: msr | H143: =IF(OR(LEFT(G143,1)="b",LEFT(G143,1)="h")=TRUE,'Basalt & Hawaite Vol Dist'!$H$6,IF(OR(LEFT(G143,1)="m",LEFT(G143,1)="o")=TRUE,'Mug & Ben Vol Dist'!$H$6,IF(LEFT(G143,1)="t",'Trachyte Vol Dist'!$H$6,""))) -> 0.21 | I143: =IF(OR(LEFT(G143,1)="b",LEFT(G143,1)="h")=TRUE,'Basalt & Hawaite Vol Dist'!$I$6,IF(OR(LEFT(G143,1)="m",LEFT(G143,1)="o")=TRUE,'Mug & Ben Vol Dist'!$I$6,IF(LEFT(G143,1)="t",'Trachyte Vol Dist'!$I$6,""))) -> 6.1 | J143: =IF(OR(LEFT(G143,1)="b",LEFT(G143,1)="h")=TRUE,'Basalt & Hawaite Vol Dist'!$J$6,IF(OR(LEFT(G143,1)="m",LEFT(G143,1)="o")=TRUE,'Mug & Ben Vol Dist'!$J$6,IF(LEFT(G143,1)="t",'Trachyte Vol Dist'!$J$6,""))) -> 8.9 | K143: =IF(OR(LEFT(G143,1)="b",LEFT(G143,1)="h")=TRUE,'Basalt & Hawaite Vol Dist'!$K$6,IF(OR(LEFT(G143,1)="m",LEFT(G143,1)="o")=TRUE,'Mug & Ben Vol Dist'!$K$6,IF(LEFT(G143,1)="t",'Trachyte Vol Dist'!$K$6,""))) -> 0.028 | L143: =IF(OR(LEFT(G143,1)="b",LEFT(G143,1)="h")=TRUE,'Basalt & Hawaite Vol Dist'!$B$42,IF(OR(LEFT(G143,1)="m",LEFT(G143,1)="o")=TRUE,'Mug & Ben Vol Dist'!$B$42,IF(LEFT(G143,1)="t",'Trachyte Vol Dist'!$B$42,""))) -> 0.5551036823
A144: 143 | B144: 0.1144825045 | C144: =IF(B144<=L144,_xlfn.GAMMA.INV(B144,H144,I144),_xlfn.GAMMA.INV(B144,J144,K144)) -> 0.05693537013 | D144: =SUM($C144:$C$237) -> 37.3707435 | E144: =IFERROR(VLOOKUP(G144,'Summary of age data'!$A$3:$D$243,2,FALSE),"") -> 400 | F144: =IFERROR(VLOOKUP(G144,'Summary of age data'!$A$3:$D$243,3,FALSE),"") -> 0 | G144: hsb | H144: =IF(OR(LEFT(G144,1)="b",LEFT(G144,1)="h")=TRUE,'Basalt & Hawaite Vol Dist'!$H$6,IF(OR(LEFT(G144,1)="m",LEFT(G144,1)="o")=TRUE,'Mug & Ben Vol Dist'!$H$6,IF(LEFT(G144,1)="t",'Trachyte Vol Dist'!$H$6,""))) -> 1.13 | I144: =IF(OR(LEFT(G144,1)="b",LEFT(G144,1)="h")=TRUE,'Basalt & Hawaite Vol Dist'!$I$6,IF(OR(LEFT(G144,1)="m",LEFT(G144,1)="o")=TRUE,'Mug & Ben Vol Dist'!$I$6,IF(LEFT(G144,1)="t",'Trachyte Vol Dist'!$I$6,""))) -> 0.34 | J144: =IF(OR(LEFT(G144,1)="b",LEFT(G144,1)="h")=TRUE,'Basalt & Hawaite Vol Dist'!$J$6,IF(OR(LEFT(G144,1)="m",LEFT(G144,1)="o")=TRUE,'Mug & Ben Vol Dist'!$J$6,IF(LEFT(G144,1)="t",'Trachyte Vol Dist'!$J$6,""))) -> 1.13 | K144: =IF(OR(LEFT(G144,1)="b",LEFT(G144,1)="h")=TRUE,'Basalt & Hawaite Vol Dist'!$K$6,IF(OR(LEFT(G144,1)="m",LEFT(G144,1)="o")=TRUE,'Mug & Ben Vol Dist'!$K$6,IF(LEFT(G144,1)="t",'Trachyte Vol Dist'!$K$6,""))) -> 0.34 | L144: =IF(OR(LEFT(G144,1)="b",LEFT(G144,1)="h")=TRUE,'Basalt & Hawaite Vol Dist'!$B$42,IF(OR(LEFT(G144,1)="m",LEFT(G144,1)="o")=TRUE,'Mug & Ben Vol Dist'!$B$42,IF(LEFT(G144,1)="t",'Trachyte Vol Dist'!$B$42,""))) -> 0.999
A145: 144 | B145: 0.2791926807 | C145: 0.1398113253 | D145: =SUM($C145:$C$237) -> 37.31380813 | E145: =IFERROR(VLOOKUP(G145,'Summary of age data'!$A$3:$D$243,2,FALSE),"") -> 400 | F145: =IFERROR(VLOOKUP(G145,'Summary of age data'!$A$3:$D$243,3,FALSE),"") -> 0 | G145: bduw | H145: =IF(OR(LEFT(G145,1)="b",LEFT(G145,1)="h")=TRUE,'Basalt & Hawaite Vol Dist'!$H$6,IF(OR(LEFT(G145,1)="m",LEFT(G145,1)="o")=TRUE,'Mug & Ben Vol Dist'!$H$6,IF(LEFT(G145,1)="t",'Trachyte Vol Dist'!$H$6,""))) -> 1.13 | I145: =IF(OR(LEFT(G145,1)="b",LEFT(G145,1)="h")=TRUE,'Basalt & Hawaite Vol Dist'!$I$6,IF(OR(LEFT(G145,1)="m",LEFT(G145,1)="o")=TRUE,'Mug & Ben Vol Dist'!$I$6,IF(LEFT(G145,1)="t",'Trachyte Vol Dist'!$I$6,""))) -> 0.34 | J145: =IF(OR(LEFT(G145,1)="b",LEFT(G145,1)="h")=TRUE,'Basalt & Hawaite Vol Dist'!$J$6,IF(OR(LEFT(G145,1)="m",LEFT(G145,1)="o")=TRUE,'Mug & Ben Vol Dist'!$J$6,IF(LEFT(G145,1)="t",'Trachyte Vol Dist'!$J$6,""))) -> 1.13 | K145: =IF(OR(LEFT(G145,1)="b",LEFT(G145,1)="h")=TRUE,'Basalt & Hawaite Vol Dist'!$K$6,IF(OR(LEFT(G145,1)="m",LEFT(G145,1)="o")=TRUE,'Mug & Ben Vol Dist'!$K$6,IF(LEFT(G145,1)="t",'Trachyte Vol Dist'!$K$6,""))) -> 0.34 | L145: =IF(OR(LEFT(G145,1)="b",LEFT(G145,1)="h")=TRUE,'Basalt & Hawaite Vol Dist'!$B$42,IF(OR(LEFT(G145,1)="m",LEFT(G145,1)="o")=TRUE,'Mug & Ben Vol Dist'!$B$42,IF(LEFT(G145,1)="t",'Trachyte Vol Dist'!$B$42,""))) -> 0.999
A146: 145 | B146: 0.6489392067 | C146: 0.4087524364 | D146: =SUM($C146:$C$237) -> 37.17399681 | E146: =IFERROR(VLOOKUP(G146,'Summary of age data'!$A$3:$D$243,2,FALSE),"") -> 400 | F146: =IFERROR(VLOOKUP(G146,'Summary of age data'!$A$3:$D$243,3,FALSE),"") -> 0 | G146: bh87 | H146: =IF(OR(LEFT(G146,1)="b",LEFT(G146,1)="h")=TRUE,'Basalt & Hawaite Vol Dist'!$H$6,IF(OR(LEFT(G146,1)="m",LEFT(G146,1)="o")=TRUE,'Mug & Ben Vol Dist'!$H$6,IF(LEFT(G146,1)="t",'Trachyte Vol Dist'!$H$6,""))) -> 1.13 | I146: =IF(OR(LEFT(G146,1)="b",LEFT(G146,1)="h")=TRUE,'Basalt & Hawaite Vol Dist'!$I$6,IF(OR(LEFT(G146,1)="m",LEFT(G146,1)="o")=TRUE,'Mug & Ben Vol Dist'!$I$6,IF(LEFT(G146,1)="t",'Trachyte Vol Dist'!$I$6,""))) -> 0.34 | J146: =IF(OR(LEFT(G146,1)="b",LEFT(G146,1)="h")=TRUE,'Basalt & Hawaite Vol Dist'!$J$6,IF(OR(LEFT(G146,1)="m",LEFT(G146,1)="o")=TRUE,'Mug & Ben Vol Dist'!$J$6,IF(LEFT(G146,1)="t",'Trachyte Vol Dist'!$J$6,""))) -> 1.13 | K146: =IF(OR(LEFT(G146,1)="b",LEFT(G146,1)="h")=TRUE,'Basalt & Hawaite Vol Dist'!$K$6,IF(OR(LEFT(G146,1)="m",LEFT(G146,1)="o")=TRUE,'Mug & Ben Vol Dist'!$K$6,IF(LEFT(G146,1)="t",'Trachyte Vol Dist'!$K$6,""))) -> 0.34 | L146: =IF(OR(LEFT(G146,1)="b",LEFT(G146,1)="h")=TRUE,'Basalt & Hawaite Vol Dist'!$B$42,IF(OR(LEFT(G146,1)="m",LEFT(G146,1)="o")=TRUE,'Mug & Ben Vol Dist'!$B$42,IF(LEFT(G146,1)="t",'Trachyte Vol Dist'!$B$42,""))) -> 0.999
A147: 146 | B147: 0.307612383 | C147: 0.1554381346 | D147: =SUM($C147:$C$237) -> 36.76524437 | E147: =IFERROR(VLOOKUP(G147,'Summary of age data'!$A$3:$D$243,2,FALSE),"") -> 400 | F147: =IFERROR(VLOOKUP(G147,'Summary of age data'!$A$3:$D$243,3,FALSE),"") -> 0 | G147: bsaw | H147: =IF(OR(LEFT(G147,1)="b",LEFT(G147,1)="h")=TRUE,'Basalt & Hawaite Vol Dist'!$H$6,IF(OR(LEFT(G147,1)="m",LEFT(G147,1)="o")=TRUE,'Mug & Ben Vol Dist'!$H$6,IF(LEFT(G147,1)="t",'Trachyte Vol Dist'!$H$6,""))) -> 1.13 | I147: =IF(OR(LEFT(G147,1)="b",LEFT(G147,1)="h")=TRUE,'Basalt & Hawaite Vol Dist'!$I$6,IF(OR(LEFT(G147,1)="m",LEFT(G147,1)="o")=TRUE,'Mug & Ben Vol Dist'!$I$6,IF(LEFT(G147,1)="t",'Trachyte Vol Dist'!$I$6,""))) -> 0.34 | J147: =IF(OR(LEFT(G147,1)="b",LEFT(G147,1)="h")=TRUE,'Basalt & Hawaite Vol Dist'!$J$6,IF(OR(LEFT(G147,1)="m",LEFT(G147,1)="o")=TRUE,'Mug & Ben Vol Dist'!$J$6,IF(LEFT(G147,1)="t",'Trachyte Vol Dist'!$J$6,""))) -> 1.13 | K147: =IF(OR(LEFT(G147,1)="b",LEFT(G147,1)="h")=TRUE,'Basalt & Hawaite Vol Dist'!$K$6,IF(OR(LEFT(G147,1)="m",LEFT(G147,1)="o")=TRUE,'Mug & Ben Vol Dist'!$K$6,IF(LEFT(G147,1)="t",'Trachyte Vol Dist'!$K$6,""))) -> 0.34 | L147: =IF(OR(LEFT(G147,1)="b",LEFT(G147,1)="h")=TRUE,'Basalt & Hawaite Vol Dist'!$B$42,IF(OR(LEFT(G147,1)="m",LEFT(G147,1)="o")=TRUE,'Mug & Ben Vol Dist'!$B$42,IF(LEFT(G147,1)="t",'Trachyte Vol Dist'!$B$42,""))) -> 0.999
A148: 147 | B148: 0.9432816515 | C148: 1.058303789 | D148: =SUM($C148:$C$237) -> 36.60980624 | E148: =IFERROR(VLOOKUP(G148,'Summary of age data'!$A$3:$D$243,2,FALSE),"") -> 401.6 | F148: =IFERROR(VLOOKUP(G148,'Summary of age data'!$A$3:$D$243,3,FALSE),"") -> 9.8 | G148: bsah | H148: =IF(OR(LEFT(G148,1)="b",LEFT(G148,1)="h")=TRUE,'Basalt & Hawaite Vol Dist'!$H$6,IF(OR(LEFT(G148,1)="m",LEFT(G148,1)="o")=TRUE,'Mug & Ben Vol Dist'!$H$6,IF(LEFT(G148,1)="t",'Trachyte Vol Dist'!$H$6,""))) -> 1.13 | I148: =IF(OR(LEFT(G148,1)="b",LEFT(G148,1)="h")=TRUE,'Basalt & Hawaite Vol Dist'!$I$6,IF(OR(LEFT(G148,1)="m",LEFT(G148,1)="o")=TRUE,'Mug & Ben Vol Dist'!$I$6,IF(LEFT(G148,1)="t",'Trachyte Vol Dist'!$I$6,""))) -> 0.34 | J148: =IF(OR(LEFT(G148,1)="b",LEFT(G148,1)="h")=TRUE,'Basalt & Hawaite Vol Dist'!$J$6,IF(OR(LEFT(G148,1)="m",LEFT(G148,1)="o")=TRUE,'Mug & Ben Vol Dist'!$J$6,IF(LEFT(G148,1)="t",'Trachyte Vol Dist'!$J$6,""))) -> 1.13 | K148: =IF(OR(LEFT(G148,1)="b",LEFT(G148,1)="h")=TRUE,'Basalt & Hawaite Vol Dist'!$K$6,IF(OR(LEFT(G148,1)="m",LEFT(G148,1)="o")=TRUE,'Mug & Ben Vol Dist'!$K$6,IF(LEFT(G148,1)="t",'Trachyte Vol Dist'!$K$6,""))) -> 0.34 | L148: =IF(OR(LEFT(G148,1)="b",LEFT(G148,1)="h")=TRUE,'Basalt & Hawaite Vol Dist'!$B$42,IF(OR(LEFT(G148,1)="m",LEFT(G148,1)="o")=TRUE,'Mug & Ben Vol Dist'!$B$42,IF(LEFT(G148,1)="t",'Trachyte Vol Dist'!$B$42,""))) -> 0.999
A149: 148 | B149: 0.5835687343 | C149: 0.3462583631 | D149: =SUM($C149:$C$237) -> 35.55150245 | E149: =IFERROR(VLOOKUP(G149,'Summary of age data'!$A$3:$D$243,2,FALSE),"") -> 401.6 | F149: =IFERROR(VLOOKUP(G149,'Summary of age data'!$A$3:$D$243,3,FALSE),"") -> 9.8 | G149: bsou | H149: =IF(OR(LEFT(G149,1)="b",LEFT(G149,1)="h")=TRUE,'Basalt & Hawaite Vol Dist'!$H$6,IF(OR(LEFT(G149,1)="m",LEFT(G149,1)="o")=TRUE,'Mug & Ben Vol Dist'!$H$6,IF(LEFT(G149,1)="t",'Trachyte Vol Dist'!$H$6,""))) -> 1.13 | I149: =IF(OR(LEFT(G149,1)="b",LEFT(G149,1)="h")=TRUE,'Basalt & Hawaite Vol Dist'!$I$6,IF(OR(LEFT(G149,1)="m",LEFT(G149,1)="o")=TRUE,'Mug & Ben Vol Dist'!$I$6,IF(LEFT(G149,1)="t",'Trachyte Vol Dist'!$I$6,""))) -> 0.34 | J149: =IF(OR(LEFT(G149,1)="b",LEFT(G149,1)="h")=TRUE,'Basalt & Hawaite Vol Dist'!$J$6,IF(OR(LEFT(G149,1)="m",LEFT(G149,1)="o")=TRUE,'Mug & Ben Vol Dist'!$J$6,IF(LEFT(G149,1)="t",'Trachyte Vol Dist'!$J$6,""))) -> 1.13 | K149: =IF(OR(LEFT(G149,1)="b",LEFT(G149,1)="h")=TRUE,'Basalt & Hawaite Vol Dist'!$K$6,IF(OR(LEFT(G149,1)="m",LEFT(G149,1)="o")=TRUE,'Mug & Ben Vol Dist'!$K$6,IF(LEFT(G149,1)="t",'Trachyte Vol Dist'!$K$6,""))) -> 0.34 | L149: =IF(OR(LEFT(G149,1)="b",LEFT(G149,1)="h")=TRUE,'Basalt & Hawaite Vol Dist'!$B$42,IF(OR(LEFT(G149,1)="m",LEFT(G149,1)="o")=TRUE,'Mug & Ben Vol Dist'!$B$42,IF(LEFT(G149,1)="t",'Trachyte Vol Dist'!$B$42,""))) -> 0.999
A150: 149 | B150: 0.60543447 | C150: 0.3660558841 | D150: =SUM($C150:$C$237) -> 35.20524408 | E150: =IFERROR(VLOOKUP(G150,'Summary of age data'!$A$3:$D$243,2,FALSE),"") -> 401.8 | F150: =IFERROR(VLOOKUP(G150,'Summary of age data'!$A$3:$D$243,3,FALSE),"") -> 6.3 | G150: bur | H150: =IF(OR(LEFT(G150,1)="b",LEFT(G150,1)="h")=TRUE,'Basalt & Hawaite Vol Dist'!$H$6,IF(OR(LEFT(G150,1)="m",LEFT(G150,1)="o")=TRUE,'Mug & Ben Vol Dist'!$H$6,IF(LEFT(G150,1)="t",'Trachyte Vol Dist'!$H$6,""))) -> 1.13 | I150: =IF(OR(LEFT(G150,1)="b",LEFT(G150,1)="h")=TRUE,'Basalt & Hawaite Vol Dist'!$I$6,IF(OR(LEFT(G150,1)="m",LEFT(G150,1)="o")=TRUE,'Mug & Ben Vol Dist'!$I$6,IF(LEFT(G150,1)="t",'Trachyte Vol Dist'!$I$6,""))) -> 0.34 | J150: =IF(OR(LEFT(G150,1)="b",LEFT(G150,1)="h")=TRUE,'Basalt & Hawaite Vol Dist'!$J$6,IF(OR(LEFT(G150,1)="m",LEFT(G150,1)="o")=TRUE,'Mug & Ben Vol Dist'!$J$6,IF(LEFT(G150,1)="t",'Trachyte Vol Dist'!$J$6,""))) -> 1.13 | K150: =IF(OR(LEFT(G150,1)="b",LEFT(G150,1)="h")=TRUE,'Basalt & Hawaite Vol Dist'!$K$6,IF(OR(LEFT(G150,1)="m",LEFT(G150,1)="o")=TRUE,'Mug & Ben Vol Dist'!$K$6,IF(LEFT(G150,1)="t",'Trachyte Vol Dist'!$K$6,""))) -> 0.34 | L150: =IF(OR(LEFT(G150,1)="b",LEFT(G150,1)="h")=TRUE,'Basalt & Hawaite Vol Dist'!$B$42,IF(OR(LEFT(G150,1)="m",LEFT(G150,1)="o")=TRUE,'Mug & Ben Vol Dist'!$B$42,IF(LEFT(G150,1)="t",'Trachyte Vol Dist'!$B$42,""))) -> 0.999
A151: 150 | B151: 0.3791549209 | C151: 0.197263671 | D151: =SUM($C151:$C$237) -> 34.8391882 | E151: =IFERROR(VLOOKUP(G151,'Summary of age data'!$A$3:$D$243,2,FALSE),"") -> 402.5 | F151: =IFERROR(VLOOKUP(G151,'Summary of age data'!$A$3:$D$243,3,FALSE),"") -> 15.4 | G151: bni | H151: =IF(OR(LEFT(G151,1)="b",LEFT(G151,1)="h")=TRUE,'Basalt & Hawaite Vol Dist'!$H$6,IF(OR(LEFT(G151,1)="m",LEFT(G151,1)="o")=TRUE,'Mug & Ben Vol Dist'!$H$6,IF(LEFT(G151,1)="t",'Trachyte Vol Dist'!$H$6,""))) -> 1.13 | I151: =IF(OR(LEFT(G151,1)="b",LEFT(G151,1)="h")=TRUE,'Basalt & Hawaite Vol Dist'!$I$6,IF(OR(LEFT(G151,1)="m",LEFT(G151,1)="o")=TRUE,'Mug & Ben Vol Dist'!$I$6,IF(LEFT(G151,1)="t",'Trachyte Vol Dist'!$I$6,""))) -> 0.34 | J151: =IF(OR(LEFT(G151,1)="b",LEFT(G151,1)="h")=TRUE,'Basalt & Hawaite Vol Dist'!$J$6,IF(OR(LEFT(G151,1)="m",LEFT(G151,1)="o")=TRUE,'Mug & Ben Vol Dist'!$J$6,IF(LEFT(G151,1)="t",'Trachyte Vol Dist'!$J$6,""))) -> 1.13 | K151: =IF(OR(LEFT(G151,1)="b",LEFT(G151,1)="h")=TRUE,'Basalt & Hawaite Vol Dist'!$K$6,IF(OR(LEFT(G151,1)="m",LEFT(G151,1)="o")=TRUE,'Mug & Ben Vol Dist'!$K$6,IF(LEFT(G151,1)="t",'Trachyte Vol Dist'!$K$6,""))) -> 0.34 | L151: =IF(OR(LEFT(G151,1)="b",LEFT(G151,1)="h")=TRUE,'Basalt & Hawaite Vol Dist'!$B$42,IF(OR(LEFT(G151,1)="m",LEFT(G151,1)="o")=TRUE,'Mug & Ben Vol Dist'!$B$42,IF(LEFT(G151,1)="t",'Trachyte Vol Dist'!$B$42,""))) -> 0.999
A152: 151 | B152: 0.9804134595 | C152: 0.2806707387 | D152: =SUM($C152:$C$237) -> 34.64192453 | E152: =IFERROR(VLOOKUP(G152,'Summary of age data'!$A$3:$D$243,2,FALSE),"") -> 410.3 | F152: =IFERROR(VLOOKUP(G152,'Summary of age data'!$A$3:$D$243,3,FALSE),"") -> 3.4 | G152: mzy | H152: =IF(OR(LEFT(G152,1)="b",LEFT(G152,1)="h")=TRUE,'Basalt & Hawaite Vol Dist'!$H$6,IF(OR(LEFT(G152,1)="m",LEFT(G152,1)="o")=TRUE,'Mug & Ben Vol Dist'!$H$6,IF(LEFT(G152,1)="t",'Trachyte Vol Dist'!$H$6,""))) -> 0.21 | I152: =IF(OR(LEFT(G152,1)="b",LEFT(G152,1)="h")=TRUE,'Basalt & Hawaite Vol Dist'!$I$6,IF(OR(LEFT(G152,1)="m",LEFT(G152,1)="o")=TRUE,'Mug & Ben Vol Dist'!$I$6,IF(LEFT(G152,1)="t",'Trachyte Vol Dist'!$I$6,""))) -> 6.1 | J152: =IF(OR(LEFT(G152,1)="b",LEFT(G152,1)="h")=TRUE,'Basalt & Hawaite Vol Dist'!$J$6,IF(OR(LEFT(G152,1)="m",LEFT(G152,1)="o")=TRUE,'Mug & Ben Vol Dist'!$J$6,IF(LEFT(G152,1)="t",'Trachyte Vol Dist'!$J$6,""))) -> 8.9 | K152: =IF(OR(LEFT(G152,1)="b",LEFT(G152,1)="h")=TRUE,'Basalt & Hawaite Vol Dist'!$K$6,IF(OR(LEFT(G152,1)="m",LEFT(G152,1)="o")=TRUE,'Mug & Ben Vol Dist'!$K$6,IF(LEFT(G152,1)="t",'Trachyte Vol Dist'!$K$6,""))) -> 0.028 | L152: =IF(OR(LEFT(G152,1)="b",LEFT(G152,1)="h")=TRUE,'Basalt & Hawaite Vol Dist'!$B$42,IF(OR(LEFT(G152,1)="m",LEFT(G152,1)="o")=TRUE,'Mug & Ben Vol Dist'!$B$42,IF(LEFT(G152,1)="t",'Trachyte Vol Dist'!$B$42,""))) -> 0.5551036823
A153: 152 | B153: 0.631146419 | C153: =IF(B153<=L153,_xlfn.GAMMA.INV(B153,H153,I153),_xlfn.GAMMA.INV(B153,J153,K153)) -> 0.3907123467 | D153: =SUM($C153:$C$237) -> 34.36125379 | E153: =IFERROR(VLOOKUP(G153,'Summary of age data'!$A$3:$D$243,2,FALSE),"") -> 411.5 | F153: =IFERROR(VLOOKUP(G153,'Summary of age data'!$A$3:$D$243,3,FALSE),"") -> 5.9 | G153: brh | H153: =IF(OR(LEFT(G153,1)="b",LEFT(G153,1)="h")=TRUE,'Basalt & Hawaite Vol Dist'!$H$6,IF(OR(LEFT(G153,1)="m",LEFT(G153,1)="o")=TRUE,'Mug & Ben Vol Dist'!$H$6,IF(LEFT(G153,1)="t",'Trachyte Vol Dist'!$H$6,""))) -> 1.13 | I153: =IF(OR(LEFT(G153,1)="b",LEFT(G153,1)="h")=TRUE,'Basalt & Hawaite Vol Dist'!$I$6,IF(OR(LEFT(G153,1)="m",LEFT(G153,1)="o")=TRUE,'Mug & Ben Vol Dist'!$I$6,IF(LEFT(G153,1)="t",'Trachyte Vol Dist'!$I$6,""))) -> 0.34 | J153: =IF(OR(LEFT(G153,1)="b",LEFT(G153,1)="h")=TRUE,'Basalt & Hawaite Vol Dist'!$J$6,IF(OR(LEFT(G153,1)="m",LEFT(G153,1)="o")=TRUE,'Mug & Ben Vol Dist'!$J$6,IF(LEFT(G153,1)="t",'Trachyte Vol Dist'!$J$6,""))) -> 1.13 | K153: =IF(OR(LEFT(G153,1)="b",LEFT(G153,1)="h")=TRUE,'Basalt & Hawaite Vol Dist'!$K$6,IF(OR(LEFT(G153,1)="m",LEFT(G153,1)="o")=TRUE,'Mug & Ben Vol Dist'!$K$6,IF(LEFT(G153,1)="t",'Trachyte Vol Dist'!$K$6,""))) -> 0.34 | L153: =IF(OR(LEFT(G153,1)="b",LEFT(G153,1)="h")=TRUE,'Basalt & Hawaite Vol Dist'!$B$42,IF(OR(LEFT(G153,1)="m",LEFT(G153,1)="o")=TRUE,'Mug & Ben Vol Dist'!$B$42,IF(LEFT(G153,1)="t",'Trachyte Vol Dist'!$B$42,""))) -> 0.999
A154: 153 | B154: 0.9517125703 | C154: 0.006733444101 | D154: =SUM($C154:$C$237) -> 33.97054144 | E154: =IFERROR(VLOOKUP(G154,'Summary of age data'!$A$3:$D$243,2,FALSE),"") -> 411.8 | F154: =IFERROR(VLOOKUP(G154,'Summary of age data'!$A$3:$D$243,3,FALSE),"") -> 1.9 | G154: mha | H154: =IF(OR(LEFT(G154,1)="b",LEFT(G154,1)="h")=TRUE,'Basalt & Hawaite Vol Dist'!$H$6,IF(OR(LEFT(G154,1)="m",LEFT(G154,1)="o")=TRUE,'Mug & Ben Vol Dist'!$H$6,IF(LEFT(G154,1)="t",'Trachyte Vol Dist'!$H$6,""))) -> 0.21 | I154: =IF(OR(LEFT(G154,1)="b",LEFT(G154,1)="h")=TRUE,'Basalt & Hawaite Vol Dist'!$I$6,IF(OR(LEFT(G154,1)="m",LEFT(G154,1)="o")=TRUE,'Mug & Ben Vol Dist'!$I$6,IF(LEFT(G154,1)="t",'Trachyte Vol Dist'!$I$6,""))) -> 6.1 | J154: =IF(OR(LEFT(G154,1)="b",LEFT(G154,1)="h")=TRUE,'Basalt & Hawaite Vol Dist'!$J$6,IF(OR(LEFT(G154,1)="m",LEFT(G154,1)="o")=TRUE,'Mug & Ben Vol Dist'!$J$6,IF(LEFT(G154,1)="t",'Trachyte Vol Dist'!$J$6,""))) -> 8.9 | K154: =IF(OR(LEFT(G154,1)="b",LEFT(G154,1)="h")=TRUE,'Basalt & Hawaite Vol Dist'!$K$6,IF(OR(LEFT(G154,1)="m",LEFT(G154,1)="o")=TRUE,'Mug & Ben Vol Dist'!$K$6,IF(LEFT(G154,1)="t",'Trachyte Vol Dist'!$K$6,""))) -> 0.028 | L154: =IF(OR(LEFT(G154,1)="b",LEFT(G154,1)="h")=TRUE,'Basalt & Hawaite Vol Dist'!$B$42,IF(OR(LEFT(G154,1)="m",LEFT(G154,1)="o")=TRUE,'Mug & Ben Vol Dist'!$B$42,IF(LEFT(G154,1)="t",'Trachyte Vol Dist'!$B$42,""))) -> 0.5551036823
A155: 154 | B155: 0.9977492909 | C155: =IF(B155<=L155,_xlfn.GAMMA.INV(B155,H155,I155),_xlfn.GAMMA.INV(B155,J155,K155)) -> 0.6913662905 | D155: =SUM($C155:$C$237) -> 33.963808 | E155: =IFERROR(VLOOKUP(G155,'Summary of age data'!$A$3:$D$243,2,FALSE),"") -> 411.8 | F155: =IFERROR(VLOOKUP(G155,'Summary of age data'!$A$3:$D$243,3,FALSE),"") -> 1.9 | G155: tqa | H155: =IF(OR(LEFT(G155,1)="b",LEFT(G155,1)="h")=TRUE,'Basalt & Hawaite Vol Dist'!$H$6,IF(OR(LEFT(G155,1)="m",LEFT(G155,1)="o")=TRUE,'Mug & Ben Vol Dist'!$H$6,IF(LEFT(G155,1)="t",'Trachyte Vol Dist'!$H$6,""))) -> 2 | I155: =IF(OR(LEFT(G155,1)="b",LEFT(G155,1)="h")=TRUE,'Basalt & Hawaite Vol Dist'!$I$6,IF(OR(LEFT(G155,1)="m",LEFT(G155,1)="o")=TRUE,'Mug & Ben Vol Dist'!$I$6,IF(LEFT(G155,1)="t",'Trachyte Vol Dist'!$I$6,""))) -> 0.083 | J155: =IF(OR(LEFT(G155,1)="b",LEFT(G155,1)="h")=TRUE,'Basalt & Hawaite Vol Dist'!$J$6,IF(OR(LEFT(G155,1)="m",LEFT(G155,1)="o")=TRUE,'Mug & Ben Vol Dist'!$J$6,IF(LEFT(G155,1)="t",'Trachyte Vol Dist'!$J$6,""))) -> 2 | K155: =IF(OR(LEFT(G155,1)="b",LEFT(G155,1)="h")=TRUE,'Basalt & Hawaite Vol Dist'!$K$6,IF(OR(LEFT(G155,1)="m",LEFT(G155,1)="o")=TRUE,'Mug & Ben Vol Dist'!$K$6,IF(LEFT(G155,1)="t",'Trachyte Vol Dist'!$K$6,""))) -> 0.083 | L155: =IF(OR(LEFT(G155,1)="b",LEFT(G155,1)="h")=TRUE,'Basalt & Hawaite Vol Dist'!$B$42,IF(OR(LEFT(G155,1)="m",LEFT(G155,1)="o")=TRUE,'Mug & Ben Vol Dist'!$B$42,IF(LEFT(G155,1)="t",'Trachyte Vol Dist'!$B$42,""))) -> 0.999
A156: 155 | B156: 0.1651029163 | C156: =IF(B156<=L156,_xlfn.GAMMA.INV(B156,H156,I156),_xlfn.GAMMA.INV(B156,J156,K156)) -> 0.08133737491 | D156: =SUM($C156:$C$237) -> 33.27244171 | E156: =IFERROR(VLOOKUP(G156,'Summary of age data'!$A$3:$D$243,2,FALSE),"") -> 412 | F156: =IFERROR(VLOOKUP(G156,'Summary of age data'!$A$3:$D$243,3,FALSE),"") -> 0 | G156: bmus | H156: =IF(OR(LEFT(G156,1)="b",LEFT(G156,1)="h")=TRUE,'Basalt & Hawaite Vol Dist'!$H$6,IF(OR(LEFT(G156,1)="m",LEFT(G156,1)="o")=TRUE,'Mug & Ben Vol Dist'!$H$6,IF(LEFT(G156,1)="t",'Trachyte Vol Dist'!$H$6,""))) -> 1.13 | I156: =IF(OR(LEFT(G156,1)="b",LEFT(G156,1)="h")=TRUE,'Basalt & Hawaite Vol Dist'!$I$6,IF(OR(LEFT(G156,1)="m",LEFT(G156,1)="o")=TRUE,'Mug & Ben Vol Dist'!$I$6,IF(LEFT(G156,1)="t",'Trachyte Vol Dist'!$I$6,""))) -> 0.34 | J156: =IF(OR(LEFT(G156,1)="b",LEFT(G156,1)="h")=TRUE,'Basalt & Hawaite Vol Dist'!$J$6,IF(OR(LEFT(G156,1)="m",LEFT(G156,1)="o")=TRUE,'Mug & Ben Vol Dist'!$J$6,IF(LEFT(G156,1)="t",'Trachyte Vol Dist'!$J$6,""))) -> 1.13 | K156: =IF(OR(LEFT(G156,1)="b",LEFT(G156,1)="h")=TRUE,'Basalt & Hawaite Vol Dist'!$K$6,IF(OR(LEFT(G156,1)="m",LEFT(G156,1)="o")=TRUE,'Mug & Ben Vol Dist'!$K$6,IF(LEFT(G156,1)="t",'Trachyte Vol Dist'!$K$6,""))) -> 0.34 | L156: =IF(OR(LEFT(G156,1)="b",LEFT(G156,1)="h")=TRUE,'Basalt & Hawaite Vol Dist'!$B$42,IF(OR(LEFT(G156,1)="m",LEFT(G156,1)="o")=TRUE,'Mug & Ben Vol Dist'!$B$42,IF(LEFT(G156,1)="t",'Trachyte Vol Dist'!$B$42,""))) -> 0.999
A157: 156 | B157: 0.8502987333 | C157: =IF(B157<=L157,_xlfn.GAMMA.INV(B157,H157,I157),_xlfn.GAMMA.INV(B157,J157,K157)) -> 0.3350133472 | D157: =SUM($C157:$C$237) -> 33.19110433 | E157: =IFERROR(VLOOKUP(G157,'Summary of age data'!$A$3:$D$243,2,FALSE),"") -> 418.8 | F157: =IFERROR(VLOOKUP(G157,'Summary of age data'!$A$3:$D$243,3,FALSE),"") -> 1.9 | G157: ozy | H157: =IF(OR(LEFT(G157,1)="b",LEFT(G157,1)="h")=TRUE,'Basalt & Hawaite Vol Dist'!$H$6,IF(OR(LEFT(G157,1)="m",LEFT(G157,1)="o")=TRUE,'Mug & Ben Vol Dist'!$H$6,IF(LEFT(G157,1)="t",'Trachyte Vol Dist'!$H$6,""))) -> 0.21 | I157: =IF(OR(LEFT(G157,1)="b",LEFT(G157,1)="h")=TRUE,'Basalt & Hawaite Vol Dist'!$I$6,IF(OR(LEFT(G157,1)="m",LEFT(G157,1)="o")=TRUE,'Mug & Ben Vol Dist'!$I$6,IF(LEFT(G157,1)="t",'Trachyte Vol Dist'!$I$6,""))) -> 6.1 | J157: =IF(OR(LEFT(G157,1)="b",LEFT(G157,1)="h")=TRUE,'Basalt & Hawaite Vol Dist'!$J$6,IF(OR(LEFT(G157,1)="m",LEFT(G157,1)="o")=TRUE,'Mug & Ben Vol Dist'!$J$6,IF(LEFT(G157,1)="t",'Trachyte Vol Dist'!$J$6,""))) -> 8.9 | K157: =IF(OR(LEFT(G157,1)="b",LEFT(G157,1)="h")=TRUE,'Basalt & Hawaite Vol Dist'!$K$6,IF(OR(LEFT(G157,1)="m",LEFT(G157,1)="o")=TRUE,'Mug & Ben Vol Dist'!$K$6,IF(LEFT(G157,1)="t",'Trachyte Vol Dist'!$K$6,""))) -> 0.028 | L157: =IF(OR(LEFT(G157,1)="b",LEFT(G157,1)="h")=TRUE,'Basalt & Hawaite Vol Dist'!$B$42,IF(OR(LEFT(G157,1)="m",LEFT(G157,1)="o")=TRUE,'Mug & Ben Vol Dist'!$B$42,IF(LEFT(G157,1)="t",'Trachyte Vol Dist'!$B$42,""))) -> 0.5551036823
A158: 157 | B158: 0.5830670404 | C158: 0.07300864977 | D158: =SUM($C158:$C$237) -> 32.85609099 | E158: =IFERROR(VLOOKUP(G158,'Summary of age data'!$A$3:$D$243,2,FALSE),"") -> 424.2 | F158: =IFERROR(VLOOKUP(G158,'Summary of age data'!$A$3:$D$243,3,FALSE),"") -> 1.8 | G158: oju | H158: =IF(OR(LEFT(G158,1)="b",LEFT(G158,1)="h")=TRUE,'Basalt & Hawaite Vol Dist'!$H$6,IF(OR(LEFT(G158,1)="m",LEFT(G158,1)="o")=TRUE,'Mug & Ben Vol Dist'!$H$6,IF(LEFT(G158,1)="t",'Trachyte Vol Dist'!$H$6,""))) -> 0.21 | I158: =IF(OR(LEFT(G158,1)="b",LEFT(G158,1)="h")=TRUE,'Basalt & Hawaite Vol Dist'!$I$6,IF(OR(LEFT(G158,1)="m",LEFT(G158,1)="o")=TRUE,'Mug & Ben Vol Dist'!$I$6,IF(LEFT(G158,1)="t",'Trachyte Vol Dist'!$I$6,""))) -> 6.1 | J158: =IF(OR(LEFT(G158,1)="b",LEFT(G158,1)="h")=TRUE,'Basalt & Hawaite Vol Dist'!$J$6,IF(OR(LEFT(G158,1)="m",LEFT(G158,1)="o")=TRUE,'Mug & Ben Vol Dist'!$J$6,IF(LEFT(G158,1)="t",'Trachyte Vol Dist'!$J$6,""))) -> 8.9 | K158: =IF(OR(LEFT(G158,1)="b",LEFT(G158,1)="h")=TRUE,'Basalt & Hawaite Vol Dist'!$K$6,IF(OR(LEFT(G158,1)="m",LEFT(G158,1)="o")=TRUE,'Mug & Ben Vol Dist'!$K$6,IF(LEFT(G158,1)="t",'Trachyte Vol Dist'!$K$6,""))) -> 0.028 | L158: =IF(OR(LEFT(G158,1)="b",LEFT(G158,1)="h")=TRUE,'Basalt & Hawaite Vol Dist'!$B$42,IF(OR(LEFT(G158,1)="m",LEFT(G158,1)="o")=TRUE,'Mug & Ben Vol Dist'!$B$42,IF(LEFT(G158,1)="t",'Trachyte Vol Dist'!$B$42,""))) -> 0.5551036823
A159: 158 | B159: 0.2507807085 | C159: 0.3006 | D159: =SUM($C159:$C$237) -> 32.78308234 | E159: =IFERROR(VLOOKUP(G159,'Summary of age data'!$A$3:$D$243,2,FALSE),"") -> 430.2 | F159: =IFERROR(VLOOKUP(G159,'Summary of age data'!$A$3:$D$243,3,FALSE),"") -> 6.9 | G159: oz4 | H159: =IF(OR(LEFT(G159,1)="b",LEFT(G159,1)="h")=TRUE,'Basalt & Hawaite Vol Dist'!$H$6,IF(OR(LEFT(G159,1)="m",LEFT(G159,1)="o")=TRUE,'Mug & Ben Vol Dist'!$H$6,IF(LEFT(G159,1)="t",'Trachyte Vol Dist'!$H$6,""))) -> 0.21 | I159: =IF(OR(LEFT(G159,1)="b",LEFT(G159,1)="h")=TRUE,'Basalt & Hawaite Vol Dist'!$I$6,IF(OR(LEFT(G159,1)="m",LEFT(G159,1)="o")=TRUE,'Mug & Ben Vol Dist'!$I$6,IF(LEFT(G159,1)="t",'Trachyte Vol Dist'!$I$6,""))) -> 6.1 | J159: =IF(OR(LEFT(G159,1)="b",LEFT(G159,1)="h")=TRUE,'Basalt & Hawaite Vol Dist'!$J$6,IF(OR(LEFT(G159,1)="m",LEFT(G159,1)="o")=TRUE,'Mug & Ben Vol Dist'!$J$6,IF(LEFT(G159,1)="t",'Trachyte Vol Dist'!$J$6,""))) -> 8.9 | K159: =IF(OR(LEFT(G159,1)="b",LEFT(G159,1)="h")=TRUE,'Basalt & Hawaite Vol Dist'!$K$6,IF(OR(LEFT(G159,1)="m",LEFT(G159,1)="o")=TRUE,'Mug & Ben Vol Dist'!$K$6,IF(LEFT(G159,1)="t",'Trachyte Vol Dist'!$K$6,""))) -> 0.028 | L159: =IF(OR(LEFT(G159,1)="b",LEFT(G159,1)="h")=TRUE,'Basalt & Hawaite Vol Dist'!$B$42,IF(OR(LEFT(G159,1)="m",LEFT(G159,1)="o")=TRUE,'Mug & Ben Vol Dist'!$B$42,IF(LEFT(G159,1)="t",'Trachyte Vol Dist'!$B$42,""))) -> 0.5551036823
A160: 159 | B160: 0.7310403336 | C160: =IF(B160<=L160,_xlfn.GAMMA.INV(B160,H160,I160),_xlfn.GAMMA.INV(B160,J160,K160)) -> 0.2938438712 | D160: =SUM($C160:$C$237) -> 32.48248234 | E160: =IFERROR(VLOOKUP(G160,'Summary of age data'!$A$3:$D$243,2,FALSE),"") -> 430.2 | F160: =IFERROR(VLOOKUP(G160,'Summary of age data'!$A$3:$D$243,3,FALSE),"") -> 6.9 | G160: msi | H160: =IF(OR(LEFT(G160,1)="b",LEFT(G160,1)="h")=TRUE,'Basalt & Hawaite Vol Dist'!$H$6,IF(OR(LEFT(G160,1)="m",LEFT(G160,1)="o")=TRUE,'Mug & Ben Vol Dist'!$H$6,IF(LEFT(G160,1)="t",'Trachyte Vol Dist'!$H$6,""))) -> 0.21 | I160: =IF(OR(LEFT(G160,1)="b",LEFT(G160,1)="h")=TRUE,'Basalt & Hawaite Vol Dist'!$I$6,IF(OR(LEFT(G160,1)="m",LEFT(G160,1)="o")=TRUE,'Mug & Ben Vol Dist'!$I$6,IF(LEFT(G160,1)="t",'Trachyte Vol Dist'!$I$6,""))) -> 6.1 | J160: =IF(OR(LEFT(G160,1)="b",LEFT(G160,1)="h")=TRUE,'Basalt & Hawaite Vol Dist'!$J$6,IF(OR(LEFT(G160,1)="m",LEFT(G160,1)="o")=TRUE,'Mug & Ben Vol Dist'!$J$6,IF(LEFT(G160,1)="t",'Trachyte Vol Dist'!$J$6,""))) -> 8.9 | K160: =IF(OR(LEFT(G160,1)="b",LEFT(G160,1)="h")=TRUE,'Basalt & Hawaite Vol Dist'!$K$6,IF(OR(LEFT(G160,1)="m",LEFT(G160,1)="o")=TRUE,'Mug & Ben Vol Dist'!$K$6,IF(LEFT(G160,1)="t",'Trachyte Vol Dist'!$K$6,""))) -> 0.028 | L160: =IF(OR(LEFT(G160,1)="b",LEFT(G160,1)="h")=TRUE,'Basalt & Hawaite Vol Dist'!$B$42,IF(OR(LEFT(G160,1)="m",LEFT(G160,1)="o")=TRUE,'Mug & Ben Vol Dist'!$B$42,IF(LEFT(G160,1)="t",'Trachyte Vol Dist'!$B$42,""))) -> 0.5551036823
A161: 160 | B161: 0.09955772519 | C161: 0.4429645642 | D161: =SUM($C161:$C$237) -> 32.18863846 | E161: ='Summary of age data'!B160 -> 430.2 | F161: ='Summary of age data'!C160 -> 6.9 | G161: oju | H161: =IF(OR(LEFT(G161,1)="b",LEFT(G161,1)="h")=TRUE,'Basalt & Hawaite Vol Dist'!$H$6,IF(OR(LEFT(G161,1)="m",LEFT(G161,1)="o")=TRUE,'Mug & Ben Vol Dist'!$H$6,IF(LEFT(G161,1)="t",'Trachyte Vol Dist'!$H$6,""))) -> 0.21 | I161: =IF(OR(LEFT(G161,1)="b",LEFT(G161,1)="h")=TRUE,'Basalt & Hawaite Vol Dist'!$I$6,IF(OR(LEFT(G161,1)="m",LEFT(G161,1)="o")=TRUE,'Mug & Ben Vol Dist'!$I$6,IF(LEFT(G161,1)="t",'Trachyte Vol Dist'!$I$6,""))) -> 6.1 | J161: =IF(OR(LEFT(G161,1)="b",LEFT(G161,1)="h")=TRUE,'Basalt & Hawaite Vol Dist'!$J$6,IF(OR(LEFT(G161,1)="m",LEFT(G161,1)="o")=TRUE,'Mug & Ben Vol Dist'!$J$6,IF(LEFT(G161,1)="t",'Trachyte Vol Dist'!$J$6,""))) -> 8.9 | K161: =IF(OR(LEFT(G161,1)="b",LEFT(G161,1)="h")=TRUE,'Basalt & Hawaite Vol Dist'!$K$6,IF(OR(LEFT(G161,1)="m",LEFT(G161,1)="o")=TRUE,'Mug & Ben Vol Dist'!$K$6,IF(LEFT(G161,1)="t",'Trachyte Vol Dist'!$K$6,""))) -> 0.028 | L161: =IF(OR(LEFT(G161,1)="b",LEFT(G161,1)="h")=TRUE,'Basalt & Hawaite Vol Dist'!$B$42,IF(OR(LEFT(G161,1)="m",LEFT(G161,1)="o")=TRUE,'Mug & Ben Vol Dist'!$B$42,IF(LEFT(G161,1)="t",'Trachyte Vol Dist'!$B$42,""))) -> 0.5551036823
A162: 161 | B162: 0.7441665172 | C162: =IF(B162<=L162,_xlfn.GAMMA.INV(B162,H162,I162),_xlfn.GAMMA.INV(B162,J162,K162)) -> 0.5233879311 | D162: =SUM($C162:$C$237) -> 31.7456739 | E162: =IFERROR(VLOOKUP(G162,'Summary of age data'!$A$3:$D$243,2,FALSE),"") -> 438.9 | F162: =IFERROR(VLOOKUP(G162,'Summary of age data'!$A$3:$D$243,3,FALSE),"") -> 21 | G162: bri | H162: =IF(OR(LEFT(G162,1)="b",LEFT(G162,1)="h")=TRUE,'Basalt & Hawaite Vol Dist'!$H$6,IF(OR(LEFT(G162,1)="m",LEFT(G162,1)="o")=TRUE,'Mug & Ben Vol Dist'!$H$6,IF(LEFT(G162,1)="t",'Trachyte Vol Dist'!$H$6,""))) -> 1.13 | I162: =IF(OR(LEFT(G162,1)="b",LEFT(G162,1)="h")=TRUE,'Basalt & Hawaite Vol Dist'!$I$6,IF(OR(LEFT(G162,1)="m",LEFT(G162,1)="o")=TRUE,'Mug & Ben Vol Dist'!$I$6,IF(LEFT(G162,1)="t",'Trachyte Vol Dist'!$I$6,""))) -> 0.34 | J162: =IF(OR(LEFT(G162,1)="b",LEFT(G162,1)="h")=TRUE,'Basalt & Hawaite Vol Dist'!$J$6,IF(OR(LEFT(G162,1)="m",LEFT(G162,1)="o")=TRUE,'Mug & Ben Vol Dist'!$J$6,IF(LEFT(G162,1)="t",'Trachyte Vol Dist'!$J$6,""))) -> 1.13 | K162: =IF(OR(LEFT(G162,1)="b",LEFT(G162,1)="h")=TRUE,'Basalt & Hawaite Vol Dist'!$K$6,IF(OR(LEFT(G162,1)="m",LEFT(G162,1)="o")=TRUE,'Mug & Ben Vol Dist'!$K$6,IF(LEFT(G162,1)="t",'Trachyte Vol Dist'!$K$6,""))) -> 0.34 | L162: =IF(OR(LEFT(G162,1)="b",LEFT(G162,1)="h")=TRUE,'Basalt & Hawaite Vol Dist'!$B$42,IF(OR(LEFT(G162,1)="m",LEFT(G162,1)="o")=TRUE,'Mug & Ben Vol Dist'!$B$42,IF(LEFT(G162,1)="t",'Trachyte Vol Dist'!$B$42,""))) -> 0.999
A163: 162 | B163: 0.8057171988 | C163: 0.4175537327 | D163: =SUM($C163:$C$237) -> 31.22228597 | E163: =IFERROR(VLOOKUP(G163,'Summary of age data'!$A$3:$D$243,2,FALSE),"") -> 438.9 | F163: =IFERROR(VLOOKUP(G163,'Summary of age data'!$A$3:$D$243,3,FALSE),"") -> 21 | G163: bmuf | H163: =IF(OR(LEFT(G163,1)="b",LEFT(G163,1)="h")=TRUE,'Basalt & Hawaite Vol Dist'!$H$6,IF(OR(LEFT(G163,1)="m",LEFT(G163,1)="o")=TRUE,'Mug & Ben Vol Dist'!$H$6,IF(LEFT(G163,1)="t",'Trachyte Vol Dist'!$H$6,""))) -> 1.13 | I163: =IF(OR(LEFT(G163,1)="b",LEFT(G163,1)="h")=TRUE,'Basalt & Hawaite Vol Dist'!$I$6,IF(OR(LEFT(G163,1)="m",LEFT(G163,1)="o")=TRUE,'Mug & Ben Vol Dist'!$I$6,IF(LEFT(G163,1)="t",'Trachyte Vol Dist'!$I$6,""))) -> 0.34 | J163: =IF(OR(LEFT(G163,1)="b",LEFT(G163,1)="h")=TRUE,'Basalt & Hawaite Vol Dist'!$J$6,IF(OR(LEFT(G163,1)="m",LEFT(G163,1)="o")=TRUE,'Mug & Ben Vol Dist'!$J$6,IF(LEFT(G163,1)="t",'Trachyte Vol Dist'!$J$6,""))) -> 1.13 | K163: =IF(OR(LEFT(G163,1)="b",LEFT(G163,1)="h")=TRUE,'Basalt & Hawaite Vol Dist'!$K$6,IF(OR(LEFT(G163,1)="m",LEFT(G163,1)="o")=TRUE,'Mug & Ben Vol Dist'!$K$6,IF(LEFT(G163,1)="t",'Trachyte Vol Dist'!$K$6,""))) -> 0.34 | L163: =IF(OR(LEFT(G163,1)="b",LEFT(G163,1)="h")=TRUE,'Basalt & Hawaite Vol Dist'!$B$42,IF(OR(LEFT(G163,1)="m",LEFT(G163,1)="o")=TRUE,'Mug & Ben Vol Dist'!$B$42,IF(LEFT(G163,1)="t",'Trachyte Vol Dist'!$B$42,""))) -> 0.999
A164: 163 | B164: 0.4766172167 | C164: =IF(B164<=L164,_xlfn.GAMMA.INV(B164,H164,I164),_xlfn.GAMMA.INV(B164,J164,K164)) -> 0.2615982685 | D164: =SUM($C164:$C$237) -> 30.80473224 | E164: =IFERROR(VLOOKUP(G164,'Summary of age data'!$A$3:$D$243,2,FALSE),"") -> 438.9 | F164: =IFERROR(VLOOKUP(G164,'Summary of age data'!$A$3:$D$243,3,FALSE),"") -> 21 | G164: brum | H164: =IF(OR(LEFT(G164,1)="b",LEFT(G164,1)="h")=TRUE,'Basalt & Hawaite Vol Dist'!$H$6,IF(OR(LEFT(G164,1)="m",LEFT(G164,1)="o")=TRUE,'Mug & Ben Vol Dist'!$H$6,IF(LEFT(G164,1)="t",'Trachyte Vol Dist'!$H$6,""))) -> 1.13 | I164: =IF(OR(LEFT(G164,1)="b",LEFT(G164,1)="h")=TRUE,'Basalt & Hawaite Vol Dist'!$I$6,IF(OR(LEFT(G164,1)="m",LEFT(G164,1)="o")=TRUE,'Mug & Ben Vol Dist'!$I$6,IF(LEFT(G164,1)="t",'Trachyte Vol Dist'!$I$6,""))) -> 0.34 | J164: =IF(OR(LEFT(G164,1)="b",LEFT(G164,1)="h")=TRUE,'Basalt & Hawaite Vol Dist'!$J$6,IF(OR(LEFT(G164,1)="m",LEFT(G164,1)="o")=TRUE,'Mug & Ben Vol Dist'!$J$6,IF(LEFT(G164,1)="t",'Trachyte Vol Dist'!$J$6,""))) -> 1.13 | K164: =IF(OR(LEFT(G164,1)="b",LEFT(G164,1)="h")=TRUE,'Basalt & Hawaite Vol Dist'!$K$6,IF(OR(LEFT(G164,1)="m",LEFT(G164,1)="o")=TRUE,'Mug & Ben Vol Dist'!$K$6,IF(LEFT(G164,1)="t",'Trachyte Vol Dist'!$K$6,""))) -> 0.34 | L164: =IF(OR(LEFT(G164,1)="b",LEFT(G164,1)="h")=TRUE,'Basalt & Hawaite Vol Dist'!$B$42,IF(OR(LEFT(G164,1)="m",LEFT(G164,1)="o")=TRUE,'Mug & Ben Vol Dist'!$B$42,IF(LEFT(G164,1)="t",'Trachyte Vol Dist'!$B$42,""))) -> 0.999
A165: 164 | B165: 0.1282250919 | C165: 0.06350162583 | D165: =SUM($C165:$C$237) -> 30.54313397 | E165: =IFERROR(VLOOKUP(G165,'Summary of age data'!$A$3:$D$243,2,FALSE),"") -> 438.9 | F165: =IFERROR(VLOOKUP(G165,'Summary of age data'!$A$3:$D$243,3,FALSE),"") -> 21 | G165: baaj | H165: =IF(OR(LEFT(G165,1)="b",LEFT(G165,1)="h")=TRUE,'Basalt & Hawaite Vol Dist'!$H$6,IF(OR(LEFT(G165,1)="m",LEFT(G165,1)="o")=TRUE,'Mug & Ben Vol Dist'!$H$6,IF(LEFT(G165,1)="t",'Trachyte Vol Dist'!$H$6,""))) -> 1.13 | I165: =IF(OR(LEFT(G165,1)="b",LEFT(G165,1)="h")=TRUE,'Basalt & Hawaite Vol Dist'!$I$6,IF(OR(LEFT(G165,1)="m",LEFT(G165,1)="o")=TRUE,'Mug & Ben Vol Dist'!$I$6,IF(LEFT(G165,1)="t",'Trachyte Vol Dist'!$I$6,""))) -> 0.34 | J165: =IF(OR(LEFT(G165,1)="b",LEFT(G165,1)="h")=TRUE,'Basalt & Hawaite Vol Dist'!$J$6,IF(OR(LEFT(G165,1)="m",LEFT(G165,1)="o")=TRUE,'Mug & Ben Vol Dist'!$J$6,IF(LEFT(G165,1)="t",'Trachyte Vol Dist'!$J$6,""))) -> 1.13 | K165: =IF(OR(LEFT(G165,1)="b",LEFT(G165,1)="h")=TRUE,'Basalt & Hawaite Vol Dist'!$K$6,IF(OR(LEFT(G165,1)="m",LEFT(G165,1)="o")=TRUE,'Mug & Ben Vol Dist'!$K$6,IF(LEFT(G165,1)="t",'Trachyte Vol Dist'!$K$6,""))) -> 0.34 | L165: =IF(OR(LEFT(G165,1)="b",LEFT(G165,1)="h")=TRUE,'Basalt & Hawaite Vol Dist'!$B$42,IF(OR(LEFT(G165,1)="m",LEFT(G165,1)="o")=TRUE,'Mug & Ben Vol Dist'!$B$42,IF(LEFT(G165,1)="t",'Trachyte Vol Dist'!$B$42,""))) -> 0.999
A166: 165 | B166: 0.9622442195 | C166: 1.201127237 | D166: =SUM($C166:$C$237) -> 30.47963234 | E166: =IFERROR(VLOOKUP(G166,'Summary of age data'!$A$3:$D$243,2,FALSE),"") -> 438.9 | F166: =IFERROR(VLOOKUP(G166,'Summary of age data'!$A$3:$D$243,3,FALSE),"") -> 21 | G166: baq | H166: =IF(OR(LEFT(G166,1)="b",LEFT(G166,1)="h")=TRUE,'Basalt & Hawaite Vol Dist'!$H$6,IF(OR(LEFT(G166,1)="m",LEFT(G166,1)="o")=TRUE,'Mug & Ben Vol Dist'!$H$6,IF(LEFT(G166,1)="t",'Trachyte Vol Dist'!$H$6,""))) -> 1.13 | I166: =IF(OR(LEFT(G166,1)="b",LEFT(G166,1)="h")=TRUE,'Basalt & Hawaite Vol Dist'!$I$6,IF(OR(LEFT(G166,1)="m",LEFT(G166,1)="o")=TRUE,'Mug & Ben Vol Dist'!$I$6,IF(LEFT(G166,1)="t",'Trachyte Vol Dist'!$I$6,""))) -> 0.34 | J166: =IF(OR(LEFT(G166,1)="b",LEFT(G166,1)="h")=TRUE,'Basalt & Hawaite Vol Dist'!$J$6,IF(OR(LEFT(G166,1)="m",LEFT(G166,1)="o")=TRUE,'Mug & Ben Vol Dist'!$J$6,IF(LEFT(G166,1)="t",'Trachyte Vol Dist'!$J$6,""))) -> 1.13 | K166: =IF(OR(LEFT(G166,1)="b",LEFT(G166,1)="h")=TRUE,'Basalt & Hawaite Vol Dist'!$K$6,IF(OR(LEFT(G166,1)="m",LEFT(G166,1)="o")=TRUE,'Mug & Ben Vol Dist'!$K$6,IF(LEFT(G166,1)="t",'Trachyte Vol Dist'!$K$6,""))) -> 0.34 | L166: =IF(OR(LEFT(G166,1)="b",LEFT(G166,1)="h")=TRUE,'Basalt & Hawaite Vol Dist'!$B$42,IF(OR(LEFT(G166,1)="m",LEFT(G166,1)="o")=TRUE,'Mug & Ben Vol Dist'!$B$42,IF(LEFT(G166,1)="t",'Trachyte Vol Dist'!$B$42,""))) -> 0.999
A167: 166 | B167: 0.8097631703 | C167: 0.6297206021 | D167: =SUM($C167:$C$237) -> 29.27850511 | E167: =IFERROR(VLOOKUP(G167,'Summary of age data'!$A$3:$D$243,2,FALSE),"") -> 438.9 | F167: =IFERROR(VLOOKUP(G167,'Summary of age data'!$A$3:$D$243,3,FALSE),"") -> 21 | G167: brb | H167: =IF(OR(LEFT(G167,1)="b",LEFT(G167,1)="h")=TRUE,'Basalt & Hawaite Vol Dist'!$H$6,IF(OR(LEFT(G167,1)="m",LEFT(G167,1)="o")=TRUE,'Mug & Ben Vol Dist'!$H$6,IF(LEFT(G167,1)="t",'Trachyte Vol Dist'!$H$6,""))) -> 1.13 | I167: =IF(OR(LEFT(G167,1)="b",LEFT(G167,1)="h")=TRUE,'Basalt & Hawaite Vol Dist'!$I$6,IF(OR(LEFT(G167,1)="m",LEFT(G167,1)="o")=TRUE,'Mug & Ben Vol Dist'!$I$6,IF(LEFT(G167,1)="t",'Trachyte Vol Dist'!$I$6,""))) -> 0.34 | J167: =IF(OR(LEFT(G167,1)="b",LEFT(G167,1)="h")=TRUE,'Basalt & Hawaite Vol Dist'!$J$6,IF(OR(LEFT(G167,1)="m",LEFT(G167,1)="o")=TRUE,'Mug & Ben Vol Dist'!$J$6,IF(LEFT(G167,1)="t",'Trachyte Vol Dist'!$J$6,""))) -> 1.13 | K167: =IF(OR(LEFT(G167,1)="b",LEFT(G167,1)="h")=TRUE,'Basalt & Hawaite Vol Dist'!$K$6,IF(OR(LEFT(G167,1)="m",LEFT(G167,1)="o")=TRUE,'Mug & Ben Vol Dist'!$K$6,IF(LEFT(G167,1)="t",'Trachyte Vol Dist'!$K$6,""))) -> 0.34 | L167: =IF(OR(LEFT(G167,1)="b",LEFT(G167,1)="h")=TRUE,'Basalt & Hawaite Vol Dist'!$B$42,IF(OR(LEFT(G167,1)="m",LEFT(G167,1)="o")=TRUE,'Mug & Ben Vol Dist'!$B$42,IF(LEFT(G167,1)="t",'Trachyte Vol Dist'!$B$42,""))) -> 0.999
A168: 167 | B168: 0.921138019 | C168: 0.9422410601 | D168: =SUM($C168:$C$237) -> 28.6487845 | E168: =IFERROR(VLOOKUP(G168,'Summary of age data'!$A$3:$D$243,2,FALSE),"") -> 438.9 | F168: =IFERROR(VLOOKUP(G168,'Summary of age data'!$A$3:$D$243,3,FALSE),"") -> 21 | G168: bsam | H168: =IF(OR(LEFT(G168,1)="b",LEFT(G168,1)="h")=TRUE,'Basalt & Hawaite Vol Dist'!$H$6,IF(OR(LEFT(G168,1)="m",LEFT(G168,1)="o")=TRUE,'Mug & Ben Vol Dist'!$H$6,IF(LEFT(G168,1)="t",'Trachyte Vol Dist'!$H$6,""))) -> 1.13 | I168: =IF(OR(LEFT(G168,1)="b",LEFT(G168,1)="h")=TRUE,'Basalt & Hawaite Vol Dist'!$I$6,IF(OR(LEFT(G168,1)="m",LEFT(G168,1)="o")=TRUE,'Mug & Ben Vol Dist'!$I$6,IF(LEFT(G168,1)="t",'Trachyte Vol Dist'!$I$6,""))) -> 0.34 | J168: =IF(OR(LEFT(G168,1)="b",LEFT(G168,1)="h")=TRUE,'Basalt & Hawaite Vol Dist'!$J$6,IF(OR(LEFT(G168,1)="m",LEFT(G168,1)="o")=TRUE,'Mug & Ben Vol Dist'!$J$6,IF(LEFT(G168,1)="t",'Trachyte Vol Dist'!$J$6,""))) -> 1.13 | K168: =IF(OR(LEFT(G168,1)="b",LEFT(G168,1)="h")=TRUE,'Basalt & Hawaite Vol Dist'!$K$6,IF(OR(LEFT(G168,1)="m",LEFT(G168,1)="o")=TRUE,'Mug & Ben Vol Dist'!$K$6,IF(LEFT(G168,1)="t",'Trachyte Vol Dist'!$K$6,""))) -> 0.34 | L168: =IF(OR(LEFT(G168,1)="b",LEFT(G168,1)="h")=TRUE,'Basalt & Hawaite Vol Dist'!$B$42,IF(OR(LEFT(G168,1)="m",LEFT(G168,1)="o")=TRUE,'Mug & Ben Vol Dist'!$B$42,IF(LEFT(G168,1)="t",'Trachyte Vol Dist'!$B$42,""))) -> 0.999
A169: 168 | B169: 0.1081712302 | C169: 0.05392993126 | D169: =SUM($C169:$C$237) -> 27.70654344 | E169: =IFERROR(VLOOKUP(G169,'Summary of age data'!$A$3:$D$243,2,FALSE),"") -> 438.9 | F169: =IFERROR(VLOOKUP(G169,'Summary of age data'!$A$3:$D$243,3,FALSE),"") -> 21 | G169: brw | H169: =IF(OR(LEFT(G169,1)="b",LEFT(G169,1)="h")=TRUE,'Basalt & Hawaite Vol Dist'!$H$6,IF(OR(LEFT(G169,1)="m",LEFT(G169,1)="o")=TRUE,'Mug & Ben Vol Dist'!$H$6,IF(LEFT(G169,1)="t",'Trachyte Vol Dist'!$H$6,""))) -> 1.13 | I169: =IF(OR(LEFT(G169,1)="b",LEFT(G169,1)="h")=TRUE,'Basalt & Hawaite Vol Dist'!$I$6,IF(OR(LEFT(G169,1)="m",LEFT(G169,1)="o")=TRUE,'Mug & Ben Vol Dist'!$I$6,IF(LEFT(G169,1)="t",'Trachyte Vol Dist'!$I$6,""))) -> 0.34 | J169: =IF(OR(LEFT(G169,1)="b",LEFT(G169,1)="h")=TRUE,'Basalt & Hawaite Vol Dist'!$J$6,IF(OR(LEFT(G169,1)="m",LEFT(G169,1)="o")=TRUE,'Mug & Ben Vol Dist'!$J$6,IF(LEFT(G169,1)="t",'Trachyte Vol Dist'!$J$6,""))) -> 1.13 | K169: =IF(OR(LEFT(G169,1)="b",LEFT(G169,1)="h")=TRUE,'Basalt & Hawaite Vol Dist'!$K$6,IF(OR(LEFT(G169,1)="m",LEFT(G169,1)="o")=TRUE,'Mug & Ben Vol Dist'!$K$6,IF(LEFT(G169,1)="t",'Trachyte Vol Dist'!$K$6,""))) -> 0.34 | L169: =IF(OR(LEFT(G169,1)="b",LEFT(G169,1)="h")=TRUE,'Basalt & Hawaite Vol Dist'!$B$42,IF(OR(LEFT(G169,1)="m",LEFT(G169,1)="o")=TRUE,'Mug & Ben Vol Dist'!$B$42,IF(LEFT(G169,1)="t",'Trachyte Vol Dist'!$B$42,""))) -> 0.999
A170: 169 | B170: 0.819606683 | C170: 0.6487108292 | D170: =SUM($C170:$C$237) -> 27.65261351 | E170: =IFERROR(VLOOKUP(G170,'Summary of age data'!$A$3:$D$243,2,FALSE),"") -> 438.9 | F170: =IFERROR(VLOOKUP(G170,'Summary of age data'!$A$3:$D$243,3,FALSE),"") -> 21 | G170: bswu | H170: =IF(OR(LEFT(G170,1)="b",LEFT(G170,1)="h")=TRUE,'Basalt & Hawaite Vol Dist'!$H$6,IF(OR(LEFT(G170,1)="m",LEFT(G170,1)="o")=TRUE,'Mug & Ben Vol Dist'!$H$6,IF(LEFT(G170,1)="t",'Trachyte Vol Dist'!$H$6,""))) -> 1.13 | I170: =IF(OR(LEFT(G170,1)="b",LEFT(G170,1)="h")=TRUE,'Basalt & Hawaite Vol Dist'!$I$6,IF(OR(LEFT(G170,1)="m",LEFT(G170,1)="o")=TRUE,'Mug & Ben Vol Dist'!$I$6,IF(LEFT(G170,1)="t",'Trachyte Vol Dist'!$I$6,""))) -> 0.34 | J170: =IF(OR(LEFT(G170,1)="b",LEFT(G170,1)="h")=TRUE,'Basalt & Hawaite Vol Dist'!$J$6,IF(OR(LEFT(G170,1)="m",LEFT(G170,1)="o")=TRUE,'Mug & Ben Vol Dist'!$J$6,IF(LEFT(G170,1)="t",'Trachyte Vol Dist'!$J$6,""))) -> 1.13 | K170: =IF(OR(LEFT(G170,1)="b",LEFT(G170,1)="h")=TRUE,'Basalt & Hawaite Vol Dist'!$K$6,IF(OR(LEFT(G170,1)="m",LEFT(G170,1)="o")=TRUE,'Mug & Ben Vol Dist'!$K$6,IF(LEFT(G170,1)="t",'Trachyte Vol Dist'!$K$6,""))) -> 0.34 | L170: =IF(OR(LEFT(G170,1)="b",LEFT(G170,1)="h")=TRUE,'Basalt & Hawaite Vol Dist'!$B$42,IF(OR(LEFT(G170,1)="m",LEFT(G170,1)="o")=TRUE,'Mug & Ben Vol Dist'!$B$42,IF(LEFT(G170,1)="t",'Trachyte Vol Dist'!$B$42,""))) -> 0.999
A171: 170 | B171: 0.8908008266 | C171: 0.8272083885 | D171: =SUM($C171:$C$237) -> 27.00390268 | E171: =IFERROR(VLOOKUP(G171,'Summary of age data'!$A$3:$D$243,2,FALSE),"") -> 438.9 | F171: =IFERROR(VLOOKUP(G171,'Summary of age data'!$A$3:$D$243,3,FALSE),"") -> 21 | G171: busa | H171: =IF(OR(LEFT(G171,1)="b",LEFT(G171,1)="h")=TRUE,'Basalt & Hawaite Vol Dist'!$H$6,IF(OR(LEFT(G171,1)="m",LEFT(G171,1)="o")=TRUE,'Mug & Ben Vol Dist'!$H$6,IF(LEFT(G171,1)="t",'Trachyte Vol Dist'!$H$6,""))) -> 1.13 | I171: =IF(OR(LEFT(G171,1)="b",LEFT(G171,1)="h")=TRUE,'Basalt & Hawaite Vol Dist'!$I$6,IF(OR(LEFT(G171,1)="m",LEFT(G171,1)="o")=TRUE,'Mug & Ben Vol Dist'!$I$6,IF(LEFT(G171,1)="t",'Trachyte Vol Dist'!$I$6,""))) -> 0.34 | J171: =IF(OR(LEFT(G171,1)="b",LEFT(G171,1)="h")=TRUE,'Basalt & Hawaite Vol Dist'!$J$6,IF(OR(LEFT(G171,1)="m",LEFT(G171,1)="o")=TRUE,'Mug & Ben Vol Dist'!$J$6,IF(LEFT(G171,1)="t",'Trachyte Vol Dist'!$J$6,""))) -> 1.13 | K171: =IF(OR(LEFT(G171,1)="b",LEFT(G171,1)="h")=TRUE,'Basalt & Hawaite Vol Dist'!$K$6,IF(OR(LEFT(G171,1)="m",LEFT(G171,1)="o")=TRUE,'Mug & Ben Vol Dist'!$K$6,IF(LEFT(G171,1)="t",'Trachyte Vol Dist'!$K$6,""))) -> 0.34 | L171: =IF(OR(LEFT(G171,1)="b",LEFT(G171,1)="h")=TRUE,'Basalt & Hawaite Vol Dist'!$B$42,IF(OR(LEFT(G171,1)="m",LEFT(G171,1)="o")=TRUE,'Mug & Ben Vol Dist'!$B$42,IF(LEFT(G171,1)="t",'Trachyte Vol Dist'!$B$42,""))) -> 0.999
A172: 171 | B172: 0.6478947005 | C172: 0.4076695419 | D172: =SUM($C172:$C$237) -> 26.17669429 | E172: =IFERROR(VLOOKUP(G172,'Summary of age data'!$A$3:$D$243,2,FALSE),"") -> 438.9 | F172: =IFERROR(VLOOKUP(G172,'Summary of age data'!$A$3:$D$243,3,FALSE),"") -> 21 | G172: busq | H172: =IF(OR(LEFT(G172,1)="b",LEFT(G172,1)="h")=TRUE,'Basalt & Hawaite Vol Dist'!$H$6,IF(OR(LEFT(G172,1)="m",LEFT(G172,1)="o")=TRUE,'Mug & Ben Vol Dist'!$H$6,IF(LEFT(G172,1)="t",'Trachyte Vol Dist'!$H$6,""))) -> 1.13 | I172: =IF(OR(LEFT(G172,1)="b",LEFT(G172,1)="h")=TRUE,'Basalt & Hawaite Vol Dist'!$I$6,IF(OR(LEFT(G172,1)="m",LEFT(G172,1)="o")=TRUE,'Mug & Ben Vol Dist'!$I$6,IF(LEFT(G172,1)="t",'Trachyte Vol Dist'!$I$6,""))) -> 0.34 | J172: =IF(OR(LEFT(G172,1)="b",LEFT(G172,1)="h")=TRUE,'Basalt & Hawaite Vol Dist'!$J$6,IF(OR(LEFT(G172,1)="m",LEFT(G172,1)="o")=TRUE,'Mug & Ben Vol Dist'!$J$6,IF(LEFT(G172,1)="t",'Trachyte Vol Dist'!$J$6,""))) -> 1.13 | K172: =IF(OR(LEFT(G172,1)="b",LEFT(G172,1)="h")=TRUE,'Basalt & Hawaite Vol Dist'!$K$6,IF(OR(LEFT(G172,1)="m",LEFT(G172,1)="o")=TRUE,'Mug & Ben Vol Dist'!$K$6,IF(LEFT(G172,1)="t",'Trachyte Vol Dist'!$K$6,""))) -> 0.34 | L172: =IF(OR(LEFT(G172,1)="b",LEFT(G172,1)="h")=TRUE,'Basalt & Hawaite Vol Dist'!$B$42,IF(OR(LEFT(G172,1)="m",LEFT(G172,1)="o")=TRUE,'Mug & Ben Vol Dist'!$B$42,IF(LEFT(G172,1)="t",'Trachyte Vol Dist'!$B$42,""))) -> 0.999
A173: 172 | B173: 0.4144307602 | C173: 0.2194361098 | D173: =SUM($C173:$C$237) -> 25.76902475 | E173: =IFERROR(VLOOKUP(G173,'Summary of age data'!$A$3:$D$243,2,FALSE),"") -> 445.4 | F173: =IFERROR(VLOOKUP(G173,'Summary of age data'!$A$3:$D$243,3,FALSE),"") -> 149.6 | G173: buj | H173: =IF(OR(LEFT(G173,1)="b",LEFT(G173,1)="h")=TRUE,'Basalt & Hawaite Vol Dist'!$H$6,IF(OR(LEFT(G173,1)="m",LEFT(G173,1)="o")=TRUE,'Mug & Ben Vol Dist'!$H$6,IF(LEFT(G173,1)="t",'Trachyte Vol Dist'!$H$6,""))) -> 1.13 | I173: =IF(OR(LEFT(G173,1)="b",LEFT(G173,1)="h")=TRUE,'Basalt & Hawaite Vol Dist'!$I$6,IF(OR(LEFT(G173,1)="m",LEFT(G173,1)="o")=TRUE,'Mug & Ben Vol Dist'!$I$6,IF(LEFT(G173,1)="t",'Trachyte Vol Dist'!$I$6,""))) -> 0.34 | J173: =IF(OR(LEFT(G173,1)="b",LEFT(G173,1)="h")=TRUE,'Basalt & Hawaite Vol Dist'!$J$6,IF(OR(LEFT(G173,1)="m",LEFT(G173,1)="o")=TRUE,'Mug & Ben Vol Dist'!$J$6,IF(LEFT(G173,1)="t",'Trachyte Vol Dist'!$J$6,""))) -> 1.13 | K173: =IF(OR(LEFT(G173,1)="b",LEFT(G173,1)="h")=TRUE,'Basalt & Hawaite Vol Dist'!$K$6,IF(OR(LEFT(G173,1)="m",LEFT(G173,1)="o")=TRUE,'Mug & Ben Vol Dist'!$K$6,IF(LEFT(G173,1)="t",'Trachyte Vol Dist'!$K$6,""))) -> 0.34 | L173: =IF(OR(LEFT(G173,1)="b",LEFT(G173,1)="h")=TRUE,'Basalt & Hawaite Vol Dist'!$B$42,IF(OR(LEFT(G173,1)="m",LEFT(G173,1)="o")=TRUE,'Mug & Ben Vol Dist'!$B$42,IF(LEFT(G173,1)="t",'Trachyte Vol Dist'!$B$42,""))) -> 0.999
A174: 173 | B174: 0.7878246628 | C174: 0.3112678383 | D174: =SUM($C174:$C$237) -> 25.54958864 | E174: =IFERROR(VLOOKUP(G174,'Summary of age data'!$A$3:$D$243,2,FALSE),"") -> 449.6 | F174: =IFERROR(VLOOKUP(G174,'Summary of age data'!$A$3:$D$243,3,FALSE),"") -> 6.6 | G174: oz5 | H174: =IF(OR(LEFT(G174,1)="b",LEFT(G174,1)="h")=TRUE,'Basalt & Hawaite Vol Dist'!$H$6,IF(OR(LEFT(G174,1)="m",LEFT(G174,1)="o")=TRUE,'Mug & Ben Vol Dist'!$H$6,IF(LEFT(G174,1)="t",'Trachyte Vol Dist'!$H$6,""))) -> 0.21 | I174: =IF(OR(LEFT(G174,1)="b",LEFT(G174,1)="h")=TRUE,'Basalt & Hawaite Vol Dist'!$I$6,IF(OR(LEFT(G174,1)="m",LEFT(G174,1)="o")=TRUE,'Mug & Ben Vol Dist'!$I$6,IF(LEFT(G174,1)="t",'Trachyte Vol Dist'!$I$6,""))) -> 6.1 | J174: =IF(OR(LEFT(G174,1)="b",LEFT(G174,1)="h")=TRUE,'Basalt & Hawaite Vol Dist'!$J$6,IF(OR(LEFT(G174,1)="m",LEFT(G174,1)="o")=TRUE,'Mug & Ben Vol Dist'!$J$6,IF(LEFT(G174,1)="t",'Trachyte Vol Dist'!$J$6,""))) -> 8.9 | K174: =IF(OR(LEFT(G174,1)="b",LEFT(G174,1)="h")=TRUE,'Basalt & Hawaite Vol Dist'!$K$6,IF(OR(LEFT(G174,1)="m",LEFT(G174,1)="o")=TRUE,'Mug & Ben Vol Dist'!$K$6,IF(LEFT(G174,1)="t",'Trachyte Vol Dist'!$K$6,""))) -> 0.028 | L174: =IF(OR(LEFT(G174,1)="b",LEFT(G174,1)="h")=TRUE,'Basalt & Hawaite Vol Dist'!$B$42,IF(OR(LEFT(G174,1)="m",LEFT(G174,1)="o")=TRUE,'Mug & Ben Vol Dist'!$B$42,IF(LEFT(G174,1)="t",'Trachyte Vol Dist'!$B$42,""))) -> 0.5551036823
A175: 174 | B175: 0.3753167878 | C175: 0.1949181364 | D175: =SUM($C175:$C$237) -> 25.2383208 | E175: =IFERROR(VLOOKUP(G175,'Summary of age data'!$A$3:$D$243,2,FALSE),"") -> 450 | F175: =IFERROR(VLOOKUP(G175,'Summary of age data'!$A$3:$D$243,3,FALSE),"") -> 0 | G175: bnh | H175: =IF(OR(LEFT(G175,1)="b",LEFT(G175,1)="h")=TRUE,'Basalt & Hawaite Vol Dist'!$H$6,IF(OR(LEFT(G175,1)="m",LEFT(G175,1)="o")=TRUE,'Mug & Ben Vol Dist'!$H$6,IF(LEFT(G175,1)="t",'Trachyte Vol Dist'!$H$6,""))) -> 1.13 | I175: =IF(OR(LEFT(G175,1)="b",LEFT(G175,1)="h")=TRUE,'Basalt & Hawaite Vol Dist'!$I$6,IF(OR(LEFT(G175,1)="m",LEFT(G175,1)="o")=TRUE,'Mug & Ben Vol Dist'!$I$6,IF(LEFT(G175,1)="t",'Trachyte Vol Dist'!$I$6,""))) -> 0.34 | J175: =IF(OR(LEFT(G175,1)="b",LEFT(G175,1)="h")=TRUE,'Basalt & Hawaite Vol Dist'!$J$6,IF(OR(LEFT(G175,1)="m",LEFT(G175,1)="o")=TRUE,'Mug & Ben Vol Dist'!$J$6,IF(LEFT(G175,1)="t",'Trachyte Vol Dist'!$J$6,""))) -> 1.13 | K175: =IF(OR(LEFT(G175,1)="b",LEFT(G175,1)="h")=TRUE,'Basalt & Hawaite Vol Dist'!$K$6,IF(OR(LEFT(G175,1)="m",LEFT(G175,1)="o")=TRUE,'Mug & Ben Vol Dist'!$K$6,IF(LEFT(G175,1)="t",'Trachyte Vol Dist'!$K$6,""))) -> 0.34 | L175: =IF(OR(LEFT(G175,1)="b",LEFT(G175,1)="h")=TRUE,'Basalt & Hawaite Vol Dist'!$B$42,IF(OR(LEFT(G175,1)="m",LEFT(G175,1)="o")=TRUE,'Mug & Ben Vol Dist'!$B$42,IF(LEFT(G175,1)="t",'Trachyte Vol Dist'!$B$42,""))) -> 0.999
A176: 175 | B176: 0.03686826183 | C176: 0.0198633707 | D176: =SUM($C176:$C$237) -> 25.04340267 | E176: =IFERROR(VLOOKUP(G176,'Summary of age data'!$A$3:$D$243,2,FALSE),"") -> 450 | F176: =IFERROR(VLOOKUP(G176,'Summary of age data'!$A$3:$D$243,3,FALSE),"") -> 0 | G176: buh | H176: =IF(OR(LEFT(G176,1)="b",LEFT(G176,1)="h")=TRUE,'Basalt & Hawaite Vol Dist'!$H$6,IF(OR(LEFT(G176,1)="m",LEFT(G176,1)="o")=TRUE,'Mug & Ben Vol Dist'!$H$6,IF(LEFT(G176,1)="t",'Trachyte Vol Dist'!$H$6,""))) -> 1.13 | I176: =IF(OR(LEFT(G176,1)="b",LEFT(G176,1)="h")=TRUE,'Basalt & Hawaite Vol Dist'!$I$6,IF(OR(LEFT(G176,1)="m",LEFT(G176,1)="o")=TRUE,'Mug & Ben Vol Dist'!$I$6,IF(LEFT(G176,1)="t",'Trachyte Vol Dist'!$I$6,""))) -> 0.34 | J176: =IF(OR(LEFT(G176,1)="b",LEFT(G176,1)="h")=TRUE,'Basalt & Hawaite Vol Dist'!$J$6,IF(OR(LEFT(G176,1)="m",LEFT(G176,1)="o")=TRUE,'Mug & Ben Vol Dist'!$J$6,IF(LEFT(G176,1)="t",'Trachyte Vol Dist'!$J$6,""))) -> 1.13 | K176: =IF(OR(LEFT(G176,1)="b",LEFT(G176,1)="h")=TRUE,'Basalt & Hawaite Vol Dist'!$K$6,IF(OR(LEFT(G176,1)="m",LEFT(G176,1)="o")=TRUE,'Mug & Ben Vol Dist'!$K$6,IF(LEFT(G176,1)="t",'Trachyte Vol Dist'!$K$6,""))) -> 0.34 | L176: =IF(OR(LEFT(G176,1)="b",LEFT(G176,1)="h")=TRUE,'Basalt & Hawaite Vol Dist'!$B$42,IF(OR(LEFT(G176,1)="m",LEFT(G176,1)="o")=TRUE,'Mug & Ben Vol Dist'!$B$42,IF(LEFT(G176,1)="t",'Trachyte Vol Dist'!$B$42,""))) -> 0.999
A177: 176 | B177: 0.6641415547 | C177: 0.2762444657 | D177: =SUM($C177:$C$237) -> 25.0235393 | E177: =IFERROR(VLOOKUP(G177,'Summary of age data'!$A$3:$D$243,2,FALSE),"") -> 451.8 | F177: =IFERROR(VLOOKUP(G177,'Summary of age data'!$A$3:$D$243,3,FALSE),"") -> 4.4 | G177: mz3 | H177: =IF(OR(LEFT(G177,1)="b",LEFT(G177,1)="h")=TRUE,'Basalt & Hawaite Vol Dist'!$H$6,IF(OR(LEFT(G177,1)="m",LEFT(G177,1)="o")=TRUE,'Mug & Ben Vol Dist'!$H$6,IF(LEFT(G177,1)="t",'Trachyte Vol Dist'!$H$6,""))) -> 0.21 | I177: =IF(OR(LEFT(G177,1)="b",LEFT(G177,1)="h")=TRUE,'Basalt & Hawaite Vol Dist'!$I$6,IF(OR(LEFT(G177,1)="m",LEFT(G177,1)="o")=TRUE,'Mug & Ben Vol Dist'!$I$6,IF(LEFT(G177,1)="t",'Trachyte Vol Dist'!$I$6,""))) -> 6.1 | J177: =IF(OR(LEFT(G177,1)="b",LEFT(G177,1)="h")=TRUE,'Basalt & Hawaite Vol Dist'!$J$6,IF(OR(LEFT(G177,1)="m",LEFT(G177,1)="o")=TRUE,'Mug & Ben Vol Dist'!$J$6,IF(LEFT(G177,1)="t",'Trachyte Vol Dist'!$J$6,""))) -> 8.9 | K177: =IF(OR(LEFT(G177,1)="b",LEFT(G177,1)="h")=TRUE,'Basalt & Hawaite Vol Dist'!$K$6,IF(OR(LEFT(G177,1)="m",LEFT(G177,1)="o")=TRUE,'Mug & Ben Vol Dist'!$K$6,IF(LEFT(G177,1)="t",'Trachyte Vol Dist'!$K$6,""))) -> 0.028 | L177: =IF(OR(LEFT(G177,1)="b",LEFT(G177,1)="h")=TRUE,'Basalt & Hawaite Vol Dist'!$B$42,IF(OR(LEFT(G177,1)="m",LEFT(G177,1)="o")=TRUE,'Mug & Ben Vol Dist'!$B$42,IF(LEFT(G177,1)="t",'Trachyte Vol Dist'!$B$42,""))) -> 0.5551036823
A178: 177 | B178: 0.7071532447 | C178: 0.2872694669 | D178: =SUM($C178:$C$237) -> 24.74729483 | E178: =IFERROR(VLOOKUP(G178,'Summary of age data'!$A$3:$D$243,2,FALSE),"") -> 451.8 | F178: =IFERROR(VLOOKUP(G178,'Summary of age data'!$A$3:$D$243,3,FALSE),"") -> 4.4 | G178: mz6 | H178: =IF(OR(LEFT(G178,1)="b",LEFT(G178,1)="h")=TRUE,'Basalt & Hawaite Vol Dist'!$H$6,IF(OR(LEFT(G178,1)="m",LEFT(G178,1)="o")=TRUE,'Mug & Ben Vol Dist'!$H$6,IF(LEFT(G178,1)="t",'Trachyte Vol Dist'!$H$6,""))) -> 0.21 | I178: =IF(OR(LEFT(G178,1)="b",LEFT(G178,1)="h")=TRUE,'Basalt & Hawaite Vol Dist'!$I$6,IF(OR(LEFT(G178,1)="m",LEFT(G178,1)="o")=TRUE,'Mug & Ben Vol Dist'!$I$6,IF(LEFT(G178,1)="t",'Trachyte Vol Dist'!$I$6,""))) -> 6.1 | J178: =IF(OR(LEFT(G178,1)="b",LEFT(G178,1)="h")=TRUE,'Basalt & Hawaite Vol Dist'!$J$6,IF(OR(LEFT(G178,1)="m",LEFT(G178,1)="o")=TRUE,'Mug & Ben Vol Dist'!$J$6,IF(LEFT(G178,1)="t",'Trachyte Vol Dist'!$J$6,""))) -> 8.9 | K178: =IF(OR(LEFT(G178,1)="b",LEFT(G178,1)="h")=TRUE,'Basalt & Hawaite Vol Dist'!$K$6,IF(OR(LEFT(G178,1)="m",LEFT(G178,1)="o")=TRUE,'Mug & Ben Vol Dist'!$K$6,IF(LEFT(G178,1)="t",'Trachyte Vol Dist'!$K$6,""))) -> 0.028 | L178: =IF(OR(LEFT(G178,1)="b",LEFT(G178,1)="h")=TRUE,'Basalt & Hawaite Vol Dist'!$B$42,IF(OR(LEFT(G178,1)="m",LEFT(G178,1)="o")=TRUE,'Mug & Ben Vol Dist'!$B$42,IF(LEFT(G178,1)="t",'Trachyte Vol Dist'!$B$42,""))) -> 0.5551036823
A179: 178 | B179: 0.195421788 | C179: 0.06737160577 | D179: =SUM($C179:$C$237) -> 24.46002536 | E179: =IFERROR(VLOOKUP(G179,'Summary of age data'!$A$3:$D$243,2,FALSE),"") -> 451.8 | F179: =IFERROR(VLOOKUP(G179,'Summary of age data'!$A$3:$D$243,3,FALSE),"") -> 4.4 | G179: tz6 | H179: =IF(OR(LEFT(G179,1)="b",LEFT(G179,1)="h")=TRUE,'Basalt & Hawaite Vol Dist'!$H$6,IF(OR(LEFT(G179,1)="m",LEFT(G179,1)="o")=TRUE,'Mug & Ben Vol Dist'!$H$6,IF(LEFT(G179,1)="t",'Trachyte Vol Dist'!$H$6,""))) -> 2 | I179: =IF(OR(LEFT(G179,1)="b",LEFT(G179,1)="h")=TRUE,'Basalt & Hawaite Vol Dist'!$I$6,IF(OR(LEFT(G179,1)="m",LEFT(G179,1)="o")=TRUE,'Mug & Ben Vol Dist'!$I$6,IF(LEFT(G179,1)="t",'Trachyte Vol Dist'!$I$6,""))) -> 0.083 | J179: =IF(OR(LEFT(G179,1)="b",LEFT(G179,1)="h")=TRUE,'Basalt & Hawaite Vol Dist'!$J$6,IF(OR(LEFT(G179,1)="m",LEFT(G179,1)="o")=TRUE,'Mug & Ben Vol Dist'!$J$6,IF(LEFT(G179,1)="t",'Trachyte Vol Dist'!$J$6,""))) -> 2 | K179: =IF(OR(LEFT(G179,1)="b",LEFT(G179,1)="h")=TRUE,'Basalt & Hawaite Vol Dist'!$K$6,IF(OR(LEFT(G179,1)="m",LEFT(G179,1)="o")=TRUE,'Mug & Ben Vol Dist'!$K$6,IF(LEFT(G179,1)="t",'Trachyte Vol Dist'!$K$6,""))) -> 0.083 | L179: =IF(OR(LEFT(G179,1)="b",LEFT(G179,1)="h")=TRUE,'Basalt & Hawaite Vol Dist'!$B$42,IF(OR(LEFT(G179,1)="m",LEFT(G179,1)="o")=TRUE,'Mug & Ben Vol Dist'!$B$42,IF(LEFT(G179,1)="t",'Trachyte Vol Dist'!$B$42,""))) -> 0.999
A180: 179 | B180: 0.04541164242 | C180: 0.02402285061 | D180: =SUM($C180:$C$237) -> 24.39265376 | E180: =IFERROR(VLOOKUP(G180,'Summary of age data'!$A$3:$D$243,2,FALSE),"") -> 453.4 | F180: =IFERROR(VLOOKUP(G180,'Summary of age data'!$A$3:$D$243,3,FALSE),"") -> 12.8 | G180: basu | H180: =IF(OR(LEFT(G180,1)="b",LEFT(G180,1)="h")=TRUE,'Basalt & Hawaite Vol Dist'!$H$6,IF(OR(LEFT(G180,1)="m",LEFT(G180,1)="o")=TRUE,'Mug & Ben Vol Dist'!$H$6,IF(LEFT(G180,1)="t",'Trachyte Vol Dist'!$H$6,""))) -> 1.13 | I180: =IF(OR(LEFT(G180,1)="b",LEFT(G180,1)="h")=TRUE,'Basalt & Hawaite Vol Dist'!$I$6,IF(OR(LEFT(G180,1)="m",LEFT(G180,1)="o")=TRUE,'Mug & Ben Vol Dist'!$I$6,IF(LEFT(G180,1)="t",'Trachyte Vol Dist'!$I$6,""))) -> 0.34 | J180: =IF(OR(LEFT(G180,1)="b",LEFT(G180,1)="h")=TRUE,'Basalt & Hawaite Vol Dist'!$J$6,IF(OR(LEFT(G180,1)="m",LEFT(G180,1)="o")=TRUE,'Mug & Ben Vol Dist'!$J$6,IF(LEFT(G180,1)="t",'Trachyte Vol Dist'!$J$6,""))) -> 1.13 | K180: =IF(OR(LEFT(G180,1)="b",LEFT(G180,1)="h")=TRUE,'Basalt & Hawaite Vol Dist'!$K$6,IF(OR(LEFT(G180,1)="m",LEFT(G180,1)="o")=TRUE,'Mug & Ben Vol Dist'!$K$6,IF(LEFT(G180,1)="t",'Trachyte Vol Dist'!$K$6,""))) -> 0.34 | L180: =IF(OR(LEFT(G180,1)="b",LEFT(G180,1)="h")=TRUE,'Basalt & Hawaite Vol Dist'!$B$42,IF(OR(LEFT(G180,1)="m",LEFT(G180,1)="o")=TRUE,'Mug & Ben Vol Dist'!$B$42,IF(LEFT(G180,1)="t",'Trachyte Vol Dist'!$B$42,""))) -> 0.999
A181: 180 | B181: 0.4162118711 | C181: 0.220586563 | D181: =SUM($C181:$C$237) -> 24.36863091 | E181: =IFERROR(VLOOKUP(G181,'Summary of age data'!$A$3:$D$243,2,FALSE),"") -> 453.4 | F181: =IFERROR(VLOOKUP(G181,'Summary of age data'!$A$3:$D$243,3,FALSE),"") -> 12.8 | G181: bdg | H181: =IF(OR(LEFT(G181,1)="b",LEFT(G181,1)="h")=TRUE,'Basalt & Hawaite Vol Dist'!$H$6,IF(OR(LEFT(G181,1)="m",LEFT(G181,1)="o")=TRUE,'Mug & Ben Vol Dist'!$H$6,IF(LEFT(G181,1)="t",'Trachyte Vol Dist'!$H$6,""))) -> 1.13 | I181: =IF(OR(LEFT(G181,1)="b",LEFT(G181,1)="h")=TRUE,'Basalt & Hawaite Vol Dist'!$I$6,IF(OR(LEFT(G181,1)="m",LEFT(G181,1)="o")=TRUE,'Mug & Ben Vol Dist'!$I$6,IF(LEFT(G181,1)="t",'Trachyte Vol Dist'!$I$6,""))) -> 0.34 | J181: =IF(OR(LEFT(G181,1)="b",LEFT(G181,1)="h")=TRUE,'Basalt & Hawaite Vol Dist'!$J$6,IF(OR(LEFT(G181,1)="m",LEFT(G181,1)="o")=TRUE,'Mug & Ben Vol Dist'!$J$6,IF(LEFT(G181,1)="t",'Trachyte Vol Dist'!$J$6,""))) -> 1.13 | K181: =IF(OR(LEFT(G181,1)="b",LEFT(G181,1)="h")=TRUE,'Basalt & Hawaite Vol Dist'!$K$6,IF(OR(LEFT(G181,1)="m",LEFT(G181,1)="o")=TRUE,'Mug & Ben Vol Dist'!$K$6,IF(LEFT(G181,1)="t",'Trachyte Vol Dist'!$K$6,""))) -> 0.34 | L181: =IF(OR(LEFT(G181,1)="b",LEFT(G181,1)="h")=TRUE,'Basalt & Hawaite Vol Dist'!$B$42,IF(OR(LEFT(G181,1)="m",LEFT(G181,1)="o")=TRUE,'Mug & Ben Vol Dist'!$B$42,IF(LEFT(G181,1)="t",'Trachyte Vol Dist'!$B$42,""))) -> 0.999
A182: 181 | B182: 0.6209652045 | C182: 0.3807593647 | D182: =SUM($C182:$C$237) -> 24.14804434 | E182: =IFERROR(VLOOKUP(G182,'Summary of age data'!$A$3:$D$243,2,FALSE),"") -> 453.4 | F182: =IFERROR(VLOOKUP(G182,'Summary of age data'!$A$3:$D$243,3,FALSE),"") -> 12.8 | G182: bqi | H182: =IF(OR(LEFT(G182,1)="b",LEFT(G182,1)="h")=TRUE,'Basalt & Hawaite Vol Dist'!$H$6,IF(OR(LEFT(G182,1)="m",LEFT(G182,1)="o")=TRUE,'Mug & Ben Vol Dist'!$H$6,IF(LEFT(G182,1)="t",'Trachyte Vol Dist'!$H$6,""))) -> 1.13 | I182: =IF(OR(LEFT(G182,1)="b",LEFT(G182,1)="h")=TRUE,'Basalt & Hawaite Vol Dist'!$I$6,IF(OR(LEFT(G182,1)="m",LEFT(G182,1)="o")=TRUE,'Mug & Ben Vol Dist'!$I$6,IF(LEFT(G182,1)="t",'Trachyte Vol Dist'!$I$6,""))) -> 0.34 | J182: =IF(OR(LEFT(G182,1)="b",LEFT(G182,1)="h")=TRUE,'Basalt & Hawaite Vol Dist'!$J$6,IF(OR(LEFT(G182,1)="m",LEFT(G182,1)="o")=TRUE,'Mug & Ben Vol Dist'!$J$6,IF(LEFT(G182,1)="t",'Trachyte Vol Dist'!$J$6,""))) -> 1.13 | K182: =IF(OR(LEFT(G182,1)="b",LEFT(G182,1)="h")=TRUE,'Basalt & Hawaite Vol Dist'!$K$6,IF(OR(LEFT(G182,1)="m",LEFT(G182,1)="o")=TRUE,'Mug & Ben Vol Dist'!$K$6,IF(LEFT(G182,1)="t",'Trachyte Vol Dist'!$K$6,""))) -> 0.34 | L182: =IF(OR(LEFT(G182,1)="b",LEFT(G182,1)="h")=TRUE,'Basalt & Hawaite Vol Dist'!$B$42,IF(OR(LEFT(G182,1)="m",LEFT(G182,1)="o")=TRUE,'Mug & Ben Vol Dist'!$B$42,IF(LEFT(G182,1)="t",'Trachyte Vol Dist'!$B$42,""))) -> 0.999
A183: 182 | B183: 0.7027703781 | C183: 0.286101554 | D183: =SUM($C183:$C$237) -> 23.76728498 | E183: =IFERROR(VLOOKUP(G183,'Summary of age data'!$A$3:$D$243,2,FALSE),"") -> 461.2 | F183: =IFERROR(VLOOKUP(G183,'Summary of age data'!$A$3:$D$243,3,FALSE),"") -> 6.2 | G183: mnzy | H183: =IF(OR(LEFT(G183,1)="b",LEFT(G183,1)="h")=TRUE,'Basalt & Hawaite Vol Dist'!$H$6,IF(OR(LEFT(G183,1)="m",LEFT(G183,1)="o")=TRUE,'Mug & Ben Vol Dist'!$H$6,IF(LEFT(G183,1)="t",'Trachyte Vol Dist'!$H$6,""))) -> 0.21 | I183: =IF(OR(LEFT(G183,1)="b",LEFT(G183,1)="h")=TRUE,'Basalt & Hawaite Vol Dist'!$I$6,IF(OR(LEFT(G183,1)="m",LEFT(G183,1)="o")=TRUE,'Mug & Ben Vol Dist'!$I$6,IF(LEFT(G183,1)="t",'Trachyte Vol Dist'!$I$6,""))) -> 6.1 | J183: =IF(OR(LEFT(G183,1)="b",LEFT(G183,1)="h")=TRUE,'Basalt & Hawaite Vol Dist'!$J$6,IF(OR(LEFT(G183,1)="m",LEFT(G183,1)="o")=TRUE,'Mug & Ben Vol Dist'!$J$6,IF(LEFT(G183,1)="t",'Trachyte Vol Dist'!$J$6,""))) -> 8.9 | K183: =IF(OR(LEFT(G183,1)="b",LEFT(G183,1)="h")=TRUE,'Basalt & Hawaite Vol Dist'!$K$6,IF(OR(LEFT(G183,1)="m",LEFT(G183,1)="o")=TRUE,'Mug & Ben Vol Dist'!$K$6,IF(LEFT(G183,1)="t",'Trachyte Vol Dist'!$K$6,""))) -> 0.028 | L183: =IF(OR(LEFT(G183,1)="b",LEFT(G183,1)="h")=TRUE,'Basalt & Hawaite Vol Dist'!$B$42,IF(OR(LEFT(G183,1)="m",LEFT(G183,1)="o")=TRUE,'Mug & Ben Vol Dist'!$B$42,IF(LEFT(G183,1)="t",'Trachyte Vol Dist'!$B$42,""))) -> 0.5551036823
A184: 183 | B184: 0.2702948205 | C184: 0.1350191232 | D184: =SUM($C184:$C$237) -> 23.48118343 | E184: =IFERROR(VLOOKUP(G184,'Summary of age data'!$A$3:$D$243,2,FALSE),"") -> 461.9 | F184: =IFERROR(VLOOKUP(G184,'Summary of age data'!$A$3:$D$243,3,FALSE),"") -> 4.9 | G184: bss | H184: =IF(OR(LEFT(G184,1)="b",LEFT(G184,1)="h")=TRUE,'Basalt & Hawaite Vol Dist'!$H$6,IF(OR(LEFT(G184,1)="m",LEFT(G184,1)="o")=TRUE,'Mug & Ben Vol Dist'!$H$6,IF(LEFT(G184,1)="t",'Trachyte Vol Dist'!$H$6,""))) -> 1.13 | I184: =IF(OR(LEFT(G184,1)="b",LEFT(G184,1)="h")=TRUE,'Basalt & Hawaite Vol Dist'!$I$6,IF(OR(LEFT(G184,1)="m",LEFT(G184,1)="o")=TRUE,'Mug & Ben Vol Dist'!$I$6,IF(LEFT(G184,1)="t",'Trachyte Vol Dist'!$I$6,""))) -> 0.34 | J184: =IF(OR(LEFT(G184,1)="b",LEFT(G184,1)="h")=TRUE,'Basalt & Hawaite Vol Dist'!$J$6,IF(OR(LEFT(G184,1)="m",LEFT(G184,1)="o")=TRUE,'Mug & Ben Vol Dist'!$J$6,IF(LEFT(G184,1)="t",'Trachyte Vol Dist'!$J$6,""))) -> 1.13 | K184: =IF(OR(LEFT(G184,1)="b",LEFT(G184,1)="h")=TRUE,'Basalt & Hawaite Vol Dist'!$K$6,IF(OR(LEFT(G184,1)="m",LEFT(G184,1)="o")=TRUE,'Mug & Ben Vol Dist'!$K$6,IF(LEFT(G184,1)="t",'Trachyte Vol Dist'!$K$6,""))) -> 0.34 | L184: =IF(OR(LEFT(G184,1)="b",LEFT(G184,1)="h")=TRUE,'Basalt & Hawaite Vol Dist'!$B$42,IF(OR(LEFT(G184,1)="m",LEFT(G184,1)="o")=TRUE,'Mug & Ben Vol Dist'!$B$42,IF(LEFT(G184,1)="t",'Trachyte Vol Dist'!$B$42,""))) -> 0.999
A185: 184 | B185: 0.3625808096 | C185: 0.1872232119 | D185: =SUM($C185:$C$237) -> 23.3461643 | E185: =IFERROR(VLOOKUP(G185,'Summary of age data'!$A$3:$D$243,2,FALSE),"") -> 461.9 | F185: =IFERROR(VLOOKUP(G185,'Summary of age data'!$A$3:$D$243,3,FALSE),"") -> 4.9 | G185: bbsh | H185: =IF(OR(LEFT(G185,1)="b",LEFT(G185,1)="h")=TRUE,'Basalt & Hawaite Vol Dist'!$H$6,IF(OR(LEFT(G185,1)="m",LEFT(G185,1)="o")=TRUE,'Mug & Ben Vol Dist'!$H$6,IF(LEFT(G185,1)="t",'Trachyte Vol Dist'!$H$6,""))) -> 1.13 | I185: =IF(OR(LEFT(G185,1)="b",LEFT(G185,1)="h")=TRUE,'Basalt & Hawaite Vol Dist'!$I$6,IF(OR(LEFT(G185,1)="m",LEFT(G185,1)="o")=TRUE,'Mug & Ben Vol Dist'!$I$6,IF(LEFT(G185,1)="t",'Trachyte Vol Dist'!$I$6,""))) -> 0.34 | J185: =IF(OR(LEFT(G185,1)="b",LEFT(G185,1)="h")=TRUE,'Basalt & Hawaite Vol Dist'!$J$6,IF(OR(LEFT(G185,1)="m",LEFT(G185,1)="o")=TRUE,'Mug & Ben Vol Dist'!$J$6,IF(LEFT(G185,1)="t",'Trachyte Vol Dist'!$J$6,""))) -> 1.13 | K185: =IF(OR(LEFT(G185,1)="b",LEFT(G185,1)="h")=TRUE,'Basalt & Hawaite Vol Dist'!$K$6,IF(OR(LEFT(G185,1)="m",LEFT(G185,1)="o")=TRUE,'Mug & Ben Vol Dist'!$K$6,IF(LEFT(G185,1)="t",'Trachyte Vol Dist'!$K$6,""))) -> 0.34 | L185: =IF(OR(LEFT(G185,1)="b",LEFT(G185,1)="h")=TRUE,'Basalt & Hawaite Vol Dist'!$B$42,IF(OR(LEFT(G185,1)="m",LEFT(G185,1)="o")=TRUE,'Mug & Ben Vol Dist'!$B$42,IF(LEFT(G185,1)="t",'Trachyte Vol Dist'!$B$42,""))) -> 0.999
A186: 185 | B186: 0.6985163525 | C186: 0.4640692526 | D186: =SUM($C186:$C$237) -> 23.15894109 | E186: =IFERROR(VLOOKUP(G186,'Summary of age data'!$A$3:$D$243,2,FALSE),"") -> 461.9 | F186: =IFERROR(VLOOKUP(G186,'Summary of age data'!$A$3:$D$243,3,FALSE),"") -> 4.9 | G186: bwhu | H186: =IF(OR(LEFT(G186,1)="b",LEFT(G186,1)="h")=TRUE,'Basalt & Hawaite Vol Dist'!$H$6,IF(OR(LEFT(G186,1)="m",LEFT(G186,1)="o")=TRUE,'Mug & Ben Vol Dist'!$H$6,IF(LEFT(G186,1)="t",'Trachyte Vol Dist'!$H$6,""))) -> 1.13 | I186: =IF(OR(LEFT(G186,1)="b",LEFT(G186,1)="h")=TRUE,'Basalt & Hawaite Vol Dist'!$I$6,IF(OR(LEFT(G186,1)="m",LEFT(G186,1)="o")=TRUE,'Mug & Ben Vol Dist'!$I$6,IF(LEFT(G186,1)="t",'Trachyte Vol Dist'!$I$6,""))) -> 0.34 | J186: =IF(OR(LEFT(G186,1)="b",LEFT(G186,1)="h")=TRUE,'Basalt & Hawaite Vol Dist'!$J$6,IF(OR(LEFT(G186,1)="m",LEFT(G186,1)="o")=TRUE,'Mug & Ben Vol Dist'!$J$6,IF(LEFT(G186,1)="t",'Trachyte Vol Dist'!$J$6,""))) -> 1.13 | K186: =IF(OR(LEFT(G186,1)="b",LEFT(G186,1)="h")=TRUE,'Basalt & Hawaite Vol Dist'!$K$6,IF(OR(LEFT(G186,1)="m",LEFT(G186,1)="o")=TRUE,'Mug & Ben Vol Dist'!$K$6,IF(LEFT(G186,1)="t",'Trachyte Vol Dist'!$K$6,""))) -> 0.34 | L186: =IF(OR(LEFT(G186,1)="b",LEFT(G186,1)="h")=TRUE,'Basalt & Hawaite Vol Dist'!$B$42,IF(OR(LEFT(G186,1)="m",LEFT(G186,1)="o")=TRUE,'Mug & Ben Vol Dist'!$B$42,IF(LEFT(G186,1)="t",'Trachyte Vol Dist'!$B$42,""))) -> 0.999
A187: 186 | B187: 0.3366248648 | C187: 0.1719393779 | D187: =SUM($C187:$C$237) -> 22.69487184 | E187: =IFERROR(VLOOKUP(G187,'Summary of age data'!$A$3:$D$243,2,FALSE),"") -> 466.4 | F187: =IFERROR(VLOOKUP(G187,'Summary of age data'!$A$3:$D$243,3,FALSE),"") -> 0 | G187: bjg | H187: =IF(OR(LEFT(G187,1)="b",LEFT(G187,1)="h")=TRUE,'Basalt & Hawaite Vol Dist'!$H$6,IF(OR(LEFT(G187,1)="m",LEFT(G187,1)="o")=TRUE,'Mug & Ben Vol Dist'!$H$6,IF(LEFT(G187,1)="t",'Trachyte Vol Dist'!$H$6,""))) -> 1.13 | I187: =IF(OR(LEFT(G187,1)="b",LEFT(G187,1)="h")=TRUE,'Basalt & Hawaite Vol Dist'!$I$6,IF(OR(LEFT(G187,1)="m",LEFT(G187,1)="o")=TRUE,'Mug & Ben Vol Dist'!$I$6,IF(LEFT(G187,1)="t",'Trachyte Vol Dist'!$I$6,""))) -> 0.34 | J187: =IF(OR(LEFT(G187,1)="b",LEFT(G187,1)="h")=TRUE,'Basalt & Hawaite Vol Dist'!$J$6,IF(OR(LEFT(G187,1)="m",LEFT(G187,1)="o")=TRUE,'Mug & Ben Vol Dist'!$J$6,IF(LEFT(G187,1)="t",'Trachyte Vol Dist'!$J$6,""))) -> 1.13 | K187: =IF(OR(LEFT(G187,1)="b",LEFT(G187,1)="h")=TRUE,'Basalt & Hawaite Vol Dist'!$K$6,IF(OR(LEFT(G187,1)="m",LEFT(G187,1)="o")=TRUE,'Mug & Ben Vol Dist'!$K$6,IF(LEFT(G187,1)="t",'Trachyte Vol Dist'!$K$6,""))) -> 0.34 | L187: =IF(OR(LEFT(G187,1)="b",LEFT(G187,1)="h")=TRUE,'Basalt & Hawaite Vol Dist'!$B$42,IF(OR(LEFT(G187,1)="m",LEFT(G187,1)="o")=TRUE,'Mug & Ben Vol Dist'!$B$42,IF(LEFT(G187,1)="t",'Trachyte Vol Dist'!$B$42,""))) -> 0.999
A188: 187 | B188: 0.9598924552 | C188: 1.179950022 | D188: =SUM($C188:$C$237) -> 22.52293246 | E188: =IFERROR(VLOOKUP(G188,'Summary of age data'!$A$3:$D$243,2,FALSE),"") -> 467.7 | F188: =IFERROR(VLOOKUP(G188,'Summary of age data'!$A$3:$D$243,3,FALSE),"") -> 78.8 | G188: bis | H188: =IF(OR(LEFT(G188,1)="b",LEFT(G188,1)="h")=TRUE,'Basalt & Hawaite Vol Dist'!$H$6,IF(OR(LEFT(G188,1)="m",LEFT(G188,1)="o")=TRUE,'Mug & Ben Vol Dist'!$H$6,IF(LEFT(G188,1)="t",'Trachyte Vol Dist'!$H$6,""))) -> 1.13 | I188: =IF(OR(LEFT(G188,1)="b",LEFT(G188,1)="h")=TRUE,'Basalt & Hawaite Vol Dist'!$I$6,IF(OR(LEFT(G188,1)="m",LEFT(G188,1)="o")=TRUE,'Mug & Ben Vol Dist'!$I$6,IF(LEFT(G188,1)="t",'Trachyte Vol Dist'!$I$6,""))) -> 0.34 | J188: =IF(OR(LEFT(G188,1)="b",LEFT(G188,1)="h")=TRUE,'Basalt & Hawaite Vol Dist'!$J$6,IF(OR(LEFT(G188,1)="m",LEFT(G188,1)="o")=TRUE,'Mug & Ben Vol Dist'!$J$6,IF(LEFT(G188,1)="t",'Trachyte Vol Dist'!$J$6,""))) -> 1.13 | K188: =IF(OR(LEFT(G188,1)="b",LEFT(G188,1)="h")=TRUE,'Basalt & Hawaite Vol Dist'!$K$6,IF(OR(LEFT(G188,1)="m",LEFT(G188,1)="o")=TRUE,'Mug & Ben Vol Dist'!$K$6,IF(LEFT(G188,1)="t",'Trachyte Vol Dist'!$K$6,""))) -> 0.34 | L188: =IF(OR(LEFT(G188,1)="b",LEFT(G188,1)="h")=TRUE,'Basalt & Hawaite Vol Dist'!$B$42,IF(OR(LEFT(G188,1)="m",LEFT(G188,1)="o")=TRUE,'Mug & Ben Vol Dist'!$B$42,IF(LEFT(G188,1)="t",'Trachyte Vol Dist'!$B$42,""))) -> 0.999
A189: 188 | B189: 0.7975171553 | C189: 0.6073939072 | D189: =SUM($C189:$C$237) -> 21.34298244 | E189: =IFERROR(VLOOKUP(G189,'Summary of age data'!$A$3:$D$243,2,FALSE),"") -> 476.1 | F189: =IFERROR(VLOOKUP(G189,'Summary of age data'!$A$3:$D$243,3,FALSE),"") -> 70.5 | G189: bqu | H189: =IF(OR(LEFT(G189,1)="b",LEFT(G189,1)="h")=TRUE,'Basalt & Hawaite Vol Dist'!$H$6,IF(OR(LEFT(G189,1)="m",LEFT(G189,1)="o")=TRUE,'Mug & Ben Vol Dist'!$H$6,IF(LEFT(G189,1)="t",'Trachyte Vol Dist'!$H$6,""))) -> 1.13 | I189: =IF(OR(LEFT(G189,1)="b",LEFT(G189,1)="h")=TRUE,'Basalt & Hawaite Vol Dist'!$I$6,IF(OR(LEFT(G189,1)="m",LEFT(G189,1)="o")=TRUE,'Mug & Ben Vol Dist'!$I$6,IF(LEFT(G189,1)="t",'Trachyte Vol Dist'!$I$6,""))) -> 0.34 | J189: =IF(OR(LEFT(G189,1)="b",LEFT(G189,1)="h")=TRUE,'Basalt & Hawaite Vol Dist'!$J$6,IF(OR(LEFT(G189,1)="m",LEFT(G189,1)="o")=TRUE,'Mug & Ben Vol Dist'!$J$6,IF(LEFT(G189,1)="t",'Trachyte Vol Dist'!$J$6,""))) -> 1.13 | K189: =IF(OR(LEFT(G189,1)="b",LEFT(G189,1)="h")=TRUE,'Basalt & Hawaite Vol Dist'!$K$6,IF(OR(LEFT(G189,1)="m",LEFT(G189,1)="o")=TRUE,'Mug & Ben Vol Dist'!$K$6,IF(LEFT(G189,1)="t",'Trachyte Vol Dist'!$K$6,""))) -> 0.34 | L189: =IF(OR(LEFT(G189,1)="b",LEFT(G189,1)="h")=TRUE,'Basalt & Hawaite Vol Dist'!$B$42,IF(OR(LEFT(G189,1)="m",LEFT(G189,1)="o")=TRUE,'Mug & Ben Vol Dist'!$B$42,IF(LEFT(G189,1)="t",'Trachyte Vol Dist'!$B$42,""))) -> 0.999
A190: 189 | B190: 0.7184002538 | C190: 0.4887580215 | D190: =SUM($C190:$C$237) -> 20.73558853 | E190: =IFERROR(VLOOKUP(G190,'Summary of age data'!$A$3:$D$243,2,FALSE),"") -> 476.1 | F190: =IFERROR(VLOOKUP(G190,'Summary of age data'!$A$3:$D$243,3,FALSE),"") -> 70.5 | G190: bha | H190: =IF(OR(LEFT(G190,1)="b",LEFT(G190,1)="h")=TRUE,'Basalt & Hawaite Vol Dist'!$H$6,IF(OR(LEFT(G190,1)="m",LEFT(G190,1)="o")=TRUE,'Mug & Ben Vol Dist'!$H$6,IF(LEFT(G190,1)="t",'Trachyte Vol Dist'!$H$6,""))) -> 1.13 | I190: =IF(OR(LEFT(G190,1)="b",LEFT(G190,1)="h")=TRUE,'Basalt & Hawaite Vol Dist'!$I$6,IF(OR(LEFT(G190,1)="m",LEFT(G190,1)="o")=TRUE,'Mug & Ben Vol Dist'!$I$6,IF(LEFT(G190,1)="t",'Trachyte Vol Dist'!$I$6,""))) -> 0.34 | J190: =IF(OR(LEFT(G190,1)="b",LEFT(G190,1)="h")=TRUE,'Basalt & Hawaite Vol Dist'!$J$6,IF(OR(LEFT(G190,1)="m",LEFT(G190,1)="o")=TRUE,'Mug & Ben Vol Dist'!$J$6,IF(LEFT(G190,1)="t",'Trachyte Vol Dist'!$J$6,""))) -> 1.13 | K190: =IF(OR(LEFT(G190,1)="b",LEFT(G190,1)="h")=TRUE,'Basalt & Hawaite Vol Dist'!$K$6,IF(OR(LEFT(G190,1)="m",LEFT(G190,1)="o")=TRUE,'Mug & Ben Vol Dist'!$K$6,IF(LEFT(G190,1)="t",'Trachyte Vol Dist'!$K$6,""))) -> 0.34 | L190: =IF(OR(LEFT(G190,1)="b",LEFT(G190,1)="h")=TRUE,'Basalt & Hawaite Vol Dist'!$B$42,IF(OR(LEFT(G190,1)="m",LEFT(G190,1)="o")=TRUE,'Mug & Ben Vol Dist'!$B$42,IF(LEFT(G190,1)="t",'Trachyte Vol Dist'!$B$42,""))) -> 0.999
A191: 190 | B191: 0.1548704835 | C191: 0.0763509942 | D191: =SUM($C191:$C$237) -> 20.24683051 | E191: =IFERROR(VLOOKUP(G191,'Summary of age data'!$A$3:$D$243,2,FALSE),"") -> 490.1 | F191: =IFERROR(VLOOKUP(G191,'Summary of age data'!$A$3:$D$243,3,FALSE),"") -> 4.6 | G191: hhil | H191: =IF(OR(LEFT(G191,1)="b",LEFT(G191,1)="h")=TRUE,'Basalt & Hawaite Vol Dist'!$H$6,IF(OR(LEFT(G191,1)="m",LEFT(G191,1)="o")=TRUE,'Mug & Ben Vol Dist'!$H$6,IF(LEFT(G191,1)="t",'Trachyte Vol Dist'!$H$6,""))) -> 1.13 | I191: =IF(OR(LEFT(G191,1)="b",LEFT(G191,1)="h")=TRUE,'Basalt & Hawaite Vol Dist'!$I$6,IF(OR(LEFT(G191,1)="m",LEFT(G191,1)="o")=TRUE,'Mug & Ben Vol Dist'!$I$6,IF(LEFT(G191,1)="t",'Trachyte Vol Dist'!$I$6,""))) -> 0.34 | J191: =IF(OR(LEFT(G191,1)="b",LEFT(G191,1)="h")=TRUE,'Basalt & Hawaite Vol Dist'!$J$6,IF(OR(LEFT(G191,1)="m",LEFT(G191,1)="o")=TRUE,'Mug & Ben Vol Dist'!$J$6,IF(LEFT(G191,1)="t",'Trachyte Vol Dist'!$J$6,""))) -> 1.13 | K191: =IF(OR(LEFT(G191,1)="b",LEFT(G191,1)="h")=TRUE,'Basalt & Hawaite Vol Dist'!$K$6,IF(OR(LEFT(G191,1)="m",LEFT(G191,1)="o")=TRUE,'Mug & Ben Vol Dist'!$K$6,IF(LEFT(G191,1)="t",'Trachyte Vol Dist'!$K$6,""))) -> 0.34 | L191: =IF(OR(LEFT(G191,1)="b",LEFT(G191,1)="h")=TRUE,'Basalt & Hawaite Vol Dist'!$B$42,IF(OR(LEFT(G191,1)="m",LEFT(G191,1)="o")=TRUE,'Mug & Ben Vol Dist'!$B$42,IF(LEFT(G191,1)="t",'Trachyte Vol Dist'!$B$42,""))) -> 0.999
A192: 191 | B192: 0.8195316196 | C192: 0.6485622141 | D192: =SUM($C192:$C$237) -> 20.17047952 | E192: =IFERROR(VLOOKUP(G192,'Summary of age data'!$A$3:$D$243,2,FALSE),"") -> 497.5 | F192: =IFERROR(VLOOKUP(G192,'Summary of age data'!$A$3:$D$243,3,FALSE),"") -> 37.5 | G192: btw | H192: =IF(OR(LEFT(G192,1)="b",LEFT(G192,1)="h")=TRUE,'Basalt & Hawaite Vol Dist'!$H$6,IF(OR(LEFT(G192,1)="m",LEFT(G192,1)="o")=TRUE,'Mug & Ben Vol Dist'!$H$6,IF(LEFT(G192,1)="t",'Trachyte Vol Dist'!$H$6,""))) -> 1.13 | I192: =IF(OR(LEFT(G192,1)="b",LEFT(G192,1)="h")=TRUE,'Basalt & Hawaite Vol Dist'!$I$6,IF(OR(LEFT(G192,1)="m",LEFT(G192,1)="o")=TRUE,'Mug & Ben Vol Dist'!$I$6,IF(LEFT(G192,1)="t",'Trachyte Vol Dist'!$I$6,""))) -> 0.34 | J192: =IF(OR(LEFT(G192,1)="b",LEFT(G192,1)="h")=TRUE,'Basalt & Hawaite Vol Dist'!$J$6,IF(OR(LEFT(G192,1)="m",LEFT(G192,1)="o")=TRUE,'Mug & Ben Vol Dist'!$J$6,IF(LEFT(G192,1)="t",'Trachyte Vol Dist'!$J$6,""))) -> 1.13 | K192: =IF(OR(LEFT(G192,1)="b",LEFT(G192,1)="h")=TRUE,'Basalt & Hawaite Vol Dist'!$K$6,IF(OR(LEFT(G192,1)="m",LEFT(G192,1)="o")=TRUE,'Mug & Ben Vol Dist'!$K$6,IF(LEFT(G192,1)="t",'Trachyte Vol Dist'!$K$6,""))) -> 0.34 | L192: =IF(OR(LEFT(G192,1)="b",LEFT(G192,1)="h")=TRUE,'Basalt & Hawaite Vol Dist'!$B$42,IF(OR(LEFT(G192,1)="m",LEFT(G192,1)="o")=TRUE,'Mug & Ben Vol Dist'!$B$42,IF(LEFT(G192,1)="t",'Trachyte Vol Dist'!$B$42,""))) -> 0.999
A193: 192 | B193: 0.1848829476 | C193: 0.09107414502 | D193: =SUM($C193:$C$237) -> 19.5219173 | E193: =IFERROR(VLOOKUP(G193,'Summary of age data'!$A$3:$D$243,2,FALSE),"") -> 500 | F193: =IFERROR(VLOOKUP(G193,'Summary of age data'!$A$3:$D$243,3,FALSE),"") -> 0 | G193: bhin | H193: =IF(OR(LEFT(G193,1)="b",LEFT(G193,1)="h")=TRUE,'Basalt & Hawaite Vol Dist'!$H$6,IF(OR(LEFT(G193,1)="m",LEFT(G193,1)="o")=TRUE,'Mug & Ben Vol Dist'!$H$6,IF(LEFT(G193,1)="t",'Trachyte Vol Dist'!$H$6,""))) -> 1.13 | I193: =IF(OR(LEFT(G193,1)="b",LEFT(G193,1)="h")=TRUE,'Basalt & Hawaite Vol Dist'!$I$6,IF(OR(LEFT(G193,1)="m",LEFT(G193,1)="o")=TRUE,'Mug & Ben Vol Dist'!$I$6,IF(LEFT(G193,1)="t",'Trachyte Vol Dist'!$I$6,""))) -> 0.34 | J193: =IF(OR(LEFT(G193,1)="b",LEFT(G193,1)="h")=TRUE,'Basalt & Hawaite Vol Dist'!$J$6,IF(OR(LEFT(G193,1)="m",LEFT(G193,1)="o")=TRUE,'Mug & Ben Vol Dist'!$J$6,IF(LEFT(G193,1)="t",'Trachyte Vol Dist'!$J$6,""))) -> 1.13 | K193: =IF(OR(LEFT(G193,1)="b",LEFT(G193,1)="h")=TRUE,'Basalt & Hawaite Vol Dist'!$K$6,IF(OR(LEFT(G193,1)="m",LEFT(G193,1)="o")=TRUE,'Mug & Ben Vol Dist'!$K$6,IF(LEFT(G193,1)="t",'Trachyte Vol Dist'!$K$6,""))) -> 0.34 | L193: =IF(OR(LEFT(G193,1)="b",LEFT(G193,1)="h")=TRUE,'Basalt & Hawaite Vol Dist'!$B$42,IF(OR(LEFT(G193,1)="m",LEFT(G193,1)="o")=TRUE,'Mug & Ben Vol Dist'!$B$42,IF(LEFT(G193,1)="t",'Trachyte Vol Dist'!$B$42,""))) -> 0.999
A194: 193 | B194: 0.3307949042 | C194: 0.1685760789 | D194: =SUM($C194:$C$237) -> 19.43084316 | E194: =IFERROR(VLOOKUP(G194,'Summary of age data'!$A$3:$D$243,2,FALSE),"") -> 500 | F194: =IFERROR(VLOOKUP(G194,'Summary of age data'!$A$3:$D$243,3,FALSE),"") -> 0 | G194: bara | H194: =IF(OR(LEFT(G194,1)="b",LEFT(G194,1)="h")=TRUE,'Basalt & Hawaite Vol Dist'!$H$6,IF(OR(LEFT(G194,1)="m",LEFT(G194,1)="o")=TRUE,'Mug & Ben Vol Dist'!$H$6,IF(LEFT(G194,1)="t",'Trachyte Vol Dist'!$H$6,""))) -> 1.13 | I194: =IF(OR(LEFT(G194,1)="b",LEFT(G194,1)="h")=TRUE,'Basalt & Hawaite Vol Dist'!$I$6,IF(OR(LEFT(G194,1)="m",LEFT(G194,1)="o")=TRUE,'Mug & Ben Vol Dist'!$I$6,IF(LEFT(G194,1)="t",'Trachyte Vol Dist'!$I$6,""))) -> 0.34 | J194: =IF(OR(LEFT(G194,1)="b",LEFT(G194,1)="h")=TRUE,'Basalt & Hawaite Vol Dist'!$J$6,IF(OR(LEFT(G194,1)="m",LEFT(G194,1)="o")=TRUE,'Mug & Ben Vol Dist'!$J$6,IF(LEFT(G194,1)="t",'Trachyte Vol Dist'!$J$6,""))) -> 1.13 | K194: =IF(OR(LEFT(G194,1)="b",LEFT(G194,1)="h")=TRUE,'Basalt & Hawaite Vol Dist'!$K$6,IF(OR(LEFT(G194,1)="m",LEFT(G194,1)="o")=TRUE,'Mug & Ben Vol Dist'!$K$6,IF(LEFT(G194,1)="t",'Trachyte Vol Dist'!$K$6,""))) -> 0.34 | L194: =IF(OR(LEFT(G194,1)="b",LEFT(G194,1)="h")=TRUE,'Basalt & Hawaite Vol Dist'!$B$42,IF(OR(LEFT(G194,1)="m",LEFT(G194,1)="o")=TRUE,'Mug & Ben Vol Dist'!$B$42,IF(LEFT(G194,1)="t",'Trachyte Vol Dist'!$B$42,""))) -> 0.999
A195: 194 | B195: =RAND() -> 0.6438213235 | C195: 0.4034755862 | D195: =SUM($C195:$C$237) -> 19.26226708 | E195: =IFERROR(VLOOKUP(G195,'Summary of age data'!$A$3:$D$243,2,FALSE),"") -> 500 | F195: =IFERROR(VLOOKUP(G195,'Summary of age data'!$A$3:$D$243,3,FALSE),"") -> 0 | G195: bme | H195: =IF(OR(LEFT(G195,1)="b",LEFT(G195,1)="h")=TRUE,'Basalt & Hawaite Vol Dist'!$H$6,IF(OR(LEFT(G195,1)="m",LEFT(G195,1)="o")=TRUE,'Mug & Ben Vol Dist'!$H$6,IF(LEFT(G195,1)="t",'Trachyte Vol Dist'!$H$6,""))) -> 1.13 | I195: =IF(OR(LEFT(G195,1)="b",LEFT(G195,1)="h")=TRUE,'Basalt & Hawaite Vol Dist'!$I$6,IF(OR(LEFT(G195,1)="m",LEFT(G195,1)="o")=TRUE,'Mug & Ben Vol Dist'!$I$6,IF(LEFT(G195,1)="t",'Trachyte Vol Dist'!$I$6,""))) -> 0.34 | J195: =IF(OR(LEFT(G195,1)="b",LEFT(G195,1)="h")=TRUE,'Basalt & Hawaite Vol Dist'!$J$6,IF(OR(LEFT(G195,1)="m",LEFT(G195,1)="o")=TRUE,'Mug & Ben Vol Dist'!$J$6,IF(LEFT(G195,1)="t",'Trachyte Vol Dist'!$J$6,""))) -> 1.13 | K195: =IF(OR(LEFT(G195,1)="b",LEFT(G195,1)="h")=TRUE,'Basalt & Hawaite Vol Dist'!$K$6,IF(OR(LEFT(G195,1)="m",LEFT(G195,1)="o")=TRUE,'Mug & Ben Vol Dist'!$K$6,IF(LEFT(G195,1)="t",'Trachyte Vol Dist'!$K$6,""))) -> 0.34 | L195: =IF(OR(LEFT(G195,1)="b",LEFT(G195,1)="h")=TRUE,'Basalt & Hawaite Vol Dist'!$B$42,IF(OR(LEFT(G195,1)="m",LEFT(G195,1)="o")=TRUE,'Mug & Ben Vol Dist'!$B$42,IF(LEFT(G195,1)="t",'Trachyte Vol Dist'!$B$42,""))) -> 0.999
A196: 195 | B196: 0.4211927657 | C196: =IF(B196<=L196,_xlfn.GAMMA.INV(B196,H196,I196),_xlfn.GAMMA.INV(B196,J196,K196)) -> 0.2238204529 | D196: =SUM($C196:$C$237) -> 18.85879149 | E196: =IFERROR(VLOOKUP(G196,'Summary of age data'!$A$3:$D$243,2,FALSE),"") -> 500 | F196: =IFERROR(VLOOKUP(G196,'Summary of age data'!$A$3:$D$243,3,FALSE),"") -> 0 | G196: byid | H196: =IF(OR(LEFT(G196,1)="b",LEFT(G196,1)="h")=TRUE,'Basalt & Hawaite Vol Dist'!$H$6,IF(OR(LEFT(G196,1)="m",LEFT(G196,1)="o")=TRUE,'Mug & Ben Vol Dist'!$H$6,IF(LEFT(G196,1)="t",'Trachyte Vol Dist'!$H$6,""))) -> 1.13 | I196: =IF(OR(LEFT(G196,1)="b",LEFT(G196,1)="h")=TRUE,'Basalt & Hawaite Vol Dist'!$I$6,IF(OR(LEFT(G196,1)="m",LEFT(G196,1)="o")=TRUE,'Mug & Ben Vol Dist'!$I$6,IF(LEFT(G196,1)="t",'Trachyte Vol Dist'!$I$6,""))) -> 0.34 | J196: =IF(OR(LEFT(G196,1)="b",LEFT(G196,1)="h")=TRUE,'Basalt & Hawaite Vol Dist'!$J$6,IF(OR(LEFT(G196,1)="m",LEFT(G196,1)="o")=TRUE,'Mug & Ben Vol Dist'!$J$6,IF(LEFT(G196,1)="t",'Trachyte Vol Dist'!$J$6,""))) -> 1.13 | K196: =IF(OR(LEFT(G196,1)="b",LEFT(G196,1)="h")=TRUE,'Basalt & Hawaite Vol Dist'!$K$6,IF(OR(LEFT(G196,1)="m",LEFT(G196,1)="o")=TRUE,'Mug & Ben Vol Dist'!$K$6,IF(LEFT(G196,1)="t",'Trachyte Vol Dist'!$K$6,""))) -> 0.34 | L196: =IF(OR(LEFT(G196,1)="b",LEFT(G196,1)="h")=TRUE,'Basalt & Hawaite Vol Dist'!$B$42,IF(OR(LEFT(G196,1)="m",LEFT(G196,1)="o")=TRUE,'Mug & Ben Vol Dist'!$B$42,IF(LEFT(G196,1)="t",'Trachyte Vol Dist'!$B$42,""))) -> 0.999
A197: 196 | B197: 0.1418443814 | C197: 0.07004704899 | D197: =SUM($C197:$C$237) -> 18.63497104 | E197: =IFERROR(VLOOKUP(G197,'Summary of age data'!$A$3:$D$243,2,FALSE),"") -> 500 | F197: =IFERROR(VLOOKUP(G197,'Summary of age data'!$A$3:$D$243,3,FALSE),"") -> 0 | G197: brag | H197: =IF(OR(LEFT(G197,1)="b",LEFT(G197,1)="h")=TRUE,'Basalt & Hawaite Vol Dist'!$H$6,IF(OR(LEFT(G197,1)="m",LEFT(G197,1)="o")=TRUE,'Mug & Ben Vol Dist'!$H$6,IF(LEFT(G197,1)="t",'Trachyte Vol Dist'!$H$6,""))) -> 1.13 | I197: =IF(OR(LEFT(G197,1)="b",LEFT(G197,1)="h")=TRUE,'Basalt & Hawaite Vol Dist'!$I$6,IF(OR(LEFT(G197,1)="m",LEFT(G197,1)="o")=TRUE,'Mug & Ben Vol Dist'!$I$6,IF(LEFT(G197,1)="t",'Trachyte Vol Dist'!$I$6,""))) -> 0.34 | J197: =IF(OR(LEFT(G197,1)="b",LEFT(G197,1)="h")=TRUE,'Basalt & Hawaite Vol Dist'!$J$6,IF(OR(LEFT(G197,1)="m",LEFT(G197,1)="o")=TRUE,'Mug & Ben Vol Dist'!$J$6,IF(LEFT(G197,1)="t",'Trachyte Vol Dist'!$J$6,""))) -> 1.13 | K197: =IF(OR(LEFT(G197,1)="b",LEFT(G197,1)="h")=TRUE,'Basalt & Hawaite Vol Dist'!$K$6,IF(OR(LEFT(G197,1)="m",LEFT(G197,1)="o")=TRUE,'Mug & Ben Vol Dist'!$K$6,IF(LEFT(G197,1)="t",'Trachyte Vol Dist'!$K$6,""))) -> 0.34 | L197: =IF(OR(LEFT(G197,1)="b",LEFT(G197,1)="h")=TRUE,'Basalt & Hawaite Vol Dist'!$B$42,IF(OR(LEFT(G197,1)="m",LEFT(G197,1)="o")=TRUE,'Mug & Ben Vol Dist'!$B$42,IF(LEFT(G197,1)="t",'Trachyte Vol Dist'!$B$42,""))) -> 0.999
A198: 197 | B198: 0.723660883 | C198: 0.4955717586 | D198: =SUM($C198:$C$237) -> 18.56492399 | E198: =IFERROR(VLOOKUP(G198,'Summary of age data'!$A$3:$D$243,2,FALSE),"") -> 500 | F198: =IFERROR(VLOOKUP(G198,'Summary of age data'!$A$3:$D$243,3,FALSE),"") -> 0 | G198: bzi | H198: =IF(OR(LEFT(G198,1)="b",LEFT(G198,1)="h")=TRUE,'Basalt & Hawaite Vol Dist'!$H$6,IF(OR(LEFT(G198,1)="m",LEFT(G198,1)="o")=TRUE,'Mug & Ben Vol Dist'!$H$6,IF(LEFT(G198,1)="t",'Trachyte Vol Dist'!$H$6,""))) -> 1.13 | I198: =IF(OR(LEFT(G198,1)="b",LEFT(G198,1)="h")=TRUE,'Basalt & Hawaite Vol Dist'!$I$6,IF(OR(LEFT(G198,1)="m",LEFT(G198,1)="o")=TRUE,'Mug & Ben Vol Dist'!$I$6,IF(LEFT(G198,1)="t",'Trachyte Vol Dist'!$I$6,""))) -> 0.34 | J198: =IF(OR(LEFT(G198,1)="b",LEFT(G198,1)="h")=TRUE,'Basalt & Hawaite Vol Dist'!$J$6,IF(OR(LEFT(G198,1)="m",LEFT(G198,1)="o")=TRUE,'Mug & Ben Vol Dist'!$J$6,IF(LEFT(G198,1)="t",'Trachyte Vol Dist'!$J$6,""))) -> 1.13 | K198: =IF(OR(LEFT(G198,1)="b",LEFT(G198,1)="h")=TRUE,'Basalt & Hawaite Vol Dist'!$K$6,IF(OR(LEFT(G198,1)="m",LEFT(G198,1)="o")=TRUE,'Mug & Ben Vol Dist'!$K$6,IF(LEFT(G198,1)="t",'Trachyte Vol Dist'!$K$6,""))) -> 0.34 | L198: =IF(OR(LEFT(G198,1)="b",LEFT(G198,1)="h")=TRUE,'Basalt & Hawaite Vol Dist'!$B$42,IF(OR(LEFT(G198,1)="m",LEFT(G198,1)="o")=TRUE,'Mug & Ben Vol Dist'!$B$42,IF(LEFT(G198,1)="t",'Trachyte Vol Dist'!$B$42,""))) -> 0.999
A199: 198 | B199: 0.1678280186 | C199: 0.0826708932 | D199: =SUM($C199:$C$237) -> 18.06935223 | E199: =IFERROR(VLOOKUP(G199,'Summary of age data'!$A$3:$D$243,2,FALSE),"") -> 500 | F199: =IFERROR(VLOOKUP(G199,'Summary of age data'!$A$3:$D$243,3,FALSE),"") -> 0 | G199: bef | H199: =IF(OR(LEFT(G199,1)="b",LEFT(G199,1)="h")=TRUE,'Basalt & Hawaite Vol Dist'!$H$6,IF(OR(LEFT(G199,1)="m",LEFT(G199,1)="o")=TRUE,'Mug & Ben Vol Dist'!$H$6,IF(LEFT(G199,1)="t",'Trachyte Vol Dist'!$H$6,""))) -> 1.13 | I199: =IF(OR(LEFT(G199,1)="b",LEFT(G199,1)="h")=TRUE,'Basalt & Hawaite Vol Dist'!$I$6,IF(OR(LEFT(G199,1)="m",LEFT(G199,1)="o")=TRUE,'Mug & Ben Vol Dist'!$I$6,IF(LEFT(G199,1)="t",'Trachyte Vol Dist'!$I$6,""))) -> 0.34 | J199: =IF(OR(LEFT(G199,1)="b",LEFT(G199,1)="h")=TRUE,'Basalt & Hawaite Vol Dist'!$J$6,IF(OR(LEFT(G199,1)="m",LEFT(G199,1)="o")=TRUE,'Mug & Ben Vol Dist'!$J$6,IF(LEFT(G199,1)="t",'Trachyte Vol Dist'!$J$6,""))) -> 1.13 | K199: =IF(OR(LEFT(G199,1)="b",LEFT(G199,1)="h")=TRUE,'Basalt & Hawaite Vol Dist'!$K$6,IF(OR(LEFT(G199,1)="m",LEFT(G199,1)="o")=TRUE,'Mug & Ben Vol Dist'!$K$6,IF(LEFT(G199,1)="t",'Trachyte Vol Dist'!$K$6,""))) -> 0.34 | L199: =IF(OR(LEFT(G199,1)="b",LEFT(G199,1)="h")=TRUE,'Basalt & Hawaite Vol Dist'!$B$42,IF(OR(LEFT(G199,1)="m",LEFT(G199,1)="o")=TRUE,'Mug & Ben Vol Dist'!$B$42,IF(LEFT(G199,1)="t",'Trachyte Vol Dist'!$B$42,""))) -> 0.999
A200: 199 | B200: 0.3479145784 | C200: 0.1785236821 | D200: =SUM($C200:$C$237) -> 17.98668134 | E200: =IFERROR(VLOOKUP(G200,'Summary of age data'!$A$3:$D$243,2,FALSE),"") -> 505.1 | F200: =IFERROR(VLOOKUP(G200,'Summary of age data'!$A$3:$D$243,3,FALSE),"") -> 10.3 | G200: bh83 | H200: =IF(OR(LEFT(G200,1)="b",LEFT(G200,1)="h")=TRUE,'Basalt & Hawaite Vol Dist'!$H$6,IF(OR(LEFT(G200,1)="m",LEFT(G200,1)="o")=TRUE,'Mug & Ben Vol Dist'!$H$6,IF(LEFT(G200,1)="t",'Trachyte Vol Dist'!$H$6,""))) -> 1.13 | I200: =IF(OR(LEFT(G200,1)="b",LEFT(G200,1)="h")=TRUE,'Basalt & Hawaite Vol Dist'!$I$6,IF(OR(LEFT(G200,1)="m",LEFT(G200,1)="o")=TRUE,'Mug & Ben Vol Dist'!$I$6,IF(LEFT(G200,1)="t",'Trachyte Vol Dist'!$I$6,""))) -> 0.34 | J200: =IF(OR(LEFT(G200,1)="b",LEFT(G200,1)="h")=TRUE,'Basalt & Hawaite Vol Dist'!$J$6,IF(OR(LEFT(G200,1)="m",LEFT(G200,1)="o")=TRUE,'Mug & Ben Vol Dist'!$J$6,IF(LEFT(G200,1)="t",'Trachyte Vol Dist'!$J$6,""))) -> 1.13 | K200: =IF(OR(LEFT(G200,1)="b",LEFT(G200,1)="h")=TRUE,'Basalt & Hawaite Vol Dist'!$K$6,IF(OR(LEFT(G200,1)="m",LEFT(G200,1)="o")=TRUE,'Mug & Ben Vol Dist'!$K$6,IF(LEFT(G200,1)="t",'Trachyte Vol Dist'!$K$6,""))) -> 0.34 | L200: =IF(OR(LEFT(G200,1)="b",LEFT(G200,1)="h")=TRUE,'Basalt & Hawaite Vol Dist'!$B$42,IF(OR(LEFT(G200,1)="m",LEFT(G200,1)="o")=TRUE,'Mug & Ben Vol Dist'!$B$42,IF(LEFT(G200,1)="t",'Trachyte Vol Dist'!$B$42,""))) -> 0.999
... 37 more rows

Sheet MCsimOutput
A1: Iteration | B1: Run 1 | C1: Run 2 | D1: Run 3 | E1: Run 4 | F1: Run 5 | G1: Run 6 | H1: Run 7 | I1: Run 8 | J1: Run 9 | K1: Run 10 | L1: Run 11 | M1: Run 12 | N1: Run 13 | O1: Run 14 | P1: Run 15 | Q1: Run 16 | R1: Run 17 | S1: Run 18 | T1: Run 19 | U1: Run 20 | V1: Run 21 | W1: Run 22 | X1: Run 23 | Y1: Run 24 | Z1: Run 25 | AA1: Run 26 | AB1: Run 27 | AC1: Run 28 | AD1: Run 29 | AE1: Run 30 | AF1: Run 31 | AG1: Run 32 | AH1: Run 33 | AI1: Run 34 | AJ1: Run 35 | AK1: Run 36 | AL1: Run 37 | AM1: Run 38 | AN1: Run 39 | AO1: Run 40 | AP1: Run 41 | AQ1: Run 42 | AR1: Run 43 | AS1: Run 44 | AT1: Run 45 | AU1: Run 46 | AV1: Run 47 | AW1: Run 48 | AX1: Run 49 | AY1: Run 50 | AZ1: Run 51 | BA1: Run 52 | BB1: Run 53 | BC1: Run 54 | BD1: Run 55 | BE1: Run 56 | BF1: Run 57 | BG1: Run 58 | BH1: Run 59 | BI1: Run 60 | BJ1: Run 61 | BK1: Run 62 | BL1: Run 63 | BM1: Run 64 | BN1: Run 65 | BO1: Run 66 | BP1: Run 67 | BQ1: Run 68 | BR1: Run 69 | BS1: Run 70 | BT1: Run 71 | BU1: Run 72 | BV1: Run 73 | BW1: Run 74 | BX1: Run 75 | BY1: Run 76 | BZ1: Run 77 | CA1: Run 78 | CB1: Run 79 | CC1: Run 80 | CD1: Run 81 | CE1: Run 82 | CF1: Run 83 | CG1: Run 84 | CH1: Run 85 | CI1: Run 86 | CJ1: Run 87 | CK1: Run 88 | CL1: Run 89 | CM1: Run 90 | CN1: Run 91 | CO1: Run 92 | CP1: Run 93 | CQ1: Run 94 | CR1: Run 95 | CS1: Run 96 | CT1: Run 97 | CU1: Run 98 | CV1: Run 99 | CW1: Run 100 | CX1: Run 101 | CY1: Run 102 | CZ1: Run 103 | DA1: Run 104 | DB1: Run 105 | DC1: Run 106 | DD1: Run 107 | DE1: Run 108 | DF1: Run 109 | DG1: Run 110 | DH1: Run 111 | DI1: Run 112 | DJ1: Run 113 | DK1: Run 114 | DL1: Run 115 | DM1: Run 116 | DN1: Run 117 | DO1: Run 118 | DP1: Run 119 | DQ1: Run 120 | DR1: Run 121 | DS1: Run 122 | DT1: Run 123 | DU1: Run 124 | DV1: Run 125 | DW1: Run 126 | DX1: Run 127 | DY1: Run 128 | DZ1: Run 129 | EA1: Run 130 | EB1: Run 131 | EC1: Run 132 | ED1: Run 133 | EE1: Run 134 | EF1: Run 135 | EG1: Run 136 | EH1: Run 137 | EI1: Run 138 | EJ1: Run 139 | EK1: Run 140 | EL1: Run 141 | EM1: Run 142 | EN1: Run 143 | EO1: Run 144 | EP1: Run 145 | EQ1: Run 146 | ER1: Run 147 | ES1: Run 148 | ET1: Run 149 | EU1: Run 150 | EV1: Run 151 | EW1: Run 152 | EX1: Run 153 | EY1: Run 154 | EZ1: Run 155 | FA1: Run 156 | FB1: Run 157 | FC1: Run 158 | FD1: Run 159 | FE1: Run 160 | FF1: Run 161 | FG1: Run 162 | FH1: Run 163 | FI1: Run 164 | FJ1: Run 165 | FK1: Run 166 | FL1: Run 167 | FM1: Run 168 | FN1: Run 169 | FO1: Run 170 | FP1: Run 171 | FQ1: Run 172 | FR1: Run 173 | FS1: Run 174 | FT1: Run 175 | FU1: Run 176 | FV1: Run 177 | FW1: Run 178 | FX1: Run 179 | FY1: Run 180 | FZ1: Run 181 | GA1: Run 182 | GB1: Run 183 | GC1: Run 184 | GD1: Run 185 | GE1: Run 186 | GF1: Run 187 | GG1: Run 188 | GH1: Run 189 | GI1: Run 190 | GJ1: Run 191 | GK1: Run 192 | GL1: Run 193 | GM1: Run 194 | GN1: Run 195 | GO1: Run 196 | GP1: Run 197 | GQ1: Run 198 | GR1: Run 199 | GS1: Run 200
A2: 1 | B2: 81.59174126 | C2: 80.29488559 | D2: 69.64786953 | E2: 89.31873914 | F2: 85.8489372 | G2: 87.98525682 | H2: 73.70144938 | I2: 79.12714753 | J2: 90.19372331 | K2: 94.76343897 | L2: 78.05987873 | M2: 82.00542512 | N2: 79.08236402 | O2: 82.12543809 | P2: 91.29559705 | Q2: 85.76738986 | R2: 83.01144414 | S2: 87.13154143 | T2: 78.71425238 | U2: 85.79919369 | V2: 81.73657872 | W2: 78.17987387 | X2: 88.79706186 | Y2: 79.19287178 | Z2: 87.05101085 | AA2: 80.88046483 | AB2: 75.7700479 | AC2: 80.22604983 | AD2: 81.14234706 | AE2: 76.31610792 | AF2: 85.204154 | AG2: 78.61862227 | AH2: 78.26130692 | AI2: 71.54833704 | AJ2: 84.2547386 | AK2: 76.39609264 | AL2: 86.80880103 | AM2: 76.90468581 | AN2: 85.23541835 | AO2: 77.97831146 | AP2: 77.50739505 | AQ2: 81.24571141 | AR2: 85.85991568 | AS2: 74.55909154 | AT2: 83.55891869 | AU2: 81.59728093 | AV2: 85.68160505 | AW2: 77.34736869 | AX2: 85.41407453 | AY2: 78.38316166 | AZ2: 78.49264345 | BA2: 82.93368844 | BB2: 83.91689508 | BC2: 87.70806519 | BD2: 72.22078823 | BE2: 80.29610574 | BF2: 78.73401291 | BG2: 76.92723585 | BH2: 85.02780919 | BI2: 85.51838738 | BJ2: 75.71016955 | BK2: 83.42584438 | BL2: 78.58611019 | BM2: 74.67820521 | BN2: 81.22665162 | BO2: 80.12973674 | BP2: 81.53213611 | BQ2: 81.68874757 | BR2: 83.68211416 | BS2: 76.0166762 | BT2: 71.29627937 | BU2: 87.8920619 | BV2: 82.81648177 | BW2: 83.61328613 | BX2: 85.84637238 | BY2: 73.06191737 | BZ2: 91.67352738 | CA2: 86.01944834 | CB2: 85.64023947 | CC2: 85.7819846 | CD2: 77.87902086 | CE2: 81.65568355 | CF2: 79.50829893 | CG2: 84.59502522 | CH2: 83.81804311 | CI2: 84.43427493 | CJ2: 77.10412053 | CK2: 74.24433474 | CL2: 84.75442373 | CM2: 87.61329465 | CN2: 78.67739405 | CO2: 77.47907894 | CP2: 79.12346323 | CQ2: 82.06789932 | CR2: 84.09466148 | CS2: 78.75097588 | CT2: 85.06545545 | CU2: 88.90056669 | CV2: 79.43118802 | CW2: 85.10738145
A3: 2 | B3: 81.17174126 | C3: 79.87488559 | D3: 69.22786953 | E3: 88.89873914 | F3: 85.4289372 | G3: 87.56525682 | H3: 73.28144938 | I3: 78.70714753 | J3: 89.77372331 | K3: 94.34343897 | L3: 77.63987873 | M3: 81.58542512 | N3: 78.66236402 | O3: 81.70543809 | P3: 90.87559705 | Q3: 85.34738986 | R3: 82.59144414 | S3: 86.71154143 | T3: 78.29425238 | U3: 85.37919369 | V3: 81.31657872 | W3: 77.75987387 | X3: 88.37706186 | Y3: 78.77287178 | Z3: 86.63101085 | AA3: 80.46046483 | AB3: 75.3500479 | AC3: 79.80604983 | AD3: 80.72234706 | AE3: 75.89610792 | AF3: 84.784154 | AG3: 78.19862227 | AH3: 77.84130692 | AI3: 71.12833704 | AJ3: 83.8347386 | AK3: 75.97609264 | AL3: 86.38880103 | AM3: 76.48468581 | AN3: 84.81541835 | AO3: 77.55831146 | AP3: 77.08739505 | AQ3: 80.82571141 | AR3: 85.43991568 | AS3: 74.13909154 | AT3: 83.13891869 | AU3: 81.17728093 | AV3: 85.26160505 | AW3: 76.92736869 | AX3: 84.99407453 | AY3: 77.96316166 | AZ3: 78.07264345 | BA3: 82.51368844 | BB3: 83.49689508 | BC3: 87.28806519 | BD3: 71.80078823 | BE3: 79.87610574 | BF3: 78.31401291 | BG3: 76.50723585 | BH3: 84.60780919 | BI3: 85.09838738 | BJ3: 75.29016955 | BK3: 83.00584438 | BL3: 78.16611019 | BM3: 74.25820521 | BN3: 80.80665162 | BO3: 79.70973674 | BP3: 81.11213611 | BQ3: 81.26874757 | BR3: 83.26211416 | BS3: 75.5966762 | BT3: 70.87627937 | BU3: 87.4720619 | BV3: 82.39648177 | BW3: 83.19328613 | BX3: 85.42637238 | BY3: 72.64191737 | BZ3: 91.25352738 | CA3: 85.59944834 | CB3: 85.22023947 | CC3: 85.3619846 | CD3: 77.45902086 | CE3: 81.23568355 | CF3: 79.08829893 | CG3: 84.17502522 | CH3: 83.39804311 | CI3: 84.01427493 | CJ3: 76.68412053 | CK3: 73.82433474 | CL3: 84.33442373 | CM3: 87.19329465 | CN3: 78.25739405 | CO3: 77.05907894 | CP3: 78.70346323 | CQ3: 81.64789932 | CR3: 83.67466148 | CS3: 78.33097588 | CT3: 84.64545545 | CU3: 88.48056669 | CV3: 79.01118802 | CW3: 84.68738145
A4: 3 | B4: 80.97274126 | C4: 79.67588559 | D4: 69.02886953 | E4: 88.69973914 | F4: 85.2299372 | G4: 87.36625682 | H4: 73.08244938 | I4: 78.50814753 | J4: 89.57472331 | K4: 94.14443897 | L4: 77.44087873 | M4: 81.38642512 | N4: 78.46336402 | O4: 81.50643809 | P4: 90.67659705 | Q4: 85.14838986 | R4: 82.39244414 | S4: 86.51254143 | T4: 78.09525238 | U4: 85.18019369 | V4: 81.11757872 | W4: 77.56087387 | X4: 88.17806186 | Y4: 78.57387178 | Z4: 86.43201085 | AA4: 80.26146483 | AB4: 75.1510479 | AC4: 79.60704983 | AD4: 80.52334706 | AE4: 75.69710792 | AF4: 84.585154 | AG4: 77.99962227 | AH4: 77.64230692 | AI4: 70.92933704 | AJ4: 83.6357386 | AK4: 75.77709264 | AL4: 86.18980103 | AM4: 76.28568581 | AN4: 84.61641835 | AO4: 77.35931146 | AP4: 76.88839505 | AQ4: 80.62671141 | AR4: 85.24091568 | AS4: 73.94009154 | AT4: 82.93991869 | AU4: 80.97828093 | AV4: 85.06260505 | AW4: 76.72836869 | AX4: 84.79507453 | AY4: 77.76416166 | AZ4: 77.87364345 | BA4: 82.31468844 | BB4: 83.29789508 | BC4: 87.08906519 | BD4: 71.60178823 | BE4: 79.67710574 | BF4: 78.11501291 | BG4: 76.30823585 | BH4: 84.40880919 | BI4: 84.89938738 | BJ4: 75.09116955 | BK4: 82.80684438 | BL4: 77.96711019 | BM4: 74.05920521 | BN4: 80.60765162 | BO4: 79.51073674 | BP4: 80.91313611 | BQ4: 81.06974757 | BR4: 83.06311416 | BS4: 75.3976762 | BT4: 70.67727937 | BU4: 87.2730619 | BV4: 82.19748177 | BW4: 82.99428613 | BX4: 85.22737238 | BY4: 72.44291737 | BZ4: 91.05452738 | CA4: 85.40044834 | CB4: 85.02123947 | CC4: 85.1629846 | CD4: 77.26002086 | CE4: 81.03668355 | CF4: 78.88929893 | CG4: 83.97602522 | CH4: 83.19904311 | CI4: 83.81527493 | CJ4: 76.48512053 | CK4: 73.62533474 | CL4: 84.13542373 | CM4: 86.99429465 | CN4: 78.05839405 | CO4: 76.86007894 | CP4: 78.50446323 | CQ4: 81.44889932 | CR4: 83.47566148 | CS4: 78.13197588 | CT4: 84.44645545 | CU4: 88.28156669 | CV4: 78.81218802 | CW4: 84.48838145
